Workbook

Sheet Introduction
E2: Version: | I2: 2015 1.3.5
E3: Company name: | I3: Enter your company name
E5: What is the Global Water Tool?
F6: A free and easy-to-use tool for companies and organizations to assess and communicate their water use and risks relative to water availability in their global operations and supply chains. The tool provides quick and accurate answers to key questions such as:
F9: l | G9: How many of our sites are in extremely water-scarce areas? Which sites are at greatest risk? How will that look in the future?
F10: l | G10: How much of our total production is generated from sites most exposed to risk?
F11: l | G11: How many of our employees live in countries that lack access to improved water and sanitation?
F12: l | G12: What percentage of our suppliers are in water scarce areas now? How many will there be in 2025?
F14: The Global Water Tool does not provide specific guidance on local situations, which require more in-depth systematic analysis. It is the first step towards a deeper understanding of the water situation in local communities, the development of a comprehensive corporate water management strategy and holistic stewardship approaches. Follow-up steps can include the prioritization of action for water-stressed plants and a structured dialogue with sites at risk leading to detailed site level assessments. The results can then be used as an input to internal environmental data-tracking, the evaluation of new projects, development of internal policy and guidelines, reporting, education of supply chain partners, assessment of capacity building needs and fine-tuning of water goals to better align with true regional concerns and risk. The tool is used under your own responsibility.
E23: What does it do?
F24: l | G24: Compares your company’s water use (including staff presence, industrial use and supply chain) with validated water,
G25: sanitation, population and biodiversity information (on a country and watershed basis);
F26: l | G26: Establishes relative water risks in a company’s portfolio to prioritize action – including more detailed assessment;
F27: l | G27: Creates key water reporting indicators (GRI, CDP Water, Bloomberg and Dow Jones Sustainability Indexes) in addition to
G28: inventories, risk and performance metrics;
F29: l | G29: Generates maps, charts and tables summarizing results;
F30: l | G30: Enables effective communication and reporting with internal and external stakeholders on your company's water issues.
E32: Whom is it for?
F33: Companies and any other stakeholders operating in multiple countries who need to better understand the water issues
F34: in their operations and that of their extended supply chain.
E36: Who developed the tool and how?
F37: The WBCSD Water Leadership Group stewarded the development of the Global Water Tool and provided financial and intellectual contributions. WBCSD member and global engineering company, CH2M developed the tool. An Advisory Board of 21 WBCSD member companies provided oversight and pilot testing to launch the first version of the tool in 2007. The Nature Conservancy and Global Reporting Initiative provided expertise during the first stages of development. An Advisory Board of member companies in a range of industries provided deeper oversight and pilot testing for this 2015 update, for which the World Resources Institute and Global Reporting Initiative provided knowledge and technical input. The tool is a rare example of collaboration between key players to create a sustainable future for business, society and the environment through responsible water management. Leading companies increasingly collaborate within a watershed based on the understanding that water is a shared resource with finite volumes resulting in collective risk.
E47: Advisory Board 2014-2015
F48: l | G48: BASF | J48: l | K48: DSM | N48: l | O48: DuPont
F49: l | G49: EDF | J49: l | K49: GDF Suez | N49: l | O49: Italcementi
F50: l | G50: Pepsico | J50: l | K50: Shell | N50: l | O50: With the contribution of IPIECA
E52: Data provided by
F53: l | G53: UN Food and Agriculture Organization (FAO) AQUASTAT
F54: l | G54: World Health Organization (WHO) and UNICEF Joint Monitoring Programme (JMP)
F55: l | G55: World Resources Institute (WRI)
F56: l | G56: International Water Management Institute (IWMI)
F57: l | G57: UN Department of Economic and Social Affairs, Population Division (UNDESA)
F58: l | G58: Conservation International (CI)
E60: Feedback is welcomed
F61: The WBCSD welcomes feedback on the use and value of this tool to your company.
F62: GlobalWaterTool@wbcsd.org

Sheet Instructions
B2: INSTRUCTIONS | D2: ="Global Water Tool " & version_number -> Global Water Tool 2015 1.3.5
B3: The Global Water Tool uses this MS Excel Workbook (for data entry and reports) and an online mapping service (developed on ESRI ArcGIS) to provide basin-level data aggregation (Watershed Report) and water resources graphics. You may use Google Earth for spatial viewing. Please read the user guide available at www.wbcsd.org/work-program/sector-projects/water/global-water-tool.aspx before using the tool.
B4: User Requirements: This tool is geared to MS Excel 2003 and above. You need to have Internet Explorer 10 and Google Earth (pro-version for commercial use) on your computer to use the mapping application and to view the sites spatially. Also ensure that your firewall and internet security settings recognize WBCSD Global Water Tool as a trusted source. In order to avoid issues to display the maps and Watershed report, users should add an exception on their firewall: gwt.wbcsdservers.org (online maps) 54.169.49.193 (watershed report)
B5: In case you’re using a Proxy (if you are not using a Proxy, please ignore this function), please insert Proxy Name and Proxy Port in the Configuration tab (the last one) and save the tool. To check whether you are using a proxy: - Please open your browser, go to Internet Options / Connections / LAN Settings.- Check if the flag 'Use a proxy server for your LAN' is active. If it is active, address and port are the two values to be entered in the Configuration tab in tool.
B6: Limited technical support and reporting of bugs can be requested at GlobalWaterTool@wbcsd.org
B7: Component | D7: Functionality
B8: INTRODUCTION | D8: The Introduction page provides general information on the tool and background information on its development.
B9: START | D9: The Start page provides a menu with all the features of Global Water Tool.
D10: Click any button on the page to access the required component. The page is divided into four sections: Input, Output, Summary and References.
D11: All pages are open at all times.
B12: INPUT WATER INVENTORY | D12: The first step in using the Global Water Tool is to populate the Water Inventory table located on the Input Water Inventory sheet with relevant data (site information, location coordinates, and site-specific water consumption data). Enter data on the Input Water Inventory table.
D13: The Input Water Inventory worksheet allows an Entity to enter water use data for each site. Whenever a cell offers a droplist, choose from it use rather than typing manually to avoid malfunctions. The data is then used to create standard reports and maps aimed to communicate water risk information to stakeholders. The features available on Input Water Inventory worksheet and its functionalities are provided below:
D14: Use this button to use a form to insert a new record in the Water Inventory table. You'll be requested to enter generic data, whilst other details will be typed directly within excel table. You can also copy existing data from another source (please take care the columns order is the same) and then press "Set" to let GWT process your data.
D15: Click this button after having pasted existing data from other worksheets (please take care that the column order is the same) to let the tool process the data and apply the proper formatting.
D16: Use this button to delete all data before inserting new records. You'll be prompted to confirm your choice
D17: Use this button (located near column names) to sort data. Re-click to reverse the order
D19: Use the buttons on the left menu to go to the corresponding page
B20: OUTPUT REPORTS | D20: After entering water-related data, several reports can be generated using this tool. These reports are grouped into three main categories: country-related data (database provided by FAO AQUASTAT, UNDESA Population Division, WRI and WHO/UNICEF), watershed-related data (data provided by USA and WRI), and Reporting Metrics.
D21: The reports can be run by clicking the button Build All located on the Start page, or Build button located at the top of each page. Details of these reporting options are shown below.
D22: Click to go to Output Country Report sheet and generate reports that compare site water data with regional and country level data. The following reports are generated by country:
D23: l Output Country Report
D24: l Combined Metrics Country
D25: Click to go to Output Watershed Report and generate reports that compare site water data with watershed level. The following reports are generated by watershed:
D26: l Output Watershed Report
D27: l Combined Metrics Watershed
D28: Click to show reports that summarize GRI, Bloomberg, CDP and Dow Jones metrics. The following reports are generated:
D29: l GRI Metrics
D30: l Bloomberg Metrics
D31: l CDP Metrics
D32: l Dow Jones Metrics
B33: SUMMARY REPORT | D33: Two summary reports, Dashboard and Geographical Summary, are generated when the Output Watershed Build button is clicked. Anytime the Input Water Inventory page is modified, you will need to click the Output Watershed Build button again to update Dashboard and Geographical Summary reports.
B34: ONLINE MAPPING
D35: Click to display your sites' locations on a world map (web service provided by WBCSD - best displayed with Google Chrome). You can then view your facilities locations overlapped with several data layers. Your data is displayed on the web using the mapping application but is not stored.
D36: Country Maps:
D37: l Total renewable per person (actual) (2008-2012)
D38: l Projected total renewal per person (actual) for 2025
D39: l Projected total renewal per person (actual) for 2050
D40: l Industrial water withdrawal as part of total (%)
D41: l Total water withdrawal per capita
D42: l Dependency ratio (%)
D43: l Access to Improved Water
D44: l Access to Improved Sanitation
D45: l Baseline Water Stress
D46: l Interannual Variability
D47: l Seasonal Variability
D50: Watershed Maps:
D51: l Environmental Water Stress Index
D52: l Physical and Economic Water Scarcity
D53: l Annual Renewable Water Supply per Person (1995)
D54: l Annual Renewable Water Supply per Person (Projections for 2025)
D55: l Baseline water stress
D56: l Inter-annual variability
D57: l Seasonal variability
D58: l Projected water changes 2020-30-40
D59: l Biodiversity Hotspot (2004)
D61: Use this button to load site locations in Google Earth. For personal use you can download a free version here: http://www.google.com/earth/download/ge/agree.html. For commercial use you will need to purchase Google Earth Pro or other enterprise version from: http://www.google.com/earth/businesses/
D62: GWT will automatically find the appropriate path to the executable.
B70: REFERENCES | D70: In addition to the user guide, dataset details and FAQs, there are two references available within the tool to help you use it:
D72: Provides instructions on using Global Water Tool (this page)
D77: Provides explanation of terminology used in GWT and formulas adopted for an accurate reporting of water-related metrics in a wide range of industrial sectors and business operations.

Sheet Definitions
B2: DEFINITIONS | O2: ="Global Water Tool " & version_number -> Global Water Tool 2015 1.3.5
B4: The purpose of the definitions is to clarify water terms and calculations for the accurate reporting of water-related metrics in a range of industrial sectors and business operations. The Global Reporting Initiative (GRI) was used as a basis for definitions to promote alignment for those companies that wish to report in accordance with the GRI.
B7: The definitions enable reporting on GRI Indicators G4-EN8 (Total water withdrawal by source), G4-EN10 (Percentage and total volume of water recycled and reused), and G4-EN22 (Total water discharge by quality and destination). At this time, Indicators G4-EN9 and G4-EN26 on water sources (or bodies) significantly affected by water withdrawal and discharge, respectively, are not addressed in this tool due to the complexity of obtaining detailed local water information.
B10: Freshwater: The constituent content of freshwater should be defined by local regulations. In the absence of local regulations, a limit of 1000 mg/L of TDS (total dissolved solids) – the limit recommended by the World Health Organization – is the guidance for categorization of fresh and non-fresh for surface and groundwater.
B12: A) Freshwater Withdrawal and Consumption
B13: 1) Total freshwater withdrawal (A1):
B14: The sum of all freshwater drawn into the boundaries of the reporting organization from the following sources for any use over the course of the reporting periods:
C15: a) Surface water
C16: b) Groundwater
C17: c) Municipal/Water Potable supply (including water purchased from other industries)
B19: 2) Total Freshwater Withdrawal and Rainfall (A2):
B20: The sum of total freshwater withdrawal (A1) and rainwater/precipitation collected onsite for any use over the course of the reporting period.
B22: 3) Total Freshwater Consumed by Facility (A3):
B23: The quantity of freshwater:
C24: a) Evaporated for cooling purposes
C25: b) Evaporated from water storage facilities
C26: c) Lost via transmission
C27: d) Used directly in the organization’s products
C28: e) Onsite uses, including irrigation and road maintenance
B29: Freshwater consumption is the difference between freshwater intake and freshwater discharge. Consumption removes water from a water system and makes it unavailable for further use.
B31: 4) Total Freshwater Consumed by Agriculture Operations (A4):
B32: The quantity of freshwater absorbed by crops and transpired.
B34: B) Non-Freshwater Withdrawal and Consumption
B35: 1) Total Non-Freshwater Withdrawal (B1):
B36: The sum of all non-freshwater drawn into the boundaries of the reporting organization from the following sources for any use over the course of the reporting periods:
C37: a) Seawater
C38: b) Surface water – brackish or saline source
C39: c) Groundwater – brackish or saline source
C40: d) External wastewater – untreated or partially treated wastewater from municipal or other external industrial source
B42: 2) Total Non-Freshwater Consumed by Facility (B2):
B43: The quantity of non-freshwater:
C44: a) Evaporated for cooling purposes
C45: b) Evaporated from water storage facilities
C46: c) Lost via transmission
C47: d) Onsite uses, including irrigation and road maintenance
B49: Non-Freshwater consumption is the difference between non-freshwater intake and non-freshwater discharge. Consumption removes water from a water system and makes it unavailable for further use.
B51: 3) Total Non-Freshwater Consumed by Agriculture Operations (B3):
B52: The quantity of non-freshwater absorbed by crops and transpired.
B54: C) Total Water Withdrawal and Consumption
B55: 1) Total Water Withdrawal (Aligns with G4-EN8 Definition) (C1):
B56: The sum of Total Freshwater Withdrawal and Rainfall (A2) and Total Non-Freshwater Withdrawal (B1) for any use over the course of the reporting period.
B58: 2) Total Water Consumed by Facility (C2):
B59: The quantity of fresh (A3) and non-freshwater (B2):
C60: a) Evaporated for cooling purposes
C61: b) Evaporate from water storage facilities
C62: c) Lost via transmission
C63: d) Used directly in the organization’s products
C64: e) Onsite uses, including irrigation and road maintenance
B66: 3) Total Water Consumed by Agriculture Operations (C3):
B67: The quantity of fresh (A4) and non-freshwater (B3) absorbed by crops and transpired.
B69: D) Freshwater Discharge
B70: 1) Freshwater Discharge (D1):
B71: Water effluents from fresh sources (A3) discharged outside a reporting organization boundary over the course of the reporting period to subsurface waters, surface waters, sewers that lead to rivers, oceans, lakes, wetlands, treatment facilities, and groundwater through:
B72: l | C72: A defined discharge point (point source discharge) – including sales of water to an external facility
B73: l | C73: Over land in a dispersed or undefined manner (non-point source discharge)
B74: l | C74: Wastewater removed from the reporting organization via truck
B75: Discharge of collected rainwater and domestic sewage are regarded as wastewater discharge
B77: E) Non-Freshwater Discharge
B78: 1) Total Water Discharge (E1):
B79: Water effluents from non-freshwater sources (B2) discharged outside a reporting organization boundary over the course of the reporting period to subsurface waters, surface waters, sewers that lead to rivers, oceans, lakes, wetlands, treatment facilities, and groundwater through:
B80: l | C80: A defined discharge point (point source discharge) – including sales of water to an external facility
B81: l | C81: Over land in a dispersed or undefined manner (non-point source discharge)
B82: l | C82: Wastewater removed from the reporting organization via truck
B83: Discharge of collected rainwater and domestic sewage are regarded as wastewater discharge
B85: F) Total Water Discharge
B86: 1) Total Water Discharge (Partial alignment with G4-EN22 Definition) (F1):
B87: The sum of fresh (D1) and non-freshwater (E1) effluents discharged outside a reporting organization boundary over the course of the reporting period to subsurface waters, surface waters, sewers that lead to rivers, oceans, lakes, wetlands, treatment facilities, and groundwater through:
B88: l | C88: A defined discharge point (point source discharge) – including sales of water to an external facility
B89: l | C89: Over land in a dispersed or undefined manner (non-point source discharge)
B90: l | C90: Wastewater removed from the reporting organization via truck
B91: Discharge of collected rainwater and domestic sewage are regarded as wastewater discharge.
B92: (Note: this definition includes rainwater and domestic sewage. G4-EN22 does not include these.)
B94: G) Recycling and Reuse
B95: 1) Recycled (G1):
B96: The amount of used water/wastewater employed through another cycle back in the same process or in a higher use in the process cycle before discharge for final treatment and/or discharge to the environment.
B98: 2) Reuse (G2):
B99: The amount of used water/wastewater employed in another function in a lower use in the process cycle before discharge for final treatment and/or discharge to the environment. Reuse includes wastewater used for irrigation within a facility boundary. Reuse includes harvesting of rainwater within a facility boundary.
B102: 3) Total Recycled and Reused Water (Aligns with G4-EN10 Definition) (G3):
B103: The total amount of recycled (G1) and reused (G2) water/wastewater
B105: 4) Percentage of Total Recycled and Reused Water (Aligns with G4-EN10 Definition) (G4):
B106: The Total Recycled and Reused water (G3) as a percentage of Total Water Withdrawal (C1).
B108: Because water is extracted from its original source only once, recycled water should be counted only once.
B110: H) Number of Site Workers
B111: Occupants and people who are present on site should be counted as site workers as defined by your company on other topics such as safety performance reporting. For example, contractors are typically considered site workers. At retail sites, shoppers are not typically included in footprint calculations.

Sheet START
L1: Critical Tool Instructions | Q1: ="Global Water Tool " & version_number -> Global Water Tool 2015 1.3.5
B4: Input
B14: Output
B32: Summary
B42: References

Sheet Input Water Inventory
C3: ="Global Water Tool " & version_number -> Global Water Tool 2015 1.3.5 | E3: Input water inventory
C5: Site Name | D5: Country | E5: Region | F5: Sub-Region | G5: Site ID | H5: Latitude | I5: Longitude | J5: Operation Type | K5: Water Withdrawal Freshwater Sources (TDS < 1000 mg/l) | AD5: Water Withdrawal Non-Freshwater Sources (TDS > 1000 mg/l) | AU5: Total Water Withdrawal G4-EN8 | AV5: Water Discharge Freshwater Discharge by Receiving Body (TDS < 1000 mg/l) | BI5: Total Freshwater Discharge | BJ5: Water Discharge Non-Freshwater Discharge by Receiving Body (TDS > 1000 mg/l) | BW5: Total Non-Freshwater Discharge | BX5: Total Water Discharge G4-EN22 | BY5: Recycled or Reused (m3/year) | CB5: Percent Recycled/ Reused G4-EN10 | CC5: Total Freshwater Consumption | CD5: Total Water Consumption | CE5: Production/ Sales | CF5: Production/ Sales | CG5: Intensity Metrics Total Freshwater Consumption/ Production or Sales | CH5: Does Water Data Include Site Workers? (YES/NO) | CI5: No. of Site Workers | CJ5: Site Workers per Capita Water Use | CK5: Site Workers Water Use (Total)
H6: deg.dddd | I6: deg.dddd | J6: (use droplist) | K6: Surface | O6: Groundwater | S6: Municipal/Potable Water Supply | W6: External Wastewater | AA6: Total Freshwater | AB6: Rainwater | AC6: Total FW & Rainwater | AD6: Ocean | AH6: Surface (Other than Ocean) | AL6: Groundwater | AP6: External wastewater | AT6: Total Non-Freshwater | AU6: (m3/year) | AV6: Ocean | AZ6: Surface | BD6: Subsurface / Well | BH6: Off-Site Water Treatment | BI6: (m3/year) | BJ6: Ocean | BN6: Surface | BR6: Subsurface / Well | BV6: Off-Site Water Treatment | BW6: (m3/year) | BX6: (m3/year) | BY6: Recycled | BZ6: Reused | CA6: Total Recycled and Reused G4-EN10
D7: (use droplist) | K7: Volume (m3/year) | L7: pH | M7: TDS | O7: Volume (m3/year) | P7: pH | Q7: TDS | S7: Volume (m3/year) | T7: pH | U7: TDS | W7: Volume (m3/year) | X7: pH | Y7: TDS | AD7: Volume (m3/year) | AE7: pH | AF7: TDS | AH7: Volume (m3/year) | AI7: pH | AJ7: TDS | AL7: Volume (m3/year) | AM7: pH | AN7: TDS | AP7: Volume (m3/year) | AQ7: pH | AR7: TDS | AV7: Volume (m3/year) | AW7: pH | AX7: TDS | AZ7: Volume (m3/year) | BA7: pH | BB7: TDS | BD7: Volume (m3/year) | BE7: pH | BF7: TDS | BJ7: Volume (m3/year) | BK7: pH | BL7: TDS | BN7: Volume (m3/year) | BO7: pH | BP7: TDS | BR7: Volume (m3/year) | BS7: pH | BT7: TDS | CB7: (%) | CC7: (m3/year) | CD7: (m3/year) | CE7: No. of Units | CF7: Units/Type | CG7: m3/year/unit | CH7: (use droplist) | CI7: (number) | CJ7: (m3/year) | CK7: (m3/year)
C8: Dark Chocolate Lilikoi | D8: United States of America | E8: =VLOOKUP(D8,iso_list,2) -> Americas | F8: =VLOOKUP(D8,iso_list,3) -> North America | G8: 01 | H8: 20.873226 | I8: -156.678225 | J8: SUPPLIER | S8: 4500000 | W8: 450 | AA8: =SUM(W8,S8,O8,K8) -> 4500450 | AC8: =SUM(AA8,AB8) -> 4500450 | AT8: =SUM(AP8,AL8,AH8,AD8) -> 0 | AU8: =SUM(AT8,AC8) -> 4500450 | AV8: 12000 | BD8: 780000 | BI8: =SUM(BH8,BD8,AZ8,AV8) -> 792000 | BW8: =SUM(BV8,BR8,BN8,BJ8) -> 0 | BX8: =SUM(BW8,BI8) -> 792000 | BY8: 45000 | BZ8: 27900 | CA8: =SUM(BY8:BZ8) -> 72900 | CB8: =IF(ISERROR((CA8/AU8)*100),0,(CA8/AU8)*100) -> 1.619838016 | CC8: =AA8-BI8 -> 3708450 | CD8: =AU8-BX8 -> 3708450 | CJ8: =IF(CI8="",0,(IF(CH8="Yes","0",VLOOKUP(D8,iso_list,5)))) -> 0 | CK8: =CI8*CJ8 -> 0
C9: Kudu Potjie | D9: Namibia | E9: Africa | F9: Southern Africa | G9: 02 | H9: -22.533287 | I9: 17.031569 | J9: INDUSTRIAL | S9: 34000 | W9: 13700 | AA9: 47700 | AC9: 47700 | AT9: 0 | AU9: 47700 | AV9: 1300 | BD9: 65400 | BI9: 66700 | BW9: 0 | BX9: 66700 | CA9: 0 | CB9: 0 | CC9: -19000 | CD9: -19000 | CJ9: 0 | CK9: 0
C10: Capitaine Fonio | D10: Mali | E10: Africa | F10: Western Africa | G10: 03 | H10: 13.90594 | I10: -4.555523 | J10: SUPPLIER | S10: 7650878 | W10: 26500 | AA10: 7677378 | AC10: 7677378 | AT10: 0 | AU10: 7677378 | AV10: 426000 | BD10: 465386 | BI10: 891386 | BW10: 0 | BX10: 891386 | CA10: 0 | CB10: 0 | CC10: 6785992 | CD10: 6785992 | CJ10: 0 | CK10: 0
C11: Bibimbap Co. | D11: Korea Republic of | E11: Asia | F11: Eastern Asia | G11: 04 | H11: 35.91 | I11: 128.61 | J11: INDUSTRIAL | AA11: 0 | AC11: 0 | AT11: 0 | AU11: 0 | BI11: 0 | BW11: 0 | BX11: 0 | CA11: 0 | CB11: 0 | CC11: 0 | CD11: 0 | CJ11: 0 | CK11: 0
C12: Clam Chowder Inc. | D12: United States of America | E12: Americas | F12: North America | G12: 05 | H12: 40.574665 | I12: -73.977619 | J12: OFFICE/RETAIL | AA12: 0 | AC12: 0 | AT12: 0 | AU12: 0 | BI12: 0 | BW12: 0 | BX12: 0 | CA12: 0 | CB12: 0 | CC12: 0 | CD12: 0 | CJ12: 0 | CK12: 0
C13: Mazamorra Morada | D13: Peru | E13: Americas | F13: South America | G13: 06 | H13: -13.162791 | I13: -72.544974 | J13: INDUSTRIAL | AA13: 0 | AC13: 0 | AT13: 0 | AU13: 0 | BI13: 0 | BW13: 0 | BX13: 0 | CA13: 0 | CB13: 0 | CC13: 0 | CD13: 0 | CJ13: 0 | CK13: 0
C14: Maison de la Paix | D14: Switzerland | E14: Europe | F14: Western Europe | G14: 07 | H14: 46.22 | I14: 6.14 | J14: OFFICE/RETAIL | AA14: 0 | AC14: 0 | AT14: 0 | AU14: 0 | BI14: 0 | BW14: 0 | BX14: 0 | CA14: 0 | CB14: 0 | CC14: 0 | CD14: 0 | CJ14: 0 | CK14: 0
C15: Sticky Date Pudding | D15: Tanzania United Republic of | E15: Africa | F15: Eastern Africa | G15: 08 | H15: -6.160773 | I15: 39.188656 | J15: INDUSTRIAL | AA15: 0 | AC15: 0 | AT15: 0 | AU15: 0 | BI15: 0 | BW15: 0 | BX15: 0 | CA15: 0 | CB15: 0 | CC15: 0 | CD15: 0 | CJ15: 0 | CK15: 0
C16: Dahi Bhalla | D16: India | E16: Asia | F16: Southern Asia | G16: 09 | H16: 28.592992 | I16: 77.220417 | J16: OFFICE/RETAIL | AA16: 0 | AC16: 0 | AT16: 0 | AU16: 0 | BI16: 0 | BW16: 0 | BX16: 0 | CA16: 0 | CB16: 0 | CC16: 0 | CD16: 0 | CJ16: 0 | CK16: 0
C17: Lingonberry Ltd. | D17: Sweden | E17: Europe | F17: Northern Europe | G17: 10 | H17: 59.28 | I17: 18.02 | J17: INDUSTRIAL | AA17: 0 | AC17: 0 | AT17: 0 | AU17: 0 | BI17: 0 | BW17: 0 | BX17: 0 | CA17: 0 | CB17: 0 | CC17: 0 | CD17: 0 | CJ17: 0 | CK17: 0
C18: Donkey Consortium | D18: France | E18: Europe | F18: Western Europe | G18: 11 | H18: 48.881789 | I18: 2.337541 | J18: SUPPLIER | AA18: 0 | AC18: 0 | AT18: 0 | AU18: 0 | BI18: 0 | BW18: 0 | BX18: 0 | CA18: 0 | CB18: 0 | CC18: 0 | CD18: 0 | CJ18: 0 | CK18: 0
C19: Obanzai Ryori | D19: Japan | E19: Asia | F19: Eastern Asia | G19: 12 | H19: 34.9948714 | I19: 135.7849863 | J19: OTHER | AA19: 0 | AC19: 0 | AT19: 0 | AU19: 0 | BI19: 0 | BW19: 0 | BX19: 0 | CA19: 0 | CB19: 0 | CC19: 0 | CD19: 0 | CJ19: 0 | CK19: 0
C20: Dobos | D20: Hungary | E20: Europe | F20: Eastern Europe | G20: 13 | H20: 47.518971 | I20: 19.083236 | J20: INDUSTRIAL | AA20: 0 | AC20: 0 | AT20: 0 | AU20: 0 | BI20: 0 | BW20: 0 | BX20: 0 | CA20: 0 | CB20: 0 | CC20: 0 | CD20: 0 | CJ20: 0 | CK20: 0
C21: Baghrir | D21: Morocco | E21: Africa | F21: Northern Africa | G21: 14 | H21: 33.605344 | I21: -7.620323 | J21: OFFICE/RETAIL | AA21: 0 | AC21: 0 | AT21: 0 | AU21: 0 | BI21: 0 | BW21: 0 | BX21: 0 | CA21: 0 | CB21: 0 | CC21: 0 | CD21: 0 | CJ21: 0 | CK21: 0
C22: Gallo Pinto | D22: Costa Rica | E22: Americas | F22: Central America | G22: 15 | H22: 9.9367714 | I22: -84.1092607 | J22: INDUSTRIAL | AA22: 0 | AC22: 0 | AT22: 0 | AU22: 0 | BI22: 0 | BW22: 0 | BX22: 0 | CA22: 0 | CB22: 0 | CC22: 0 | CD22: 0 | CJ22: 0 | CK22: 0
ALL978: 1
ALL992: 1

Sheet Dashboard
C2: ="Global Water Tool " & version_number -> Global Water Tool 2015 1.3.5 | E2: Dashboard
C5: Operation Type | D5: Freshwater Consumption | E5: Total Consumption | F5: Percentage of Consumption which is Freshwater | G5: Site Distribution per Operation Type by Watershed Scarcity Level (2025)
D6: (m3/year) | E6: (m3/year) | F6: (%)
C7: All Sites | D7: ='Geographical Summary'!K8 -> 10475442 | E7: ='Geographical Summary'!M8 -> 10475442 | F7: =IF(ISERROR(D7/E7),0,(D7/E7)*100) -> 100
C8: Industrial | D8: ='Geographical Summary'!K15 -> -19000 | E8: ='Geographical Summary'!M15 -> -19000 | F8: =IF(ISERROR(D8/E8),0,(D8/E8)*100) -> 100
C9: Office/Retail | D9: ='Geographical Summary'!K22 -> 0 | E9: ='Geographical Summary'!M22 -> 0 | F9: =IF(ISERROR(D9/E9),0,(D9/E9)*100) -> 0
C10: Supplier | D10: ='Geographical Summary'!K29 -> 10494442 | E10: ='Geographical Summary'!M29 -> 10494442 | F10: =IF(ISERROR(D10/E10),0,(D10/E10)*100) -> 100
C11: Other | D11: ='Geographical Summary'!K36 -> 0 | E11: ='Geographical Summary'!M36 -> 0 | F11: =IF(ISERROR(D11/E11),0,(D11/E11)*100) -> 0

Sheet Geographical Summary
C3: ="Global Water Tool " & version_number -> Global Water Tool 2015 1.3.5 | E3: Geographical Summary
C5: Operation Type | D5: No of Sites | E5: Water Withdrawal | H5: Water Discharge | K5: Consumption | N5: Recycled/ Reused | O5: Percentage Recycled/ Reused | P5: Production | Q5: Average Intensity Total Consumption/ production unit | R5: Comments
E6: Freshwater Withdrawal | F6: Non-Freshwater Withdrawal | G6: Total Withdrawal | H6: Freshwater Discharge | I6: Non-Freshwater Discharge | J6: Total Discharge | K6: Freshwater Consumption | L6: Non-Freshwater Consumption | M6: Total Consumption
E7: (m3/year) | F7: (m3/year) | G7: (m3/year) | H7: (m3/year) | I7: (m3/year) | J7: (m3/year) | K7: (m3/year) | L7: (m3/year) | M7: (m3/year) | N7: (m3/year) | O7: (%) | P7: (production unit) | Q7: (m3/year/ production unit)
C8: All Sites | D8: =SUM(D9:D14) -> 15 | E8: =SUM(E9:E14) -> 12225528 | F8: 0 | G8: 12225528 | H8: 1750086 | I8: 0 | J8: 1750086 | K8: 10475442 | L8: 0 | M8: 10475442 | N8: 72900 | O8: =IF(ISERROR(N8/G8),0,(N8/G8)*100) -> 0.5962932644 | P8: =SUM(P9:P14) -> 0 | Q8: =IF(ISERROR(M8/P8),0,M8/P8) -> 0
C9: No Data | D9: =SUM(D16,D23,D30,D37) -> 4 | E9: =SUM(E16,E23,E30,E37) -> 4500450 | F9: 0 | G9: =SUM(E9:F9) -> 4500450 | H9: =SUM(H16,H23,H30,H37) -> 792000 | I9: 0 | J9: =SUM(H9:I9) -> 792000 | K9: =E9-H9 -> 3708450 | L9: =F9-I9 -> 0 | M9: =SUM(K9:L9) -> 3708450 | N9: =SUM(N16,N23,N30,N37) -> 72900 | O9: =IF(ISERROR(N9/G9),0,(N9/G9)*100) -> 1.619838016 | P9: =SUM(P16,P23,P30,P37) -> 0 | Q9: 0
C10: Extreme Scarcity | D10: =SUM(D17,D24,D31,D38) -> 0 | E10: 0 | F10: 0 | G10: 0 | H10: 0 | I10: 0 | J10: 0 | K10: =E10-H10 -> 0 | L10: =F10-I10 -> 0 | M10: 0 | N10: 0 | O10: 0 | P10: 0 | Q10: 0
C11: Scarcity | D11: 3 | E11: 47700 | F11: 0 | G11: 47700 | H11: 66700 | I11: 0 | J11: 66700 | K11: =E11-H11 -> -19000 | L11: 0 | M11: -19000 | N11: 0 | O11: 0 | P11: 0 | Q11: 0
C12: Stress | D12: =SUM(D19,D26,D33,D40) -> 1 | E12: 0 | F12: 0 | G12: 0 | H12: 0 | I12: 0 | J12: 0 | K12: 0 | L12: 0 | M12: 0 | N12: 0 | O12: 0 | P12: 0 | Q12: 0
C13: Sufficient | D13: 5 | E13: 7677378 | F13: 0 | G13: 7677378 | H13: 891386 | I13: 0 | J13: 891386 | K13: 6785992 | L13: 0 | M13: 6785992 | N13: 0 | O13: 0 | P13: 0 | Q13: 0
C14: Abundant | D14: 2 | E14: 0 | F14: 0 | G14: 0 | H14: 0 | I14: 0 | J14: 0 | K14: 0 | L14: 0 | M14: 0 | N14: 0 | O14: 0 | P14: 0 | Q14: 0
C15: Industrial | D15: =SUM(D16:D21) -> 7 | E15: =SUM(E16:E21) -> 47700 | F15: 0 | G15: 47700 | H15: 66700 | I15: 0 | J15: 66700 | K15: -19000 | L15: 0 | M15: -19000 | N15: 0 | O15: =IF(ISERROR(N15/G15),0,(N15/G15)*100) -> 0 | P15: =SUM(P16:P21) -> 0 | Q15: 0
C16: No Data | D16: 1 | E16: 0 | F16: 0 | G16: =SUM(E16:F16) -> 0 | H16: 0 | I16: 0 | J16: =SUM(H16:I16) -> 0 | K16: =E16-H16 -> 0 | L16: =F16-I16 -> 0 | M16: =SUM(K16:L16) -> 0 | N16: 0 | O16: =IF(ISERROR(N16/G16),0,(N16/G16)*100) -> 0 | P16: 0 | Q16: 0
C17: Extreme Scarcity | D17: 0 | E17: 0 | F17: 0 | G17: 0 | H17: 0 | I17: 0 | J17: 0 | K17: =E17-H17 -> 0 | L17: 0 | M17: 0 | N17: 0 | O17: 0 | P17: 0 | Q17: 0
C18: Scarcity | D18: 1 | E18: 47700 | F18: 0 | G18: 47700 | H18: 66700 | I18: 0 | J18: 66700 | K18: -19000 | L18: 0 | M18: -19000 | N18: 0 | O18: 0 | P18: 0 | Q18: 0
C19: Stress | D19: 1 | E19: 0 | F19: 0 | G19: 0 | H19: 0 | I19: 0 | J19: 0 | K19: 0 | L19: 0 | M19: 0 | N19: 0 | O19: 0 | P19: 0 | Q19: 0
C20: Sufficient | D20: 3 | E20: 0 | F20: 0 | G20: 0 | H20: 0 | I20: 0 | J20: 0 | K20: 0 | L20: 0 | M20: 0 | N20: 0 | O20: 0 | P20: 0 | Q20: 0
C21: Abundant | D21: 1 | E21: 0 | F21: 0 | G21: 0 | H21: 0 | I21: 0 | J21: 0 | K21: 0 | L21: 0 | M21: 0 | N21: 0 | O21: 0 | P21: 0 | Q21: 0
C22: Office/Retail | D22: =SUM(D23:D28) -> 4 | E22: =SUM(E23:E28) -> 0 | F22: 0 | G22: 0 | H22: 0 | I22: 0 | J22: 0 | K22: 0 | L22: 0 | M22: 0 | N22: 0 | O22: =IF(ISERROR(N22/G22),0,(N22/G22)*100) -> 0 | P22: =SUM(P23:P28) -> 0 | Q22: 0
C23: No Data | D23: 2 | E23: 0 | F23: 0 | G23: =SUM(E23:F23) -> 0 | H23: 0 | I23: 0 | J23: =SUM(H23:I23) -> 0 | K23: =E23-H23 -> 0 | L23: =F23-I23 -> 0 | M23: =SUM(K23:L23) -> 0 | N23: 0 | O23: =IF(ISERROR(N23/G23),0,(N23/G23)*100) -> 0 | P23: 0 | Q23: 0
C24: Extreme Scarcity | D24: 0 | E24: 0 | F24: 0 | G24: 0 | H24: 0 | I24: 0 | J24: 0 | K24: =E24-H24 -> 0 | L24: 0 | M24: 0 | N24: 0 | O24: 0 | P24: 0 | Q24: 0
C25: Scarcity | D25: 0 | E25: 0 | F25: 0 | G25: 0 | H25: 0 | I25: 0 | J25: 0 | K25: 0 | L25: 0 | M25: 0 | N25: 0 | O25: 0 | P25: 0 | Q25: 0
C26: Stress | D26: 0 | E26: 0 | F26: 0 | G26: 0 | H26: 0 | I26: 0 | J26: 0 | K26: 0 | L26: 0 | M26: 0 | N26: 0 | O26: 0 | P26: 0 | Q26: 0
C27: Sufficient | D27: 1 | E27: 0 | F27: 0 | G27: 0 | H27: 0 | I27: 0 | J27: 0 | K27: 0 | L27: 0 | M27: 0 | N27: 0 | O27: 0 | P27: 0 | Q27: 0
C28: Abundant | D28: 1 | E28: 0 | F28: 0 | G28: 0 | H28: 0 | I28: 0 | J28: 0 | K28: 0 | L28: 0 | M28: 0 | N28: 0 | O28: 0 | P28: 0 | Q28: 0
C29: Supplier | D29: =SUM(D30:D35) -> 3 | E29: =SUM(E30:E35) -> 12177828 | F29: 0 | G29: 12177828 | H29: 1683386 | I29: 0 | J29: 1683386 | K29: 10494442 | L29: 0 | M29: 10494442 | N29: 72900 | O29: =IF(ISERROR(N29/G29),0,(N29/G29)*100) -> 0.5986289181 | P29: =SUM(P30:P35) -> 0 | Q29: 0
C30: No Data | D30: 1 | E30: 4500450 | F30: 0 | G30: =SUM(E30:F30) -> 4500450 | H30: 792000 | I30: 0 | J30: =SUM(H30:I30) -> 792000 | K30: =E30-H30 -> 3708450 | L30: =F30-I30 -> 0 | M30: =SUM(K30:L30) -> 3708450 | N30: 72900 | O30: =IF(ISERROR(N30/G30),0,(N30/G30)*100) -> 1.619838016 | P30: 0 | Q30: 0
C31: Extreme Scarcity | D31: 0 | E31: 0 | F31: 0 | G31: 0 | H31: 0 | I31: 0 | J31: 0 | K31: =E31-H31 -> 0 | L31: 0 | M31: 0 | N31: 0 | O31: 0 | P31: 0 | Q31: 0
C32: Scarcity | D32: 1 | E32: 0 | F32: 0 | G32: 0 | H32: 0 | I32: 0 | J32: 0 | K32: 0 | L32: 0 | M32: 0 | N32: 0 | O32: 0 | P32: 0 | Q32: 0
C33: Stress | D33: 0 | E33: 0 | F33: 0 | G33: 0 | H33: 0 | I33: 0 | J33: 0 | K33: 0 | L33: 0 | M33: 0 | N33: 0 | O33: 0 | P33: 0 | Q33: 0
C34: Sufficient | D34: 1 | E34: 7677378 | F34: 0 | G34: 7677378 | H34: 891386 | I34: 0 | J34: 891386 | K34: 6785992 | L34: 0 | M34: 6785992 | N34: 0 | O34: 0 | P34: 0 | Q34: 0
C35: Abundant | D35: 0 | E35: 0 | F35: 0 | G35: 0 | H35: 0 | I35: 0 | J35: 0 | K35: 0 | L35: 0 | M35: 0 | N35: 0 | O35: 0 | P35: 0 | Q35: 0
C36: Other | D36: =SUM(D37:D42) -> 1 | E36: =SUM(E37:E42) -> 0 | F36: 0 | G36: 0 | H36: 0 | I36: 0 | J36: 0 | K36: 0 | L36: 0 | M36: 0 | N36: 0 | O36: =IF(ISERROR(N36/G36),0,(N36/G36)*100) -> 0 | P36: =SUM(P37:P42) -> 0 | Q36: =IF(ISERROR(M36/P36),0,M36/P36) -> 0
C37: No Data | D37: 0 | E37: 0 | F37: 0 | G37: 0 | H37: 0 | I37: 0 | J37: =SUM(H37:I37) -> 0 | K37: =E37-H37 -> 0 | L37: 0 | M37: =SUM(K37:L37) -> 0 | N37: 0 | O37: =IF(ISERROR(N37/G37),0,(N37/G37)*100) -> 0 | P37: 0 | Q37: =IF(ISERROR(M37/P37),0,M37/P37) -> 0
C38: Extreme Scarcity | D38: 0 | E38: 0 | F38: 0 | G38: 0 | H38: 0 | I38: 0 | J38: 0 | K38: 0 | L38: 0 | M38: 0 | N38: 0 | O38: 0 | P38: 0 | Q38: 0
C39: Scarcity | D39: 1 | E39: 0 | F39: 0 | G39: 0 | H39: 0 | I39: 0 | J39: 0 | K39: 0 | L39: 0 | M39: 0 | N39: 0 | O39: 0 | P39: 0 | Q39: 0
C40: Stress | D40: 0 | E40: 0 | F40: 0 | G40: 0 | H40: 0 | I40: 0 | J40: 0 | K40: 0 | L40: 0 | M40: 0 | N40: 0 | O40: 0 | P40: 0 | Q40: 0
C41: Sufficient | D41: 0 | E41: 0 | F41: 0 | G41: 0 | H41: 0 | I41: 0 | J41: 0 | K41: 0 | L41: 0 | M41: 0 | N41: 0 | O41: 0 | P41: 0 | Q41: 0
C42: Abundant | D42: 0 | E42: 0 | F42: 0 | G42: 0 | H42: 0 | I42: 0 | J42: 0 | K42: 0 | L42: 0 | M42: 0 | N42: 0 | O42: 0 | P42: 0 | Q42: 0

Sheet Output Country
C3: ="Global Water Tool " & version_number -> Global Water Tool 2015 1.3.5 | E3: Output Country Data
C5: Region | D5: Country | E5: Site Name | F5: Operation Type | G5: Water Inventory | I5: FAO AQUASTAT | X5: WHO/UNICEF (2008) | AG5: UN Pop. Div. | AH5: WRI Aqueduct
G6: Total Freshwater Consumption | H6: Total Water Consumption | I6: Total Internal Renewable (IRWR) | J6: Total Internal Renewable per person (IRWR/person) | K6: Total External (actual) (ERWR) | L6: Total Renewable (actual) (TRWR) | M6: Total Renewable per person (actual) (TRWR/person) (2008-2012) | N6: Total Renewable per person (actual) (TRWR/person) (2025) | O6: Total Renewable per person (actual) (TRWR/person) (2050) | P6: Dependency Ratio | Q6: Agricultural water withdrawal as part of total (Around 2002) | R6: Municipal water withdrawal as part of total (Around 2002) | S6: Industrial water withdrawal as part of total (Around 2002) | T6: Total water withdrawal: per person (Around 2002) | U6: Total freshwater withdrawal (surface + gw) | V6: Total freshwater withdrawal as % of TRWR (Around 2002) | W6: Desalinated water produced (2005) | X6: Population Total | Y6: Population Urban | Z6: Population Rural | AA6: Population served with improved water (%) | AD6: Population served with improved sanitation (%) | AG6: Urban Annual Growth Rate (2015-2020) | AH6: Baseline Water Stress | AI6: Interannual Variability | AJ6: Seasonal Variability
G7: (m3/year) | H7: (m3/year) | I7: (10^9 m3/yr) | J7: (m3/person/yr) | K7: (10^9 m3/yr) | L7: (10^9 m3/yr) | M7: (m3/person/yr) | N7: (m3/person/yr) | O7: (m3/person/yr) | P7: (%) | Q7: (%) | R7: (%) | S7: (%) | T7: (m3/person/yr) | U7: (10^9 m3/yr) | V7: (%) | W7: (10^9 m3/yr) | X7: (x 1000) | Y7: (%) | Z7: (%) | AA7: Total Coverage | AB7: Urban Coverage | AC7: Rural Coverage | AD7: Total Coverage | AE7: Urban Coverage | AF7: Rural Coverage | AG7: (%) | AH7: (%) | AI7: STD Deviation | AJ7: STD Deviation
C8: Grand Total | G8: =SUBTOTAL(9,G10:G28) -> 10475442 | H8: =SUBTOTAL(9,H10:H28) -> 10475442 | I8: =SUBTOTAL(9,I10:I28) -> 9817.81 | J8: =SUBTOTAL(9,J10:J28) -> 135688.6 | K8: =SUBTOTAL(9,K10:K28) -> 1445.41 | L8: =SUBTOTAL(9,L10:L28) -> 11263.32 | M8: =SUBTOTAL(9,M10:M28) -> 173981.5 | N8: =SUBTOTAL(9,N10:N28) -> 149599.7266 | O8: =SUBTOTAL(9,O10:O28) -> 134367.2204 | T8: =SUBTOTAL(9,T10:T28) -> 200.9066923 | U8: =SUBTOTAL(9,U10:U28) -> 1805.0957 | W8: =SUBTOTAL(9,W10:W28) -> 1.2255 | X8: =SUBTOTAL(9,X10:X28) -> 2217348.659
C9: Europe Total | G9: =SUBTOTAL(9,G10:G13) -> 0 | H9: =SUBTOTAL(9,H10:H13) -> 0 | I9: =SUBTOTAL(9,I10:I13) -> 417.4 | J9: =SUBTOTAL(9,J10:J13) -> 26988 | K9: =SUBTOTAL(9,K10:K13) -> 125.1 | L9: =SUBTOTAL(9,L10:L13) -> 542.5 | M9: =SUBTOTAL(9,M10:M13) -> 39670 | N9: =SUBTOTAL(9,N10:N13) -> 38097.74826 | O9: =SUBTOTAL(9,O10:O13) -> 37395.1025 | T9: =SUBTOTAL(9,T10:T13) -> 33.46203627 | U9: =SUBTOTAL(9,U10:U13) -> 50.927 | W9: =SUBTOTAL(9,W10:W13) -> 0.0121 | X9: =SUBTOTAL(9,X10:X13) -> 90234.447
C10: Europe | D10: France | E10: Donkey Consortium | F10: SUPPLIER | G10: 0 | H10: 0 | I10: 200 | J10: 3152 | K10: 11 | L10: 211 | M10: 3284 | N10: 3097.20385 | O10: 3010.285512 | P10: 5.213 | Q10: 0.0980980981 | R10: 0.1571571572 | S10: 0.7447447447 | T10: 19.61132422 | U10: 39.95 | V10: 19.61132422 | W10: 0.0117 | X10: 63125.894 | Y10: 85.82044002 | Z10: 14.17955998 | AA10: 100 | AB10: 85.82044002 | AC10: 14.17955998 | AD10: 100 | AE10: 85.82044002 | AF10: 14.17955998 | AG10: 0.8463041626 | AH10: 1.750634001 | AI10: 1.17202929 | AJ10: 1.4969315
C11: Europe | D11: Hungary | E11: Dobos | F11: INDUSTRIAL | G11: 0 | H11: 0 | I11: 6 | J11: 603 | K11: 98 | L11: 104 | M11: 10388 | N11: 10780.55354 | O11: 11640.92232 | P11: 94.23 | Q11: 0.3206806283 | R11: 0.09293193717 | S11: 0.5863874346 | T11: 7.345938005 | U11: 5.447 | V11: 7.345938005 | W11: 0.0002 | X11: 9966.116 | Y11: 69.45907513 | Z11: 30.54092487 | AA11: 100 | AB11: 69.45907513 | AC11: 30.54092487 | AD11: 99.99942806 | AE11: 69.45850319 | AF11: 30.54092487 | AG11: 0.4161855009 | AH11: 0.49486483 | AI11: 1.078247173 | AJ11: 0.646251075
C12: Europe | D12: Sweden | E12: Lingonberry Ltd. | F12: INDUSTRIAL | G12: 0 | H12: 0 | I12: 171 | J12: 18009 | K12: 3 | L12: 174 | M12: 18903 | N12: 17549.16793 | O12: 16460.12676 | P12: 1.724 | Q12: 0.08783783784 | R12: 0.3682432432 | S12: 0.5439189189 | T12: 1.70103573 | U12: 2.96 | V12: 1.70103573 | W12: 0.0002 | X12: 9440.747 | Y12: 85.20975088 | Z12: 14.79024912 | AA12: 100 | AB12: 85.20975088 | AC12: 14.79024912 | AD12: 100 | AE12: 85.20975088 | AF12: 14.79024912 | AG12: 0.7280769121 | AH12: 1.304243204 | AI12: 1.471833789 | AJ12: 1.249137366
C13: Europe | D13: Switzerland | E13: Maison de la Paix | F13: OFFICE/RETAIL | G13: 0 | H13: 0 | I13: 40.4 | J13: 5224 | K13: 13.1 | L13: 53.5 | M13: 7095 | N13: 6670.822943 | O13: 6283.767912 | P13: 24.49 | Q13: 0.01945525292 | R13: 0.2412451362 | S13: 0.7392996109 | T13: 4.803738318 | U13: 2.57 | V13: 4.803738318 | W13: 0 | X13: 7701.69 | Y13: 73.69086525 | Z13: 26.30913475 | AA13: 100 | AB13: 73.69086525 | AC13: 26.30913475 | AD13: 100 | AE13: 73.69086525 | AF13: 26.30913475 | AG13: 0.4814319642 | AH13: 1.064087164 | AI13: 0.83964679 | AJ13: 0.781592139
C14: Asia Total | G14: =SUBTOTAL(9,G15:G17) -> 0 | H14: =SUBTOTAL(9,H15:H17) -> 0 | I14: =SUBTOTAL(9,I15:I17) -> 1940.85 | J14: =SUBTOTAL(9,J15:J17) -> 5885 | K14: =SUBTOTAL(9,K15:K17) -> 469.75 | L14: =SUBTOTAL(9,L15:L17) -> 2410.7 | M14: =SUBTOTAL(9,M15:M17) -> 6416 | N14: =SUBTOTAL(9,N15:N17) -> 6281.861949 | O14: =SUBTOTAL(9,O15:O17) -> 6976.103047 | T14: =SUBTOTAL(9,T15:T17) -> 81.09030236 | U14: =SUBTOTAL(9,U15:U17) -> 758.95 | W14: =SUBTOTAL(9,W15:W17) -> 0.0407 | X14: =SUBTOTAL(9,X15:X17) -> 1416380.544
C15: Asia | D15: India | E15: Dahi Bhalla | F15: OFFICE/RETAIL | G15: 0 | H15: 0 | I15: 1446 | J15: 1149 | K15: 464.9 | L15: 1911 | M15: 1591 | N15: 1313.516928 | O15: 1164.952287 | P15: 30.52 | Q15: 0.8645949461 | R15: 0.08088690697 | S15: 0.05451814691 | T15: 34.05141143 | U15: 645.9 | V15: 34.05141143 | W15: 0.0005 | X15: 1241491.96 | Y15: 31.27573416 | Z15: 68.72426584 | AA15: 91.62975651 | AB15: 30.12215125 | AC15: 61.50760517 | AD15: 35.09451563 | AE15: 18.68195659 | AF15: 16.41255905 | AG15: 2.395911293 | AH15: 3.584886835 | AI15: 1.71760418 | AJ15: 4.189414239
C16: Asia | D16: Japan | E16: Obanzai Ryori | F16: OTHER | G16: 0 | H16: 0 | I16: 430 | J16: 3401 | K16: 0 | L16: 430 | M16: 3378 | N16: 3559.808929 | O16: 4229.827167 | P16: 0 | Q16: 0.6245618003 | R16: 0.1967658035 | S16: 0.1786723962 | T16: 20.36744186 | U16: 87.58 | V16: 20.36744186 | W16: 0.04 | X16: 126497.241 | Y16: 91.26913764 | Z16: 8.730862359 | AA16: 100 | AB16: 91.26913764 | AC16: 8.730862359 | AD16: 100 | AE16: 91.26913764 | AF16: 8.730862359 | AG16: 0.1663494814 | AH16: 3.054321889 | AI16: 1.124337818 | AJ16: 1.724354075
C17: Asia | D17: Korea Republic of | E17: Bibimbap Co. | F17: INDUSTRIAL | G17: 0 | H17: 0 | I17: 64.85 | J17: 1335 | K17: 4.85 | L17: 69.7 | M17: 1447 | N17: 1408.536092 | O17: 1581.323593 | P17: 6.958 | Q17: 0.4798278644 | R17: 0.356105433 | S17: 0.1640667025 | T17: 26.67144907 | U17: 25.47 | V17: 26.67144907 | W17: 0.0002 | X17: 48391.343 | Y17: 83.21989948 | Z17: 16.78010052 | AA17: 97.7639017 | AB17: 83.0058302 | AC17: 14.7580715 | AD17: 100 | AE17: 83.21989948 | AF17: 16.78010052 | AG17: 0.5431816346 | AH17: 3.543805295 | AI17: 1.51321447 | AJ17: 3.316948678
C18: Americas Total | G18: =SUBTOTAL(9,G19:G22) -> 3708450 | H18: =SUBTOTAL(9,H19:H22) -> 3708450 | I18: =SUBTOTAL(9,I19:I22) -> 7364.4 | J18: =SUBTOTAL(9,J19:J22) -> 95643 | K18: =SUBTOTAL(9,K19:K22) -> 799 | L18: =SUBTOTAL(9,L19:L22) -> 8163.4 | M18: =SUBTOTAL(9,M19:M22) -> 110789 | N18: =SUBTOTAL(9,N19:N22) -> 92772.71067 | O18: =SUBTOTAL(9,O19:O22) -> 80837.73701 | T18: =SUBTOTAL(9,T19:T22) -> 34.73194369 | U18: =SUBTOTAL(9,U19:U22) -> 975.79 | W18: =SUBTOTAL(9,W19:W22) -> 1.1654 | X18: =SUBTOTAL(9,X19:X22) -> 660297.152
C19: Americas | D19: Costa Rica | E19: Gallo Pinto | F19: INDUSTRIAL | G19: 0 | H19: 0 | I19: 112.4 | J19: 23446 | K19: 0 | L19: 112.4 | M19: 24873 | N19: 20358.63068 | O19: 17636.9057 | P19: 0 | Q19: 0.5335820896 | R19: 0.2947761194 | S19: 0.171641791 | T19: 2.384341637 | U19: 2.68 | V19: 2.384341637 | W19: 0 | X19: 4726.575 | Y19: 64.65906074 | Z19: 35.34093926 | AA19: 96.4441694 | AB19: 64.38998641 | AC19: 32.054183 | AD19: 93.70836176 | AE19: 61.32275485 | AF19: 32.38560691 | AG19: 1.732631951 | AH19: 1.941371802 | AI19: 1.002616711 | AJ19: 2.440992139
C20: Americas | D20: Peru | E20: Mazamorra Morada | F20: INDUSTRIAL | G20: 0 | H20: 0 | I20: 1616 | J20: 54349 | K20: 297 | L20: 1913 | M20: 66338 | N20: 55404.30955 | O20: 48094.32824 | P20: 15.53 | Q20: 0.8156979632 | R20: 0.08345752608 | S20: 0.1008445107 | T20: 1.051018245 | U20: 20.11 | V20: 1.051018245 | W20: 0.0054 | X20: 29399.817 | Y20: 77.26142649 | Z20: 22.73857351 | AA20: 85.25052384 | AB20: 70.21254928 | AC20: 15.03797456 | AD20: 71.55466308 | AE20: 62.82987748 | AF20: 8.7247856 | AG20: 1.428078861 | AH20: 3.20160863 | AI20: 4.189000744 | AJ20: 2.928378467
C21: Americas | D21: United States of America | E21: Dark Chocolate Lilikoi | F21: SUPPLIER | G21: 3708450 | H21: 3708450 | I21: 2818 | J21: 8924 | K21: 251 | L21: 3069 | M21: 9789 | N21: 8504.885222 | O21: 7553.251537 | P21: 8.179 | Q21: 0.4125894552 | R21: 0.1269586263 | S21: 0.4604519185 | T21: 15.6482919 | U21: 476.5 | V21: 15.6482919 | W21: 0.58 | X21: 313085.38 | Y21: 82.39990478 | Z21: 17.60009522 | AA21: 98.7615605 | AB21: 82.21136707 | AC21: 16.55019343 | AD21: 99.58771342 | AE21: 82.23335884 | AF21: 17.35435459 | AG21: 1.043458443 | AH21: 2.888310471 | AI21: 2.086051731 | AJ21: 1.716372335
C22: Americas | D22: United States of America | E22: Clam Chowder Inc. | F22: OFFICE/RETAIL | G22: 0 | H22: 0 | I22: 2818 | J22: 8924 | K22: 251 | L22: 3069 | M22: 9789 | N22: 8504.885222 | O22: 7553.251537 | P22: 8.179 | Q22: 0.4125894552 | R22: 0.1269586263 | S22: 0.4604519185 | T22: 15.6482919 | U22: 476.5 | V22: 15.6482919 | W22: 0.58 | X22: 313085.38 | Y22: 82.39990478 | Z22: 17.60009522 | AA22: 98.7615605 | AB22: 82.21136707 | AC22: 16.55019343 | AD22: 99.58771342 | AE22: 82.23335884 | AF22: 17.35435459 | AG22: 1.043458443 | AH22: 2.888310471 | AI22: 2.086051731 | AJ22: 1.716372335
C23: Africa Total | G23: =SUBTOTAL(9,G24:G27) -> 6766992 | H23: =SUBTOTAL(9,H24:H27) -> 6766992 | I23: =SUBTOTAL(9,I24:I27) -> 95.16 | J23: =SUBTOTAL(9,J24:J27) -> 7172.6 | K23: =SUBTOTAL(9,K24:K27) -> 51.56 | L23: =SUBTOTAL(9,L24:L27) -> 146.72 | M23: =SUBTOTAL(9,M24:M27) -> 17106.5 | N23: =SUBTOTAL(9,N24:N27) -> 12447.40568 | O23: =SUBTOTAL(9,O24:O27) -> 9158.277865 | T23: =SUBTOTAL(9,T24:T27) -> 51.62241002 | U23: =SUBTOTAL(9,U24:U27) -> 19.4287 | W23: =SUBTOTAL(9,W24:W27) -> 0.0073 | X23: =SUBTOTAL(9,X24:X27) -> 50436.516
C24: Africa | D24: Mali | E24: Capitaine Fonio | F24: SUPPLIER | G24: 6785992 | H24: 6785992 | I24: 60 | J24: 3677 | K24: 40 | L24: 100 | M24: 7870 | N24: 5375.477074 | O24: 3538.570418 | P24: 40 | Q24: 0.9013137794 | R24: 0.09013137794 | S24: 0.008554842652 | T24: 6.546 | U24: 6.546 | V24: 6.546 | W24: 0 | X24: 15839.538 | Y24: 34.92382796 | Z24: 65.07617204 | AA24: 65.39657912 | AB24: 31.14605363 | AC24: 34.25052549 | AD24: 21.61025151 | AE24: 12.28215747 | AF24: 9.328094039 | AG24: 4.497459522 | AH24: 0.204415117 | AI24: 1.263927094 | AJ24: 4.034999911
C25: Africa | D25: Morocco | E25: Baghrir | F25: OFFICE/RETAIL | G25: 0 | H25: 0 | I25: 29 | J25: 889.6 | K25: 0 | L25: 29 | M25: 917.5 | N25: 765.8787799 | O25: 681.0229434 | P25: 0 | Q25: 0.8738095238 | R25: 0.09761904762 | S25: 0.02857142857 | T25: 43.42413793 | U25: 12.59 | V25: 43.42413793 | W25: 0.007 | X25: 32272.974 | Y25: 57.03162652 | Z25: 42.96837348 | AA25: 82.12054148 | AB25: 55.98617593 | AC25: 26.13436555 | AD25: 69.76498354 | AE25: 47.4214276 | AF25: 22.34355284 | AG25: 1.52936154 | AH25: 4.23604685 | AI25: 3.116761564 | AJ25: 2.123162647
C26: Africa | D26: Namibia | E26: Kudu Potjie | F26: INDUSTRIAL | G26: -19000 | H26: -19000 | I26: 6.16 | J26: 2606 | K26: 11.56 | L26: 17.72 | M26: 8319 | N26: 6306.049822 | O26: 4938.684504 | P26: 65.24 | Q26: 0.71 | R26: 0.2433333333 | S26: 0.04666666667 | T26: 1.652272086 | U26: 0.2927 | V26: 1.652272086 | W26: 0.0003 | X26: 2324.004 | Y26: 38.38375493 | Z26: 61.61624507 | AA26: 93.44738649 | AB26: 37.82502096 | AC26: 55.62236554 | AD26: 32.32980666 | AE26: 21.91334438 | AF26: 10.41646228 | AG26: 2.860323367 | AH26: 1.882401311 | AI26: 3.577300175 | AJ26: 2.498524225
C27: Africa | D27: Tanzania United Republic of | E27: Sticky Date Pudding | F27: INDUSTRIAL | G27: 0 | H27: 0 | I27: 0 | J27: 0 | K27: 0 | L27: 0 | M27: 0 | N27: 0 | O27: 0 | P27: 0 | Q27: 0 | R27: 0 | S27: 0 | T27: 0 | U27: 0 | V27: 0 | W27: 0 | X27: 0 | Y27: 0 | Z27: 0 | AA27: 0 | AB27: 0 | AC27: 0 | AD27: 0 | AE27: 0 | AF27: 0 | AG27: 0 | AH27: 0 | AI27: 0 | AJ27: 0
ALI1001: 1
ALI1005: 1 | ALL1005: 0
ALI1008: 1

Sheet Combined Metrics Country
B3: ="Global Water Tool " & version_number -> Global Water Tool 2015 1.3.5 | F3: Country Combined Metrics
B6: a) Total Renewable Water Resources (TRWR) (actual) (m3/person/year) (Source: FAO, 2008-2012)
B8: Value Chain type | C8: No Data | D8: Extreme Scarcity | E8: Scarcity | F8: Stress | G8: Sufficient | H8: Abundant
D9: <500 | E9: 500-1000 | F9: 1000-1700 | G9: 1700-4000 | H9: >4000
B10: All Value Chain Units | D10: 1 | E10: 1 | F10: 2 | G10: 2 | H10: 9
C11: =IF(C10=0,"",(C10/SUM($C10:$H10))) ->  | D11: 0.06666666667 | E11: 0.06666666667 | F11: 0.1333333333 | G11: 0.1333333333 | H11: 0.6
B12: Industrial | D12: 1 | F12: 1 | H12: 5
C13: =IF(C12=0,"",(C12/SUM($C12:$H12))) ->  | D13: 0.1428571429 | F13: 0.1428571429 | H13: 0.7142857143
B14: Office/Retail | E14: 1 | F14: 1 | H14: 2
C15: =IF(C14=0,"",(C14/SUM($C14:$H14))) ->  | E15: 0.25 | F15: 0.25 | H15: 0.5
B16: Supplier | G16: 1 | H16: 2
C17: =IF(C16=0,"",(C16/SUM($C16:$H16))) ->  | G17: 0.3333333333 | H17: 0.6666666667
B18: Other | G18: 1
C19: =IF(C18=0,"",(C18/SUM($C18:$H18))) ->  | G19: 1
B27: b) Projected Total Renewable Water Resources (TRWR) (actual) for 2025 (m3/person/year) (Source: FAO, 2008)
B29: Value Chain Type | C29: No Data | D29: Extreme Scarcity | E29: Scarcity | F29: Stress | G29: Sufficient | H29: Abundant
D30: <500 | E30: 500-1000 | F30: 1000-1700 | G30: 1700-4000 | H30: >4000
B31: All Value Chain Units | D31: 1 | E31: 1 | F31: 2 | G31: 2 | H31: 9
C32: =IF(C31=0,"",(C31/SUM($C31:$H31))) ->  | D32: 0.06666666667 | E32: 0.06666666667 | F32: 0.1333333333 | G32: 0.1333333333 | H32: 0.6
B33: Industrial | D33: 1 | F33: 1 | H33: 5
C34: =IF(C33=0,"",(C33/SUM($C33:$H33))) ->  | D34: 0.1428571429 | F34: 0.1428571429 | H34: 0.7142857143
B35: Office/Retail | E35: 1 | F35: 1 | H35: 2
C36: =IF(C35=0,"",(C35/SUM($C35:$H35))) ->  | E36: 0.25 | F36: 0.25 | H36: 0.5
B37: Supplier | G37: 1 | H37: 2
C38: =IF(C37=0,"",(C37/SUM($C37:$H37))) ->  | G38: 0.3333333333 | H38: 0.6666666667
B39: Other | G39: 1
C40: =IF(C39=0,"",(C39/SUM($C39:$H39))) ->  | G40: 1
B48: c) Projected Total Renewable Water Resources (TRWR) (actual) for 2050 (m3/person/year) (Source: FAO, 2008)
B50: Value Chain Type | C50: No Data | D50: Extreme Scarcity | E50: Scarcity | F50: Stress | G50: Sufficient | H50: Abundant
D51: <500 | E51: 500-1000 | F51: 1000-1700 | G51: 1700-4000 | H51: >4000
B52: All Value Chain Units | D52: 1 | E52: 1 | F52: 2 | G52: 2 | H52: 9
C53: =IF(C52=0,"",(C52/SUM($C52:$H52))) ->  | D53: 0.06666666667 | E53: 0.06666666667 | F53: 0.1333333333 | G53: 0.1333333333 | H53: 0.6
B54: Industrial | D54: 1 | F54: 1 | H54: 5
C55: =IF(C54=0,"",(C54/SUM($C54:$H54))) ->  | D55: 0.1428571429 | F55: 0.1428571429 | H55: 0.7142857143
B56: Office/Retail | E56: 1 | F56: 1 | H56: 2
C57: =IF(C56=0,"",(C56/SUM($C56:$H56))) ->  | E57: 0.25 | F57: 0.25 | H57: 0.5
B58: Supplier | G58: 2 | H58: 1
C59: =IF(C58=0,"",(C58/SUM($C58:$H58))) ->  | G59: 0.6666666667 | H59: 0.3333333333
B60: Other | H60: 1
C61: =IF(C60=0,"",(C60/SUM($C60:$H60))) ->  | H61: 1
B69: d) Total Water Withdrawal (m3/person/year) (Source: FAO, Around 2002)
B71: Value Chain Type | C71: No Data | D71: 1-250 | E71: 251-500 | F71: 501-1000 | G71: 1001-2000 | H71: >2000
B73: All Value Chain Units | D73: 15
C74: =IF(C73=0,"",(C73/SUM($C73:$H73))) ->  | D74: 1
B75: Industrial | D75: 7
C76: =IF(C75=0,"",(C75/SUM($C75:$H75))) ->  | D76: 1
B77: Office/Retail | D77: 4
C78: =IF(C77=0,"",(C77/SUM($C77:$H77))) ->  | D78: 1
B79: Supplier | D79: 3
C80: =IF(C79=0,"",(C79/SUM($C79:$H79))) ->  | D80: 1
B81: Other | D81: 1
C82: =IF(C81=0,"",(C81/SUM($C81:$H81))) ->  | D82: 1
B90: e) Dependency Ratio (%) (Source: FAO, 2006)
B92: Value Chain Type | C92: No Data | D92: 0-5 | E92: 5-20 | F92: 20-50 | G92: 50-85 | H92: 85-100
B94: All Value Chain Units | D94: 5 | E94: 5 | F94: 3 | G94: 1 | H94: 1
C95: =IF(C94=0,"",(C94/SUM($C94:$H94))) ->  | D95: 0.3333333333 | E95: 0.3333333333 | F95: 0.2 | G95: 0.06666666667 | H95: 0.06666666667
B96: Industrial | D96: 3 | E96: 2 | G96: 1 | H96: 1
C97: =IF(C96=0,"",(C96/SUM($C96:$H96))) ->  | D97: 0.4285714286 | E97: 0.2857142857 | G97: 0.1428571429 | H97: 0.1428571429
B98: Office/Retail | D98: 1 | E98: 1 | F98: 2
C99: =IF(C98=0,"",(C98/SUM($C98:$H98))) ->  | D99: 0.25 | E99: 0.25 | F99: 0.5
B100: Supplier | E100: 2 | F100: 1
C101: =IF(C100=0,"",(C100/SUM($C100:$H100))) ->  | E101: 0.6666666667 | F101: 0.3333333333
B102: Other | D102: 1
C103: =IF(C102=0,"",(C102/SUM($C102:$H102))) ->  | D103: 1
B111: f) Industrial Water Withdrawal as part of Total Water Withdrawal (%) (Source: FAO, Around 2002)
B113: Value Chain Type | C113: No Data | D113: 0-25 | E113: 26-50 | F113: 51-75 | G113: 76-90 | H113: 91-100
B115: All Value Chain Units | D115: 15
C116: =IF(C115=0,"",(C115/SUM($C115:$H115))) ->  | D116: 1
B117: Industrial | D117: 7
C118: =IF(C117=0,"",(C117/SUM($C117:$H117))) ->  | D118: 1
B119: Office/Retail | D119: 4
C120: =IF(C119=0,"",(C119/SUM($C119:$H119))) ->  | D120: 1
B121: Supplier | D121: 3
C122: =IF(C121=0,"",(C121/SUM($C121:$H121))) ->  | D122: 1
B123: Other | D123: 1
C124: =IF(C123=0,"",(C123/SUM($C123:$H123))) ->  | D124: 1
B132: g) Population Served with Improved Water (%) Source: WHO/UNICEF, 2008)
B134: Value Chain Type | C134: No Data | D134: Very Low | E134: Low | F134: Medium | G134: Medium High | H134: High
D135: <25 | E135: 26-50 | F135: 51-75 | G135: 76-90 | H135: 91-100
B136: All Value Chain Units | D136: 1 | F136: 1 | G136: 2 | H136: 11
C137: =IF(C136=0,"",(C136/SUM($C136:$H136))) ->  | D137: 0.06666666667 | F137: 0.06666666667 | G137: 0.1333333333 | H137: 0.7333333333
B138: Industrial | D138: 1 | G138: 1 | H138: 5
C139: =IF(C138=0,"",(C138/SUM($C138:$H138))) ->  | D139: 0.1428571429 | G139: 0.1428571429 | H139: 0.7142857143
B140: Office/Retail | G140: 1 | H140: 3
C141: =IF(C140=0,"",(C140/SUM($C140:$H140))) ->  | G141: 0.25 | H141: 0.75
B142: Supplier | F142: 1 | H142: 2
C143: =IF(C142=0,"",(C142/SUM($C142:$H142))) ->  | F143: 0.3333333333 | H143: 0.6666666667
B144: Other | H144: 1
C145: =IF(C144=0,"",(C144/SUM($C144:$H144))) ->  | H145: 1
B153: h) Population Served with Improved Sanitation (%) (Source: WHO/UNICEF, 2008)
B155: Value Chain Type | C155: No Data | D155: Very Low | E155: Low | F155: Medium | G155: Medium High | H155: High
D156: <25 | E156: 26-50 | F156: 51-75 | G156: 76-90 | H156: 91-100
B157: All Value Chain Units | D157: 2 | E157: 2 | F157: 2 | H157: 9
C158: =IF(C157=0,"",(C157/SUM($C157:$H157))) ->  | D158: 0.1333333333 | E158: 0.1333333333 | F158: 0.1333333333 | H158: 0.6
B159: Industrial | D159: 1 | E159: 1 | F159: 1 | H159: 4
C160: =IF(C159=0,"",(C159/SUM($C159:$H159))) ->  | D160: 0.1428571429 | E160: 0.1428571429 | F160: 0.1428571429 | H160: 0.5714285714
B161: Office/Retail | E161: 1 | F161: 1 | H161: 2
C162: =IF(C161=0,"",(C161/SUM($C161:$H161))) ->  | E162: 0.25 | F162: 0.25 | H162: 0.5
B163: Supplier | D163: 1 | H163: 2
C164: =IF(C163=0,"",(C163/SUM($C163:$H163))) ->  | D164: 0.3333333333 | H164: 0.6666666667
B165: Other | H165: 1
C166: =IF(C165=0,"",(C165/SUM($C165:$H165))) ->  | H166: 1

Sheet WS Data (hidden)

Sheet Output Watershed
E3: ="Global Water Tool " & version_number -> Global Water Tool 2015 1.3.5 | F3: Output Watershed Data
E5: Site Name | F5: Operation Type | G5: Country | H5: Basin Name | I5: Site Inventory | K5: WRI Aqueduct | T5: Conservation International | U5: Production
I8: Total freshwater consumption | J8: Total water consumption | K8: Annual Renewable Water Supply per Person (1995) | L8: Annual Renewable Water Supply per Person (Projections for 2025) | M8: 0.2 - 0.4 | N8: Baseline Water Stress | O8: Interannual Variability | P8: Seasonal Variability | Q8: Projected Change in Water Stress 2020 | R8: Projected Change in Water Stress 2030 | S8: Projected Change in Water Stress 2040 | T8: Biodiversity Hotspot
M9: < 0.2 | Q9: (x 1000) | R9: (%) | S9: (%)
I10: (m3/year) | J10: (m3/year) | K10: (m3/person/year) | L10: (m3/person/year) | M10: (unitless)
E11: Dark Chocolate Lilikoi | F11: SUPPLIER | G11: United States of America | H11: None | I11: 3708450 | J11: 3708450 | K11: No data | L11: No data | N11: No data | O11: No data | P11: No data | Q11: No data | R11: No data | S11: No data | T11: Polynesia-Micronesia | U11: 0
E12: Kudu Potjie | F12: INDUSTRIAL | G12: Namibia | H12: Orange | I12: -19000 | J12: -19000 | K12: 1,000 - 1,700 | L12: 500 - 1,000 | N12: Extremely High | O12: Extremely High | P12: Medium To High | Q12: Arid and low water use | R12: Arid and low water use | S12: Arid and low water use | T12: None | U12: 0
E13: Capitaine Fonio | F13: SUPPLIER | G13: Mali | H13: Niger | I13: 6785992 | J13: 6785992 | K13: > 4,000 | L13: 1,700 - 4,000 | N13: Low | O13: Low To Medium | P13: Extremely High | Q13: Low (< 10%) | R13: Low (< 10%) | S13: Low (< 10%) | T13: None | U13: 0
E14: Bibimbap Co. | F14: INDUSTRIAL | G14: Korea Republic of | H14: Nag Dong | I14: 0 | J14: 0 | K14: 1,000 - 1,700 | L14: 1,000 - 1,700 | N14: Medium To High | O14: Low To Medium | P14: High | Q14: Medium-high (20-40%) | R14: Medium-high (20-40%) | S14: Medium-high (20-40%) | T14: None | U14: 0
E15: Clam Chowder Inc. | F15: OFFICE/RETAIL | G15: United States of America | H15: None | I15: 0 | J15: 0 | K15: No data | L15: No data | N15: No data | O15: No data | P15: No data | Q15: No data | R15: No data | S15: No data | T15: None | U15: 0
E16: Mazamorra Morada | F16: INDUSTRIAL | G16: Peru | H16: Amazon | I16: 0 | J16: 0 | K16: > 4,000 | L16: > 4,000 | N16: Low | O16: Low To Medium | P16: Medium To High | Q16: Low (< 10%) | R16: Low (< 10%) | S16: Low (< 10%) | T16: Tropical Andes | U16: 0
E17: Maison de la Paix | F17: OFFICE/RETAIL | G17: Switzerland | H17: Rhone | I17: 0 | J17: 0 | K17: > 4,000 | L17: > 4,000 | N17: Low To Medium | O17: Low | P17: Low To Medium | Q17: Low-medium (10-20%) | R17: Low-medium (10-20%) | S17: Low-medium (10-20%) | T17: None | U17: 0
E18: Sticky Date Pudding | F18: INDUSTRIAL | G18: Tanzania United Republic of | H18: None | I18: 0 | J18: 0 | K18: No data | L18: No data | N18: Low | O18: Medium To High | P18: High | Q18: Low (< 10%) | R18: Low (< 10%) | S18: Low-medium (10-20%) | T18: Coastal Forests of Eastern Africa | U18: 0
E19: Dahi Bhalla | F19: OFFICE/RETAIL | G19: India | H19: Ganges | I19: 0 | J19: 0 | K19: 1,700 - 4,000 | L19: 1,700 - 4,000 | N19: Extremely High | O19: Medium To High | P19: Extremely High | Q19: Extremely high (> 80%) | R19: Extremely high (> 80%) | S19: Extremely high (> 80%) | T19: None | U19: 0
E20: Lingonberry Ltd. | F20: INDUSTRIAL | G20: Sweden | H20: GHAASBasin563 | I20: 0 | J20: 0 | K20: 1,700 - 4,000 | L20: 1,700 - 4,000 | N20: Low | O20: Low To Medium | P20: Low To Medium | Q20: Low (< 10%) | R20: Low (< 10%) | S20: Low (< 10%) | T20: None | U20: 0
E21: Donkey Consortium | F21: SUPPLIER | G21: France | H21: Seine | I21: 0 | J21: 0 | K21: 500 - 1,000 | L21: 500 - 1,000 | N21: Medium To High | O21: Low To Medium | P21: Medium To High | Q21: Medium-high (20-40%) | R21: High (40-80%) | S21: High (40-80%) | T21: None | U21: 0
E22: Obanzai Ryori | F22: OTHER | G22: Japan | H22: GHAASBasin1422 | I22: 0 | J22: 0 | K22: 500 - 1,000 | L22: 500 - 1,000 | N22: Medium To High | O22: Low | P22: Low To Medium | Q22: Medium-high (20-40%) | R22: Medium-high (20-40%) | S22: Medium-high (20-40%) | T22: Japan | U22: 0
E23: Dobos | F23: INDUSTRIAL | G23: Hungary | H23: Danube | I23: 0 | J23: 0 | K23: 1,700 - 4,000 | L23: 1,700 - 4,000 | N23: Low | O23: Low | P23: Low | Q23: Low (< 10%) | R23: Low (< 10%) | S23: Low (< 10%) | T23: None | U23: 0
E24: Baghrir | F24: OFFICE/RETAIL | G24: Morocco | I24: 0 | J24: 0 | K24: No data | L24: No data | N24: Extremely High | O24: High | P24: Medium To High | Q24: Extremely high (> 80%) | R24: Extremely high (> 80%) | S24: Extremely high (> 80%) | T24: Mediterranean Basin | U24: 0
E25: Gallo Pinto | F25: INDUSTRIAL | G25: Costa Rica | H25: GHAASBasin2968 | I25: 0 | J25: 0 | K25: 1,700 - 4,000 | L25: 1,700 - 4,000 | N25: Low To Medium | O25: Low | P25: Low To Medium | Q25: Low-medium (10-20%) | R25: Low-medium (10-20%) | S25: Low-medium (10-20%) | T25: Mesoamerica | U25: 0
ALR1000: 0
ALR1002: 0

Sheet Combined Metrics Watershed
B3: ="Global Water Tool " & version_number -> Global Water Tool 2015 1.3.5 | F3: Watershed Combined Metrics
B6: a) Annual Renewable Water Supply (actual) (m3/person/year) (1995) (Source: WRI, 1995)
B8: Value Chain Type | C8: No Data | D8: Extreme Scarcity | E8: Scarcity | F8: Stress | G8: Sufficient | H8: Abundant
D9: <500 | E9: 500-1000 | F9: 1000-1700 | G9: 1700-4000 | H9: >4000
B10: All Value Chain Units | C10: 4 | E10: 2 | F10: 2 | G10: 4 | H10: 3
C11: =IF(C10=0,"",(C10/SUM($C10:$H10))) -> 0.2666666667 | E11: 0.1333333333 | F11: 0.1333333333 | G11: 0.2666666667 | H11: 0.2
B12: Industrial | C12: 1 | F12: 2 | G12: 3 | H12: 1
C13: =IF(C12=0,"",(C12/SUM($C12:$H12))) -> 0.1428571429 | F13: 0.2857142857 | G13: 0.4285714286 | H13: 0.1428571429
B14: Office/Retail | C14: 2 | G14: 1 | H14: 1
C15: =IF(C14=0,"",(C14/SUM($C14:$H14))) -> 0.5 | G15: 0.25 | H15: 0.25
B16: Supplier | C16: 1 | E16: 1 | H16: 1
C17: =IF(C16=0,"",(C16/SUM($C16:$H16))) -> 0.3333333333 | E17: 0.3333333333 | H17: 0.3333333333
B18: Other | E18: 1
C19: =IF(C18=0,"",(C18/SUM($C18:$H18))) ->  | E19: 1
B27: b) Annual Renewable Water Supply (actual) (m3/person/year) (Projections for 2025) (Source: WRI, Projections for 2025)
B29: Value Chain Type | C29: No Data | D29: Extreme Scarcity | E29: Scarcity | F29: Stress | G29: Sufficient | H29: Abundant
D30: <500 | E30: 500-1000 | F30: 1000-1700 | G30: 1700-4000 | H30: >4000
B31: All Value Chain Units | C31: 4 | E31: 3 | F31: 1 | G31: 5 | H31: 2
C32: =IF(C31=0,"",(C31/SUM($C31:$H31))) -> 0.2666666667 | E32: 0.2 | F32: 0.06666666667 | G32: 0.3333333333 | H32: 0.1333333333
B33: Industrial | C33: 1 | E33: 1 | F33: 1 | G33: 3 | H33: 1
C34: =IF(C33=0,"",(C33/SUM($C33:$H33))) -> 0.1428571429 | E34: 0.1428571429 | F34: 0.1428571429 | G34: 0.4285714286 | H34: 0.1428571429
B35: Office/Retail | C35: 2 | G35: 1 | H35: 1
C36: =IF(C35=0,"",(C35/SUM($C35:$H35))) -> 0.5 | G36: 0.25 | H36: 0.25
B37: Supplier | C37: 1 | E37: 1 | G37: 1
B39: Other | E39: 1
C40: =IF(C39=0,"",(C39/SUM($C39:$H39))) ->  | E40: 1
B48: c) Biodiversity Hotspots (Source: Conservation International, 2004)
B50: Value Chain Type | C50: No | D50: Yes
B52: All Value Chain Units | C52: 9 | D52: 6
C53: =IF(C52=0,"",(C52/SUM($C52:$G52))) -> 0.6 | D53: =IF(D52=0,"",(D52/SUM($C52:$H52))) -> 0.4
B54: Industrial | C54: 4 | D54: 3
C55: =IF(C54=0,"",(C54/SUM($C54:$G54))) -> 0.5714285714 | D55: =IF(D54=0,"",(D54/SUM($C54:$H54))) -> 0.4285714286
B56: Office/Retail | C56: 3 | D56: 1
C57: =IF(C56=0,"",(C56/SUM($C56:$G56))) -> 0.75 | D57: =IF(D56=0,"",(D56/SUM($C56:$H56))) -> 0.25
B58: Supplier | C58: 2 | D58: 1
C59: =IF(C58=0,"",(C58/SUM($C58:$G58))) -> 0.6666666667 | D59: =IF(D58=0,"",(D58/SUM($C58:$H58))) -> 0.3333333333
B60: Other | D60: 1
C61: =IF(C60=0,"",(C60/SUM($C60:$G60))) ->  | D61: =IF(D60=0,"",(D60/SUM($C60:$H60))) -> 1
B69: d) Production by Annual Renewable Water Supply (actual) (m3/person/year) (Projections for 2025) (Source: WRI, Projections for 2025)
B71: Value Chain Type | C71: No Data | D71: Extreme Scarcity | E71: Scarcity | F71: Stress | G71: Sufficient | H71: Abundant
D72: <500 | E72: 500-1000 | F72: 1000-1700 | G72: 1700-4000 | H72: >4000
B73: All Value Chain Units | C73: 0 | E73: 0 | F73: 0 | G73: 0 | H73: 0
C74: =IF(C73=0,"",(C73/SUM($C73:$H73))) -> 
B75: Industrial | C75: 0 | E75: 0 | F75: 0 | G75: 0 | H75: 0
C76: =IF(C75=0,"",(C75/SUM($C75:$H75))) -> 
B77: Office/Retail | C77: 0 | G77: 0 | H77: 0
C78: =IF(C77=0,"",(C77/SUM($C77:$H77))) -> 
B79: Supplier | C79: 0 | E79: 0 | G79: 0
C80: =IF(C79=0,"",(C79/SUM($C79:$H79))) -> 
B81: Other | E81: 0
C82: =IF(C81=0,"",(C81/SUM($C81:$H81))) -> 
B90: e) Baseline Water Stress (%) (Source: WRI Aqueduct)
B92: Value Chain Type | C92: No Data | D92: Low | E92: Low to Medium | F92: Medium to High | G92: High | H92: Extremely High
D93: < 10% | E93: 10-20% | F93: 20-40% | G93: 40-80% | H93: > 80%
B94: All Value Chain Units | C94: 2 | D94: 5 | E94: 2 | F94: 3 | H94: 3
C95: =IF(C94=0,"",(C94/SUM($C94:$H94))) -> 0.1333333333 | D95: 0.3333333333 | E95: 0.1333333333 | F95: 0.2 | H95: 0.2
B96: Industrial | D96: 4 | E96: 1 | F96: 1 | H96: 1
C97: =IF(C96=0,"",(C96/SUM($C96:$H96))) ->  | D97: 0.5714285714 | E97: 0.1428571429 | F97: 0.1428571429 | H97: 0.1428571429
B98: Office/Retail | C98: 1 | E98: 1 | H98: 2
C99: =IF(C98=0,"",(C98/SUM($C98:$H98))) -> 0.25 | E99: 0.25 | H99: 0.5
B100: Supplier | C100: 1 | D100: 1 | F100: 1
C101: =IF(C100=0,"",(C100/SUM($C100:$H100))) -> 0.3333333333 | D101: 0.3333333333 | F101: 0.3333333333
B102: Other | F102: 1
C103: =IF(C102=0,"",(C102/SUM($C102:$H102))) ->  | F103: 1
B111: f) Interannual variability (STD Dev) (Source: WRI Aqueduct)
B113: Value Chain Type | C113: No Data | D113: Low | E113: Low to Medium | F113: Medium to High | G113: High | H113: Extremely High
D114: < 0.25 | E114: 0.25-0.5 | F114: 0.5-0.75 | G114: 0.75-1.0 | H114: > 1.0
B115: All Value Chain Units | C115: 2 | D115: 4 | E115: 5 | F115: 2 | G115: 1 | H115: 1
C116: =IF(C115=0,"",(C115/SUM($C115:$H115))) -> 0.1333333333 | D116: 0.2666666667 | E116: 0.3333333333 | F116: 0.1333333333 | G116: 0.06666666667 | H116: 0.06666666667
B117: Industrial | D117: 2 | E117: 3 | F117: 1 | H117: 1
C118: =IF(C117=0,"",(C117/SUM($C117:$H117))) ->  | D118: 0.2857142857 | E118: 0.4285714286 | F118: 0.1428571429 | H118: 0.1428571429
B119: Office/Retail | C119: 1 | D119: 1 | F119: 1 | G119: 1
C120: =IF(C119=0,"",(C119/SUM($C119:$H119))) -> 0.25 | D120: 0.25 | F120: 0.25 | G120: 0.25
B121: Supplier | C121: 1 | E121: 2
C122: =IF(C121=0,"",(C121/SUM($C121:$H121))) -> 0.3333333333 | E122: 0.6666666667
B123: Other | D123: 1
C124: =IF(C123=0,"",(C123/SUM($C123:$H123))) ->  | D124: 1
B132: g) Seasonal variability (STD Dev) (Source: WRI Aqueduct)
B134: Value Chain Type | C134: No Data | D134: Low | E134: Low to Medium | F134: Medium to High | G134: High | H134: Extremely High
D135: < 0.33 | E135: 0.33-0.66 | F135: 0.66-1 | G135: 1-1.33 | H135: > 1.33
B136: All Value Chain Units | C136: 2 | D136: 1 | E136: 4 | F136: 4 | G136: 2 | H136: 2
C137: =IF(C136=0,"",(C136/SUM($C136:$H136))) -> 0.1333333333 | D137: 0.06666666667 | E137: 0.2666666667 | F137: 0.2666666667 | G137: 0.1333333333 | H137: 0.1333333333
B138: Industrial | D138: 1 | E138: 2 | F138: 2 | G138: 2
C139: =IF(C138=0,"",(C138/SUM($C138:$H138))) ->  | D139: 0.1428571429 | E139: 0.2857142857 | F139: 0.2857142857 | G139: 0.2857142857
B140: Office/Retail | C140: 1 | E140: 1 | F140: 1 | H140: 1
C141: =IF(C140=0,"",(C140/SUM($C140:$H140))) -> 0.25 | E141: 0.25 | F141: 0.25 | H141: 0.25
B142: Supplier | C142: 1 | F142: 1 | H142: 1
C143: =IF(C142=0,"",(C142/SUM($C142:$H142))) -> 0.3333333333 | F143: 0.3333333333 | H143: 0.3333333333
B144: Other | E144: 1
C145: =IF(C144=0,"",(C144/SUM($C144:$H144))) ->  | E145: 1

Sheet GRI Metrics
C3: ="Global Water Tool " & version_number -> Global Water Tool 2015 1.3.5 | E3: GRI Metrics
C5: Region | D5: Country | E5: Site Name | F5: Operation Type | G5: Water Inventory | I5: GRI Water Indicators
G6: Total Freshwater Consumption | H6: Total Water Consumption | I6: Total Water Withdrawals G4-EN8 | J6: Total Water Discharge G4-EN22 | K6: Total Recycled/ Reused G4-EN10 | L6: Percent Recycled/ Reused G4-EN10
G7: (m3/year) | H7: (m3/year) | I7: (m3/year) | J7: (m3/year) | K7: (m3/year) | L7: %
C8: Americas | D8: United States of America | E8: Dark Chocolate Lilikoi | F8: SUPPLIER | G8: 3708450 | H8: 3708450 | I8: 4500450 | J8: 792000 | K8: 72900 | L8: 1.62
C9: Africa | D9: Namibia | E9: Kudu Potjie | F9: INDUSTRIAL | G9: -19000 | H9: -19000 | I9: 47700 | J9: 66700 | K9: 0 | L9: 0
C10: Africa | D10: Mali | E10: Capitaine Fonio | F10: SUPPLIER | G10: 6785992 | H10: 6785992 | I10: 7677378 | J10: 891386 | K10: 0 | L10: 0
C11: Asia | D11: Korea Republic of | E11: Bibimbap Co. | F11: INDUSTRIAL | G11: 0 | H11: 0 | I11: 0 | J11: 0 | K11: 0 | L11: 0
C12: Americas | D12: United States of America | E12: Clam Chowder Inc. | F12: OFFICE/RETAIL | G12: 0 | H12: 0 | I12: 0 | J12: 0 | K12: 0 | L12: 0
C13: Americas | D13: Peru | E13: Mazamorra Morada | F13: INDUSTRIAL | G13: 0 | H13: 0 | I13: 0 | J13: 0 | K13: 0 | L13: 0
C14: Europe | D14: Switzerland | E14: Maison de la Paix | F14: OFFICE/RETAIL | G14: 0 | H14: 0 | I14: 0 | J14: 0 | K14: 0 | L14: 0
C15: Africa | D15: Tanzania United Republic of | E15: Sticky Date Pudding | F15: INDUSTRIAL | G15: 0 | H15: 0 | I15: 0 | J15: 0 | K15: 0 | L15: 0
C16: Asia | D16: India | E16: Dahi Bhalla | F16: OFFICE/RETAIL | G16: 0 | H16: 0 | I16: 0 | J16: 0 | K16: 0 | L16: 0
C17: Europe | D17: Sweden | E17: Lingonberry Ltd. | F17: INDUSTRIAL | G17: 0 | H17: 0 | I17: 0 | J17: 0 | K17: 0 | L17: 0
C18: Europe | D18: France | E18: Donkey Consortium | F18: SUPPLIER | G18: 0 | H18: 0 | I18: 0 | J18: 0 | K18: 0 | L18: 0
C19: Asia | D19: Japan | E19: Obanzai Ryori | F19: OTHER | G19: 0 | H19: 0 | I19: 0 | J19: 0 | K19: 0 | L19: 0
C20: Europe | D20: Hungary | E20: Dobos | F20: INDUSTRIAL | G20: 0 | H20: 0 | I20: 0 | J20: 0 | K20: 0 | L20: 0
C21: Africa | D21: Morocco | E21: Baghrir | F21: OFFICE/RETAIL | G21: 0 | H21: 0 | I21: 0 | J21: 0 | K21: 0 | L21: 0
C22: Americas | D22: Costa Rica | E22: Gallo Pinto | F22: INDUSTRIAL | G22: 0 | H22: 0 | I22: 0 | J22: 0 | K22: 0 | L22: 0
C23: Tot. | G23: =SUM(G8:G22) -> 10475442 | H23: =SUM(H8:H22) -> 10475442 | I23: =SUM(I8:I22) -> 12225528 | J23: =SUM(J8:J22) -> 1750086 | K23: =SUM(K8:K22) -> 72900 | L23: =AVERAGE(L8:L22) -> 0.108

Sheet Bloomberg Metrics
C3: ="Global Water Tool " & version_number -> Global Water Tool 2015 1.3.5 | E3: Bloomberg Metrics
C5: Operation Type | D5: Total Water Consumption | E5: Water Consumption per production unit | F5: Percent Recycled/ Reused G4-EN10 | G5: Total Water Discharge G4-EN22 | H5: Water Discharge Percentange (Total Water Discharge/Total Water Consumption)
D6: (thousand m3) | E6: (m3/production unit) | F6: (%) | G6: (m3/year) | H6: (%)
C7: ALL OPERATION TYPES | D7: =SUM(D8:D11) -> 10475442 | E7: =IF(SUM(E8:E11) <> 0, AVERAGE(E8:E11), "") ->  | F7: =IF(SUM(F8:F11) <> 0, AVERAGE(F8:F11), "") -> 0.135 | G7: =SUM(G8:G11) -> 1750086 | H7: =IF(SUM(H8:H11) <> 0, AVERAGE(H8:H11), "") -> -1.675059465
C8: INDUSTRIAL | D8: -19000 | E8: 0 | F8: 0 | G8: 66700 | H8: =IFERROR(G8/D8, "N.A.") -> -3.510526316
C9: OFFICE/RETAIL | D9: 0 | E9: 0 | F9: 0 | G9: 0 | H9: =IFERROR(G9/D9, "N.A.") -> N.A.
C10: SUPPLIER | D10: 10494442 | E10: 0 | F10: 0.54 | G10: 1683386 | H10: 0.1604073852
C11: OTHER | D11: 0 | E11: 0 | F11: 0 | G11: 0 | H11: N.A.

Sheet CDP Metrics
C3: ="Global Water Tool " & version_number -> Global Water Tool 2015 1.3.5 | E3: Carbon Disclosure Project Metrics
C5: Operation Type | D5: Total Water Withdrawal G4-EN8 | E5: Water Consumption per production unit | F5: Total Recycled/ Reused G4-EN10 | G5: Percent Recycled/ Reused G4-EN10
D6: (thousand m3) | E6: (m3/production unit) | F6: (m3/year) | G6: (%)
C7: ALL OPERATION TYPES | D7: =SUM(D8:D11) -> 12225528 | E7: =IF(SUM(E8:E11) <> 0, AVERAGE(E8:E11), "") ->  | F7: =SUM(F8:F11) -> 72900 | G7: =IF(SUM(G8:G11) <> 0, AVERAGE(G8:G11), "") -> 0.135
C8: INDUSTRIAL | D8: 47700 | E8: 0 | F8: 0 | G8: 0 | CV8: 0
C9: OFFICE/RETAIL | D9: 0 | E9: 0 | F9: 0 | G9: 0 | CV9: 0
C10: SUPPLIER | D10: 12177828 | E10: 0 | F10: 72900 | G10: 0.54 | CV10: 0
C11: OTHER | D11: 0 | E11: 0 | F11: 0 | G11: 0 | CV11: 0

Sheet Dow Jones Metrics
C3: ="Global Water Tool " & version_number -> Global Water Tool 2015 1.3.5 | E3: Dow Jones Metrics
C5: Operation Type | D5: Total Water Withdrawal G4-EN8 | E5: Total Nonfresh Water Withdrawal | F5: Total Municipal/Potable Water Withdrawal | G5: Total Water Withdrawal from Other Sources | H5: Percentage of Sites in Water Stressed Areas (<1,700 m3/person/yr)
D6: (m3/year) | E6: (m3/year) | F6: (m3/year) | G6: (m3/year) | H6: (%)
C7: ALL OPERATION TYPES | D7: =SUM(D8:D11) -> 12225528 | E7: =SUM(E8:E11) -> 0 | F7: =SUM(F8:F11) -> 12184878 | G7: =SUM(G8:G11) -> 40650 | H7: =IF(SUM(H8:H11)<>0,AVERAGE(H8:H11),"") -> 0.1607142857
C8: INDUSTRIAL | D8: 47700 | E8: 0 | F8: 34000 | G8: =IF(D8-E8-F8<>0,D8-E8-F8,"") -> 13700 | H8: 0.1428571429
C9: OFFICE/RETAIL | D9: 0 | E9: 0 | F9: 0 | G9: =IF(D9-E9-F9<>0,D9-E9-F9,"") ->  | H9: 0.5
C10: SUPPLIER | D10: 12177828 | E10: 0 | F10: 12150878 | G10: =IF(D10-E10-F10<>0,D10-E10-F10,"") -> 26950 | H10: 0
C11: OTHER | D11: 0 | E11: 0 | F11: 0 | G11: =IF(D11-E11-F11<>0,D11-E11-F11,"") ->  | H11: 0

Sheet DATA-FAO-WaterUse (hidden)
D1: 1988-1992 | H1: 1993-1997 | L1: 1998-2002 | P1: 2003-2007 | T1: 2008-2012 | X1: 2013-2017
A2: Afghanistan | B2: Agricultural water withdrawal (10^9 m3/yr) | K2: 1998 | L2: 20.0
A3: Afghanistan | B3: Industrial water withdrawal (10^9 m3/yr) | K3: 2000 | L3: 0.1285 | M3: L | O3: 2005 | P3: 0.1695 | Q3: L
A4: Afghanistan | B4: Municipal water withdrawal (10^9 m3/yr) | K4: 2000 | L4: 0.1542 | M4: L | O4: 2005 | P4: 0.2034 | Q4: L
A5: Afghanistan | B5: Total water withdrawal (10^9 m3/yr) | K5: 2000 | L5: 20.28 | M5: I
A6: Afghanistan | B6: Water withdrawal for irrigation (10^9 m3/yr)
A7: Afghanistan | B7: Irrigation water requirement (10^9 m3/yr) | S7: 2011 | T7: 10.9 | U7: L
A8: Afghanistan | B8: Agricultural water withdrawal as % of total water withdrawal (%) | K8: 2000 | L8: 98.62 | M8: I
A9: Afghanistan | B9: Industrial water withdrawal as % of total water withdrawal (%) | K9: 2000 | L9: 0.6336 | M9: I
A10: Afghanistan | B10: Municipal water withdrawal as % of total withdrawal (%) | K10: 2000 | L10: 0.7604 | M10: I
A11: Afghanistan | B11: Total water withdrawal per capita (m3/inhab/yr) | K11: 2000 | L11: 823.1 | M11: K
A12: Afghanistan | B12: Fresh surface water withdrawal (primary and secondary) (10^9 m3/yr) | K12: 1998 | L12: 17.32
A13: Afghanistan | B13: Fresh groundwater withdrawal (primary and secondary) (10^9 m3/yr) | K13: 1998 | L13: 3056
A14: Afghanistan | B14: Total freshwater withdrawal (primary and secondary) (10^9 m3/yr) | K14: 2000 | L14: 20.28 | M14: I
A15: Afghanistan | B15: Desalinated water produced (10^9 m3/yr)
A16: Afghanistan | B16: Direct use of agricultural drainage water (10^9 m3/yr)
D18: 1988-1992 | H18: 1993-1997 | L18: 1998-2002 | P18: 2003-2007 | T18: 2008-2012 | X18: 2013-2017
A19: Albania | B19: Agricultural water withdrawal (10^9 m3/yr) | C19: 1990 | D19: 1.0 | G19: 1995 | H19: 0.67 | J19: [1] | K19: 2000 | L19: 1.06 | M19: L | O19: 2006 | P19: 0.5176 | Q19: L | R19: [2]
A20: Albania | B20: Industrial water withdrawal (10^9 m3/yr) | C20: 1990 | D20: 0.1 | K20: 2000 | L20: 0.2274 | M20: L | O20: 2005 | P20: 0.2318 | Q20: L
A21: Albania | B21: Municipal water withdrawal (10^9 m3/yr) | C21: 1990 | D21: 0.1 | K21: 2000 | L21: 0.5504 | M21: L | O21: 2005 | P21: 0.5613 | Q21: L
A22: Albania | B22: Total water withdrawal (10^9 m3/yr) | C22: 1990 | D22: 1.2 | K22: 2000 | L22: 1838 | M22: L | O22: 2006 | P22: 1311 | Q22: L
A23: Albania | B23: Water withdrawal for irrigation (10^9 m3/yr) | O23: 2006 | P23: 0.5176 | Q23: L
A24: Albania | B24: Irrigation water requirement (10^9 m3/yr) | O24: 2006 | P24: 0.322 | Q24: L
A25: Albania | B25: Agricultural water withdrawal as % of total water withdrawal (%) | C25: 1990 | D25: 83.33 | K25: 2000 | L25: 57.67 | M25: L | O25: 2006 | P25: 39.48 | Q25: L
A26: Albania | B26: Industrial water withdrawal as % of total water withdrawal (%) | C26: 1990 | D26: 8333 | K26: 2000 | L26: 12.37 | M26: L | O26: 2006 | P26: 17.68 | Q26: L
A27: Albania | B27: Municipal water withdrawal as % of total withdrawal (%) | C27: 1990 | D27: 8333 | K27: 2000 | L27: 29.95 | M27: L | O27: 2006 | P27: 42.81 | Q27: L
A28: Albania | B28: Total water withdrawal per capita (m3/inhab/yr) | C28: 1990 | D28: 367.3 | E28: K | K28: 2000 | L28: 594.8 | M28: K | O28: 2006 | P28: 413.6 | Q28: K
A29: Albania | B29: Fresh surface water withdrawal (primary and secondary) (10^9 m3/yr)
A30: Albania | B30: Fresh groundwater withdrawal (primary and secondary) (10^9 m3/yr)
A31: Albania | B31: Total freshwater withdrawal (primary and secondary) (10^9 m3/yr) | C31: 1990 | D31: 1.2 | K31: 2000 | L31: 1838 | M31: I | O31: 2006 | P31: 1311 | Q31: I
A32: Albania | B32: Desalinated water produced (10^9 m3/yr)
A33: Albania | B33: Direct use of agricultural drainage water (10^9 m3/yr)
D35: 1988-1992 | H35: 1993-1997 | L35: 1998-2002 | P35: 2003-2007 | T35: 2008-2012 | X35: 2013-2017
A36: Algeria | B36: Agricultural water withdrawal (10^9 m3/yr) | C36: 1990 | D36: 2.7 | K36: 2001 | L36: 3502 | M36: L | N36: [3]
A37: Algeria | B37: Industrial water withdrawal (10^9 m3/yr) | C37: 1990 | D37: 0.68 | K37: 2000 | L37: 0.8344 | M37: L | O37: 2005 | P37: 0.9509 | Q37: L
A38: Algeria | B38: Municipal water withdrawal (10^9 m3/yr) | C38: 1990 | D38: 1.12 | K38: 2000 | L38: 1387 | M38: L | O38: 2005 | P38: 1581 | Q38: L
A39: Algeria | B39: Total water withdrawal (10^9 m3/yr) | C39: 1990 | D39: 4.5 | K39: 2001 | L39: 5723 | M39: L
A40: Algeria | B40: Water withdrawal for irrigation (10^9 m3/yr) | K40: 2001 | L40: 3502 | M40: L
A41: Algeria | B41: Irrigation water requirement (10^9 m3/yr) | K41: 2001 | L41: 2511 | M41: L
A42: Algeria | B42: Agricultural water withdrawal as % of total water withdrawal (%) | C42: 1990 | D42: 60.0 | K42: 2001 | L42: 61.19 | M42: L
A43: Algeria | B43: Industrial water withdrawal as % of total water withdrawal (%) | C43: 1990 | D43: 15.11 | K43: 2001 | L43: 14.58 | M43: L
A44: Algeria | B44: Municipal water withdrawal as % of total withdrawal (%) | C44: 1990 | D44: 24.89 | K44: 2001 | L44: 24.24 | M44: L
A45: Algeria | B45: Total water withdrawal per capita (m3/inhab/yr) | C45: 1990 | D45: 169.4 | E45: K | K45: 2001 | L45: 182.0 | M45: K
A46: Algeria | B46: Fresh surface water withdrawal (primary and secondary) (10^9 m3/yr)
A47: Algeria | B47: Fresh groundwater withdrawal (primary and secondary) (10^9 m3/yr)
A48: Algeria | B48: Total freshwater withdrawal (primary and secondary) (10^9 m3/yr) | C48: 1990 | D48: 4436 | K48: 2001 | L48: 5706 | M48: I
A49: Algeria | B49: Desalinated water produced (10^9 m3/yr) | C49: 1990 | D49: 0.064 | K49: 2002 | L49: 0.017
A50: Algeria | B50: Direct use of agricultural drainage water (10^9 m3/yr)
D52: 1988-1992 | H52: 1993-1997 | L52: 1998-2002 | P52: 2003-2007 | T52: 2008-2012 | X52: 2013-2017
A53: Andorra | B53: Agricultural water withdrawal (10^9 m3/yr)
A54: Andorra | B54: Industrial water withdrawal (10^9 m3/yr)
A55: Andorra | B55: Municipal water withdrawal (10^9 m3/yr)
A56: Andorra | B56: Total water withdrawal (10^9 m3/yr)
A57: Andorra | B57: Water withdrawal for irrigation (10^9 m3/yr)
A58: Andorra | B58: Irrigation water requirement (10^9 m3/yr)
A59: Andorra | B59: Agricultural water withdrawal as % of total water withdrawal (%)
A60: Andorra | B60: Industrial water withdrawal as % of total water withdrawal (%)
A61: Andorra | B61: Municipal water withdrawal as % of total withdrawal (%)
A62: Andorra | B62: Total water withdrawal per capita (m3/inhab/yr)
A63: Andorra | B63: Fresh surface water withdrawal (primary and secondary) (10^9 m3/yr)
A64: Andorra | B64: Fresh groundwater withdrawal (primary and secondary) (10^9 m3/yr)
A65: Andorra | B65: Total freshwater withdrawal (primary and secondary) (10^9 m3/yr)
A66: Andorra | B66: Desalinated water produced (10^9 m3/yr)
A67: Andorra | B67: Direct use of agricultural drainage water (10^9 m3/yr)
D69: 1988-1992 | H69: 1993-1997 | L69: 1998-2002 | P69: 2003-2007 | T69: 2008-2012 | X69: 2013-2017
A70: Angola | B70: Agricultural water withdrawal (10^9 m3/yr) | K70: 2000 | L70: 0.21 | M70: L | O70: 2005 | P70: 0.1467 | Q70: L | R70: [4]
A71: Angola | B71: Industrial water withdrawal (10^9 m3/yr) | K71: 2000 | L71: 0.1845 | M71: L | O71: 2005 | P71: 0.2396 | Q71: L
A72: Angola | B72: Municipal water withdrawal (10^9 m3/yr) | K72: 2000 | L72: 0.246 | M72: L | O72: 2005 | P72: 0.3195 | Q72: L
A73: Angola | B73: Total water withdrawal (10^9 m3/yr) | K73: 2000 | L73: 0.6405 | M73: L | O73: 2005 | P73: 0.7058 | Q73: L
A74: Angola | B74: Water withdrawal for irrigation (10^9 m3/yr) | O74: 2005 | P74: 0.1467 | Q74: L
A75: Angola | B75: Irrigation water requirement (10^9 m3/yr) | O75: 2005 | P75: 0.04 | Q75: L
A76: Angola | B76: Agricultural water withdrawal as % of total water withdrawal (%) | K76: 2000 | L76: 32.79 | M76: L | O76: 2005 | P76: 20.78 | Q76: L
A77: Angola | B77: Industrial water withdrawal as % of total water withdrawal (%) | K77: 2000 | L77: 28.81 | M77: L | O77: 2005 | P77: 33.95 | Q77: L
A78: Angola | B78: Municipal water withdrawal as % of total withdrawal (%) | K78: 2000 | L78: 38.41 | M78: L | O78: 2005 | P78: 45.27 | Q78: L
A79: Angola | B79: Total water withdrawal per capita (m3/inhab/yr) | K79: 2000 | L79: 43.02 | M79: K | O79: 2005 | P79: 40.27 | Q79: K
A80: Angola | B80: Fresh surface water withdrawal (primary and secondary) (10^9 m3/yr)
A81: Angola | B81: Fresh groundwater withdrawal (primary and secondary) (10^9 m3/yr)
A82: Angola | B82: Total freshwater withdrawal (primary and secondary) (10^9 m3/yr) | K82: 2000 | L82: 0.6404 | M82: I | O82: 2005 | P82: 0.7058 | Q82: I
A83: Angola | B83: Desalinated water produced (10^9 m3/yr) | C83: 1990 | D83: 1.0E-4 | K83: 2000 | L83: 1.0E-4 | M83: I
A84: Angola | B84: Direct use of agricultural drainage water (10^9 m3/yr)
D86: 1988-1992 | H86: 1993-1997 | L86: 1998-2002 | P86: 2003-2007 | T86: 2008-2012 | X86: 2013-2017
A87: Antigua and Barbuda | B87: Agricultural water withdrawal (10^9 m3/yr) | C87: 1990 | D87: 0.001 | G87: 1997 | H87: 0.0013 | I87: L | J87: [5] | K87: 2000 | L87: 0.0013 | M87: L | N87: [6,7] | O87: 2005 | P87: 0.0013 | Q87: L | R87: [8,9]
A88: Antigua and Barbuda | B88: Industrial water withdrawal (10^9 m3/yr) | C88: 1990 | D88: 0.001 | K88: 2000 | L88: 0.0017 | M88: L | O88: 2005 | P88: 0.0018 | Q88: L
A89: Antigua and Barbuda | B89: Municipal water withdrawal (10^9 m3/yr) | C89: 1990 | D89: 0.003 | K89: 2000 | L89: 0.005 | M89: L | O89: 2005 | P89: 0.0053 | Q89: L
A90: Antigua and Barbuda | B90: Total water withdrawal (10^9 m3/yr) | C90: 1990 | D90: 0.005 | K90: 2000 | L90: 0.008 | M90: L | O90: 2005 | P90: 0.0084 | Q90: L
A91: Antigua and Barbuda | B91: Water withdrawal for irrigation (10^9 m3/yr) | G91: 1997 | H91: 0.0013 | I91: L | K91: 2000 | L91: 0.0013 | M91: L | N91: [10] | O91: 2005 | P91: 0.0013 | Q91: L | R91: [11]
A92: Antigua and Barbuda | B92: Irrigation water requirement (10^9 m3/yr) | G92: 1997 | H92: 3.0E-4 | I92: L
A93: Antigua and Barbuda | B93: Agricultural water withdrawal as % of total water withdrawal (%) | C93: 1990 | D93: 20.0 | K93: 2000 | L93: 16.25 | M93: L | O93: 2005 | P93: 15.48 | Q93: L
A94: Antigua and Barbuda | B94: Industrial water withdrawal as % of total water withdrawal (%) | C94: 1990 | D94: 20.0 | K94: 2000 | L94: 21.25 | M94: L | O94: 2005 | P94: 21.43 | Q94: L
A95: Antigua and Barbuda | B95: Municipal water withdrawal as % of total withdrawal (%) | C95: 1990 | D95: 60.0 | K95: 2000 | L95: 62.5 | M95: L | O95: 2005 | P95: 63.1 | Q95: L
A96: Antigua and Barbuda | B96: Total water withdrawal per capita (m3/inhab/yr) | C96: 1990 | D96: 78.12 | E96: K | K96: 2000 | L96: 98.77 | M96: K | O96: 2005 | P96: 97.67 | Q96: K
A97: Antigua and Barbuda | B97: Fresh surface water withdrawal (primary and secondary) (10^9 m3/yr)
A98: Antigua and Barbuda | B98: Fresh groundwater withdrawal (primary and secondary) (10^9 m3/yr)
A99: Antigua and Barbuda | B99: Total freshwater withdrawal (primary and secondary) (10^9 m3/yr) | C99: 1990 | D99: 0.0017 | K99: 2000 | L99: 0.008 | M99: I | O99: 2005 | P99: 0.0084 | Q99: I
A100: Antigua and Barbuda | B100: Desalinated water produced (10^9 m3/yr) | C100: 1992 | D100: 0.0033
A101: Antigua and Barbuda | B101: Direct use of agricultural drainage water (10^9 m3/yr)
D103: 1988-1992 | H103: 1993-1997 | L103: 1998-2002 | P103: 2003-2007 | T103: 2008-2012 | X103: 2013-2017
A104: Argentina | B104: Agricultural water withdrawal (10^9 m3/yr) | G104: 1995 | H104: 21.52 | K104: 2000 | L104: 21.52 | M104: L
A105: Argentina | B105: Industrial water withdrawal (10^9 m3/yr) | G105: 1995 | H105: 2.5 | K105: 2000 | L105: 3975 | M105: L | O105: 2005 | P105: 4396 | Q105: L
A106: Argentina | B106: Municipal water withdrawal (10^9 m3/yr) | G106: 1995 | H106: 4.56 | K106: 2000 | L106: 7071 | M106: L | O106: 2005 | P106: 7.82 | Q106: L
A107: Argentina | B107: Total water withdrawal (10^9 m3/yr) | G107: 1995 | H107: 28.58 | K107: 2000 | L107: 32.57 | M107: L
A108: Argentina | B108: Water withdrawal for irrigation (10^9 m3/yr)
A109: Argentina | B109: Irrigation water requirement (10^9 m3/yr) | S109: 2008 | T109: 12.23 | U109: L
A110: Argentina | B110: Agricultural water withdrawal as % of total water withdrawal (%) | G110: 1995 | H110: 75.3 | K110: 2000 | L110: 66.07 | M110: L
A111: Argentina | B111: Industrial water withdrawal as % of total water withdrawal (%) | G111: 1995 | H111: 8747 | K111: 2000 | L111: 12.2 | M111: L
A112: Argentina | B112: Municipal water withdrawal as % of total withdrawal (%) | G112: 1995 | H112: 15.96 | K112: 2000 | L112: 21.71 | M112: L
A113: Argentina | B113: Total water withdrawal per capita (m3/inhab/yr) | G113: 1995 | H113: 800.2 | I113: K | K113: 2000 | L113: 864.9 | M113: K
A114: Argentina | B114: Fresh surface water withdrawal (primary and secondary) (10^9 m3/yr)
A115: Argentina | B115: Fresh groundwater withdrawal (primary and secondary) (10^9 m3/yr)
A116: Argentina | B116: Total freshwater withdrawal (primary and secondary) (10^9 m3/yr) | G116: 1995 | H116: 28.58 | I116: I | K116: 2000 | L116: 32.48 | M116: I
A117: Argentina | B117: Desalinated water produced (10^9 m3/yr) | C117: 1990 | D117: 7.0E-4 | G117: 1995 | H117: 7.0E-4 | I117: I | K117: 2000 | L117: 7.0E-4 | M117: I
A118: Argentina | B118: Direct use of agricultural drainage water (10^9 m3/yr)
D120: 1988-1992 | H120: 1993-1997 | L120: 1998-2002 | P120: 2003-2007 | T120: 2008-2012 | X120: 2013-2017
A121: Armenia | B121: Agricultural water withdrawal (10^9 m3/yr) | G121: 1995 | H121: 1.94 | K121: 2002 | L121: 1.14 | M121: I | O121: 2007 | P121: 1.89 | S121: 2010 | T121: 1153
A122: Armenia | B122: Industrial water withdrawal (10^9 m3/yr) | G122: 1995 | H122: 0.12 | K122: 2002 | L122: 0.0766 | M122: I | O122: 2006 | P122: 0.125 | Q122: I
A123: Armenia | B123: Municipal water withdrawal (10^9 m3/yr) | G123: 1995 | H123: 0.865 | K123: 2002 | L123: 0.5168 | M123: I | O123: 2006 | P123: 0.843 | Q123: I
A124: Armenia | B124: Total water withdrawal (10^9 m3/yr) | G124: 1995 | H124: 2925 | K124: 2002 | L124: 1733 | M124: I | O124: 2007 | P124: 2858 | Q124: I | S124: 2012 | T124: 2941
A125: Armenia | B125: Water withdrawal for irrigation (10^9 m3/yr)
A126: Armenia | B126: Irrigation water requirement (10^9 m3/yr) | O126: 2006 | P126: 0.624 | Q126: L
A127: Armenia | B127: Agricultural water withdrawal as % of total water withdrawal (%) | G127: 1995 | H127: 66.32 | K127: 2002 | L127: 65.78 | M127: I | O127: 2007 | P127: 66.13 | Q127: I | S127: 2012 | T127: 39.2
A128: Armenia | B128: Industrial water withdrawal as % of total water withdrawal (%) | G128: 1995 | H128: 4103 | K128: 2002 | L128: 4.42 | M128: I | O128: 2007 | P128: 4374 | Q128: I
A129: Armenia | B129: Municipal water withdrawal as % of total withdrawal (%) | G129: 1995 | H129: 29.57 | K129: 2002 | L129: 29.82 | M129: I | O129: 2007 | P129: 29.5 | Q129: I
A130: Armenia | B130: Total water withdrawal per capita (m3/inhab/yr) | G130: 1995 | H130: 933.0 | I130: K | K130: 2002 | L130: 566.2 | M130: K | O130: 2007 | P130: 929.7 | Q130: K | S130: 2012 | T130: 946.0 | U130: K
A131: Armenia | B131: Fresh surface water withdrawal (primary and secondary) (10^9 m3/yr) | K131: 2002 | L131: 1258 | O131: 2006 | P131: 2216
A132: Armenia | B132: Fresh groundwater withdrawal (primary and secondary) (10^9 m3/yr) | K132: 2002 | L132: 0.475 | O132: 2006 | P132: 0.611
A133: Armenia | B133: Total freshwater withdrawal (primary and secondary) (10^9 m3/yr) | G133: 1995 | H133: 2925 | K133: 2002 | L133: 1733 | M133: I | O133: 2007 | P133: 2858 | Q133: I | S133: 2012 | T133: 2941
A134: Armenia | B134: Desalinated water produced (10^9 m3/yr)
A135: Armenia | B135: Direct use of agricultural drainage water (10^9 m3/yr)
D137: 1988-1992 | H137: 1993-1997 | L137: 1998-2002 | P137: 2003-2007 | T137: 2008-2012 | X137: 2013-2017
A138: Australia | B138: Agricultural water withdrawal (10^9 m3/yr) | G138: 1996 | H138: 15.5 | I138: E | K138: 2000 | L138: 16.66 | M138: E | S138: 2010 | T138: 7359
A139: Australia | B139: Industrial water withdrawal (10^9 m3/yr) | K139: 2000 | L139: 2.4 | M139: L
A140: Australia | B140: Municipal water withdrawal (10^9 m3/yr) | K140: 2000 | L140: 3.52 | M140: L
A141: Australia | B141: Total water withdrawal (10^9 m3/yr) | G141: 1996 | H141: 22.19 | I141: E | K141: 2000 | L141: 22.58 | M141: K
A142: Australia | B142: Water withdrawal for irrigation (10^9 m3/yr) | O142: 2007 | P142: 7636 | S142: 2010 | T142: 6596
A143: Australia | B143: Irrigation water requirement (10^9 m3/yr) | S143: 2010 | T143: 3892 | U143: L
A144: Australia | B144: Agricultural water withdrawal as % of total water withdrawal (%) | G144: 1996 | H144: 69.85 | I144: E | K144: 2000 | L144: 73.78 | M144: K
A145: Australia | B145: Industrial water withdrawal as % of total water withdrawal (%) | K145: 2000 | L145: 10.63 | M145: K
A146: Australia | B146: Municipal water withdrawal as % of total withdrawal (%) | K146: 2000 | L146: 15.59 | M146: K
A147: Australia | B147: Total water withdrawal per capita (m3/inhab/yr) | G147: 1996 | H147: 1198.0 | I147: E | K147: 2000 | L147: 1152.0 | M147: K
A148: Australia | B148: Fresh surface water withdrawal (primary and secondary) (10^9 m3/yr)
A149: Australia | B149: Fresh groundwater withdrawal (primary and secondary) (10^9 m3/yr) | K149: 2000 | L149: 4962 | M149: E
A150: Australia | B150: Total freshwater withdrawal (primary and secondary) (10^9 m3/yr) | G150: 1996 | H150: 22.16 | I150: K | K150: 2000 | L150: 22.55 | M150: K
A151: Australia | B151: Desalinated water produced (10^9 m3/yr) | C151: 1990 | D151: 0.0298 | G151: 1996 | H151: 0.0298 | I151: I | K151: 2000 | L151: 0.0298 | M151: I
A152: Australia | B152: Direct use of agricultural drainage water (10^9 m3/yr) | S152: 2010 | T152: 0.045 | V152: [12]
D154: 1988-1992 | H154: 1993-1997 | L154: 1998-2002 | P154: 2003-2007 | T154: 2008-2012 | X154: 2013-2017
A155: Austria | B155: Agricultural water withdrawal (10^9 m3/yr) | C155: 1990 | D155: 0.1 | E155: E | G155: 1997 | H155: 0.1 | I155: E | K155: 2002 | L155: 0.1 | M155: E
A156: Austria | B156: Industrial water withdrawal (10^9 m3/yr) | C156: 1989 | D156: 1548 | K156: 2000 | L156: 2889 | M156: E | S156: 2008 | T156: 2695 | U156: E
A157: Austria | B157: Municipal water withdrawal (10^9 m3/yr) | C157: 1989 | D157: 0.4028 | K157: 1999 | L157: 0.668 | M157: E | S157: 2008 | T157: 0.608 | U157: E
A158: Austria | B158: Total water withdrawal (10^9 m3/yr) | C158: 1990 | D158: 3807 | E158: E | G158: 1997 | H158: 3644 | I158: E | K158: 2002 | L158: 3657 | M158: E
A159: Austria | B159: Water withdrawal for irrigation (10^9 m3/yr)
A160: Austria | B160: Irrigation water requirement (10^9 m3/yr) | O160: 2007 | P160: 0.0599 | Q160: L
A161: Austria | B161: Agricultural water withdrawal as % of total water withdrawal (%) | C161: 1990 | D161: 2627 | E161: E | G161: 1997 | H161: 2744 | I161: E | K161: 2002 | L161: 2734 | M161: E
A162: Austria | B162: Industrial water withdrawal as % of total water withdrawal (%) | C162: 1990 | D162: 40.66 | E162: K | K162: 2002 | L162: 79.0 | M162: E
A163: Austria | B163: Municipal water withdrawal as % of total withdrawal (%) | C163: 1990 | D163: 10.58 | E163: K | K163: 2002 | L163: 18.27 | M163: E
A164: Austria | B164: Total water withdrawal per capita (m3/inhab/yr) | C164: 1990 | D164: 489.5 | E164: E | G164: 1997 | H164: 457.1 | I164: E | K164: 2002 | L164: 452.4 | M164: E
A165: Austria | B165: Fresh surface water withdrawal (primary and secondary) (10^9 m3/yr) | C165: 1990 | D165: 2561 | E165: E | G165: 1997 | H165: 2496 | I165: E | K165: 1999 | L165: 2553 | M165: E
A166: Austria | B166: Fresh groundwater withdrawal (primary and secondary) (10^9 m3/yr) | C166: 1990 | D166: 1246 | E166: E | G166: 1997 | H166: 1148 | I166: E | K166: 1999 | L166: 1115 | M166: E
A167: Austria | B167: Total freshwater withdrawal (primary and secondary) (10^9 m3/yr) | C167: 1990 | D167: 3805 | E167: K | G167: 1997 | H167: 3642 | I167: K | K167: 2002 | L167: 3655 | M167: K
A168: Austria | B168: Desalinated water produced (10^9 m3/yr) | C168: 1990 | D168: 0.0022 | G168: 1997 | H168: 0.0022 | I168: I | K168: 2000 | L168: 0.0022 | M168: I
A169: Austria | B169: Direct use of agricultural drainage water (10^9 m3/yr)
D171: 1988-1992 | H171: 1993-1997 | L171: 1998-2002 | P171: 2003-2007 | T171: 2008-2012 | X171: 2013-2017
A172: Azerbaijan | B172: Agricultural water withdrawal (10^9 m3/yr) | G172: 1997 | H172: 10.16 | K172: 2002 | L172: 7595 | O172: 2005 | P172: 9.33 | Q172: I | S172: 2010 | T172: 10.1
A173: Azerbaijan | B173: Industrial water withdrawal (10^9 m3/yr) | G173: 1997 | H173: 2132 | K173: 2002 | L173: 1977 | O173: 2005 | P173: 2.36
A174: Azerbaijan | B174: Municipal water withdrawal (10^9 m3/yr) | G174: 1997 | H174: 0.222 | K174: 2002 | L174: 0.503 | O174: 2005 | P174: 0.521
A175: Azerbaijan | B175: Total water withdrawal (10^9 m3/yr) | G175: 1997 | H175: 12.51 | K175: 2002 | L175: 10.07 | O175: 2005 | P175: 12.21 | Q175: I | S175: 2012 | T175: 11.97
A176: Azerbaijan | B176: Water withdrawal for irrigation (10^9 m3/yr)
A177: Azerbaijan | B177: Irrigation water requirement (10^9 m3/yr) | O177: 2004 | P177: 3.62 | Q177: L
A178: Azerbaijan | B178: Agricultural water withdrawal as % of total water withdrawal (%) | G178: 1997 | H178: 81.22 | K178: 2002 | L178: 75.42 | O178: 2005 | P178: 76.41 | Q178: I | S178: 2012 | T178: 84.38
A179: Azerbaijan | B179: Industrial water withdrawal as % of total water withdrawal (%) | G179: 1997 | H179: 17.04 | K179: 2002 | L179: 19.63 | O179: 2005 | P179: 19.33 | Q179: I
A180: Azerbaijan | B180: Municipal water withdrawal as % of total withdrawal (%) | G180: 1997 | H180: 1775 | K180: 2002 | L180: 4995 | O180: 2005 | P180: 4267 | Q180: I
A181: Azerbaijan | B181: Total water withdrawal per capita (m3/inhab/yr) | G181: 1997 | H181: 1581.0 | I181: K | K181: 2002 | L181: 1216.0 | M181: K | O181: 2005 | P181: 1384.0 | Q181: K | S181: 2012 | T181: 1271.0 | U181: K
A182: Azerbaijan | B182: Fresh surface water withdrawal (primary and secondary) (10^9 m3/yr) | G182: 1997 | H182: 11.41 | K182: 2002 | L182: 9525 | O182: 2004 | P182: 10.79
A183: Azerbaijan | B183: Fresh groundwater withdrawal (primary and secondary) (10^9 m3/yr) | G183: 1997 | H183: 1098 | K183: 2002 | L183: 0.545 | O183: 2004 | P183: 0.707
A184: Azerbaijan | B184: Total freshwater withdrawal (primary and secondary) (10^9 m3/yr) | G184: 1997 | H184: 12.51 | K184: 2002 | L184: 10.07 | O184: 2005 | P184: 12.21 | Q184: I | S184: 2012 | T184: 11.97
A185: Azerbaijan | B185: Desalinated water produced (10^9 m3/yr)
A186: Azerbaijan | B186: Direct use of agricultural drainage water (10^9 m3/yr)
D188: 1988-1992 | H188: 1993-1997 | L188: 1998-2002 | P188: 2003-2007 | T188: 2008-2012 | X188: 2013-2017
A189: Bahamas | B189: Agricultural water withdrawal (10^9 m3/yr)
A190: Bahamas | B190: Industrial water withdrawal (10^9 m3/yr)
A191: Bahamas | B191: Municipal water withdrawal (10^9 m3/yr)
A192: Bahamas | B192: Total water withdrawal (10^9 m3/yr)
A193: Bahamas | B193: Water withdrawal for irrigation (10^9 m3/yr)
A194: Bahamas | B194: Irrigation water requirement (10^9 m3/yr)
A195: Bahamas | B195: Agricultural water withdrawal as % of total water withdrawal (%)
A196: Bahamas | B196: Industrial water withdrawal as % of total water withdrawal (%)
A197: Bahamas | B197: Municipal water withdrawal as % of total withdrawal (%)
A198: Bahamas | B198: Total water withdrawal per capita (m3/inhab/yr)
A199: Bahamas | B199: Fresh surface water withdrawal (primary and secondary) (10^9 m3/yr)
A200: Bahamas | B200: Fresh groundwater withdrawal (primary and secondary) (10^9 m3/yr)
A201: Bahamas | B201: Total freshwater withdrawal (primary and secondary) (10^9 m3/yr)
A202: Bahamas | B202: Desalinated water produced (10^9 m3/yr) | C202: 1989 | D202: 0.0013 | K202: 2000 | L202: 0.0074 | N202: [13]
A203: Bahamas | B203: Direct use of agricultural drainage water (10^9 m3/yr)
D205: 1988-1992 | H205: 1993-1997 | L205: 1998-2002 | P205: 2003-2007 | T205: 2008-2012 | X205: 2013-2017
A206: Bahrain | B206: Agricultural water withdrawal (10^9 m3/yr) | C206: 1990 | D206: 0.135 | K206: 2000 | L206: 0.17 | M206: L | O206: 2003 | P206: 0.1592
A207: Bahrain | B207: Industrial water withdrawal (10^9 m3/yr) | C207: 1990 | D207: 0.01 | O207: 2003 | P207: 0.0203
A208: Bahrain | B208: Municipal water withdrawal (10^9 m3/yr) | C208: 1990 | D208: 0.094 | O208: 2003 | P208: 0.1779
A209: Bahrain | B209: Total water withdrawal (10^9 m3/yr) | C209: 1990 | D209: 0.239 | O209: 2003 | P209: 0.3574
A210: Bahrain | B210: Water withdrawal for irrigation (10^9 m3/yr)
A211: Bahrain | B211: Irrigation water requirement (10^9 m3/yr) | K211: 2000 | L211: 0.04 | M211: L
A212: Bahrain | B212: Agricultural water withdrawal as % of total water withdrawal (%) | C212: 1990 | D212: 56.49 | O212: 2003 | P212: 44.54
... 3169 more rows

Sheet DATA-FAO-RWR (hidden)
D1: 1988-1992 | H1: 1993-1997 | L1: 1998-2002 | P1: 2003-2007 | T1: 2008-2012 | X1: 2013-2017
A2: Afghanistan | B2: Total internal renewable water resources (IRWR) (10^9 m3/yr) | C2: 1992 | D2: 47.15 | E2: K | G2: 1997 | H2: 47.15 | I2: K | K2: 2002 | L2: 47.15 | M2: K | O2: 2007 | P2: 47.15 | Q2: K | S2: 2011 | T2: 47.15 | U2: K
A3: Afghanistan | B3: Total internal renewable water resources per capita (m3/inhab/yr) | C3: 1992 | D3: 3047 | E3: K | G3: 1997 | H3: 2214 | I3: K | K3: 2002 | L3: 1914 | M3: K | O3: 2007 | P3: 1618 | Q3: K | S3: 2011 | T3: 1412 | U3: K
A4: Afghanistan | B4: Water resources: total external renewable (natural) (10^9 m3/yr) | C4: 1992 | D4: 26.7 | E4: K | G4: 1997 | H4: 26.7 | I4: K | K4: 2002 | L4: 26.7 | M4: K | O4: 2007 | P4: 26.7 | Q4: K | S4: 2011 | T4: 26.7 | U4: K
A5: Afghanistan | B5: Water resources: total external renewable (actual) (10^9 m3/yr) | C5: 1992 | D5: 18.18 | E5: K | G5: 1997 | H5: 18.18 | I5: K | K5: 2002 | L5: 18.18 | M5: K | O5: 2007 | P5: 18.18 | Q5: K | S5: 2011 | T5: 18.18 | U5: K
A6: Afghanistan | B6: Total renewable surface water (natural) (10^9 m3/yr) | C6: 1992 | D6: 64.2 | E6: K | G6: 1997 | H6: 64.2 | I6: K | K6: 2002 | L6: 64.2 | M6: K | O6: 2007 | P6: 64.2 | Q6: K | S6: 2011 | T6: 64.2 | U6: K
A7: Afghanistan | B7: Total renewable surface water (actual) (10^9 m3/yr) | C7: 1992 | D7: 55.68 | E7: K | G7: 1997 | H7: 55.68 | I7: K | K7: 2002 | L7: 55.68 | M7: K | O7: 2007 | P7: 55.68 | Q7: K | S7: 2011 | T7: 55.68 | U7: K
A8: Afghanistan | B8: Total renewable groundwater (natural) (10^9 m3/yr) | C8: 1992 | D8: 10.65 | E8: I | G8: 1997 | H8: 10.65 | I8: I | K8: 2002 | L8: 10.65 | M8: I | O8: 2007 | P8: 10.65 | Q8: I | S8: 2011 | T8: 10.65 | U8: I
A9: Afghanistan | B9: Total renewable groundwater (actual) (10^9 m3/yr) | C9: 1992 | D9: 10.65 | E9: I | G9: 1997 | H9: 10.65 | I9: I | K9: 2002 | L9: 10.65 | M9: I | O9: 2007 | P9: 10.65 | Q9: I | S9: 2011 | T9: 10.65 | U9: I
A10: Afghanistan | B10: Total renewable water resources (natural) (10^9 m3/yr) | C10: 1992 | D10: 73.85 | E10: K | G10: 1997 | H10: 73.85 | I10: K | K10: 2002 | L10: 73.85 | M10: K | O10: 2007 | P10: 73.85 | Q10: K | S10: 2011 | T10: 73.85 | U10: K
A11: Afghanistan | B11: Total renewable water resources (actual) (10^9 m3/yr) | C11: 1992 | D11: 65.33 | E11: K | G11: 1997 | H11: 65.33 | I11: K | K11: 2002 | L11: 65.33 | M11: K | O11: 2007 | P11: 65.33 | Q11: K | S11: 2011 | T11: 65.33 | U11: K
A12: Afghanistan | B12: Dependency ratio (%) | C12: 1992 | D12: 28.72 | E12: K | G12: 1997 | H12: 28.72 | I12: K | K12: 2002 | L12: 28.72 | M12: K | O12: 2007 | P12: 28.72 | Q12: K | S12: 2011 | T12: 28.72 | U12: K
A13: Afghanistan | B13: Total renewable water resources per capita (actual) (m3/inhab/yr) | C13: 1992 | D13: 4222 | E13: K | G13: 1997 | H13: 3067 | I13: K | K13: 2002 | L13: 2651 | M13: K | O13: 2007 | P13: 2241 | Q13: K | S13: 2011 | T13: 1956 | U13: K
D15: 1988-1992 | H15: 1993-1997 | L15: 1998-2002 | P15: 2003-2007 | T15: 2008-2012 | X15: 2013-2017
A16: Albania | B16: Total internal renewable water resources (IRWR) (10^9 m3/yr) | C16: 1992 | D16: 26.9 | G16: 1997 | H16: 26.9 | K16: 2002 | L16: 26.9 | O16: 2007 | P16: 26.9 | S16: 2011 | T16: 26.9
A17: Albania | B17: Total internal renewable water resources per capita (m3/inhab/yr) | C17: 1992 | D17: 8234 | E17: K | G17: 1997 | H17: 8700 | I17: K | K17: 2002 | L17: 8706 | M17: K | O17: 2007 | P17: 8486 | Q17: K | S17: 2011 | T17: 8336 | U17: K
A18: Albania | B18: Water resources: total external renewable (natural) (10^9 m3/yr) | C18: 1992 | D18: 14.8 | E18: I | G18: 1997 | H18: 14.8 | I18: I | K18: 2002 | L18: 14.8 | M18: I | O18: 2007 | P18: 14.8 | Q18: I | S18: 2011 | T18: 14.8 | U18: I
A19: Albania | B19: Water resources: total external renewable (actual) (10^9 m3/yr) | C19: 1992 | D19: 14.8 | E19: I | G19: 1997 | H19: 14.8 | I19: I | K19: 2002 | L19: 14.8 | M19: I | O19: 2007 | P19: 14.8 | Q19: I | S19: 2011 | T19: 14.8 | U19: I
A20: Albania | B20: Total renewable surface water (natural) (10^9 m3/yr) | C20: 1992 | D20: 37.85 | G20: 1997 | H20: 37.85 | K20: 2002 | L20: 37.85 | O20: 2007 | P20: 37.85 | S20: 2011 | T20: 37.85
A21: Albania | B21: Total renewable surface water (actual) (10^9 m3/yr) | C21: 1992 | D21: 37.85 | E21: I | G21: 1997 | H21: 37.85 | I21: I | K21: 2002 | L21: 37.85 | M21: I | O21: 2007 | P21: 37.85 | Q21: I | S21: 2011 | T21: 37.85 | U21: I
A22: Albania | B22: Total renewable groundwater (natural) (10^9 m3/yr) | C22: 1992 | D22: 6.2 | E22: I | G22: 1997 | H22: 6.2 | I22: I | K22: 2002 | L22: 6.2 | M22: I | O22: 2007 | P22: 6.2 | Q22: I | S22: 2011 | T22: 6.2 | U22: I
A23: Albania | B23: Total renewable groundwater (actual) (10^9 m3/yr) | C23: 1992 | D23: 6.2 | E23: I | G23: 1997 | H23: 6.2 | I23: I | K23: 2002 | L23: 6.2 | M23: I | O23: 2007 | P23: 6.2 | Q23: I | S23: 2011 | T23: 6.2 | U23: I
A24: Albania | B24: Total renewable water resources (natural) (10^9 m3/yr) | C24: 1992 | D24: 41.7 | E24: I | G24: 1997 | H24: 41.7 | I24: I | K24: 2002 | L24: 41.7 | M24: I | O24: 2007 | P24: 41.7 | Q24: I | S24: 2011 | T24: 41.7 | U24: I
A25: Albania | B25: Total renewable water resources (actual) (10^9 m3/yr) | C25: 1992 | D25: 41.7 | E25: I | G25: 1997 | H25: 41.7 | I25: I | K25: 2002 | L25: 41.7 | M25: I | O25: 2007 | P25: 41.7 | Q25: I | S25: 2011 | T25: 41.7 | U25: I
A26: Albania | B26: Dependency ratio (%) | C26: 1992 | D26: 35.49 | E26: I | G26: 1997 | H26: 35.49 | I26: I | K26: 2002 | L26: 35.49 | M26: I | O26: 2007 | P26: 35.49 | Q26: I | S26: 2011 | T26: 35.49 | U26: I
A27: Albania | B27: Total renewable water resources per capita (actual) (m3/inhab/yr) | C27: 1992 | D27: 12764 | E27: K | G27: 1997 | H27: 13486 | I27: K | K27: 2002 | L27: 13495 | M27: K | O27: 2007 | P27: 13155 | Q27: K | S27: 2011 | T27: 12922 | U27: K
D29: 1988-1992 | H29: 1993-1997 | L29: 1998-2002 | P29: 2003-2007 | T29: 2008-2012 | X29: 2013-2017
A30: Algeria | B30: Total internal renewable water resources (IRWR) (10^9 m3/yr) | C30: 1992 | D30: 11.25 | G30: 1997 | H30: 11.25 | K30: 2002 | L30: 11.25 | O30: 2007 | P30: 11.25 | S30: 2011 | T30: 11.25
A31: Algeria | B31: Total internal renewable water resources per capita (m3/inhab/yr) | C31: 1992 | D31: 423.6 | E31: K | G31: 1997 | H31: 384.7 | I31: K | K31: 2002 | L31: 357.8 | M31: K | O31: 2007 | P31: 331.8 | Q31: K | S31: 2011 | T31: 308.3 | U31: K
A32: Algeria | B32: Water resources: total external renewable (natural) (10^9 m3/yr) | C32: 1992 | D32: 0.42 | G32: 1997 | H32: 0.42 | K32: 2002 | L32: 0.42 | O32: 2007 | P32: 0.42 | S32: 2011 | T32: 0.42
A33: Algeria | B33: Water resources: total external renewable (actual) (10^9 m3/yr) | C33: 1992 | D33: 0.42 | E33: I | G33: 1997 | H33: 0.42 | I33: I | K33: 2002 | L33: 0.42 | M33: I | O33: 2007 | P33: 0.42 | Q33: I | S33: 2011 | T33: 0.42 | U33: I
A34: Algeria | B34: Total renewable surface water (natural) (10^9 m3/yr) | C34: 1992 | D34: 10.15 | G34: 1997 | H34: 10.15 | K34: 2002 | L34: 10.15 | O34: 2007 | P34: 10.15 | S34: 2011 | T34: 10.15
A35: Algeria | B35: Total renewable surface water (actual) (10^9 m3/yr) | C35: 1992 | D35: 10.15 | E35: I | G35: 1997 | H35: 10.15 | I35: I | K35: 2002 | L35: 10.15 | M35: I | O35: 2007 | P35: 10.15 | Q35: I | S35: 2011 | T35: 10.15 | U35: I
A36: Algeria | B36: Total renewable groundwater (natural) (10^9 m3/yr) | C36: 1992 | D36: 1.517 | G36: 1997 | H36: 1.517 | K36: 2002 | L36: 1.517 | O36: 2007 | P36: 1.517 | S36: 2011 | T36: 1.517
A37: Algeria | B37: Total renewable groundwater (actual) (10^9 m3/yr) | C37: 1992 | D37: 1.517 | G37: 1997 | H37: 1.517 | K37: 2002 | L37: 1.517 | O37: 2007 | P37: 1.517 | S37: 2011 | T37: 1.517
A38: Algeria | B38: Total renewable water resources (natural) (10^9 m3/yr) | C38: 1992 | D38: 11.67 | G38: 1997 | H38: 11.67 | K38: 2002 | L38: 11.67 | O38: 2007 | P38: 11.67 | S38: 2011 | T38: 11.67
A39: Algeria | B39: Total renewable water resources (actual) (10^9 m3/yr) | C39: 1992 | D39: 11.67 | E39: I | G39: 1997 | H39: 11.67 | I39: I | K39: 2002 | L39: 11.67 | M39: I | O39: 2007 | P39: 11.67 | Q39: I | S39: 2011 | T39: 11.67 | U39: I
A40: Algeria | B40: Dependency ratio (%) | C40: 1992 | D40: 3.599 | E40: I | G40: 1997 | H40: 3.599 | I40: I | K40: 2002 | L40: 3.599 | M40: I | O40: 2007 | P40: 3.599 | Q40: I | S40: 2011 | T40: 3.599 | U40: I
A41: Algeria | B41: Total renewable water resources per capita (actual) (m3/inhab/yr) | C41: 1992 | D41: 439.4 | E41: K | G41: 1997 | H41: 399.1 | I41: K | K41: 2002 | L41: 371.2 | M41: K | O41: 2007 | P41: 344.2 | Q41: K | S41: 2011 | T41: 319.8 | U41: K
D43: 1988-1992 | H43: 1993-1997 | L43: 1998-2002 | P43: 2003-2007 | T43: 2008-2012 | X43: 2013-2017
A44: Andorra | B44: Total internal renewable water resources (IRWR) (10^9 m3/yr) | C44: 1992 | D44: 0.3156 | E44: E | G44: 1997 | H44: 0.3156 | I44: E | K44: 2002 | L44: 0.3156 | M44: E | O44: 2007 | P44: 0.3156 | Q44: E | S44: 2011 | T44: 0.3156 | U44: E
A45: Andorra | B45: Total internal renewable water resources per capita (m3/inhab/yr) | C45: 1992 | D45: 5441 | E45: E | G45: 1997 | H45: 4855 | I45: E | K45: 2002 | L45: 4574 | M45: E | O45: 2007 | P45: 3896 | Q45: E | S45: 2011 | T45: 3586 | U45: E
A46: Andorra | B46: Water resources: total external renewable (natural) (10^9 m3/yr)
A47: Andorra | B47: Water resources: total external renewable (actual) (10^9 m3/yr)
A48: Andorra | B48: Total renewable surface water (natural) (10^9 m3/yr)
A49: Andorra | B49: Total renewable surface water (actual) (10^9 m3/yr)
A50: Andorra | B50: Total renewable groundwater (natural) (10^9 m3/yr)
A51: Andorra | B51: Total renewable groundwater (actual) (10^9 m3/yr)
A52: Andorra | B52: Total renewable water resources (natural) (10^9 m3/yr)
A53: Andorra | B53: Total renewable water resources (actual) (10^9 m3/yr) | C53: 1992 | D53: 0.3156 | E53: E | G53: 1997 | H53: 0.3156 | I53: E | K53: 2002 | L53: 0.3156 | M53: E | O53: 2007 | P53: 0.3156 | Q53: E | S53: 2011 | T53: 0.3156 | U53: E
A54: Andorra | B54: Dependency ratio (%)
A55: Andorra | B55: Total renewable water resources per capita (actual) (m3/inhab/yr) | C55: 1992 | D55: 5441 | E55: E | G55: 1997 | H55: 4855 | I55: E | K55: 2002 | L55: 4574 | M55: E | O55: 2007 | P55: 3896 | Q55: E | S55: 2011 | T55: 3586 | U55: E
D57: 1988-1992 | H57: 1993-1997 | L57: 1998-2002 | P57: 2003-2007 | T57: 2008-2012 | X57: 2013-2017
A58: Angola | B58: Total internal renewable water resources (IRWR) (10^9 m3/yr) | C58: 1992 | D58: 148 | G58: 1997 | H58: 148 | K58: 2002 | L58: 148 | O58: 2007 | P58: 148 | S58: 2011 | T58: 148
A59: Angola | B59: Total internal renewable water resources per capita (m3/inhab/yr) | C59: 1992 | D59: 13451 | E59: K | G59: 1997 | H59: 11570 | I59: K | K59: 2002 | L59: 9940 | M59: K | O59: 2007 | P59: 8445 | Q59: K | S59: 2011 | T59: 7340 | U59: K
A60: Angola | B60: Water resources: total external renewable (natural) (10^9 m3/yr) | C60: 1992 | D60: 0 | G60: 1997 | H60: 0 | K60: 2002 | L60: 0 | O60: 2007 | P60: 0 | S60: 2011 | T60: 0
A61: Angola | B61: Water resources: total external renewable (actual) (10^9 m3/yr) | C61: 1992 | D61: 0 | E61: I | G61: 1997 | H61: 0 | I61: I | K61: 2002 | L61: 0 | M61: I | O61: 2007 | P61: 0 | Q61: I | S61: 2011 | T61: 0 | U61: I
A62: Angola | B62: Total renewable surface water (natural) (10^9 m3/yr) | C62: 1992 | D62: 145 | G62: 1997 | H62: 145 | K62: 2002 | L62: 145 | O62: 2007 | P62: 145 | S62: 2011 | T62: 145
A63: Angola | B63: Total renewable surface water (actual) (10^9 m3/yr) | C63: 1992 | D63: 145 | E63: I | G63: 1997 | H63: 145 | I63: I | K63: 2002 | L63: 145 | M63: I | O63: 2007 | P63: 145 | Q63: I | S63: 2011 | T63: 145 | U63: I
A64: Angola | B64: Total renewable groundwater (natural) (10^9 m3/yr) | C64: 1992 | D64: 58 | G64: 1997 | H64: 58 | K64: 2002 | L64: 58 | O64: 2007 | P64: 58 | S64: 2011 | T64: 58
A65: Angola | B65: Total renewable groundwater (actual) (10^9 m3/yr) | C65: 1992 | D65: 58 | G65: 1997 | H65: 58 | K65: 2002 | L65: 58 | O65: 2007 | P65: 58 | S65: 2011 | T65: 58
A66: Angola | B66: Total renewable water resources (natural) (10^9 m3/yr) | C66: 1992 | D66: 148 | G66: 1997 | H66: 148 | K66: 2002 | L66: 148 | O66: 2007 | P66: 148 | S66: 2011 | T66: 148
A67: Angola | B67: Total renewable water resources (actual) (10^9 m3/yr) | C67: 1992 | D67: 148 | E67: I | G67: 1997 | H67: 148 | I67: I | K67: 2002 | L67: 148 | M67: I | O67: 2007 | P67: 148 | Q67: I | S67: 2011 | T67: 148 | U67: I
A68: Angola | B68: Dependency ratio (%) | C68: 1992 | D68: 0 | E68: I | G68: 1997 | H68: 0 | I68: I | K68: 2002 | L68: 0 | M68: I | O68: 2007 | P68: 0 | Q68: I | S68: 2011 | T68: 0 | U68: I
A69: Angola | B69: Total renewable water resources per capita (actual) (m3/inhab/yr) | C69: 1992 | D69: 13451 | E69: K | G69: 1997 | H69: 11570 | I69: K | K69: 2002 | L69: 9940 | M69: K | O69: 2007 | P69: 8445 | Q69: K | S69: 2011 | T69: 7340 | U69: K
D71: 1988-1992 | H71: 1993-1997 | L71: 1998-2002 | P71: 2003-2007 | T71: 2008-2012 | X71: 2013-2017
A72: Antigua and Barbuda | B72: Total internal renewable water resources (IRWR) (10^9 m3/yr) | C72: 1992 | D72: 0.052 | G72: 1997 | H72: 0.052 | K72: 2002 | L72: 0.052 | O72: 2007 | P72: 0.052 | S72: 2011 | T72: 0.052
A73: Antigua and Barbuda | B73: Total internal renewable water resources per capita (m3/inhab/yr) | C73: 1992 | D73: 812.5 | E73: K | G73: 1997 | H73: 722.2 | I73: K | K73: 2002 | L73: 642 | M73: K | O73: 2007 | P73: 604.7 | Q73: K | S73: 2011 | T73: 571.4 | U73: K
A74: Antigua and Barbuda | B74: Water resources: total external renewable (natural) (10^9 m3/yr) | C74: 1992 | D74: 0 | G74: 1997 | H74: 0 | K74: 2002 | L74: 0 | O74: 2007 | P74: 0 | S74: 2011 | T74: 0
A75: Antigua and Barbuda | B75: Water resources: total external renewable (actual) (10^9 m3/yr) | C75: 1992 | D75: 0 | G75: 1997 | H75: 0 | K75: 2002 | L75: 0 | O75: 2007 | P75: 0 | S75: 2011 | T75: 0
A76: Antigua and Barbuda | B76: Total renewable surface water (natural) (10^9 m3/yr)
A77: Antigua and Barbuda | B77: Total renewable surface water (actual) (10^9 m3/yr)
A78: Antigua and Barbuda | B78: Total renewable groundwater (natural) (10^9 m3/yr)
A79: Antigua and Barbuda | B79: Total renewable groundwater (actual) (10^9 m3/yr)
A80: Antigua and Barbuda | B80: Total renewable water resources (natural) (10^9 m3/yr) | C80: 1992 | D80: 0.052 | G80: 1997 | H80: 0.052 | K80: 2002 | L80: 0.052 | O80: 2007 | P80: 0.052 | S80: 2011 | T80: 0.052
A81: Antigua and Barbuda | B81: Total renewable water resources (actual) (10^9 m3/yr) | C81: 1992 | D81: 0.052 | G81: 1997 | H81: 0.052 | K81: 2002 | L81: 0.052 | O81: 2007 | P81: 0.052 | S81: 2011 | T81: 0.052
A82: Antigua and Barbuda | B82: Dependency ratio (%) | C82: 1992 | D82: 0 | G82: 1997 | H82: 0 | K82: 2002 | L82: 0 | O82: 2007 | P82: 0 | S82: 2011 | T82: 0
A83: Antigua and Barbuda | B83: Total renewable water resources per capita (actual) (m3/inhab/yr) | C83: 1992 | D83: 812.5 | E83: K | G83: 1997 | H83: 722.2 | I83: K | K83: 2002 | L83: 642 | M83: K | O83: 2007 | P83: 604.7 | Q83: K | S83: 2011 | T83: 571.4 | U83: K
D85: 1988-1992 | H85: 1993-1997 | L85: 1998-2002 | P85: 2003-2007 | T85: 2008-2012 | X85: 2013-2017
A86: Argentina | B86: Total internal renewable water resources (IRWR) (10^9 m3/yr) | C86: 1992 | D86: 276 | G86: 1997 | H86: 276 | K86: 2002 | L86: 276 | O86: 2007 | P86: 276 | S86: 2011 | T86: 276
A87: Argentina | B87: Total internal renewable water resources per capita (m3/inhab/yr) | C87: 1992 | D87: 8229 | E87: K | G87: 1997 | H87: 7728 | I87: K | K87: 2002 | L87: 7329 | M87: K | O87: 2007 | P87: 7011 | Q87: K | S87: 2011 | T87: 6712 | U87: K
A88: Argentina | B88: Water resources: total external renewable (natural) (10^9 m3/yr) | C88: 1992 | D88: 538 | G88: 1997 | H88: 538 | K88: 2002 | L88: 538 | O88: 2007 | P88: 538 | S88: 2011 | T88: 538
A89: Argentina | B89: Water resources: total external renewable (actual) (10^9 m3/yr) | C89: 1992 | D89: 538 | G89: 1997 | H89: 538 | K89: 2002 | L89: 538 | O89: 2007 | P89: 538 | S89: 2011 | T89: 538
A90: Argentina | B90: Total renewable surface water (natural) (10^9 m3/yr) | C90: 1992 | D90: 814 | G90: 1997 | H90: 814 | K90: 2002 | L90: 814 | O90: 2007 | P90: 814 | S90: 2011 | T90: 814
A91: Argentina | B91: Total renewable surface water (actual) (10^9 m3/yr) | C91: 1992 | D91: 814 | G91: 1997 | H91: 814 | K91: 2002 | L91: 814 | O91: 2007 | P91: 814 | S91: 2011 | T91: 814
A92: Argentina | B92: Total renewable groundwater (natural) (10^9 m3/yr) | C92: 1992 | D92: 128 | G92: 1997 | H92: 128 | K92: 2002 | L92: 128 | O92: 2007 | P92: 128 | S92: 2011 | T92: 128
A93: Argentina | B93: Total renewable groundwater (actual) (10^9 m3/yr) | C93: 1992 | D93: 128 | G93: 1997 | H93: 128 | K93: 2002 | L93: 128 | O93: 2007 | P93: 128 | S93: 2011 | T93: 128
A94: Argentina | B94: Total renewable water resources (natural) (10^9 m3/yr) | C94: 1992 | D94: 814 | G94: 1997 | H94: 814 | K94: 2002 | L94: 814 | O94: 2007 | P94: 814 | S94: 2011 | T94: 814
A95: Argentina | B95: Total renewable water resources (actual) (10^9 m3/yr) | C95: 1992 | D95: 814 | G95: 1997 | H95: 814 | K95: 2002 | L95: 814 | O95: 2007 | P95: 814 | S95: 2011 | T95: 814
A96: Argentina | B96: Dependency ratio (%) | C96: 1992 | D96: 66.09 | G96: 1997 | H96: 66.09 | K96: 2002 | L96: 66.09 | O96: 2007 | P96: 66.09 | S96: 2011 | T96: 66.09
A97: Argentina | B97: Total renewable water resources per capita (actual) (m3/inhab/yr) | C97: 1992 | D97: 24270 | E97: K | G97: 1997 | H97: 22792 | I97: K | K97: 2002 | L97: 21616 | M97: K | O97: 2007 | P97: 20677 | Q97: K | S97: 2011 | T97: 19796 | U97: K
D99: 1988-1992 | H99: 1993-1997 | L99: 1998-2002 | P99: 2003-2007 | T99: 2008-2012 | X99: 2013-2017
A100: Armenia | B100: Total internal renewable water resources (IRWR) (10^9 m3/yr) | C100: 1992 | D100: 6.859 | F100: [1] | G100: 1997 | H100: 6.859 | J100: [2] | K100: 2002 | L100: 6.859 | N100: [3] | O100: 2007 | P100: 6.859 | R100: [4] | S100: 2011 | T100: 6.859
A101: Armenia | B101: Total internal renewable water resources per capita (m3/inhab/yr) | C101: 1992 | D101: 1988 | E101: K | G101: 1997 | H101: 2188 | I101: K | K101: 2002 | L101: 2241 | M101: K | O101: 2007 | P101: 2231 | Q101: K | S101: 2011 | T101: 2206 | U101: K
A102: Armenia | B102: Water resources: total external renewable (natural) (10^9 m3/yr) | C102: 1992 | D102: 0.91 | E102: I | G102: 1997 | H102: 0.91 | I102: I | K102: 2002 | L102: 0.91 | M102: I | O102: 2007 | P102: 0.91 | Q102: I | S102: 2011 | T102: 0.91 | U102: I
A103: Armenia | B103: Water resources: total external renewable (actual) (10^9 m3/yr) | C103: 1992 | D103: 0.91 | E103: I | G103: 1997 | H103: 0.91 | I103: I | K103: 2002 | L103: 0.91 | M103: I | O103: 2007 | P103: 0.91 | Q103: I | S103: 2011 | T103: 0.91 | U103: I
A104: Armenia | B104: Total renewable surface water (natural) (10^9 m3/yr) | C104: 1992 | D104: 4.858 | E104: I | G104: 1997 | H104: 4.858 | I104: I | K104: 2002 | L104: 4.858 | M104: I | O104: 2007 | P104: 4.858 | Q104: I | S104: 2011 | T104: 4.858 | U104: I
A105: Armenia | B105: Total renewable surface water (actual) (10^9 m3/yr) | C105: 1992 | D105: 4.858 | E105: I | G105: 1997 | H105: 4.858 | I105: I | K105: 2002 | L105: 4.858 | M105: I | O105: 2007 | P105: 4.858 | Q105: I | S105: 2011 | T105: 4.858 | U105: I
A106: Armenia | B106: Total renewable groundwater (natural) (10^9 m3/yr) | C106: 1992 | D106: 4.311 | E106: I | G106: 1997 | H106: 4.311 | I106: I | K106: 2002 | L106: 4.311 | M106: I | O106: 2007 | P106: 4.311 | Q106: I | S106: 2011 | T106: 4.311 | U106: I
A107: Armenia | B107: Total renewable groundwater (actual) (10^9 m3/yr) | C107: 1992 | D107: 4.311 | E107: I | G107: 1997 | H107: 4.311 | I107: I | K107: 2002 | L107: 4.311 | M107: I | O107: 2007 | P107: 4.311 | Q107: I | S107: 2011 | T107: 4.311 | U107: I
A108: Armenia | B108: Total renewable water resources (natural) (10^9 m3/yr) | C108: 1992 | D108: 7.769 | E108: I | G108: 1997 | H108: 7.769 | I108: I | K108: 2002 | L108: 7.769 | M108: I | O108: 2007 | P108: 7.769 | Q108: I | S108: 2011 | T108: 7.769 | U108: I
A109: Armenia | B109: Total renewable water resources (actual) (10^9 m3/yr) | C109: 1992 | D109: 7.769 | E109: I | G109: 1997 | H109: 7.769 | I109: I | K109: 2002 | L109: 7.769 | M109: I | O109: 2007 | P109: 7.769 | Q109: I | S109: 2011 | T109: 7.769 | U109: I
A110: Armenia | B110: Dependency ratio (%) | C110: 1992 | D110: 11.71 | E110: I | G110: 1997 | H110: 11.71 | I110: I | K110: 2002 | L110: 11.71 | M110: I | O110: 2007 | P110: 11.71 | Q110: I | S110: 2011 | T110: 11.71 | U110: I
A111: Armenia | B111: Total renewable water resources per capita (actual) (m3/inhab/yr) | C111: 1992 | D111: 2252 | E111: K | G111: 1997 | H111: 2478 | I111: K | K111: 2002 | L111: 2538 | M111: K | O111: 2007 | P111: 2527 | Q111: K | S111: 2011 | T111: 2499 | U111: K
D113: 1988-1992 | H113: 1993-1997 | L113: 1998-2002 | P113: 2003-2007 | T113: 2008-2012 | X113: 2013-2017
A114: Australia | B114: Total internal renewable water resources (IRWR) (10^9 m3/yr) | C114: 1992 | D114: 492 | G114: 1997 | H114: 492 | K114: 2002 | L114: 492 | O114: 2007 | P114: 492 | S114: 2011 | T114: 492
A115: Australia | B115: Total internal renewable water resources per capita (m3/inhab/yr) | C115: 1992 | D115: 28068 | E115: K | G115: 1997 | H115: 26559 | I115: K | K115: 2002 | L115: 25097 | M115: K | O115: 2007 | P115: 23295 | Q115: K | S115: 2011 | T115: 21467 | U115: K
A116: Australia | B116: Water resources: total external renewable (natural) (10^9 m3/yr) | C116: 1992 | D116: 0 | G116: 1997 | H116: 0 | K116: 2002 | L116: 0 | O116: 2007 | P116: 0 | S116: 2011 | T116: 0
A117: Australia | B117: Water resources: total external renewable (actual) (10^9 m3/yr) | C117: 1992 | D117: 0 | G117: 1997 | H117: 0 | K117: 2002 | L117: 0 | O117: 2007 | P117: 0 | S117: 2011 | T117: 0
A118: Australia | B118: Total renewable surface water (natural) (10^9 m3/yr) | C118: 1992 | D118: 440 | G118: 1997 | H118: 440 | K118: 2002 | L118: 440 | O118: 2007 | P118: 440 | S118: 2011 | T118: 440
A119: Australia | B119: Total renewable surface water (actual) (10^9 m3/yr) | C119: 1992 | D119: 440 | G119: 1997 | H119: 440 | K119: 2002 | L119: 440 | O119: 2007 | P119: 440 | S119: 2011 | T119: 440
A120: Australia | B120: Total renewable groundwater (natural) (10^9 m3/yr) | C120: 1992 | D120: 72 | G120: 1997 | H120: 72 | K120: 2002 | L120: 72 | O120: 2007 | P120: 72 | S120: 2011 | T120: 72
A121: Australia | B121: Total renewable groundwater (actual) (10^9 m3/yr) | C121: 1992 | D121: 72 | G121: 1997 | H121: 72 | K121: 2002 | L121: 72 | O121: 2007 | P121: 72 | S121: 2011 | T121: 72
A122: Australia | B122: Total renewable water resources (natural) (10^9 m3/yr) | C122: 1992 | D122: 492 | G122: 1997 | H122: 492 | K122: 2002 | L122: 492 | O122: 2007 | P122: 492 | S122: 2011 | T122: 492
A123: Australia | B123: Total renewable water resources (actual) (10^9 m3/yr) | C123: 1992 | D123: 492 | G123: 1997 | H123: 492 | K123: 2002 | L123: 492 | O123: 2007 | P123: 492 | S123: 2011 | T123: 492
A124: Australia | B124: Dependency ratio (%) | C124: 1992 | D124: 0 | G124: 1997 | H124: 0 | K124: 2002 | L124: 0 | O124: 2007 | P124: 0 | S124: 2011 | T124: 0
A125: Australia | B125: Total renewable water resources per capita (actual) (m3/inhab/yr) | C125: 1992 | D125: 28068 | E125: K | G125: 1997 | H125: 26559 | I125: K | K125: 2002 | L125: 25097 | M125: K | O125: 2007 | P125: 23295 | Q125: K | S125: 2011 | T125: 21467 | U125: K
D127: 1988-1992 | H127: 1993-1997 | L127: 1998-2002 | P127: 2003-2007 | T127: 2008-2012 | X127: 2013-2017
A128: Austria | B128: Total internal renewable water resources (IRWR) (10^9 m3/yr) | C128: 1992 | D128: 55 | G128: 1997 | H128: 55 | K128: 2002 | L128: 55 | O128: 2007 | P128: 55 | S128: 2011 | T128: 55
A129: Austria | B129: Total internal renewable water resources per capita (m3/inhab/yr) | C129: 1992 | D129: 7071 | E129: K | G129: 1997 | H129: 6899 | I129: K | K129: 2002 | L129: 6804 | M129: K | O129: 2007 | P129: 6619 | Q129: K | S129: 2011 | T129: 6525 | U129: K
A130: Austria | B130: Water resources: total external renewable (natural) (10^9 m3/yr) | C130: 1992 | D130: 22.7 | E130: I | G130: 1997 | H130: 22.7 | I130: I | K130: 2002 | L130: 22.7 | M130: I | O130: 2007 | P130: 22.7 | Q130: I | S130: 2011 | T130: 22.7 | U130: I
A131: Austria | B131: Water resources: total external renewable (actual) (10^9 m3/yr) | C131: 1992 | D131: 22.7 | E131: I | G131: 1997 | H131: 22.7 | I131: I | K131: 2002 | L131: 22.7 | M131: I | O131: 2007 | P131: 22.7 | Q131: I | S131: 2011 | T131: 22.7 | U131: I
A132: Austria | B132: Total renewable surface water (natural) (10^9 m3/yr) | C132: 1992 | D132: 77.7 | G132: 1997 | H132: 77.7 | K132: 2002 | L132: 77.7 | O132: 2007 | P132: 77.7 | S132: 2011 | T132: 77.7
A133: Austria | B133: Total renewable surface water (actual) (10^9 m3/yr) | C133: 1992 | D133: 77.7 | E133: I | G133: 1997 | H133: 77.7 | I133: I | K133: 2002 | L133: 77.7 | M133: I | O133: 2007 | P133: 77.7 | Q133: I | S133: 2011 | T133: 77.7 | U133: I
A134: Austria | B134: Total renewable groundwater (natural) (10^9 m3/yr) | C134: 1992 | D134: 6 | E134: I | G134: 1997 | H134: 6 | I134: I | K134: 2002 | L134: 6 | M134: I | O134: 2007 | P134: 6 | Q134: I | S134: 2011 | T134: 6 | U134: I
A135: Austria | B135: Total renewable groundwater (actual) (10^9 m3/yr) | C135: 1992 | D135: 6 | E135: I | G135: 1997 | H135: 6 | I135: I | K135: 2002 | L135: 6 | M135: I | O135: 2007 | P135: 6 | Q135: I | S135: 2011 | T135: 6 | U135: I
A136: Austria | B136: Total renewable water resources (natural) (10^9 m3/yr) | C136: 1992 | D136: 77.7 | E136: I | G136: 1997 | H136: 77.7 | I136: I | K136: 2002 | L136: 77.7 | M136: I | O136: 2007 | P136: 77.7 | Q136: I | S136: 2011 | T136: 77.7 | U136: I
A137: Austria | B137: Total renewable water resources (actual) (10^9 m3/yr) | C137: 1992 | D137: 77.7 | E137: I | G137: 1997 | H137: 77.7 | I137: I | K137: 2002 | L137: 77.7 | M137: I | O137: 2007 | P137: 77.7 | Q137: I | S137: 2011 | T137: 77.7 | U137: I
A138: Austria | B138: Dependency ratio (%) | C138: 1992 | D138: 29.21 | E138: I | G138: 1997 | H138: 29.21 | I138: I | K138: 2002 | L138: 29.21 | M138: I | O138: 2007 | P138: 29.21 | Q138: I | S138: 2011 | T138: 29.21 | U138: I
A139: Austria | B139: Total renewable water resources per capita (actual) (m3/inhab/yr) | C139: 1992 | D139: 9990 | E139: K | G139: 1997 | H139: 9747 | I139: K | K139: 2002 | L139: 9613 | M139: K | O139: 2007 | P139: 9350 | Q139: K | S139: 2011 | T139: 9218 | U139: K
D141: 1988-1992 | H141: 1993-1997 | L141: 1998-2002 | P141: 2003-2007 | T141: 2008-2012 | X141: 2013-2017
A142: Azerbaijan | B142: Total internal renewable water resources (IRWR) (10^9 m3/yr) | C142: 1992 | D142: 8.115 | G142: 1997 | H142: 8.115 | K142: 2002 | L142: 8.115 | O142: 2007 | P142: 8.115 | S142: 2011 | T142: 8.115
A143: Azerbaijan | B143: Total internal renewable water resources per capita (m3/inhab/yr) | C143: 1992 | D143: 1090 | E143: K | G143: 1997 | H143: 1025 | I143: K | K143: 2002 | L143: 980.1 | M143: K | O143: 2007 | P143: 920 | Q143: K | S143: 2011 | T143: 861.4 | U143: K
A144: Azerbaijan | B144: Water resources: total external renewable (natural) (10^9 m3/yr) | C144: 1992 | D144: 26.56 | E144: I | G144: 1997 | H144: 26.56 | I144: I | K144: 2002 | L144: 26.56 | M144: I | O144: 2007 | P144: 26.56 | Q144: I | S144: 2011 | T144: 26.56 | U144: I
A145: Azerbaijan | B145: Water resources: total external renewable (actual) (10^9 m3/yr) | C145: 1992 | D145: 26.56 | E145: I | G145: 1997 | H145: 26.56 | I145: I | K145: 2002 | L145: 26.56 | M145: I | O145: 2007 | P145: 26.56 | Q145: I | S145: 2011 | T145: 26.56 | U145: I
A146: Azerbaijan | B146: Total renewable surface water (natural) (10^9 m3/yr) | C146: 1992 | D146: 32.52 | E146: I | G146: 1997 | H146: 32.52 | I146: I | K146: 2002 | L146: 32.52 | M146: I | O146: 2007 | P146: 32.52 | Q146: I | S146: 2011 | T146: 32.52 | U146: I
A147: Azerbaijan | B147: Total renewable surface water (actual) (10^9 m3/yr) | C147: 1992 | D147: 32.52 | E147: I | G147: 1997 | H147: 32.52 | I147: I | K147: 2002 | L147: 32.52 | M147: I | O147: 2007 | P147: 32.52 | Q147: I | S147: 2011 | T147: 32.52 | U147: I
A148: Azerbaijan | B148: Total renewable groundwater (natural) (10^9 m3/yr) | C148: 1992 | D148: 6.51 | E148: I | G148: 1997 | H148: 6.51 | I148: I | K148: 2002 | L148: 6.51 | M148: I | O148: 2007 | P148: 6.51 | Q148: I | S148: 2011 | T148: 6.51 | U148: I
A149: Azerbaijan | B149: Total renewable groundwater (actual) (10^9 m3/yr) | C149: 1992 | D149: 6.51 | E149: I | G149: 1997 | H149: 6.51 | I149: I | K149: 2002 | L149: 6.51 | M149: I | O149: 2007 | P149: 6.51 | Q149: I | S149: 2011 | T149: 6.51 | U149: I
A150: Azerbaijan | B150: Total renewable water resources (natural) (10^9 m3/yr) | C150: 1992 | D150: 34.68 | E150: I | G150: 1997 | H150: 34.68 | I150: I | K150: 2002 | L150: 34.68 | M150: I | O150: 2007 | P150: 34.68 | Q150: I | S150: 2011 | T150: 34.68 | U150: I
A151: Azerbaijan | B151: Total renewable water resources (actual) (10^9 m3/yr) | C151: 1992 | D151: 34.68 | E151: I | G151: 1997 | H151: 34.68 | I151: I | K151: 2002 | L151: 34.68 | M151: I | O151: 2007 | P151: 34.68 | Q151: I | S151: 2011 | T151: 34.68 | U151: I
A152: Azerbaijan | B152: Dependency ratio (%) | C152: 1992 | D152: 76.6 | E152: I | G152: 1997 | H152: 76.6 | I152: I | K152: 2002 | L152: 76.6 | M152: I | O152: 2007 | P152: 76.6 | Q152: I | S152: 2011 | T152: 76.6 | U152: I
A153: Azerbaijan | B153: Total renewable water resources per capita (actual) (m3/inhab/yr) | C153: 1992 | D153: 4658 | E153: K | G153: 1997 | H153: 4382 | I153: K | K153: 2002 | L153: 4188 | M153: K | O153: 2007 | P153: 3932 | Q153: K | S153: 2011 | T153: 3681 | U153: K
D155: 1988-1992 | H155: 1993-1997 | L155: 1998-2002 | P155: 2003-2007 | T155: 2008-2012 | X155: 2013-2017
A156: Bahamas | B156: Total internal renewable water resources (IRWR) (10^9 m3/yr) | C156: 1992 | D156: 0.02 | G156: 1997 | H156: 0.02 | K156: 2002 | L156: 0.02 | O156: 2007 | P156: 0.02 | S156: 2011 | T156: 0.02
A157: Bahamas | B157: Total internal renewable water resources per capita (m3/inhab/yr) | C157: 1992 | D157: 75.19 | E157: K | G157: 1997 | H157: 69.69 | I157: K | K157: 2002 | L157: 65.36 | M157: K | O157: 2007 | P157: 60.79 | Q157: K | S157: 2011 | T157: 56.98 | U157: K
A158: Bahamas | B158: Water resources: total external renewable (natural) (10^9 m3/yr) | C158: 1992 | D158: 0 | G158: 1997 | H158: 0 | K158: 2002 | L158: 0 | O158: 2007 | P158: 0 | S158: 2011 | T158: 0
A159: Bahamas | B159: Water resources: total external renewable (actual) (10^9 m3/yr) | C159: 1992 | D159: 0 | G159: 1997 | H159: 0 | K159: 2002 | L159: 0 | O159: 2007 | P159: 0 | S159: 2011 | T159: 0
A160: Bahamas | B160: Total renewable surface water (natural) (10^9 m3/yr)
A161: Bahamas | B161: Total renewable surface water (actual) (10^9 m3/yr)
A162: Bahamas | B162: Total renewable groundwater (natural) (10^9 m3/yr)
A163: Bahamas | B163: Total renewable groundwater (actual) (10^9 m3/yr)
A164: Bahamas | B164: Total renewable water resources (natural) (10^9 m3/yr) | C164: 1992 | D164: 0.02 | G164: 1997 | H164: 0.02 | K164: 2002 | L164: 0.02 | O164: 2007 | P164: 0.02 | S164: 2010 | T164: 0.02
A165: Bahamas | B165: Total renewable water resources (actual) (10^9 m3/yr) | C165: 1992 | D165: 0.02 | G165: 1997 | H165: 0.02 | K165: 2002 | L165: 0.02 | O165: 2007 | P165: 0.02 | S165: 2011 | T165: 0.02
A166: Bahamas | B166: Dependency ratio (%) | C166: 1992 | D166: 0 | G166: 1997 | H166: 0 | K166: 2002 | L166: 0 | O166: 2007 | P166: 0 | S166: 2011 | T166: 0
A167: Bahamas | B167: Total renewable water resources per capita (actual) (m3/inhab/yr) | C167: 1992 | D167: 75.19 | E167: K | G167: 1997 | H167: 69.69 | I167: K | K167: 2002 | L167: 65.36 | M167: K | O167: 2007 | P167: 60.79 | Q167: K | S167: 2011 | T167: 56.98 | U167: K
D169: 1988-1992 | H169: 1993-1997 | L169: 1998-2002 | P169: 2003-2007 | T169: 2008-2012 | X169: 2013-2017
A170: Bahrain | B170: Total internal renewable water resources (IRWR) (10^9 m3/yr) | C170: 1992 | D170: 0.004 | G170: 1997 | H170: 0.004 | K170: 2002 | L170: 0.004 | O170: 2007 | P170: 0.004 | S170: 2011 | T170: 0.004
A171: Bahrain | B171: Total internal renewable water resources per capita (m3/inhab/yr) | C171: 1992 | D171: 7.692 | E171: K | G171: 1997 | H171: 6.745 | I171: K | K171: 2002 | L171: 6.231 | M171: K | O171: 2007 | P171: 4.32 | Q171: K | S171: 2011 | T171: 2.943 | U171: K
A172: Bahrain | B172: Water resources: total external renewable (natural) (10^9 m3/yr) | C172: 1992 | D172: 0.112 | G172: 1997 | H172: 0.112 | K172: 2002 | L172: 0.112 | O172: 2007 | P172: 0.112 | S172: 2011 | T172: 0.112
A173: Bahrain | B173: Water resources: total external renewable (actual) (10^9 m3/yr) | C173: 1992 | D173: 0.112 | G173: 1997 | H173: 0.112 | K173: 2002 | L173: 0.112 | O173: 2007 | P173: 0.112 | S173: 2011 | T173: 0.112
A174: Bahrain | B174: Total renewable surface water (natural) (10^9 m3/yr) | C174: 1992 | D174: 0.004 | G174: 1997 | H174: 0.004 | K174: 2002 | L174: 0.004 | O174: 2007 | P174: 0.004 | S174: 2011 | T174: 0.004
A175: Bahrain | B175: Total renewable surface water (actual) (10^9 m3/yr) | C175: 1992 | D175: 0.004 | G175: 1997 | H175: 0.004 | K175: 2002 | L175: 0.004 | O175: 2007 | P175: 0.004 | S175: 2011 | T175: 0.004
A176: Bahrain | B176: Total renewable groundwater (natural) (10^9 m3/yr) | C176: 1992 | D176: 0.112 | G176: 1997 | H176: 0.112 | K176: 2002 | L176: 0.112 | O176: 2007 | P176: 0.112 | S176: 2011 | T176: 0.112
A177: Bahrain | B177: Total renewable groundwater (actual) (10^9 m3/yr) | C177: 1992 | D177: 0.112 | G177: 1997 | H177: 0.112 | K177: 2002 | L177: 0.112 | O177: 2007 | P177: 0.112 | S177: 2011 | T177: 0.112
A178: Bahrain | B178: Total renewable water resources (natural) (10^9 m3/yr) | C178: 1992 | D178: 0.116 | G178: 1997 | H178: 0.116 | K178: 2002 | L178: 0.116 | O178: 2007 | P178: 0.116 | S178: 2011 | T178: 0.116
A179: Bahrain | B179: Total renewable water resources (actual) (10^9 m3/yr) | C179: 1992 | D179: 0.116 | G179: 1997 | H179: 0.116 | K179: 2002 | L179: 0.116 | O179: 2007 | P179: 0.116 | S179: 2011 | T179: 0.116
A180: Bahrain | B180: Dependency ratio (%) | C180: 1992 | D180: 96.55 | G180: 1997 | H180: 96.55 | K180: 2002 | L180: 96.55 | O180: 2007 | P180: 96.55 | S180: 2011 | T180: 96.55
A181: Bahrain | B181: Total renewable water resources per capita (actual) (m3/inhab/yr) | C181: 1992 | D181: 223.1 | E181: K | G181: 1997 | H181: 195.6 | I181: K | K181: 2002 | L181: 180.7 | M181: K | O181: 2007 | P181: 125.3 | Q181: K | S181: 2011 | T181: 85.36 | U181: K
D183: 1988-1992 | H183: 1993-1997 | L183: 1998-2002 | P183: 2003-2007 | T183: 2008-2012 | X183: 2013-2017
A184: Bangladesh | B184: Total internal renewable water resources (IRWR) (10^9 m3/yr) | C184: 1992 | D184: 105 | G184: 1997 | H184: 105 | K184: 2002 | L184: 105 | O184: 2007 | P184: 105 | S184: 2011 | T184: 105
A185: Bangladesh | B185: Total internal renewable water resources per capita (m3/inhab/yr) | C185: 1992 | D185: 952.6 | E185: K | G185: 1997 | H185: 858.1 | I185: K | K185: 2002 | L185: 782 | M185: K | O185: 2007 | P185: 729.4 | Q185: K | S185: 2011 | T185: 688.9 | U185: K
A186: Bangladesh | B186: Water resources: total external renewable (natural) (10^9 m3/yr) | C186: 1992 | D186: 1122 | E186: I | G186: 1997 | H186: 1122 | I186: I | K186: 2002 | L186: 1122 | M186: I | O186: 2007 | P186: 1122 | Q186: I | S186: 2011 | T186: 1122 | U186: I
A187: Bangladesh | B187: Water resources: total external renewable (actual) (10^9 m3/yr) | C187: 1992 | D187: 1122 | E187: I | G187: 1997 | H187: 1122 | I187: I | K187: 2002 | L187: 1122 | M187: I | O187: 2007 | P187: 1122 | Q187: I | S187: 2011 | T187: 1122 | U187: I
A188: Bangladesh | B188: Total renewable surface water (natural) (10^9 m3/yr) | C188: 1992 | D188: 1206 | E188: I | G188: 1997 | H188: 1206 | I188: I | K188: 2002 | L188: 1206 | M188: I | O188: 2007 | P188: 1206 | Q188: I | S188: 2011 | T188: 1206 | U188: I
A189: Bangladesh | B189: Total renewable surface water (actual) (10^9 m3/yr) | C189: 1992 | D189: 1206 | E189: I | G189: 1997 | H189: 1206 | I189: I | K189: 2002 | L189: 1206 | M189: I | O189: 2007 | P189: 1206 | Q189: I | S189: 2011 | T189: 1206 | U189: I
A190: Bangladesh | B190: Total renewable groundwater (natural) (10^9 m3/yr) | C190: 1992 | D190: 21.12 | G190: 1997 | H190: 21.12 | K190: 2002 | L190: 21.12 | O190: 2007 | P190: 21.12 | S190: 2011 | T190: 21.12
A191: Bangladesh | B191: Total renewable groundwater (actual) (10^9 m3/yr) | C191: 1992 | D191: 21.12 | G191: 1997 | H191: 21.12 | K191: 2002 | L191: 21.12 | O191: 2007 | P191: 21.12 | S191: 2011 | T191: 21.12
A192: Bangladesh | B192: Total renewable water resources (natural) (10^9 m3/yr) | C192: 1992 | D192: 1227 | E192: I | G192: 1997 | H192: 1227 | I192: I | K192: 2002 | L192: 1227 | M192: I | O192: 2007 | P192: 1227 | Q192: I | S192: 2011 | T192: 1227 | U192: I
A193: Bangladesh | B193: Total renewable water resources (actual) (10^9 m3/yr) | C193: 1992 | D193: 1227 | E193: I | G193: 1997 | H193: 1227 | I193: I | K193: 2002 | L193: 1227 | M193: I | O193: 2007 | P193: 1227 | Q193: I | S193: 2011 | T193: 1227 | U193: I
A194: Bangladesh | B194: Dependency ratio (%) | C194: 1992 | D194: 91.44 | E194: I | G194: 1997 | H194: 91.44 | I194: I | K194: 2002 | L194: 91.44 | M194: I | O194: 2007 | P194: 91.44 | Q194: I | S194: 2011 | T194: 91.44 | U194: I
A195: Bangladesh | B195: Total renewable water resources per capita (actual) (m3/inhab/yr) | C195: 1992 | D195: 11132 | E195: K | G195: 1997 | H195: 10027 | I195: K | K195: 2002 | L195: 9139 | M195: K | O195: 2007 | P195: 8523 | Q195: K | S195: 2011 | T195: 8051 | U195: K
D197: 1988-1992 | H197: 1993-1997 | L197: 1998-2002 | P197: 2003-2007 | T197: 2008-2012 | X197: 2013-2017
A198: Barbados | B198: Total internal renewable water resources (IRWR) (10^9 m3/yr) | C198: 1992 | D198: 0.08 | G198: 1997 | H198: 0.08 | K198: 2002 | L198: 0.08 | O198: 2007 | P198: 0.08 | S198: 2011 | T198: 0.08
A199: Barbados | B199: Total internal renewable water resources per capita (m3/inhab/yr) | C199: 1992 | D199: 306.5 | E199: K | G199: 1997 | H199: 301.9 | I199: K | K199: 2002 | L199: 297.4 | M199: K | O199: 2007 | P199: 294.1 | Q199: K | S199: 2011 | T199: 290.9 | U199: K
A200: Barbados | B200: Water resources: total external renewable (natural) (10^9 m3/yr) | C200: 1992 | D200: 0 | G200: 1997 | H200: 0 | K200: 2002 | L200: 0 | O200: 2007 | P200: 0 | S200: 2011 | T200: 0
A201: Barbados | B201: Water resources: total external renewable (actual) (10^9 m3/yr) | C201: 1992 | D201: 0 | G201: 1997 | H201: 0 | K201: 2002 | L201: 0 | O201: 2007 | P201: 0 | S201: 2011 | T201: 0
A202: Barbados | B202: Total renewable surface water (natural) (10^9 m3/yr) | C202: 1992 | D202: 0.008 | G202: 1997 | H202: 0.008 | K202: 2002 | L202: 0.008 | O202: 2007 | P202: 0.008 | S202: 2011 | T202: 0.008
A203: Barbados | B203: Total renewable surface water (actual) (10^9 m3/yr) | C203: 1992 | D203: 0.008 | G203: 1997 | H203: 0.008 | K203: 2002 | L203: 0.008 | O203: 2007 | P203: 0.008 | S203: 2011 | T203: 0.008
A204: Barbados | B204: Total renewable groundwater (natural) (10^9 m3/yr) | C204: 1992 | D204: 0.074 | G204: 1997 | H204: 0.074 | K204: 2002 | L204: 0.074 | O204: 2007 | P204: 0.074 | S204: 2011 | T204: 0.074
A205: Barbados | B205: Total renewable groundwater (actual) (10^9 m3/yr) | C205: 1992 | D205: 0.074 | G205: 1997 | H205: 0.074 | K205: 2002 | L205: 0.074 | O205: 2007 | P205: 0.074 | S205: 2011 | T205: 0.074
A206: Barbados | B206: Total renewable water resources (natural) (10^9 m3/yr) | C206: 1992 | D206: 0.08 | G206: 1997 | H206: 0.08 | K206: 2002 | L206: 0.08 | O206: 2007 | P206: 0.08 | S206: 2011 | T206: 0.08
A207: Barbados | B207: Total renewable water resources (actual) (10^9 m3/yr) | C207: 1992 | D207: 0.08 | G207: 1997 | H207: 0.08 | K207: 2002 | L207: 0.08 | O207: 2007 | P207: 0.08 | S207: 2011 | T207: 0.08
A208: Barbados | B208: Dependency ratio (%) | C208: 1992 | D208: 0 | G208: 1997 | H208: 0 | K208: 2002 | L208: 0 | O208: 2007 | P208: 0 | S208: 2011 | T208: 0
A209: Barbados | B209: Total renewable water resources per capita (actual) (m3/inhab/yr) | C209: 1992 | D209: 306.5 | E209: K | G209: 1997 | H209: 301.9 | I209: K | K209: 2002 | L209: 297.4 | M209: K | O209: 2007 | P209: 294.1 | Q209: K | S209: 2011 | T209: 290.9 | U209: K
D211: 1988-1992 | H211: 1993-1997 | L211: 1998-2002 | P211: 2003-2007 | T211: 2008-2012 | X211: 2013-2017
A212: Belarus | B212: Total internal renewable water resources (IRWR) (10^9 m3/yr) | C212: 1992 | D212: 37.2 | G212: 1997 | H212: 37.2 | K212: 2002 | L212: 37.2 | O212: 2007 | P212: 37.2 | S212: 2011 | T212: 37.2
A213: Belarus | B213: Total internal renewable water resources per capita (m3/inhab/yr) | C213: 1992 | D213: 3612 | E213: K | G213: 1997 | H213: 3646 | I213: K | K213: 2002 | L213: 3734 | M213: K | O213: 2007 | P213: 3824 | Q213: K | S213: 2011 | T213: 3905 | U213: K
A214: Belarus | B214: Water resources: total external renewable (natural) (10^9 m3/yr) | C214: 1992 | D214: 20.8 | E214: I | G214: 1997 | H214: 20.8 | I214: I | K214: 2002 | L214: 20.8 | M214: I | O214: 2007 | P214: 20.8 | Q214: I | S214: 2011 | T214: 20.8 | U214: I
A215: Belarus | B215: Water resources: total external renewable (actual) (10^9 m3/yr) | C215: 1992 | D215: 20.8 | E215: I | G215: 1997 | H215: 20.8 | I215: I | K215: 2002 | L215: 20.8 | M215: I | O215: 2007 | P215: 20.8 | Q215: I | S215: 2011 | T215: 20.8 | U215: I
... 2439 more rows

Sheet DATA-WRI-WaterStress-Country (hidden)
A1: Country | B1: Baseline Water Stress | C1: Interannual variability | D1: Seasonal variability
A2: Afghanistan | B2: 4.009097519 | C2: 2.542213625 | D2: 2.528031737
A3: Albania | B3: 1.895065503 | C3: 1.237605207 | D3: 2.409245949
A4: Algeria | B4: 3.444266526 | C4: 2.312600908 | D4: 1.928228369
A5: Andorra | B5: 3.326590774 | C5: 1.491008307 | D5: 1.594817581
A6: Angola | B6: 1.539987159 | C6: 2.458745891 | D6: 3.059807561
A7: Antigua and Barbuda | B7: 5 | C7: - | D7: -
A8: Argentina | B8: 2.513094514 | C8: 2.3900465 | D8: 1.797629193
A9: Armenia | B9: 3.067362647 | C9: 1.362667868 | D9: 2.386433677
A10: Australia | B10: 3.511488236 | C10: 3.246299655 | D10: 1.985081234
A11: Austria | B11: 0.322035824 | C11: 0.862849772 | D11: 0.67834143
A12: Azerbaijan | B12: 3.391520168 | C12: 1.401700581 | D12: 2.001003441
A13: Bahrain | B13: 5 | C13: 3.068913518 | D13: 0.264927075
A14: Bangladesh | B14: 0.64753444 | C14: 0.696479056 | D14: 3.604772601
A15: Barbados | B15: 5 | C15: - | D15: -
A16: Belarus | B16: 0.591421484 | C16: 1.052021005 | D16: 0.933819334
A17: Belgium | B17: 3.164518106 | C17: 1.033692554 | D17: 1.392934256
A18: Belize | B18: 1.347722344 | C18: 1.112357395 | D18: 2.231208663
A19: Benin | B19: 0 | C19: 1.208100803 | D19: 2.955997572
A20: Bhutan | B20: 0.450201544 | C20: 0.62668473 | D20: 3.52226507
A21: Bolivia | B21: 0.677154647 | C21: 2.476461777 | D21: 3.085238793
A22: Bosnia and Herzegovina | B22: 0.01993265 | C22: 0.973019076 | D22: 1.329413646
A23: Botswana | B23: 1.362974038 | C23: 3.836402182 | D23: 2.351995328
A24: Brazil | B24: 0.914442268 | C24: 1.743534163 | D24: 2.502206273
A25: Brunei | B25: 0.008372069 | C25: 0.91328081 | D25: 1.017591772
A26: Bulgaria | B26: 1.265797656 | C26: 1.177420467 | D26: 1.083788548
A27: Burkina Faso | B27: 4.45e-06 | C27: 1.538971912 | D27: 3.989306634
A28: Burundi | B28: 0 | C28: 1.437862492 | D28: 2.351749267
A29: Cambodia | B29: 0.44228084 | C29: 0.578475373 | D29: 3.146594612
A30: Cameroon | B30: 0.107044034 | C30: 0.890990255 | D30: 3.503590984
A31: Canada | B31: 1.205766615 | C31: 1.244828898 | D31: 1.632592742
A32: Cape Verde | B32: - | C32: - | D32: -
A33: Central African Republic | B33: 0 | C33: 1.206568321 | D33: 3.618890311
A34: Chad | B34: 0.522388601 | C34: 1.940032513 | D34: 3.758288799
A35: Chile | B35: 3.205366192 | C35: 2.94601028 | D35: 3.460834921
A36: China | B36: 2.944768721 | C36: 1.788896573 | D36: 2.709394702
A37: Colombia | B37: 0.327354232 | C37: 1.255423541 | D37: 1.480238434
A38: Comoros | B38: 5 | C38: - | D38: -
A39: Costa Rica | B39: 1.941371802 | C39: 1.002616711 | D39: 2.440992139
A40: Croatia | B40: 0.017393729 | C40: 0.95531824 | D40: 1.207902641
A41: Cuba | B41: 3.192193495 | C41: 2.270866466 | D41: 2.326606893
A42: Curacao | B42: - | C42: - | D42: -
A43: Cyprus | B43: 5 | C43: - | D43: -
A44: Czech Republic | B44: 1.134582989 | C44: 1.329604701 | D44: 0.577481848
A45: Congo Democratic Republic of the | B45: 0.006045932 | C45: 1.214255069 | D45: 2.341232826
A46: Denmark | B46: 0.95293102 | C46: 0.990545715 | D46: 1.308339462
A47: Djibouti | B47: 3.390809163 | C47: 4.318793954 | D47: 2.045245604
A48: Dominica | B48: 5 | C48: - | D48: -
A49: Dominican Republic | B49: 3.487299185 | C49: 2.475924078 | D49: 1.51632423
A50: East Timor | B50: 4.806092253 | C50: 2.685168091 | D50: 3.648732628
A51: Ecuador | B51: 1.860604233 | C51: 2.93134806 | D51: 2.836579014
A52: Egypt | B52: 1.327987529 | C52: 1.397389915 | D52: 2.463838136
A53: El Salvador | B53: 1.494649349 | C53: 1.534243305 | D53: 3.5263187
A54: Equatorial Guinea | B54: 0.536396053 | C54: 0.778270567 | D54: 2.454071486
A55: Eritrea | B55: 3.018732069 | C55: 4.341199356 | D55: 3.757775535
A56: Estonia | B56: 2.750275178 | C56: 2.132911098 | D56: 1.151232254
A57: Ethiopia | B57: 0.611776827 | C57: 1.783055148 | D57: 3.328342227
A58: Federated States of Micronesia | B58: - | C58: - | D58: -
A59: Fiji | B59: - | C59: - | D59: -
A60: Finland | B60: 0.982448977 | C60: 1.898716786 | D60: 1.190076407
A61: France | B61: 1.750634001 | C61: 1.17202929 | D61: 1.4969315
A62: Gabon | B62: 1.559075188 | C62: 0.850381706 | D62: 2.140881951
A63: Gambia | B63: 0.416833845 | C63: 1.983968246 | D63: 4.5923195
A64: Georgia | B64: 1.511845034 | C64: 1.143171755 | D64: 1.863782101
A65: Germany | B65: 1.895268618 | C65: 1.09554789 | D65: 0.767621383
A66: Ghana | B66: 0.108839883 | C66: 1.385514087 | D66: 3.010580296
A67: Greece | B67: 3.27257144 | C67: 1.697008223 | D67: 2.46411864
A68: Grenada | B68: - | C68: - | D68: -
A69: Guatemala | B69: 1.010346498 | C69: 1.037651119 | D69: 3.100581236
A70: Guinea | B70: 0.058241578 | C70: 0.894708365 | D70: 3.97734682
A71: Guinea Bissau | B71: 0.166057843 | C71: 1.451190461 | D71: 4.578657442
A72: Guyana | B72: 1.77932534 | C72: 1.644522751 | D72: 2.118281746
A73: Haiti | B73: 2.375955 | C73: 2.39624963 | D73: 1.948439212
A74: Honduras | B74: 0.068147511 | C74: 1.330448489 | D74: 2.897524405
A75: Hungary | B75: 0.49486483 | C75: 1.078247173 | D75: 0.646251075
A76: Iceland | B76: 0.136669564 | C76: 1.014216805 | D76: 0.758716299
A77: India | B77: 3.584886835 | C77: 1.71760418 | D77: 4.189414239
A78: Indonesia | B78: 3.264861142 | C78: 1.122749378 | D78: 1.890619803
A79: Iran, Islamic Republic of | B79: 4.781554087 | C79: 2.322185306 | D79: 1.79881639
A80: Iraq | B80: 3.483184717 | C80: 1.593707444 | D80: 2.544105602
A81: Ireland | B81: 2.917039654 | C81: 0.842090354 | D81: 1.843570431
A82: Israel | B82: 4.825385575 | C82: 2.721298528 | D82: 3.023492986
A83: Italy | B83: 3.350267831 | C83: 1.442916857 | D83: 1.495362167
A84: Cote d'Ivoire | B84: 0.044008016 | C84: 1.132674263 | D84: 2.799872913
A85: Jamaica | B85: 5 | C85: - | D85: -
A86: Japan | B86: 3.054321889 | C86: 1.124337818 | D86: 1.724354075
A87: Jordan | B87: 4.594449768 | C87: 2.568012189 | D87: 2.606847665
A88: Kazakhstan | B88: 4.018548002 | C88: 2.272061972 | D88: 3.051905276
A89: Kenya | B89: 0.682811601 | C89: 3.210165042 | D89: 1.934883858
A90: Kiribati | B90: - | C90: - | D90: -
A91: Kosovo | B91: 1.288331317 | C91: 1.144446262 | D91: 1.499779525
A92: Kuwait | B92: 4.964874491 | C92: 2.69650529 | D92: 0.388766253
A93: Kyrgyzstan | B93: 4.821997893 | C93: 2.390684809 | D93: 2.667135783
A94: Laos | B94: 0.014155122 | C94: 0.945206182 | D94: 3.616453266
A95: Latvia | B95: 0.351614149 | C95: 1.528014974 | D95: 1.030177861
A96: Lebanon | B96: 4.540996616 | C96: 2.034870054 | D96: 3.396293138
A97: Lesotho | B97: 3.972669119 | C97: 3.152006423 | D97: 1.948581396
A98: Liberia | B98: 0.273278189 | C98: 0.800352317 | D98: 2.807469166
A99: Libya | B99: 4.84021236 | C99: 2.663816086 | D99: 1.444533383
A100: Liechtenstein | B100: 0.462063009 | C100: 0.773904682 | D100: 0.924641987
A101: Lithuania | B101: 1.193841419 | C101: 1.100781917 | D101: 0.92863536
A102: Luxembourg | B102: 2.508313934 | C102: 1.21015504 | D102: 1.549168188
A103: Macedonia | B103: 2.645752234 | C103: 1.287596816 | D103: 1.633189576
A104: Madagascar | B104: 1.247565555 | C104: 1.353276696 | D104: 3.457221153
A105: Malawi | B105: 0.105264432 | C105: 1.592172945 | D105: 3.83766605
A106: Malaysia | B106: 2.087355521 | C106: 1.029921885 | D106: 1.738342737
A107: Maldives | B107: - | C107: - | D107: -
A108: Mali | B108: 0.204415117 | C108: 1.263927094 | D108: 4.034999911
A109: Malta | B109: 5 | C109: - | D109: -
A110: Marshall Islands | B110: - | C110: - | D110: -
A111: Mauritania | B111: 0.604108712 | C111: 1.76639399 | D111: 3.181501743
A112: Mauritius | B112: - | C112: - | D112: -
A113: Mexico | B113: 3.516053768 | C113: 2.452125306 | D113: 3.116257003
A114: Moldova | B114: 1.462672144 | C114: 1.097155105 | D114: 0.830093778
A115: Monaco | B115: 2.664468084 | C115: 1.697916655 | D115: 1.807927208
A116: Mongolia | B116: 4.046933749 | C116: 2.620171058 | D116: 2.921402073
A117: Montenegro | B117: 0.308810807 | C117: 1.019666854 | D117: 1.550939123
A118: Morocco | B118: 4.23604685 | C118: 3.116761564 | D118: 2.123162647
A119: Mozambique | B119: 0.824086669 | C119: 3.521820314 | D119: 3.338722859
A120: Myanmar | B120: 0.303092379 | C120: 0.798288903 | D120: 3.73595299
A121: Namibia | B121: 1.882401311 | C121: 3.577300175 | D121: 2.498524225
A122: Nauru | B122: - | C122: - | D122: -
A123: Nepal | B123: 2.402084479 | C123: 0.975589952 | D123: 4.091123252
A124: Netherlands | B124: 1.728848212 | C124: 0.953739775 | D124: 0.881118886
A125: New Zealand | B125: 1.351785653 | C125: 0.936638219 | D125: 1.518836856
A126: Nicaragua | B126: 1.010015863 | C126: 1.22538241 | D126: 2.886518876
A127: Niger | B127: 0.112430873 | C127: 1.877021728 | D127: 3.649619669
A128: Nigeria | B128: 0.293372329 | C128: 1.189918922 | D128: 3.631120107
A129: Korea Democratic People's Republic of | B129: 2.059944861 | C129: 1.27025976 | D129: 3.76344363
A130: Norway | B130: 0.400524984 | C130: 1.024087407 | D130: 1.616764789
A131: Oman | B131: 4.913785867 | C131: 3.124055664 | D131: 0.491592984
A132: Pakistan | B132: 4.31002513 | C132: 2.374254483 | D132: 2.668224346
A133: Palau | B133: - | C133: - | D133: -
A134: Palestine | B134: 4.633905092 | C134: 2.670091935 | D134: 3.064423847
A135: Panama | B135: 0.422002909 | C135: 0.908644483 | D135: 2.375805915
A136: Papua New Guinea | B136: 0.596268378 | C136: 0.857281388 | D136: 1.03119658
A137: Paraguay | B137: 0.011150345 | C137: 1.569404563 | D137: 2.12741947
A138: Peru | B138: 3.20160863 | C138: 4.189000744 | D138: 2.928378467
A139: Philippines | B139: 3.333262336 | C139: 1.213660143 | D139: 2.11029794
A140: Poland | B140: 1.307267036 | C140: 1.21327554 | D140: 0.628893536
A141: Portugal | B141: 3.338300161 | C141: 2.313927684 | D141: 2.760683847
A142: Qatar | B142: 5 | C142: 2.605767535 | D142: 0.408510787
A143: Republic of Serbia | B143: 0.583519 | C143: 1.032791629 | D143: 0.960998198
A144: Congo | B144: 0.427577452 | C144: 0.84543439 | D144: 1.772578084
A145: Romania | B145: 0.835612236 | C145: 1.275018406 | D145: 0.768365845
A146: Russia | B146: 1.234853329 | C146: 1.487495202 | D146: 1.885245368
A147: Rwanda | B147: 0 | C147: 1.382708755 | D147: 2.149213973
A148: Saint Kitts and Nevis | B148: - | C148: - | D148: -
A149: Saint Lucia | B149: 5 | C149: - | D149: -
A150: Saint Vincent and the Grenadines | B150: 5 | C150: - | D150: -
A151: Samoa | B151: - | C151: - | D151: -
A152: San Marino | B152: 5 | C152: 1.37999239 | D152: 1.744885187
A153: Sao Tome and Principe | B153: - | C153: - | D153: -
A154: Saudi Arabia | B154: 4.992350923 | C154: 3.5377491 | D154: 1.600450523
A155: Senegal | B155: 0.21481397 | C155: 1.821884853 | D155: 3.921859927
A156: Seychelles | B156: - | C156: - | D156: -
A157: Sierra Leone | B157: 0.508070552 | C157: 0.621111943 | D157: 3.646235532
A158: Singapore | B158: 5 | C158: 0.789796026 | D158: 0.981539041
A159: Slovakia | B159: 0.197465692 | C159: 0.939658327 | D159: 0.585768675
A160: Slovenia | B160: 0.027711066 | C160: 0.898116919 | D160: 1.036305044
A161: Solomon Islands | B161: - | C161: - | D161: -
A162: Somalia | B162: 0.455283361 | C162: 2.862146821 | D162: 1.734343427
A163: Somaliland | B163: 4.379483052 | C163: 4.13425764 | D163: 1.374768871
A164: South Africa | B164: 3.040457185 | C164: 2.995156184 | D164: 2.113939165
A165: Korea Republic of | B165: 3.543805295 | C165: 1.51321447 | D165: 3.316948678
A166: South Sudan | B166: 0 | C166: 1.455345592 | D166: 2.527650149
A167: Spain | B167: 3.725614481 | C167: 2.299970618 | D167: 2.061084296
A168: Sri Lanka | B168: 3.007874921 | C168: 1.593296667 | D168: 3.035261555
A169: Sudan | B169: 0.912859496 | C169: 1.414119908 | D169: 3.546949161
A170: Suriname | B170: 0.253345091 | C170: 1.773101736 | D170: 2.625873603
A171: Swaziland | B171: 3.105143962 | C171: 4.242983513 | D171: 2.795877495
A172: Sweden | B172: 1.304243204 | C172: 1.471833789 | D172: 1.249137366
A173: Switzerland | B173: 1.064087164 | C173: 0.83964679 | D173: 0.781592139
A174: Syria | B174: 3.851932965 | C174: 1.827295571 | D174: 2.850125108
A175: Taiwan | B175: 0.102100769 | C175: 1.026603946 | D175: 2.059499306
A176: Tajikistan | B176: 3.5280262 | C176: 2.105166857 | D176: 3.606892547
A177: Thailand | B177: 1.698024036 | C177: 0.957639854 | D177: 3.45120933
A178: The Bahamas | B178: - | C178: - | D178: -
A179: Togo | B179: 0.120468399 | C179: 1.28913896 | D179: 2.987460267
A180: Tonga | B180: - | C180: - | D180: -
A181: Trinidad and Tobago | B181: 5 | C181: - | D181: -
A182: Tunisia | B182: 3.441952849 | C182: 1.960540045 | D182: 1.622002831
A183: Turkey | B183: 3.020969689 | C183: 1.503906416 | D183: 2.600029667
A184: Turkmenistan | B184: 4.29960978 | C184: 2.412806058 | D184: 1.817734723
A185: Tuvalu | B185: - | C185: - | D185: -
A186: Uganda | B186: 0.000342989 | C186: 1.743818722 | D186: 1.618914101
A187: Ukraine | B187: 2.095905385 | C187: 1.320790132 | D187: 1.186909157
A188: United Arab Emirates | B188: 5 | C188: 3.561456016 | D188: 0.559342923
A189: United Kingdom | B189: 2.628114968 | C189: 1.023775573 | D189: 1.672713322
A190: United Republic of Tanzania | B190: 1.498342011 | C190: 2.709260443 | D190: 3.170454476
A191: United States of America | B191: 2.888310471 | C191: 2.086051731 | D191: 1.716372335
A192: Uruguay | B192: 0.863199369 | C192: 1.72464815 | D192: 1.122660267
A193: Uzbekistan | B193: 4.316671945 | C193: 2.223388938 | D193: 3.157996149
A194: Vanuatu | B194: - | C194: - | D194: -
A195: Vatican | B195: 3.399434623 | C195: 1.412442584 | D195: 1.968163472
A196: Venezuela | B196: 2.299918259 | C196: 2.714883117 | D196: 2.268087537
A197: Vietnam | B197: 1.008669435 | C197: 0.683912458 | D197: 3.185319541
A198: Western Sahara | B198: 5 | C198: 2.89077877 | D198: 1.439033204
A199: Yemen | B199: 4.674046102 | C199: 4.94445195 | D199: 2.366700678
A200: Zambia | B200: 0.07768468 | C200: 2.077611954 | D200: 4.446771317
... 1 more rows

Sheet DATA-FAO-WaterResources (hidden)
E1: Data updated from FAO in 2009. Provided by Karen Frenken [Karen.Frenken@fao.org] | L1: Calculated value
E2: Data updated from FAO in 2010. Provided by Karen Frenken [Karen.Frenken@fao.org] | L2: New dataset added in 2010 from FAO.
B4: Water Resources Dataset from FAO
C6: =COUNTA(C9:C241) -> 233 | D6: 1 | E6: 2 | F6: 3 | G6: 4 | H6: 5 | I6: 6 | J6: 7 | K6: 8 | L6: 9 | M6: 10 | N6: 11 | O6: 12 | P6: 13 | Q6: 14 | R6: 15 | S6: 16 | T6: 17 | U6: 18 | V6: 19 | W6: 20 | X6: 21 | Y6: 22
B7: Country Codes (ISO 3611) | C7: Country (2010) | D7: Total Internal Renewable (IRWR) (2006) | E7: Total Internal per capita (IRWR/capita) (2008) | F7: Total Internal per capita (IRWR/capita) (2025) | G7: Total Internal per capita (IRWR/capita) (2050) | H7: Total External Renewable (actual) (ERWR) (2006) | I7: Total Renewable actual (TRWR = IRWR+ERWR) (2006) | J7: Total Renewable per capita (actual) (TRWR/capita) (2008) | K7: Total Renewable per capita (actual) (TRWR/capita) (2025) | L7: Total Renewable per capita (actual) (TRWR/capita) (2050) | M7: Dependency ratio (%) (2006) | N7: Agricultural water withdrawal (Around 2002) | O7: Domestic water withdrawal (Around 2002) | P7: Industrial water withdrawal (Around 2002) | Q7: Total water withdrawal (summed by sector) =14+15+16 | R7: Agricultural water withdrawal as part of total | S7: Municipal water withdrawal as part of total | T7: Industrial water withdrawal as part of total | U7: Total water withdrawal: per capita (Around 2002) | V7: Ag water withdrawal as % of TRWR | W7: Total freswhater withdrawal (surface + gw) (2005) | X7: Total freshwater withdrawal as % of TRWR (Around 2002) | Y7: Desalinated water produced (2005)
D8: (10^9 m3/yr) | E8: (m3/inhab/yr) | F8: (m3/inhab/yr) | G8: (m3/inhab/yr) | H8: (10^9 m3/yr) | I8: (10^9 m3/yr) | J8: (m3/inhab/yr) | K8: (m3/inhab/yr) | L8: (m3/inhab/yr) | M8: % | N8: (10^9 m3/yr) | O8: (10^9 m3/yr) | P8: (10^9 m3/yr) | Q8: (10^9 m3/yr) | R8: % | S8: % | T8: % | U8: (m3/inhab/yr) | V8: % | W8: (10^9 m3/yr) | X8: % | Y8: (10^9 m3/yr)
B9: AFG | C9: Afghanistan | D9: 55 | E9: 2021 | F9: 1223.037581 | G9: 743.8664827 | H9: 10 | I9: 65 | J9: 2389 | K9: 1445.40805 | L9: 879.1149341 | M9: 15.385 | N9: 22.84 | O9: 0.42 | P9: 0 | Q9: =SUM(N9:P9) -> 23.26 | R9: =IF(N9=0, "", (N9/$Q9)) -> 0.9819432502 | S9: 0.01805674979 | U9: 1047.093503 | V9: =IF(N9=0,"",(N9/I9)) -> 0.3513846154 | W9: 23.26 | X9: 35.78461538 | Y9: 0
B10: ALB | C10: Albania | D10: 26.9 | E10: 8559 | F10: 7923.416789 | G10: 8144.111414 | H10: 14.8 | I10: 41.7 | J10: 13268 | K10: 12282.76878 | L10: 12624.88647 | M10: 35.492 | N10: 1.06 | O10: 0.46 | P10: 0.19 | Q10: 1.71 | R10: 0.6198830409 | S10: 0.269005848 | T10: 0.1111111111 | U10: 552.031735 | V10: 0.02541966427 | W10: 1.71 | X10: 4.100719424 | Y10: 0
B11: DZA | C11: Algeria | D11: 11.247 | E11: 327.3 | F11: 262.3478383 | G11: 226.7687966 | H11: 0.42 | I11: 11.667 | J11: 339.5 | K11: 272.1421575 | L11: 235.2348317 | M11: 3.599897146 | N11: 3.94 | O11: 1.33 | P11: 0.8 | Q11: 6.07 | R11: 0.6490939044 | S11: 0.2191103789 | T11: 0.1317957166 | U11: 193.2262824 | V11: 0.337704637 | W11: 6.053 | X11: 51.88137482 | Y11: 0.017
B12: ASM | C12: American Samoa | Q12: 0
B13: AND | C13: Andorra | D13: 0 | F13: 0 | G13: 0 | I13: 0 | K13: 0 | L13: 0 | M13: 0 | Q13: 0
B14: AGO | C14: Angola | D14: 148 | E14: 8213 | F14: 5393.389454 | G14: 3501.549672 | H14: 0 | I14: 148 | J14: 8213 | K14: 5393.389454 | L14: 3501.549672 | M14: 0 | N14: 0.21 | O14: 0.08 | P14: 0.06 | Q14: 0.35 | R14: 0.6 | S14: 0.2285714286 | T14: 0.1714285714 | U14: 23.74950219 | V14: 0.001418918919 | W14: 0.3499 | X14: 0.2363932432 | Y14: 0.0001
B15: AIA | C15: Anguilla | Q15: 0
B16: ATA | C16: Antartica
B17: ATG | C17: Antigua and Barbuda | D17: 0.052 | E17: 597.7 | F17: 514.8514851 | G17: 464.2857143 | H17: 0 | I17: 0.052 | J17: 597.7 | K17: 514.8514851 | L17: 464.2857143 | M17: 0 | N17: 0.001 | O17: 0.003 | P17: 0.001 | Q17: =SUM(N17:P17) -> 0.005 | R17: =IF(N17=0, "", (N17/$Q17)) -> 0.2 | S17: 0.6 | T17: 0.2 | U17: 79.17029531 | V17: =IF(N17=0,"",(N17/I17)) -> 0.01923076923 | W17: 0.0017 | X17: 3.269230769 | Y17: 0.0033
B18: ARG | C18: Argentina | D18: 276 | E18: 6920 | F18: 6015.299784 | G18: 5417.819916 | H18: 538 | I18: 814 | J18: 20410 | K18: 17740.77545 | L18: 15978.6428 | M18: 66.09336609 | N18: 21.52 | O18: 4.91 | P18: 2.76 | Q18: 29.19 | R18: 0.7372387804 | S18: 0.1682082905 | T18: 0.09455292909 | U18: 775.4599934 | V18: 0.02643734644 | W18: 29.1 | X18: 3.574760523 | Y18: 0.0007
B19: ARM | C19: Armenia | D19: 6.859 | E19: 2229 | F19: 2156.240176 | G19: 2272.69715 | H19: 0.91 | I19: 7.769 | J19: 2525 | K19: 2442.313738 | L19: 2574.221339 | M19: 11.7132192 | N19: 1.859 | O19: 0.843 | P19: 0.125 | Q19: 2.827 | R19: 0.6575875486 | S19: 0.2981959675 | T19: 0.04421648391 | U19: 939.3434033 | V19: 0.2392843352 | W19: 2.827 | X19: 36.38692238 | Y19: 0
B20: ABW | C20: Aruba | Q20: 0
B21: AUS | C21: Australia | D21: 492 | E21: 23346 | F21: 19916.60932 | G21: 17128.53363 | H21: 0 | I21: 492 | J21: 23346 | K21: 19916.60932 | L21: 17128.53363 | M21: 0 | N21: 18.01 | O21: 3.52 | P21: 2.4 | Q21: 23.93 | R21: 0.7526117844 | S21: 0.1470956958 | T21: 0.1002925198 | U21: 1220.677221 | V21: 0.03660569106 | W21: 23.9 | X21: 4.857773192 | Y21: 0.0298
B22: AUT | C22: Austria | D22: 55 | E22: 6597 | F22: 6395.348837 | G22: 6459.189665 | H22: 22.7 | I22: 77.7 | J22: 9320 | K22: 9034.883721 | L22: 9125.0734 | M22: 29.215 | N22: 0.02 | O22: 0.74 | P22: 1.35 | Q22: 2.11 | R22: 0.009478672986 | S22: 0.3507109005 | T22: 0.6398104265 | U22: 258.2068793 | V22: 0.0002574002574 | W22: 2.108 | X22: 2.712801628 | Y22: 0.0022
B23: AZE | C23: Azerbaijan, Republic of | D23: 8.115 | E23: 929.4 | F23: 801.2440758 | G23: 767.0857359 | H23: 26.56 | I23: 34.675 | J23: 3972 | K23: 3424.170616 | L23: 3278.192646 | M23: 76.59697188 | N23: 9.33 | O23: 0.521 | P23: 2.36 | Q23: 12.211 | R23: 0.7640651871 | S23: 0.04266644828 | T23: 0.1932683646 | U23: 1452.648028 | V23: 0.2690699351 | W23: 12.05 | X23: 34.75126172 | Y23: 0
B24: BHS | C24: Bahamas | D24: 0.02 | E24: 59.17 | F24: 49.75124378 | G24: 43.95604396 | H24: 0 | I24: 0.02 | J24: 59.17 | K24: 49.75124378 | L24: 43.95604396 | M24: 0 | Q24: 0 | Y24: 0.0074
B25: BHR | C25: Bahrain | D25: 0.004 | E25: 5.155 | F25: 3.917727718 | G25: 3.132341425 | H25: 0.112 | I25: 0.116 | J25: 149.5 | K25: 113.6141038 | L25: 90.83790133 | M25: 96.55172414 | N25: 0.1592 | O25: 0.1779 | P25: 0.0203 | Q25: 0.3574 | R25: 0.4454392837 | S25: 0.4977616116 | T25: 0.05679910464 | U25: 483.6834648 | V25: 1.372413793 | W25: 0.2387 | X25: 205.7758621 | Y25: 0.1024
B26: BGD | C26: Bangladesh | D26: 105 | E26: 656.2 | F26: 538.4284044 | G26: 471.9207173 | H26: 1105.64 | I26: 1210.642 | J26: 7569 | K26: 6209.874264 | L26: 5442.81894 | M26: 91.3269158 | N26: 76.35 | O26: 2.53 | P26: 0.52 | Q26: 79.4 | R26: 0.9615869018 | S26: 0.03186397985 | T26: 0.006549118388 | U26: 547.8009033 | V26: 0.06306571224 | W26: 79.4 | X26: 6.55850367 | Y26: 0
B27: BRB | C27: Barbados | D27: 0.08 | E27: 313.7 | F27: 305.3435115 | G27: 337.5527426 | H27: 0 | I27: 0.08 | J27: 313.7 | K27: 305.3435115 | L27: 337.5527426 | M27: 0 | N27: 0.02 | O27: 0.03 | P27: 0.04 | Q27: 0.09 | R27: 0.2222222222 | S27: 0.3333333333 | T27: 0.4444444444 | U27: 311.7077428 | V27: 0.25 | W27: 0.09 | X27: 112.5 | Y27: 0.0146
B28: BLR | C28: Belarus | D28: 37.2 | E28: 3843 | F28: 4202.914925 | G28: 5113.402062 | H28: 20.8 | I28: 58 | J28: 5992 | K28: 6552.931872 | L28: 7972.508591 | M28: 35.862 | N28: 0.84 | O28: 0.65 | P28: 1.3 | Q28: 2.79 | R28: 0.3010752688 | S28: 0.2329749104 | T28: 0.4659498208 | U28: 280.387723 | V28: 0.01448275862 | W28: 2.79 | X28: 4.810344828 | Y28: 0
B29: BEL | C29: Belgium | D29: 12 | E29: 1133 | F29: 1072.290233 | G29: 1044.113808 | H29: 6.3 | I29: 18.3 | J29: 1728 | K29: 1635.242606 | L29: 1592.273558 | M29: 34.426 | N29: 0.3612 | O29: 0.9933 | P29: 7.6755 | Q29: 9.03 | R29: 0.04 | S29: 0.11 | T29: 0.85 | U29: 919.6134609 | V29: 0.01973770492 | W29: 9.03 | X29: 49.3442623 | Y29: 0
B30: BLZ | C30: Belize | D30: 16 | E30: 53156 | F30: 39603.9604 | G30: 31620.55336 | H30: 2.555 | I30: 18.555 | J30: 61628 | K30: 45915.84158 | L30: 36660.07905 | M30: 13.76987335 | N30: 0.03 | O30: 0.01 | P30: 0.11 | Q30: 0.15 | R30: 0.2 | S30: 0.06666666667 | T30: 0.7333333333 | U30: 583.5304369 | V30: 0.001616814875 | W30: 0.15 | X30: 0.8084074373 | Y30: 0
B31: BEN | C31: Benin | D31: 10.3 | E31: 1189 | F31: 748.165904 | G31: 468.5651897 | H31: 16.093 | I31: 26.393 | J31: 3047 | K31: 1916.902738 | L31: 1200.527704 | M31: 60.97450081 | N31: 0.059 | O31: 0.041 | P31: 0.03 | Q31: 0.13 | R31: 0.4538461538 | S31: 0.3153846154 | T31: 0.2307692308 | U31: 16.87072895 | V31: 0.002235441215 | W31: 0.13 | X31: 0.4925548441 | Y31: 0
B32: BMU | C32: Bermuda | Q32: 0
B33: BTN | C33: Bhutan | D33: 95 | E33: 113537 | F33: 90173.4104 | G33: 76999.01283 | H33: 0 | I33: 95 | J33: 113537 | K33: 90173.4104 | L33: 76999.01283 | M33: 0 | N33: 0.4 | O33: 0.02 | P33: 0.005 | Q33: 0.425 | R33: 0.9411764706 | S33: 0.04705882353 | T33: 0.01176470588 | U33: 719.2625274 | V33: 0.004210526316 | W33: 0.425 | X33: 0.4473684211 | Y33: 0
B34: BOL | C34: Bolivia | D34: 303.531 | E34: 31308 | F34: 24539.13325 | G34: 20358.19694 | H34: 319 | I34: 622.531 | J34: 64215 | K34: 50331.50065 | L34: 41756.10411 | M34: 51.24242809 | N34: 1.16 | O34: 0.18 | P34: 0.099 | Q34: 1.439 | R34: 0.8061153579 | S34: 0.1250868659 | T34: 0.06879777623 | U34: 166.1406508 | V34: 0.001863361021 | W34: 1.439 | X34: 0.2311531474 | Y34: 0
B35: BIH | C35: Bosnia and Herzegovina | D35: 35.5 | E35: 9409 | F35: 9839.24612 | G35: 11801.8617 | H35: 2 | I35: 37.5 | J35: 9939 | K35: 10393.56984 | L35: 12466.75532 | M35: 5.333 | Q35: 0
B36: BWA | C36: Botswana | D36: 2.4 | E36: 1249 | F36: 1026.957638 | G36: 870.1957941 | H36: 9.84 | I36: 12.24 | J36: 6372 | K36: 5237.483954 | L36: 4437.99855 | M36: 80.39215686 | N36: 0.08 | O36: 0.079 | P36: 0.035 | Q36: 0.194 | R36: 0.412371134 | S36: 0.4072164948 | T36: 0.1804123711 | U36: 109.2866623 | V36: 0.006535947712 | W36: 0.194 | X36: 1.58496732 | Y36: 0
B37: BRA | C37: Brazil | D37: 5418 | E37: 28223 | F37: 25341.20354 | G37: 24794.97693 | H37: 2815 | I37: 8233 | J37: 42886 | K37: 38507.59114 | L37: 37677.56462 | M37: 34.192 | N37: 36.63 | O37: 12.02 | P37: 10.65 | Q37: 59.3 | R37: 0.6177065767 | S37: 0.202698145 | T37: 0.1795952782 | U37: 330.8300803 | V37: 0.004449167983 | W37: 59.3 | X37: 0.7202720758 | Y37: 0
B38: VGB | C38: British Virgin Islands | Q38: 0
B39: BRN | C39: Brunei Darussalam | D39: 8.5 | E39: 21684 | F39: 16569.20078 | G39: 12917.93313 | H39: 0 | I39: 8.5 | J39: 21684 | K39: 16569.20078 | L39: 12917.93313 | M39: 0 | Q39: 0 | U39: 296.5121151 | W39: 0.092 | X39: 1.082352941 | Y39: 0
B40: BGR | C40: Bulgaria | D40: 21 | E40: 2766 | F40: 3110.189573 | G40: 3894.658754 | H40: 0.3 | I40: 21.3 | J40: 2805 | K40: 3154.620853 | L40: 3950.296736 | M40: 1.408 | N40: 1.97 | O40: 0.32 | P40: 8.21 | Q40: 10.5 | R40: 0.1876190476 | S40: 0.03047619048 | T40: 0.7819047619 | U40: 1330.185987 | V40: 0.09248826291 | W40: 8.674 | X40: 49.29577465 | Y40: 0
B41: BFA | C41: Burkina Faso | D41: 12.5 | E41: 820.5 | F41: 503.2813947 | G41: 306.1474406 | H41: 0 | I41: 12.5 | J41: 820.5 | K41: 503.2813947 | L41: 306.1474406 | M41: 0 | N41: 0.69 | O41: 0.104 | P41: 0.006 | Q41: 0.8 | R41: 0.8625 | S41: 0.13 | T41: 0.0075 | U41: 63.17120391 | V41: 0.0552 | W41: 0.8 | X41: 6.4 | Y41: 0
B42: BDI | C42: Burundi | D42: 10.06 | E42: 1246 | F42: 901.3529254 | G42: 677.6236023 | H42: 2.476 | I42: 12.536 | J42: 1553 | K42: 1123.555237 | L42: 844.6719655 | M42: 19.75111678 | N42: 0.222 | O42: 0.049 | P42: 0.017 | Q42: 0.288 | R42: 0.7708333333 | S42: 0.1701388889 | T42: 0.05902777778 | U42: 40.85611144 | V42: 0.01770899809 | W42: 0.288 | X42: 2.297383535 | Y42: 0
B43: KHM | C43: Cambodia | D43: 120.57 | E43: 8282 | F43: 6356.401202 | G43: 5068.291658 | H43: 355.54 | I43: 476.11 | J43: 32695 | K43: 25093.554 | L43: 20008.40513 | M43: 74.676 | N43: 4 | O43: 0.06 | P43: 0.02 | Q43: 4.08 | R43: 0.9803921569 | S43: 0.01470588235 | T43: 0.004901960784 | U43: 307.7211304 | V43: 0.00840141984 | W43: 4.08 | X43: 0.8569448237 | Y43: 0
B44: CMR | C44: Cameroon | D44: 273 | E44: 14302 | F44: 10310.44641 | G44: 7431.402439 | H44: 12.5 | I44: 285.5 | J44: 14957 | K44: 10782.53645 | L44: 7771.668118 | M44: 4.378 | N44: 0.73 | O44: 0.18 | P44: 0.08 | Q44: 0.99 | R44: 0.7373737374 | S44: 0.1818181818 | T44: 0.08080808081 | U44: 59.54036283 | V44: 0.002556917688 | W44: 0.99 | X44: 0.3467600701 | Y44: 0
B45: CAN | C45: Canada | D45: 2850 | E45: 85691 | F45: 73721.51375 | G45: 64168.95573 | H45: 52 | I45: 2902 | J45: 87255 | K45: 75066.60803 | L45: 65339.75773 | M45: 1.792 | N45: 5.41 | O45: 8.99 | P45: 31.57 | Q45: 45.97 | R45: 0.117685447 | S45: 0.1955623233 | T45: 0.6867522297 | U45: 1468.304021 | V45: 0.001864231564 | W45: 45.97 | X45: 1.583986906 | Y45: 0.0027
B46: CPV | C46: Cape Verde | D46: 0.3 | E46: 601.2 | F46: 487.012987 | G46: 426.742532 | H46: 0 | I46: 0.3 | J46: 601.2 | K46: 487.012987 | L46: 426.742532 | M46: 0 | N46: 0.02 | O46: 0.0016 | P46: 0.0004 | Q46: 0.022 | R46: 0.9090909091 | S46: 0.07272727273 | T46: 0.01818181818 | U46: 46.57346329 | V46: 0.06666666667 | X46: 6.773 | Y46: 0.0017
B47: CYM | C47: Cayman Islands | Q47: 0
B48: CAF | C48: Central African Republic | D48: 141 | E48: 32496 | F48: 24534.53976 | G48: 18545.31106 | H48: 3.4 | I48: 144.4 | J48: 33280 | K48: 25126.15278 | L48: 18992.50296 | M48: 2.355 | N48: 0.001 | O48: 0.02 | P48: 0.004 | Q48: 0.025 | R48: 0.04 | S48: 0.8 | T48: 0.16 | U48: 6.254049497 | V48: 6.925207756e-06 | W48: 0.025 | X48: 0.01731301939 | Y48: 0
B49: TCD | C49: Chad | D49: 15 | E49: 1374 | F49: 887.2589613 | G49: 540.0345622 | H49: 28 | I49: 43 | J49: 3940 | K49: 2543.475689 | L49: 1548.099078 | M49: 65.116 | N49: 0.19 | O49: 0.04 | P49: 0 | Q49: 0.23 | R49: 0.8260869565 | S49: 0.1739130435 | U49: 25.22237637 | V49: 0.004418604651 | W49: 0.23 | X49: 0.5348837209 | Y49: 0
B50: CHL | C50: Chile | D50: 884 | E50: 52607 | F50: 45883.94062 | G50: 42794.2102 | H50: 38 | I50: 922 | J50: 54868 | K50: 47856.32721 | L50: 44633.78032 | M50: 4.121475054 | N50: 7.97 | O50: 1.42 | P50: 3.16 | Q50: 12.55 | R50: 0.635059761 | S50: 0.1131474104 | T50: 0.2517928287 | U50: 795.5284581 | V50: 0.008644251627 | W50: 12.55 | X50: 1.360648411 | Y50: 0.0048
B51: CHN | C51: China | D51: 2812.4 | E51: 2092 | F51: 1924.455707 | G51: 1972.289784 | H51: 17.169 | I51: 2829.569 | J51: 2104 | K51: 1936.085905 | L51: 1984.209061 | M51: 0.6067708545 | N51: 426.85 | O51: 41.47 | P51: 161.97 | Q51: 630.29 | R51: 0.6772279427 | S51: 0.06579511019 | T51: 0.2569769471 | U51: 486.4543795 | V51: 0.1508533632 | W51: 617 | X51: 21.80190693 | Y51: 0
B52: HKG | C52: China, Hong Kong SAR
B53: MAC | C53: China, Macao SAR
B54: CXR | C54: Christmas Island | Q54: 0
B55: CCK | C55: Cocos (Keeling) Islands | Q55: 0
B56: COL | C56: Colombia | D56: 2112 | E56: 46921 | F56: 38455.93591 | G56: 33589.38881 | H56: 20 | I56: 2132 | J56: 47365 | K56: 38820.10197 | L56: 33907.47014 | M56: 0.9380863039 | N56: 4.92 | O56: 5.39 | P56: 0.4 | Q56: 10.71 | R56: 0.4593837535 | S56: 0.5032679739 | T56: 0.03734827264 | U56: 248.9579795 | V56: 0.002307692308 | W56: 10.71 | X56: 0.5022174144 | Y56: 0.0027
B57: COM | C57: Comoros | D57: 1.2 | E57: 1412 | F57: 1013.513514 | G57: 744.4168734 | H57: 0 | I57: 1.2 | J57: 1412 | K57: 1013.513514 | L57: 744.4168734 | M57: 0 | N57: 0.0047 | O57: 0.0048 | P57: 0.0005 | Q57: 0.01 | R57: 0.47 | S57: 0.48 | T57: 0.05 | U57: 13.55287179 | V57: 0.003916666667 | W57: 0.01 | X57: 0.8333333333 | Y57: 0
B58: COD | C58: Congo Democratic Republic of the | D58: 900 | E58: 14006 | F58: 9172.161471 | G58: 6101.198547 | H58: 383 | I58: 1283 | J58: 19967 | K58: 13075.42574 | L58: 8697.597484 | M58: 29.852 | N58: 0.11 | O58: 0.19 | P58: 0.06 | Q58: 0.36 | R58: 0.3055555556 | S58: 0.5277777778 | T58: 0.1666666667 | U58: 6.724352395 | V58: 8.573655495e-05 | W58: 0.36 | X58: 0.02805923617 | Y58: 0
B59: COG | C59: Congo, Republic of | D59: 222 | E59: 61411 | F59: 43580.68316 | G59: 32347.36995 | H59: 610 | I59: 832 | J59: 230152 | K59: 163329.4071 | L59: 121229.7829 | M59: 73.317 | N59: 0.004 | O59: 0.032 | P59: 0.01 | Q59: 0.046 | R59: 0.08695652174 | S59: 0.6956521739 | T59: 0.2173913043 | U59: 13.66143345 | V59: 4.807692308e-06 | W59: 0.046 | X59: 0.005528846154 | Y59: 0
B60: COK | C60: Cook Islands | Q60: 0
B61: CRI | C61: Costa Rica | D61: 112.4 | E61: 24873 | F61: 20358.63068 | G61: 17636.9057 | H61: 0 | I61: 112.4 | J61: 24873 | K61: 20358.63068 | L61: 17636.9057 | M61: 0 | N61: 1.43 | O61: 0.79 | P61: 0.46 | Q61: 2.68 | R61: 0.5335820896 | S61: 0.2947761194 | T61: 0.171641791 | U61: 654.1462744 | V61: 0.01272241993 | W61: 2.68 | X61: 2.384341637 | Y61: 0
B62: CIV | C62: Cote d'Ivoire | D62: 76.84 | E62: 3732 | F62: 2583.899388 | G62: 1771.609066 | H62: 4.3 | I62: 81.14 | J62: 3941 | K62: 2728.495528 | L62: 1870.749084 | M62: 5.299482376 | N62: 0.6 | O62: 0.22 | P62: 0.11 | Q62: 0.93 | R62: 0.6451612903 | S62: 0.2365591398 | T62: 0.1182795699 | U62: 52.56775984 | V62: 0.007394626571 | W62: 0.93 | X62: 1.146167119 | Y62: 0
B63: HRV | C63: Croatia | D63: 37.7 | E63: 8524 | F63: 8862.247297 | G63: 9856.20915 | H63: 67.8 | I63: 105.5 | J63: 23853 | K63: 24800.18806 | L63: 27581.69935 | M63: 64.265 | Q63: 0
B64: CUB | C64: Cuba | D64: 38.12 | E64: 3402 | F64: 3419.447435 | G64: 3919.794344 | H64: 0 | I64: 38.12 | J64: 3402 | K64: 3419.447435 | L64: 3919.794344 | M64: 0 | N64: 5.64 | O64: 1.56 | P64: 1 | Q64: 8.2 | R64: 0.687804878 | S64: 0.1902439024 | T64: 0.1219512195 | U64: 731.9730002 | V64: 0.14795383 | W64: 8.193 | X64: 21.49289614 | Y64: 0.0069
B65: CYP | C65: Cyprus | D65: 0.78 | E65: 904.9 | F65: 769.2307692 | G65: 663.8297872 | H65: 0 | I65: 0.78 | J65: 904.9 | K65: 769.2307692 | L65: 663.8297872 | M65: 0 | N65: 0.1751 | O65: 0.0675 | P65: 0.0035 | Q65: 0.2461 | R65: 0.7114993905 | S65: 0.2742787485 | T65: 0.01422186103 | U65: 304.9067563 | V65: 0.2244871795 | W65: 0.2066 | X65: 26.48717949 | Y65: 0.0335
B66: CZE | C66: Czech Republic | D66: 13.15 | E66: 1274 | F66: 1243.73404 | G66: 1277.443171 | H66: 0 | I66: 13.15 | J66: 1274 | K66: 1243.73404 | L66: 1277.443171 | M66: 0 | N66: 0.06 | O66: 1.05 | P66: 1.47 | Q66: 2.58 | R66: 0.02325581395 | S66: 0.4069767442 | T66: 0.5697674419 | U66: 252.900043 | V66: 0.004562737643 | W66: 2.58 | X66: 19.61862829 | Y66: 0.0002
B67: DNK | C67: Denmark | D67: 6 | E67: 1099 | F67: 1073.345259 | G67: 1080.886327 | H67: 0 | I67: 6 | J67: 1099 | K67: 1073.345259 | L67: 1080.886327 | M67: 0 | N67: 0.54 | O67: 0.41 | P67: 0.32 | Q67: 1.27 | R67: 0.4251968504 | S67: 0.3228346457 | T67: 0.2519685039 | U67: 236.41969 | V67: 0.09 | W67: 1.255 | X67: 20.91666667 | Y67: 0.015
B68: DJI | C68: Djibouti | D68: 0.3 | E68: 353.4 | F68: 270.0270027 | G68: 204.2205582 | H68: 0 | I68: 0.3 | J68: 353.4 | K68: 270.0270027 | L68: 204.2205582 | M68: 0 | N68: 0.003 | O68: 0.016 | P68: 0 | Q68: 0.019 | R68: 0.1578947368 | S68: 0.8421052632 | U68: 24.9090492 | V68: 0.01 | W68: 0.0189 | X68: 6.3 | Y68: 0.0001
B69: DMA | C69: Dominica | H69: 0 | M69: 0 | Q69: 0 | U69: 245.4858698 | W69: 0.0166 | Y69: 0
B70: DOM | C70: Dominican Republic | D70: 20.995 | E70: 2110 | F70: 1753.946379 | G70: 1562.383751 | H70: 0 | I70: 20.995 | J70: 2110 | K70: 1753.946379 | L70: 1562.383751 | M70: 0 | N70: 2.24 | O70: 1.09 | P70: 0.06 | Q70: 3.39 | R70: 0.6607669617 | S70: 0.3215339233 | T70: 0.01769911504 | U70: 375.2142955 | V70: 0.1066920695 | W70: 3.371 | X70: 16.05810907 | Y70: 0
B71: ECU | C71: Ecuador | D71: 432 | E71: 32045 | F71: 26875.69989 | G71: 24014.67564 | H71: 0 | I71: 424.4 | J71: 31481 | K71: 26402.88665 | L71: 23592.19523 | M71: 0 | N71: 13.96 | O71: 2.12 | P71: 0.9 | Q71: 16.98 | R71: 0.8221436985 | S71: 0.124852768 | T71: 0.05300353357 | U71: 1345.389545 | V71: 0.0328934967 | W71: 16.98 | X71: 4.000434741 | Y71: 0.0022
B72: EGY | C72: Egypt | D72: 1.8 | E72: 22.08 | F72: 17.1477565 | G72: 13.89607282 | H72: 55.5 | I72: 57.3 | J72: 702.8 | K72: 545.8702486 | L72: 442.358318 | M72: 96.85863874 | N72: 59 | O72: 5.3 | P72: 4 | Q72: 68.3 | R72: 0.8638360176 | S72: 0.0775988287 | T72: 0.05856515373 | U72: 989.8010638 | V72: 1.029668412 | W72: 54.26 | X72: 94.83 | Y72: 0.1
B73: SLV | C73: El Salvador | D73: 17.75 | E73: 2894 | F73: 2574.329224 | G73: 2251.966506 | H73: 7.48 | I73: 25.23 | J73: 4113 | K73: 3659.173314 | L73: 3200.964222 | M73: 29.64724534 | N73: 0.76 | O73: 0.32 | P73: 0.2 | Q73: 1.28 | R73: 0.59375 | S73: 0.25 | T73: 0.15625 | U73: 200.2369366 | V73: 0.0301228696 | W73: 1.28 | X73: 5.072778557 | Y73: 0.0001
B74: GNQ | C74: Equatorial Guinea | D74: 26 | E74: 39454 | F74: 26776.51905 | G74: 17993.07958 | H74: 0 | I74: 26 | J74: 39454 | K74: 26776.51905 | L74: 17993.07958 | M74: 0 | N74: 0.001 | O74: 0.09 | P74: 0.017 | Q74: 0.108 | R74: 0.009259259259 | S74: 0.8333333333 | T74: 0.1574074074 | U74: 239.3134363 | V74: 3.846153846e-05 | W74: 0.108 | X74: 0.4153846154 | Y74: 0
B75: ERI | C75: Eritrea | D75: 2.8 | E75: 568.3 | F75: 378.17396 | G75: 259.5717067 | H75: 3.5 | I75: 6.3 | J75: 1279 | K75: 850.89141 | L75: 584.03634 | M75: 55.556 | N75: 0.55 | O75: 0.031 | P75: 0.001 | Q75: 0.582 | R75: 0.9450171821 | S75: 0.05326460481 | T75: 0.001718213058 | U75: 124.0378806 | V75: 0.0873015873 | W75: 0.582 | X75: 9.238095238 | Y75: 0
B76: EST | C76: Estonia | D76: 12.712 | E76: 9478 | F76: 9621.498864 | G76: 10308.1914 | H76: 0.096 | I76: 12.808 | J76: 9553 | K76: 9697.199092 | L76: 10389.2944 | M76: 0.75 | N76: 0.008 | O76: 0.09 | P76: 0.06 | Q76: 0.158 | R76: 0.05063291139 | S76: 0.5696202532 | T76: 0.3797468354 | U76: 116.4487552 | V76: 0.000624609619 | W76: 0.158 | X76: 1.233603998 | Y76: 0
B77: ETH | C77: Ethiopia | D77: 122 | E77: 1512 | F77: 1018.176962 | G77: 701.9118468 | H77: 0 | I77: 122 | J77: 1512 | K77: 1018.176962 | L77: 701.9118468 | M77: 0 | N77: 5.204 | O77: 0.333 | P77: 0.021 | Q77: 5.558 | R77: 0.9363080245 | S77: 0.059913638 | T77: 0.003778337531 | U77: 75.99787999 | V77: 0.0426557377 | W77: 5.558 | X77: 4.555737705 | Y77: 0
B78: FRO | C78: Faeroe Islands | Q78: 0
B79: FLK | C79: Falkland Is (Malvinas) | Q79: 0
B80: FJI | C80: Fiji Islands | D80: 28.55 | E80: 33827 | F80: 31546.96133 | G80: 31373.62637 | H80: 0 | I80: 28.55 | J80: 33827 | K80: 31546.96133 | L80: 31373.62637 | M80: 0 | N80: 0.05 | O80: 0.01 | P80: 0.01 | Q80: 0.07 | R80: 0.7142857143 | S80: 0.1428571429 | T80: 0.1428571429 | U80: 86.1370958 | V80: 0.001751313485 | W80: 0.07 | X80: 0.2451838879 | Y80: 0
B81: FIN | C81: Finland | D81: 107 | E81: 20173 | F81: 19338.51437 | G81: 19651.05601 | H81: 3 | I81: 110 | J81: 20739 | K81: 19880.71571 | L81: 20202.0202 | M81: 2.727 | N81: 0.066 | O81: 0.34 | P81: 2.07 | Q81: 2.476 | R81: 0.02665589661 | S81: 0.1373182553 | T81: 0.8360258481 | U81: 475.9238468 | V81: 0.0006 | W81: 2.476 | X81: 2.250835759 | Y81: 0.0001
B82: FRA | C82: France | D82: 178.5 | E82: 2877 | F82: 2714.044611 | G82: 2637.879057 | H82: 25.2 | I82: 203.7 | J82: 3284 | K82: 3097.20385 | L82: 3010.285512 | M82: 12.371 | N82: 3.92 | O82: 6.28 | P82: 29.76 | Q82: 39.96 | R82: 0.0980980981 | S82: 0.1571571572 | T82: 0.7447447447 | U82: 667.6846239 | V82: 0.01924398625 | W82: 39.95 | X82: 19.61132422 | Y82: 0.0117
B83: GUF | C83: French Guiana | D83: 134 | E83: 609091 | F83: 414860.6811 | G83: 290043.29 | H83: 0 | I83: 134 | J83: 609091 | K83: 414860.6811 | L83: 290043.29 | M83: 0 | Q83: =SUM(N83:P83) -> 0 | R83: =IF(N83=0, "", (N83/$Q83)) ->  | V83: =IF(N83=0,"",(N83/I83)) -> 
B84: PYF | C84: French Polynesia | D84: 10 | H84: 0 | M84: 0 | Q84: 0
B85: GAB | C85: Gabon | D85: 164 | E85: 113260 | F85: 85639.68668 | G85: 66369.89073 | H85: 0 | I85: 164 | J85: 113260 | K85: 85639.68668 | L85: 66369.89073 | M85: 0 | N85: 0.05 | O85: 0.06 | P85: 0.01 | Q85: 0.12 | R85: 0.4166666667 | S85: 0.5 | T85: 0.08333333333 | U85: 97.75481626 | V85: 0.0003048780488 | W85: 0.12 | X85: 0.07317073171 | Y85: 0
B86: GMB | C86: Gambia | D86: 3 | E86: 1807 | F86: 1210.653753 | G86: 797.2362477 | H86: 5 | I86: 8 | J86: 4819 | K86: 3228.410008 | L86: 2125.963327 | M86: 62.5 | N86: 0.02 | O86: 0.007 | P86: 0.0036 | Q86: 0.0306 | R86: 0.6535947712 | S86: 0.2287581699 | T86: 0.1176470588 | U86: 20.71322539 | V86: 0.0025 | W86: 0.0306 | X86: 0.3825 | Y86: 0
B87: GEO | C87: Georgia | D87: 58.13 | E87: 13497 | F87: 14951.13169 | G87: 17793.08234 | H87: 5.2 | I87: 63.33 | J87: 14704 | K87: 16288.58025 | L87: 19384.75666 | M87: 8.210958471 | N87: 1.055 | O87: 0.358 | P87: 0.208 | Q87: 1.621 | R87: 0.6508328192 | S87: 0.2208513263 | T87: 0.1283158544 | U87: 365.6681587 | V87: 0.01665877151 | W87: 1.621 | X87: 2.5596084 | Y87: 0
B88: DEU | C88: Germany | D88: 107 | E88: 1301 | F88: 1350.021449 | G88: 1517.644389 | H88: 47 | I88: 154 | J88: 1872 | K88: 1943.021525 | L88: 2184.273233 | M88: 30.519 | N88: 9.31 | O88: 5.81 | P88: 31.93 | Q88: 47.05 | R88: 0.1978746015 | S88: 0.1234856536 | T88: 0.678639745 | U88: 570.4053092 | V88: 0.06045454545 | W88: 38.88 | X88: 30.55194805 | Y88: 0
B89: GHA | C89: Ghana | D89: 30.3 | E89: 1298 | F89: 940.0304036 | G89: 670.1612368 | H89: 22.9 | I89: 53.2 | J89: 2278 | K89: 1650.482425 | L89: 1176.652733 | M89: 43.045 | N89: 0.652 | O89: 0.235 | P89: 0.095 | Q89: 0.982 | R89: 0.6639511202 | S89: 0.2393075356 | T89: 0.0967413442 | U89: 46.55414691 | V89: 0.0122556391 | W89: 0.982 | X89: 1.845864662 | Y89: 0
B90: GIB | C90: Gibraltar | Q90: 0
B91: GRC | C91: Greece | D91: 58 | E91: 5208 | F91: 5144.580451 | G91: 5302.129994 | H91: 16.25 | I91: 74.25 | J91: 6667 | K91: 6585.949973 | L91: 6787.640552 | M91: 21.886 | N91: 6.25 | O91: 1.27 | P91: 0.25 | Q91: 7.77 | R91: 0.8043758044 | S91: 0.1634491634 | T91: 0.03217503218 | U91: 703.9063632 | V91: 0.08417508418 | W91: 7.76 | X91: 10.45112844 | Y91: 0.01
B92: GRL | C92: Greenland | D92: 603 | H92: 0 | I92: 603 | M92: 0 | Q92: 0
B93: GRD | C93: Grenada | H93: 0 | M93: 0 | Q93: 0 | U93: 94.69966003 | W93: 0.01 | Y93: 0
B94: GLP | C94: Guadeloupe | Q94: 0
B95: GUM | C95: Guam | Q95: 0
B96: GTM | C96: Guatemala | D96: 109.2 | E96: 7979 | F96: 5480.002007 | G96: 3973.799127 | H96: 2.07 | I96: 111.27 | J96: 8132 | K96: 5585.386661 | L96: 4050.218341 | M96: 1.860339714 | N96: 1.61 | O96: 0.13 | P96: 0.27 | Q96: 2.01 | R96: 0.8009950249 | S96: 0.06467661692 | T96: 0.1343283582 | U96: 170.4461764 | V96: 0.01446930889 | W96: 2.01 | X96: 1.806416824 | Y96: 0
B97: GIN | C97: Guinea | D97: 226 | E97: 22984 | F97: 14909.61868 | G97: 9426.485923 | H97: 0 | I97: 226 | J97: 22984 | K97: 14909.61868 | L97: 9426.485923 | M97: 0 | N97: 1.36 | O97: 0.12 | P97: 0.03 | Q97: 1.51 | R97: 0.9006622517 | S97: 0.07947019868 | T97: 0.01986754967 | U97: 177.3632984 | V97: 0.006017699115 | W97: 1.51 | X97: 0.6681415929 | Y97: 0
B98: GNB | C98: Guinea-Bissau | D98: 16 | E98: 10159 | F98: 6968.641115 | G98: 4500.703235 | H98: 15 | I98: 31 | J98: 19683 | K98: 13501.74216 | L98: 8720.112518 | M98: 48.387 | N98: 0.144 | O98: 0.023 | P98: 0.008 | Q98: 0.175 | R98: 0.8228571429 | S98: 0.1314285714 | T98: 0.04571428571 | U98: 120.2021319 | V98: 0.00464516129 | W98: 0.175 | X98: 0.564516129 | Y98: 0
B99: GUY | C99: Guyana | D99: 241 | E99: 315858 | F99: 329234.9727 | G99: 431899.6416 | H99: 0 | I99: 241 | J99: 315858 | K99: 329234.9727 | L99: 431899.6416 | M99: 0 | N99: 1.6 | O99: 0.03 | P99: 0.01 | Q99: 1.64 | R99: 0.9756097561 | S99: 0.01829268293 | T99: 0.006097560976 | U99: 2227.734204 | V99: 0.006639004149 | W99: 1.64 | X99: 0.6804979253 | Y99: 0
B100: HTI | C100: Haiti | D100: 13.01 | E100: 1317 | F100: 1042.80218 | G100: 840.1679044 | H100: 1.015 | I100: 14.025 | J100: 1421 | K100: 1124.559154 | L100: 906.0381014 | M100: 7.237076649 | N100: 0.93 | O100: 0.05 | P100: 0.01 | Q100: 0.99 | R100: 0.9393939394 | S100: 0.05050505051 | T100: 0.0101010101 | U100: 111.7236854 | V100: 0.06631016043 | W100: 0.99 | X100: 7.058823529 | Y100: 0
B101: VAT | C101: Holy See | Q101: 0
B102: HND | C102: Honduras | D102: 95.929 | E102: 13107 | F102: 9745.022349 | G102: 7735.042735 | H102: 0 | I102: 95.929 | J102: 13107 | K102: 9745.022349 | L102: 7735.042735 | M102: 0 | N102: 0.69 | O102: 0.07 | P102: 0.1 | Q102: 0.86 | R102: 0.8023255814 | S102: 0.08139534884 | T102: 0.1162790698 | U102: 133.4172724 | V102: 0.00719281969 | W102: 0.8598 | X102: 0.8962486683 | Y102: 0.0002
B103: HUN | C103: Hungary | D103: 6 | E103: 599.3 | F103: 621.9550119 | G103: 671.5916723 | H103: 98 | I103: 104 | J103: 10388 | K103: 10780.55354 | L103: 11640.92232 | M103: 94.231 | N103: 2.45 | O103: 0.71 | P103: 4.48 | Q103: 7.64 | R103: 0.3206806283 | S103: 0.09293193717 | T103: 0.5863874346 | U103: 751.6577793 | V103: 0.02355769231 | W103: 5.447 | X103: 7.345938005 | Y103: 0.0002
B104: ISL | C104: Iceland | D104: 170 | E104: 539683 | F104: 442708.3333 | G104: 417690.4177 | H104: 0 | I104: 170 | J104: 539683 | K104: 442708.3333 | L104: 417690.4177 | M104: 0 | N104: 0.0002 | O104: 0.05 | P104: 0.1 | Q104: 0.1502 | R104: 0.001331557923 | S104: 0.3328894807 | T104: 0.6657789614 | U104: 523.3795966 | V104: 1.176470588e-06 | W104: 0.1502 | X104: 0.08835294118 | Y104: 0
B105: IND | C105: India | D105: 1260.54 | E105: 1067 | F105: 880.3358132 | G105: 780.7658942 | H105: 636.12 | I105: 1896.66 | J105: 1591 | K105: 1313.516928 | L105: 1164.952287 | M105: 33.92565103 | N105: 558.39 | O105: 52.24 | P105: 35.21 | Q105: 645.84 | R105: 0.8645949461 | S105: 0.08088690697 | T105: 0.05451814691 | U105: 596.950274 | V105: 0.2944070102 | W105: 645.9 | X105: 34.05141143 | Y105: 0.0005
B106: IDN | C106: Indonesia | D106: 2838 | E106: 12483 | F106: 10779.11177 | G106: 9850.404359 | H106: 0 | I106: 2838 | J106: 12483 | K106: 10779.11177 | L106: 9850.404359 | M106: 0 | N106: 75.6 | O106: 6.62 | P106: 0.56 | Q106: 82.78 | R106: 0.9132640734 | S106: 0.07997100749 | T106: 0.006764919063 | U106: 380.6573235 | V106: 0.0266384778 | W106: 82.76 | X106: 2.916182966 | Y106: 0.0187
B107: IRN | C107: Iran, Islamic Republic of | D107: 128.5 | E107: 1753 | F107: 1474.740056 | G107: 1325.083784 | H107: 9.015 | I107: 137.515 | J107: 1876 | K107: 1578.029242 | L107: 1417.891209 | M107: 6.555648475 | N107: 86 | O107: 6.2 | P107: 1.1 | Q107: 93.3 | R107: 0.9217577706 | S107: 0.06645230439 | T107: 0.01178992497 | U107: 1327.732513 | V107: 0.6253863215 | W107: 93.1 | X107: 67.70170527 | Y107: 0.2
B108: IRQ | C108: Iraq | D108: 35.2 | E108: 1170 | F108: 787.6129956 | G108: 550.0429721 | H108: 40.41 | I108: 75.61 | J108: 2512 | K108: 1691.801665 | L108: 1181.498555 | M108: 53.44531147 | N108: 52 | O108: 4.3 | P108: 9.7 | Q108: 66 | R108: 0.7878787879 | S108: 0.06515151515 | T108: 0.146969697 | U108: 2509.368118 | V108: 0.687739717 | W108: 64.49 | Y108: 0.0074
B109: IRL | C109: Ireland | D109: 49 | E109: 11043 | F109: 9124.767225 | G109: 7783.95552 | H109: 3 | I109: 52 | J109: 11720 | K109: 9683.426443 | L109: 8260.524226 | M109: 5.769 | N109: 0.0002 | O109: 0.26 | P109: 0.87 | Q109: 1.1302 | R109: 0.0001769598301 | S109: 0.2300477792 | T109: 0.769775261 | U109: 287.9104609 | V109: 3.846153846e-06 | W109: 1.13 | X109: 2.17307899 | Y109: 0.0002
B110: IMN | C110: Isle of Man
B111: ISR | C111: Israel | D111: 0.75 | E111: 106.4 | F111: 85.52856654 | G111: 70.42914828 | H111: 1.03 | I111: 1.78 | J111: 252.4 | K111: 202.9877979 | L111: 167.1518452 | M111: 57.86516854 | N111: 1.129 | O111: 0.712 | P111: 0.113 | Q111: 1.954 | R111: 0.5777891505 | S111: 0.3643807574 | T111: 0.05783009212 | U111: 286.9314473 | V111: 0.6342696629 | W111: 1.552 | X111: 87.19662921 | Y111: 0.14
B112: ITA | C112: Italy | D112: 182.5 | E112: 3062 | F112: 3040.75444 | G112: 3198.051379 | H112: 8.8 | I112: 191.3 | J112: 3210 | K112: 3187.37712 | L112: 3352.258788 | M112: 4.6 | N112: 20.01 | O112: 8.07 | P112: 16.29 | Q112: 44.37 | R112: 0.4509803922 | S112: 0.1818796484 | T112: 0.3671399594 | U112: 764.2751772 | V112: 0.1046001045 | W112: 44.27 | X112: 23.14305698 | Y112: 0.0973
B113: JAM | C113: Jamaica | D113: 9.404 | E113: 3473 | F113: 3281.228193 | G113: 3505.031681 | H113: 0 | I113: 9.404 | J113: 3473 | K113: 3281.228193 | L113: 3505.031681 | M113: 0 | N113: 0.2 | O113: 0.14 | P113: 0.07 | Q113: 0.41 | R113: 0.487804878 | S113: 0.3414634146 | T113: 0.1707317073 | U113: 155.997574 | V113: 0.02126754573 | W113: 0.4095 | X113: 4.354556625 | Y113: 0.0005
B114: JPN | C114: Japan | D114: 430 | E114: 3378 | F114: 3559.808929 | G114: 4229.827167 | H114: 0 | I114: 430 | J114: 3378 | K114: 3559.808929 | L114: 4229.827167 | M114: 0 | N114: 55.23 | O114: 17.4 | P114: 15.8 | Q114: 88.43 | R114: 0.6245618003 | S114: 0.1967658035 | T114: 0.1786723962 | U114: 693.6621603 | V114: 0.1284418605 | W114: 87.58 | X114: 20.36744186 | Y114: 0.04
B115: JOR | C115: Jordan | D115: 0.682 | E115: 111.1 | F115: 84.32245302 | G115: 66.59505908 | H115: 0.255 | I115: 0.937 | J115: 152.7 | K115: 115.8506429 | L115: 91.49497119 | M115: 27.21451441 | N115: 0.6112 | O115: 0.2913 | P115: 0.0384 | Q115: 0.9409 | R115: 0.6495908173 | S115: 0.3095971942 | T115: 0.04081198852 | U115: 164.2355993 | V115: 0.6522945571 | W115: 0.8476 | X115: 90.45891142 | Y115: 0.0098
B116: KAZ | C116: Kazakhstan | D116: 75.42 | E116: 4859 | F116: 4429.955947 | G116: 4225.68355 | H116: 34.19 | I116: 109.61 | J116: 7061 | K116: 6437.591777 | L116: 6140.744061 | M116: 31.192 | N116: 28.63 | O116: 0.59 | P116: 5.78 | Q116: 35 | R116: 0.818 | S116: 0.01685714286 | T116: 0.1651428571 | U116: 2343.737026 | V116: 0.2611987957 | W116: 33.4 | X116: 30.46984764 | Y116: 1.328
B117: KEN | C117: Kenya | D117: 20.7 | E117: 534 | F117: 359.543536 | G117: 242.3603793 | H117: 10 | I117: 30.7 | J117: 792 | K117: 533.2360655 | L117: 359.4426882 | M117: 32.5732899 | N117: 2.165 | O117: 0.47 | P117: 0.1 | Q117: 2.735 | R117: 0.7915904936 | S117: 0.1718464351 | T117: 0.0365630713 | U117: 74.82185696 | V117: 0.07052117264 | W117: 2.735 | X117: 8.908794788 | Y117: 0
B118: KIR | C118: Kiribati | F118: 0 | G118: 0 | K118: 0 | L118: 0 | Q118: 0
B119: PRK | C119: Korea Democratic People's Republic of | D119: 67 | E119: 2813 | F119: 2666.348297 | G119: 2727.790897 | H119: 10.135 | I119: 77.135 | J119: 3239 | K119: 3070.280166 | L119: 3141.030861 | M119: 13.139 | N119: 4.96 | O119: 1.79 | P119: 2.27 | Q119: 9.02 | R119: 0.5498891353 | S119: 0.1984478936 | T119: 0.2516629712 | U119: 387.5928187 | V119: 0.06430284566 | W119: 9.02 | X119: 11.69378363 | Y119: 0
B120: KOR | C120: Korea Republic of | D120: 64.85 | E120: 1347 | F120: 1310.524614 | G120: 1471.288881 | H120: 4.85 | I120: 69.7 | J120: 1447 | K120: 1408.536092 | L120: 1581.323593 | M120: 6.958 | N120: 8.92 | O120: 6.62 | P120: 3.05 | Q120: 18.59 | R120: 0.4798278644 | S120: 0.356105433 | T120: 0.1640667025 | U120: 393.1765614 | V120: 0.1279770445 | W120: 25.47 | X120: 26.67144907 | Y120: 0.0002
B121: KWT | C121: Kuwait | D121: 0 | E121: 0 | F121: 0 | G121: 0 | H121: 0.02 | I121: 0.02 | J121: 6.852 | K121: 5.015045135 | L121: 3.816793893 | M121: 100 | N121: 0.4919 | O121: 0.4005 | P121: 0.0208 | Q121: 0.9132 | R121: 0.5386552781 | S121: 0.4385676741 | T121: 0.02277704774 | U121: 374.3736866 | V121: 24.595 | W121: 0.415 | X121: 2075 | Y121: 0.4202
B122: KGZ | C122: Kyrgyzstan | D122: 46.45 | E122: 9041 | F122: 7674.819693 | G122: 7112.757919 | H122: -25.87 | I122: 20.58 | J122: 4263 | K122: 3618.689244 | L122: 3353.676257 | M122: 0 | N122: 9.45 | O122: 0.32 | P122: 0.31 | Q122: 10.08 | R122: 0.9375 | S122: 0.03174603175 | T122: 0.03075396825 | U122: 1993.146975 | V122: 0.4591836735 | W122: 9.78 | X122: 48.97891156 | Y122: 0
B123: LAO | C123: Laos | D123: 190.42 | E123: 30685 | F123: 23014.62589 | G123: 17721.51899 | H123: 143.13 | I123: 333.55 | J123: 53747 | K123: 40311.85785 | L123: 31040.58079 | M123: 42.91110778 | N123: 2.7 | O123: 0.13 | P123: 0.17 | Q123: 3 | R123: 0.9 | S123: 0.04333333333 | T123: 0.05666666667 | U123: 555.3064903 | V123: 0.00809473842 | W123: 3 | X123: 0.89941538 | Y123: 0
B124: LVA | C124: Latvia | D124: 16.74 | E124: 7410 | F124: 7967.63446 | G124: 9029.126214 | H124: 18.709 | I124: 35.449 | J124: 15693 | K124: 16872.91766 | L124: 19120.81985 | M124: 52.777 | N124: 0.04 | O124: 0.16 | P124: 0.1 | Q124: 0.3 | R124: 0.1333333333 | S124: 0.5333333333 | T124: 0.3333333333 | U124: 127.9306241 | V124: 0.001128381619 | W124: 0.2882 | X124: 0.8129989562 | Y124: 0
B125: LBN | C125: Lebanon | D125: 4.8 | E125: 1144 | F125: 1013.513514 | G125: 953.7055434 | H125: -0.297 | I125: 4.503 | J125: 1074 | K125: 950.8023649 | L125: 894.6950129 | M125: 0.7854485325 | N125: 0.78 | O125: 0.38 | P125: 0.15 | Q125: 1.31 | R125: 0.5954198473 | S125: 0.2900763359 | T125: 0.1145038168 | U125: 323.0339745 | V125: 0.1732178548 | W125: 1.261 | Y125: 0.0473
B126: LSO | C126: Lesotho | D126: 5.23 | E126: 2552 | F126: 2267.996531 | G126: 2099.55841 | H126: -2.208 | I126: 3.022 | J126: 1475 | K126: 1310.494363 | L126: 1213.167403 | M126: 0 | N126: 0.01 | O126: 0.02 | P126: 0.02 | Q126: 0.05 | R126: 0.2 | S126: 0.4 | T126: 0.4 | U126: 25.88329327 | V126: 0.003309066843 | W126: 0.05 | X126: 1.654533422 | Y126: 0
B127: LBR | C127: Liberia | D127: 200 | E127: 52729 | F127: 34141.34517 | G127: 22621.87535 | H127: 32 | I127: 232 | J127: 61165 | K127: 39603.9604 | L127: 26241.37541 | M127: 13.793 | N127: 0.06 | O127: 0.03 | P127: 0.02 | Q127: 0.11 | R127: 0.5454545455 | S127: 0.2727272727 | T127: 0.1818181818 | U127: 33.87741488 | V127: 0.0002586206897 | W127: 0.11 | X127: 0.0474137931 | Y127: 0
B128: LBY | C128: Libyan Arab Jamahiriya | D128: 0.6 | E128: 95.33 | F128: 73.67387033 | G128: 61.10601894 | H128: 0 | I128: 0.6 | J128: 95.33 | K128: 73.67387033 | L128: 61.10601894 | M128: 0 | N128: 3.584 | O128: 0.61 | P128: 0.132 | Q128: 4.326 | R128: 0.8284789644 | S128: 0.1410078595 | T128: 0.03051317614 | U128: 776.9474693 | V128: 5.973333333 | W128: 4.268 | X128: 711.3333333 | Y128: 0.018
B129: LIE | C129: Liechtenstein | F129: 0 | G129: 0 | K129: 0 | L129: 0 | Q129: 0
B130: LTU | C130: Lithuania | D130: 15.56 | E130: 4685 | F130: 5212.730318 | G130: 6033.346258 | H130: 9.34 | I130: 24.9 | J130: 7498 | K130: 8341.708543 | L130: 9654.905002 | M130: 37.51 | N130: 0.02 | O130: 0.21 | P130: 0.04 | Q130: 0.27 | R130: 0.07407407407 | S130: 0.7777777778 | T130: 0.1481481481 | U130: 77.86526886 | V130: 0.0008032128514 | W130: 0.2652 | X130: 1.065060241 | Y130: 0
B131: LUX | C131: Luxembourg | D131: 1 | E131: 2079 | F131: 1718.213058 | G131: 1364.25648 | H131: 2.1 | I131: 3.1 | J131: 6445 | K131: 5326.460481 | L131: 4229.195089 | M131: 67.742 | Q131: 0 | U131: 107.8047979 | W131: 0.04 | X131: 1.290322581 | Y131: 0
B132: MKC | C132: Macedonia,The Fmr Yug Rp | D132: 5.4 | E132: 2646 | F132: 2650.95729 | G132: 2907.915994 | H132: 1 | I132: 6.4 | J132: 3136 | K132: 3141.875307 | L132: 3446.418955 | M132: 15.625 | Q132: 0 | W132: 1.555 | Y132: 0
B133: MDG | C133: Madagascar | D133: 337 | E133: 17634 | F133: 11785.27715 | G133: 7893.56569 | H133: 0 | I133: 337 | J133: 17634 | K133: 11785.27715 | L133: 7893.56569 | M133: 0 | N133: 14.31 | O133: 0.42 | P133: 0.23 | Q133: 14.96 | R133: 0.9565508021 | S133: 0.02807486631 | T133: 0.01537433155 | U133: 872.5597854 | V133: 0.04246290801 | W133: 14.96 | X133: 4.439169139 | Y133: 0
B134: MWI | C134: Malawi | D134: 16.14 | E134: 1087 | F134: 695.8696215 | G134: 441.2850308 | H134: 1.14 | I134: 17.28 | J134: 1164 | K134: 745.0202639 | L134: 472.4538619 | M134: 6.597 | N134: 0.81 | O134: 0.15 | P134: 0.05 | Q134: 1.01 | R134: 0.801980198 | S134: 0.1485148515 | T134: 0.0495049505 | U134: 82.38272371 | V134: 0.046875 | W134: 1.01 | X134: 5.844907407 | Y134: 0
B135: MYS | C135: Malaysia | D135: 580 | E135: 21470 | F135: 17175.0074 | G135: 14622.83179 | H135: 0 | I135: 580 | J135: 21470 | K135: 17175.0074 | L135: 14622.83179 | M135: 0 | N135: 5.6 | O135: 1.52 | P135: 1.9 | Q135: 9.02 | R135: 0.6208425721 | S135: 0.1685144124 | T135: 0.2106430155 | U135: 371.8315582 | V135: 0.009655172414 | W135: 9.016 | X135: 1.554425234 | Y135: 0.0043
B136: MDV | C136: Maldives | D136: 0.03 | E136: 98.36 | F136: 78.125 | G136: 65.93406593 | H136: 0 | I136: 0.03 | J136: 98.36 | K136: 78.125 | L136: 65.93406593 | M136: 0 | N136: 0 | O136: 0.00332 | P136: 5.4e-05 | Q136: 0.003374 | S136: 0.9839952579 | T136: 0.01600474215 | U136: 17.22527122 | W136: 0.0034 | X136: 11.24666667 | Y136: 0.0004
B137: MLI | C137: Mali | D137: 60 | E137: 4722 | F137: 3225.286244 | G137: 2123.142251 | H137: 40 | I137: 100 | J137: 7870 | K137: 5375.477074 | L137: 3538.570418 | M137: 40 | N137: 5.9 | O137: 0.59 | P137: 0.056 | Q137: 6.546 | R137: 0.9013137794 | S137: 0.09013137794 | T137: 0.008554842652 | U137: 617.1556835 | V137: 0.059 | W137: 6.546 | X137: 6.546 | Y137: 0
B138: MLT | C138: Malta | D138: 0.0505 | E138: 124.1 | F138: 118.5446009 | G138: 122.2760291 | H138: 0 | I138: 0.0505 | J138: 124.1 | K138: 118.5446009 | L138: 122.2760291 | M138: 0 | N138: 0.01 | O138: 0.04 | P138: 0.0005 | Q138: 0.0505 | R138: 0.198019802 | S138: 0.7920792079 | T138: 0.009900990099 | U138: 128.0494144 | V138: 0.198019802 | W138: 0.0175 | X138: 34.65346535 | Y138: 0.031
B139: MHL | C139: Marshall Islands | Q139: 0
B140: MTQ | C140: Martinique | Q140: 0
B141: MRT | C141: Mauritania | D141: 0.4 | E141: 124.4 | F141: 90.02925951 | G141: 65.99571028 | H141: 11 | I141: 11.4 | J141: 3546 | K141: 2565.833896 | L141: 1880.877743 | M141: 96.491 | N141: 1.5 | O141: 0.15 | P141: 0.05 | Q141: 1.7 | R141: 0.8823529412 | S141: 0.08823529412 | T141: 0.02941176471 | U141: 624.7932669 | V141: 0.1315789474 | W141: 1.697 | X141: 14.88859649 | Y141: 0.002
B142: MUS | C142: Mauritius | D142: 2.751 | E142: 2149 | F142: 1965 | G142: 1929.172511 | H142: 0 | I142: 2.751 | J142: 2149 | K142: 1965 | L142: 1929.172511 | M142: 0 | N142: 0.491 | O142: 0.214 | P142: 0.02 | Q142: 0.725 | R142: 0.6772413793 | S142: 0.2951724138 | T142: 0.0275862069 | U142: 579.2927994 | V142: 0.1784805525 | W142: 0.725 | X142: 26.35405307 | Y142: 0
B143: MYT | C143: Mayotte
B144: MEX | C144: Mexico | D144: 409 | E144: 3768 | F144: 3315.3381 | G144: 3171.427685 | H144: 48.222 | I144: 457.222 | J144: 4212 | K144: 3706.045426 | L144: 3545.175398 | M144: 10.5467366 | N144: 60.34 | O144: 13.59 | P144: 4.29 | Q144: 78.22 | R144: 0.7714139606 | S144: 0.1737407313 | T144: 0.05484530811 | U144: 768.8678318 | V144: 0.1319709025 | W144: 77.92 | X144: 17.03971054 | Y144: 0.0191
B145: FSM | C145: Micronesia,Fed States of | F145: 0 | G145: 0 | K145: 0 | L145: 0 | Q145: 0
B146: MDA | C146: Moldova, Republic of | D146: 1 | E146: 275.3 | F146: 303.8590094 | G146: 365.7644477 | H146: 10.65 | I146: 11.65 | J146: 3207 | K146: 3539.95746 | L146: 4261.155816 | M146: 91.416 | N146: 0.76 | O146: 0.22 | P146: 1.33 | Q146: 2.31 | R146: 0.329004329 | S146: 0.09523809524 | T146: 0.5757575758 | U146: 572.8075605 | V146: 0.0652360515 | W146: 2.31 | X146: 19.82832618 | Y146: 0
B147: MAC | C147: Monaco | F147: 0 | G147: 0 | K147: 0 | L147: 0 | Q147: 0
B148: MNG | C148: Mongolia | D148: 34.8 | E148: 13177 | F148: 11104.02042 | G148: 10098.66512 | H148: 0 | I148: 34.8 | J148: 13177 | K148: 11104.02042 | L148: 10098.66512 | M148: 0 | N148: 0.23 | O148: 0.09 | P148: 0.12 | Q148: 0.44 | R148: 0.5227272727 | S148: 0.2045454545 | T148: 0.2727272727 | U148: 175.336317 | V148: 0.006609195402 | W148: 0.44 | X148: 1.264367816 | Y148: 0
B149: MNE | C149: Montenegro | F149: 0 | G149: 0 | K149: 0 | L149: 0
B150: MSR | C150: Montserrat | Q150: =SUM(N150:P150) -> 0 | R150: =IF(N150=0, "", (N150/$Q150)) ->  | V150: =IF(N150=0,"",(N150/I150)) -> 
B151: MAR | C151: Morocco | D151: 29 | E151: 917.5 | F151: 765.8787799 | G151: 681.0229434 | H151: 0 | I151: 29 | J151: 917.5 | K151: 765.8787799 | L151: 681.0229434 | M151: 0 | N151: 11.01 | O151: 1.23 | P151: 0.36 | Q151: 12.6 | R151: 0.8738095238 | S151: 0.09761904762 | T151: 0.02857142857 | U151: 427.1855746 | V151: 0.3796551724 | W151: 12.59 | X151: 43.42413793 | Y151: 0.007
B152: MOZ | C152: Mozambique | D152: 100.3 | E152: 4481 | F152: 3215.774287 | G152: 2271.903597 | H152: 116.81 | I152: 217.11 | J152: 9699 | K152: 6960.564283 | L152: 4917.550059 | M152: 53.80222007 | N152: 0.55 | O152: 0.07 | P152: 0.01 | Q152: 0.63 | R152: 0.873015873 | S152: 0.1111111111 | T152: 0.01587301587 | U152: 32.92541875 | V152: 0.002533278062 | W152: 0.63 | X152: 0.2901754871 | Y152: 0
B153: MMR | C153: Myanmar | D153: 880.6 | E153: 17767 | F153: 15292.17678 | G153: 13895.50755 | H153: 165.001 | I153: 1045.601 | J153: 21104 | K153: 18164.45255 | L153: 16505.45185 | M153: 15.78 | N153: 32.64 | O153: 0.41 | P153: 0.18 | Q153: 33.23 | R153: 0.9822449594 | S153: 0.01233824857 | T153: 0.005416792055 | U153: 710.5285969 | V153: 0.03121649654 | W153: 33.23 | X153: 3.178076532 | Y153: 0
B154: NAM | C154: Namibia | D154: 6.16 | E154: 2892 | F154: 2192.170819 | G154: 1716.833891 | H154: 11.555 | I154: 17.715 | J154: 8319 | K154: 6306.049822 | L154: 4938.684504 | M154: 65.22720858 | N154: 0.213 | O154: 0.073 | P154: 0.014 | Q154: 0.3 | R154: 0.71 | S154: 0.2433333333 | T154: 0.04666666667 | U154: 154.4605902 | V154: 0.01202370872 | W154: 0.2927 | X154: 1.652272086 | Y154: 0.0003
B155: NRU | C155: Nauru | F155: 0 | G155: 0 | K155: 0 | L155: 0 | Q155: 0
B156: NPL | C156: Nepal | D156: 198.2 | E156: 6880 | F156: 5211.537956 | G156: 4042.587909 | H156: 12 | I156: 210.2 | J156: 7296 | K156: 5527.070022 | L156: 4287.346006 | M156: 5.709 | N156: 9.82 | O156: 0.3 | P156: 0.06 | Q156: 10.18 | R156: 0.9646365422 | S156: 0.02946954813 | T156: 0.005893909627 | U156: 399.3541917 | V156: 0.04671741199 | W156: 10.18 | X156: 4.84300666 | Y156: 0
B157: NLD | C157: Netherlands | D157: 11 | E157: 665.5 | F157: 634.0788564 | G157: 632.2202425 | H157: 80 | I157: 91 | J157: 5506 | K157: 5245.561448 | L157: 5230.185643 | M157: 87.912 | N157: 2.69 | O157: 0.49 | P157: 4.76 | Q157: 7.94 | R157: 0.338790932 | S157: 0.06171284635 | T157: 0.5994962217 | U157: 493.0720581 | V157: 0.02956043956 | W157: 7.94 | X157: 8.725274725 | Y157: 0
B158: ANT | C158: Netherlands Antilles | Q158: 0
B159: NCL | C159: New Caledonia | Q159: 0
B160: NZL | C160: New Zealand | D160: 327 | E160: 77305 | F160: 67687.84931 | G160: 61132.92204 | H160: 0 | I160: 327 | J160: 77305 | K160: 67687.84931 | L160: 61132.92204 | M160: 0 | N160: 0.89 | O160: 1.02 | P160: 0.2 | Q160: 2.11 | R160: 0.4218009479 | S160: 0.4834123223 | T160: 0.09478672986 | U160: 534.4299532 | V160: 0.002721712538 | W160: 2.11 | X160: 0.6452599388 | Y160: 0
B161: NIC | C161: Nicaragua | D161: 189.74 | E161: 33475 | F161: 26877.30235 | G161: 23296.08252 | H161: 6.95 | I161: 196.69 | J161: 34692 | K161: 27854.91641 | L161: 24143.43608 | M161: 3.533479079 | N161: 1.08 | O161: 0.19 | P161: 0.03 | Q161: 1.3 | R161: 0.8307692308 | S161: 0.1461538462 | T161: 0.02307692308 | U161: 247.3347775 | V161: 0.005490873964 | W161: 1.299 | X161: 0.6602679343 | Y161: 0.0002
B162: NER | C162: Niger | D162: 3.5 | E162: 238 | F162: 127.7931941 | G162: 60.12092895 | H162: 30.15 | I162: 33.65 | J162: 2288 | K162: 1228.64028 | L162: 578.0197884 | M162: 89.599 | N162: 2.08 | O162: 0.09 | P162: 0.01 | Q162: 2.18 | R162: 0.9541284404 | S162: 0.04128440367 | T162: 0.004587155963 | U162: 182.5672099 | V162: 0.0618127786 | W162: 2.18 | X162: 6.478454681 | Y162: 0
B163: NGA | C163: Nigeria | D163: 221 | E163: 1462 | F163: 1052.095384 | G163: 764.486324 | H163: 65.2 | I163: 286.2 | J163: 1893 | K163: 1362.487325 | L163: 990.0270856 | M163: 22.781 | N163: 5.51 | O163: 1.69 | P163: 0.81 | Q163: 8.01 | R163: 0.6878901373 | S163: 0.2109862672 | T163: 0.1011235955 | U163: 60.98851417 | V163: 0.01925227114 | W163: 8.007 | X163: 2.79769392 | Y163: 0.003
B164: NIU | C164: Niue | F164: 0 | G164: 0 | K164: 0 | L164: 0 | Q164: 0
B165: NFK | C165: Norfolk Island | Q165: 0
B166: MNP | C166: Northern Mariana Is | Q166: 0
B167: NOR | C167: Norway | D167: 382 | E167: 80134 | F167: 71202.23672 | G167: 64234.0676 | H167: 0 | I167: 382 | J167: 80134 | K167: 71202.23672 | L167: 64234.0676 | M167: 0 | N167: 0.23 | O167: 0.5 | P167: 1.46 | Q167: 2.19 | R167: 0.1050228311 | S167: 0.2283105023 | T167: 0.6666666667 | U167: 481.5901712 | V167: 0.0006020942408 | W167: 2.19 | X167: 0.5732697644 | Y167: 0.0001
B168: OMN | C168: Oman | D168: 1.4 | E168: 502.7 | F168: 370.1745108 | G168: 287.00287 | H168: 0 | I168: 1.4 | J168: 502.7 | K168: 370.1745108 | L168: 287.00287 | M168: 0 | N168: 1.168 | O168: 0.134 | P168: 0.019 | Q168: 1.321 | R168: 0.8841786525 | S168: 0.1014383043 | T168: 0.01438304315 | U168: 518.7868791 | V168: 0.8342857143 | W168: 1.175 | X168: 83.92857143 | Y168: 0.109
B169: PAK | C169: Pakistan | D169: 55 | E169: 310.8 | F169: 223.3176064 | G169: 164.0835931 | H169: 170.27 | I169: 225.27 | J169: 1273 | K169: 914.7901221 | L169: 672.1460642 | M169: 76.467 | N169: 162.65 | O169: 3.27 | P169: 3.47 | Q169: 169.39 | R169: 0.9602101659 | S169: 0.01930456343 | T169: 0.02048527068 | U169: 1128.993541 | V169: 0.7220224619 | W169: 169.4 | X169: 75.19421139 | Y169: 0
B170: PLW | C170: Palau | F170: 0 | G170: 0 | K170: 0 | L170: 0 | Q170: 0
B171: PSE | C171: Palestinian Territory, Occupied | D171: 0.812 | E171: 195.8 | F171: 123.9127117 | G171: 79.10375061 | H171: 0.025 | I171: 0.837 | J171: 201.8 | K171: 127.7277583 | L171: 81.53921091 | M171: 2.986857826 | N171: 0.189 | O171: 0.2 | P171: 0.029 | Q171: 0.418 | R171: 0.45215311 | S171: 0.4784688995 | T171: 0.06937799043 | U171: 107.4752646 | V171: 0.2258064516 | W171: 0.408 | X171: 48.74551971 | Y171: 0
B172: PAN | C172: Panama | D172: 147.42 | E172: 43366 | F172: 34544.17624 | G172: 28947.36842 | H172: 0.56 | I172: 147.98 | J172: 43542 | K172: 34684.79025 | L172: 29065.20031 | M172: 0.3784295175 | N172: 0.23 | O172: 0.55 | P172: 0.04 | Q172: 0.82 | R172: 0.2804878049 | S172: 0.6707317073 | T172: 0.0487804878 | U172: 267.7258161 | V172: 0.00155426409 | W172: 0.82 | X172: 0.5541289363 | Y172: 0
B173: PNG | C173: Papua New Guinea | D173: 801 | E173: 121788 | F173: 86454.39827 | G173: 62232.92673 | H173: 0 | I173: 801 | J173: 121788 | K173: 86454.39827 | L173: 62232.92673 | M173: 0 | N173: 0.001 | O173: 0.04 | P173: 0.03 | Q173: 0.071 | R173: 0.01408450704 | S173: 0.5633802817 | T173: 0.4225352113 | U173: 12.54553721 | V173: 1.248439451e-06 | W173: 0.071 | X173: 0.0088639201 | Y173: 0
B174: PRY | C174: Paraguay | D174: 94 | E174: 15069 | F174: 11711.93621 | G174: 9526.705179 | H174: 242 | I174: 336 | J174: 53863 | K174: 41863.94219 | L174: 34052.90362 | M174: 72.02380952 | N174: 0.35 | O174: 0.1 | P174: 0.04 | Q174: 0.49 | R174: 0.7142857143 | S174: 0.2040816327 | T174: 0.08163265306 | U174: 87.95853096 | V174: 0.001041666667 | W174: 0.49 | X174: 0.1458333333 | Y174: 0
B175: PER | C175: Peru | D175: 1616 | E175: 56039 | F175: 46802.595 | G175: 40627.51408 | H175: 297 | I175: 1913 | J175: 66338 | K175: 55404.30955 | L175: 48094.32824 | M175: 15.52535285 | N175: 16.42 | O175: 1.68 | P175: 2.03 | Q175: 20.13 | R175: 0.8156979632 | S175: 0.08345752608 | T175: 0.1008445107 | U175: 764.7875258 | V175: 0.008583376895 | W175: 20.11 | X175: 1.051018245 | Y175: 0.0054
B176: PHL | C176: Philippines | D176: 479 | E176: 5302 | F176: 4084.591115 | G176: 3277.320124 | H176: 0 | I176: 479 | J176: 5302 | K176: 4084.591115 | L176: 3277.320124 | M176: 0 | N176: 21.1 | O176: 4.73 | P176: 2.69 | Q176: 28.52 | R176: 0.7398316971 | S176: 0.1658485273 | T176: 0.0943197756 | U176: 358.7875893 | V176: 0.04405010438 | W176: 28.52 | X176: 5.954070981 | Y176: 0
B177: PCN | C177: Pitcairn Islands | Q177: 0
B178: POL | C178: Poland | D178: 53.6 | E178: 1407 | F178: 1450.059517 | G178: 1674.319808 | H178: 8 | I178: 61.6 | J178: 1617 | K178: 1666.486311 | L178: 1924.218286 | M178: 12.987 | N178: 1.35 | O178: 2.1 | P178: 12.75 | Q178: 16.2 | R178: 0.08333333333 | S178: 0.1296296296 | T178: 0.787037037 | U178: 422.5526909 | V178: 0.02191558442 | W178: 16.19 | X178: 26.28735904 | Y178: 0.007
B179: PRT | C179: Portugal | D179: 38 | E179: 3559 | F179: 3549.411545 | G179: 3794.308537 | H179: 30.7 | I179: 68.7 | J179: 6434 | K179: 6416.962451 | L179: 6859.710434 | M179: 44.687 | N179: 8.81 | O179: 1.08 | P179: 1.37 | Q179: 11.26 | R179: 0.7824156306 | S179: 0.09591474245 | T179: 0.121669627 | U179: 1088.304926 | V179: 0.1282387191 | W179: 11.26 | X179: 16.38775357 | Y179: 0.0016
B180: PRI | C180: Puerto Rico | D180: 7.1 | E180: 1791 | F180: 1700.191571 | G180: 1730.441141 | H180: 0 | I180: 7.1 | J180: 1791 | K180: 1700.191571 | L180: 1730.441141 | M180: 0 | Q180: 0 | W180: 0.995 | Y180: 0
B181: QAT | C181: Qatar | D181: 0.056 | E181: 43.72 | F181: 30.3030303 | G181: 24.17962003 | H181: 0.002 | I181: 0.058 | J181: 45.28 | K181: 31.38528139 | L181: 25.04317789 | M181: 3.448275862 | N181: 0.262 | O181: 0.174 | P181: 0.008 | Q181: 0.444 | R181: 0.5900900901 | S181: 0.3918918919 | T181: 0.01801801802 | U181: 540.5977989 | V181: 4.517241379 | W181: 0.221 | X181: 381.0344828 | Y181: 0.18
B182: REU | C182: Réunion | D182: 5 | H182: 0 | I182: 5 | M182: 0 | Q182: 0
B183: ROU | C183: Romania | D183: 42.3 | E183: 1980 | F183: 2119.132308 | G183: 2448.058337 | H183: 169.63 | I183: 211.93 | J183: 9920 | K183: 10615.70062 | L183: 12263.44117 | M183: 80.041 | N183: 13.21 | O183: 2 | P183: 7.97 | Q183: 23.18 | R183: 0.5698878343 | S183: 0.08628127696 | T183: 0.3438308887 | U183: 1057.088768 | V183: 0.06233190204 | W183: 9.19 | X183: 10.93757373 | Y183: 0
B184: RUS | C184: Russian Federation | D184: 4312.7 | E184: 30503 | F184: 32589.06646 | G184: 37149.96942 | H184: 194.55 | I184: 4507.25 | J184: 31883 | K184: 34062.48819 | L184: 38829.59939 | M184: 4.316 | N184: 13.64 | O184: 14.38 | P184: 48.66 | Q184: 76.68 | R184: 0.1778821075 | S184: 0.187532603 | T184: 0.6345852895 | U184: 524.6334386 | V184: 0.003026235509 | W184: 66.2 | X184: 1.701259083 | Y184: 0
B185: RWQ | C185: Rwanda | D185: 9.5 | E185: 977.3 | F185: 647.3153448 | G185: 430.2146545 | H185: 0 | I185: 9.5 | J185: 977.3 | K185: 647.3153448 | L185: 430.2146545 | M185: 0 | N185: 0.102 | O185: 0.036 | P185: 0.012 | Q185: 0.15 | R185: 0.68 | S185: 0.24 | T185: 0.08 | U185: 17.12031702 | V185: 0.01073684211 | W185: 0.15 | X185: 1.578947368 | Y185: 0
B186: SHN | C186: Saint Helena | Q186: 0
B187: KNA | C187: Saint Kitts and Nevis | D187: 0.024 | E187: 470.6 | F187: 393.442623 | G187: 347.826087 | H187: 0 | I187: 0.024 | J187: 470.6 | K187: 393.442623 | L187: 347.826087 | M187: 0 | Q187: 0 | Y187: 0.0033
B188: LCA | C188: Saint Lucia | H188: 0 | M188: 0 | O188: 0.0125 | Q188: 0.0125 | S188: 1 | U188: 101.7961501 | W188: 0.0166 | Y188: 0
B189: SPM | C189: Saint Pierre & Miquelon | Q189: 0
B190: VCT | C190: Saint Vincent/Grenadines | H190: 0 | M190: 0 | Q190: 0 | U190: 87.13852837 | W190: 0.01 | Y190: 0
B191: WSM | C191: Samoa | Q191: 0
B192: SMR | C192: San Marino | Q192: 0
B193: STP | C193: Sao Tome and Principe | D193: 2.18 | E193: 13625 | F193: 10092.59259 | G193: 7364.864865 | H193: 0 | I193: 2.18 | J193: 13625 | K193: 10092.59259 | L193: 7364.864865 | M193: 0 | Q193: 0 | U193: 52.72632776 | W193: 0.007 | X193: 0.3211009174 | Y193: 0
B194: SAU | C194: Saudi Arabia | D194: 2.4 | E194: 95.23 | F194: 70.2247191 | G194: 54.97274268 | H194: 0 | I194: 2.4 | J194: 95.23 | K194: 70.2247191 | L194: 54.97274268 | M194: 0 | N194: 20.82608 | O194: 2.12994 | P194: 0.70998 | Q194: 23.666 | R194: 0.88 | S194: 0.09 | T194: 0.03 | U194: 978.947621 | V194: 8.677533333 | W194: 22.47 | X194: 936.125 | Y194: 1.033
B195: SEN | C195: Senegal | D195: 25.8 | E195: 2113 | F195: 1444.487991 | G195: 988.4300054 | H195: 13 | I195: 38.8 | J195: 3177 | K195: 2172.330777 | L195: 1486.476132 | M195: 33.50515464 | N195: 2.065 | O195: 0.098 | P195: 0.058 | Q195: 2.221 | R195: 0.9297613688 | S195: 0.04412426835 | T195: 0.0261143629 | U195: 203.9317228 | V195: 0.05322164948 | W195: 2.221 | X195: 5.724097938 | Y195: 5e-05
B196: SRB | C196: Serbia and Montenegro | D196: 44 | F196: 0 | G196: 0 | H196: 164.5 | I196: 208.5 | K196: 0 | L196: 0 | M196: 78.897 | Q196: 0
B197: SYC | C197: Seychelles | F197: 0 | G197: 0 | H197: 0 | K197: 0 | L197: 0 | M197: 0 | N197: 0.0009 | O197: 0.008 | P197: 0.0034 | Q197: 0.0123 | R197: 0.07317073171 | S197: 0.6504065041 | T197: 0.2764227642 | U197: 142.8206498 | W197: 0.0113 | Y197: 0.001
B198: SLE | C198: Sierra Leone | D198: 160 | E198: 28777 | F198: 19723.86588 | G198: 12855.53592 | H198: 0 | I198: 160 | J198: 28777 | K198: 19723.86588 | L198: 12855.53592 | M198: 0 | N198: 0.35 | O198: 0.02 | P198: 0.01 | Q198: 0.38 | R198: 0.9210526316 | S198: 0.05263157895 | T198: 0.02631578947 | U198: 77.16991129 | V198: 0.0021875 | W198: 0.38 | X198: 0.2375 | Y198: 0
B199: SGP | C199: Singapore | D199: 0.6 | E199: 130 | F199: 111.8985453 | G199: 114.9205133 | H199: 0 | I199: 0.6 | J199: 130 | K199: 111.8985453 | L199: 114.9205133 | M199: 0 | N199: 0.0076 | O199: 0.0855 | P199: 0.0969 | Q199: 0.19 | R199: 0.04 | S199: 0.45 | T199: 0.51 | U199: 81.97099694 | V199: 0.01266666667 | W199: 0.19 | X199: 31.66666667 | Y199: 0.0072
B200: SVK | C200: Slovakia | D200: 12.6 | E200: 2333 | F200: 2327.72954 | G200: 2562.538133 | H200: 37.5 | I200: 50.1 | J200: 9278 | K200: 9255.496028 | L200: 10189.13972 | M200: 74.85 | Q200: 0
B201: SVN | C201: Slovenia | D201: 18.67 | E201: 9266 | F201: 9107.317073 | G201: 9554.759468 | H201: 13.2 | I201: 31.87 | J201: 15816 | K201: 15546.34146 | L201: 16310.13306 | M201: 41.418 | Q201: 0
B202: SLB | C202: Solomon Islands | D202: 44.7 | E202: 87476 | F202: 61655.17241 | G202: 44389.27507 | H202: 0 | I202: 44.7 | J202: 87476 | K202: 61655.17241 | L202: 44389.27507 | M202: 0 | Q202: 0
... 39 more rows

Sheet DATA-FAO-Pressure (hidden)
D1: 1988-1992 | H1: 1993-1997 | L1: 1998-2002 | P1: 2003-2007 | T1: 2008-2012 | X1: 2013-2017
A2: Afghanistan | B2: Freshwater withdrawal as % of total actual renewable water resources (%) | K2: 2000 | L2: 31.04 | M2: K
A3: Afghanistan | B3: Agricultural water withdrawal as % of total actual renewable water resources (%) | K3: 1998 | L3: 30.61 | M3: K
D5: 1988-1992 | H5: 1993-1997 | L5: 1998-2002 | P5: 2003-2007 | T5: 2008-2012 | X5: 2013-2017
A6: Albania | B6: Freshwater withdrawal as % of total actual renewable water resources (%) | C6: 1990 | D6: 2878 | E6: I | K6: 2000 | L6: 4408 | M6: I | O6: 2006 | P6: 3144 | Q6: I
A7: Albania | B7: Agricultural water withdrawal as % of total actual renewable water resources (%) | C7: 1990 | D7: 2398 | E7: I | G7: 1995 | H7: 1607 | I7: I | K7: 2000 | L7: 2542 | M7: I | O7: 2006 | P7: 1241 | Q7: I
D9: 1988-1992 | H9: 1993-1997 | L9: 1998-2002 | P9: 2003-2007 | T9: 2008-2012 | X9: 2013-2017
A10: Algeria | B10: Freshwater withdrawal as % of total actual renewable water resources (%) | C10: 1990 | D10: 38.01 | E10: I | K10: 2001 | L10: 48.89 | M10: I
A11: Algeria | B11: Agricultural water withdrawal as % of total actual renewable water resources (%) | C11: 1990 | D11: 23.14 | E11: I | K11: 2001 | L11: 30.01 | M11: I
D13: 1988-1992 | H13: 1993-1997 | L13: 1998-2002 | P13: 2003-2007 | T13: 2008-2012 | X13: 2013-2017
A14: Andorra | B14: Freshwater withdrawal as % of total actual renewable water resources (%)
A15: Andorra | B15: Agricultural water withdrawal as % of total actual renewable water resources (%)
D17: 1988-1992 | H17: 1993-1997 | L17: 1998-2002 | P17: 2003-2007 | T17: 2008-2012 | X17: 2013-2017
A18: Angola | B18: Freshwater withdrawal as % of total actual renewable water resources (%) | K18: 2000 | L18: 0.4327 | M18: I | O18: 2005 | P18: 0.4769 | Q18: I
A19: Angola | B19: Agricultural water withdrawal as % of total actual renewable water resources (%) | K19: 2000 | L19: 0.1419 | M19: I | O19: 2005 | P19: 0.0991 | Q19: I
D21: 1988-1992 | H21: 1993-1997 | L21: 1998-2002 | P21: 2003-2007 | T21: 2008-2012 | X21: 2013-2017
A22: Antigua and Barbuda | B22: Freshwater withdrawal as % of total actual renewable water resources (%) | C22: 1990 | D22: 3269 | K22: 2000 | L22: 15.38 | M22: I | O22: 2005 | P22: 16.15 | Q22: I
A23: Antigua and Barbuda | B23: Agricultural water withdrawal as % of total actual renewable water resources (%) | C23: 1990 | D23: 1923 | G23: 1997 | H23: 2.5 | I23: I | K23: 2000 | L23: 2.5 | M23: I | O23: 2005 | P23: 2.5 | Q23: I
D25: 1988-1992 | H25: 1993-1997 | L25: 1998-2002 | P25: 2003-2007 | T25: 2008-2012 | X25: 2013-2017
A26: Argentina | B26: Freshwater withdrawal as % of total actual renewable water resources (%) | G26: 1995 | H26: 3511 | I26: I | K26: 2000 | L26: 3.99 | M26: I
A27: Argentina | B27: Agricultural water withdrawal as % of total actual renewable water resources (%) | G27: 1995 | H27: 2644 | K27: 2000 | L27: 2644 | M27: I
D29: 1988-1992 | H29: 1993-1997 | L29: 1998-2002 | P29: 2003-2007 | T29: 2008-2012 | X29: 2013-2017
A30: Armenia | B30: Freshwater withdrawal as % of total actual renewable water resources (%) | G30: 1995 | H30: 27.78 | K30: 2002 | L30: 22.31 | M30: I | O30: 2007 | P30: 36.79 | Q30: I | S30: 2012 | T30: 37.86 | U30: I
A31: Armenia | B31: Agricultural water withdrawal as % of total actual renewable water resources (%) | G31: 1995 | H31: 24.97 | I31: I | K31: 2002 | L31: 14.67 | M31: I | O31: 2007 | P31: 24.33 | Q31: I | S31: 2010 | T31: 14.84 | U31: I
D33: 1988-1992 | H33: 1993-1997 | L33: 1998-2002 | P33: 2003-2007 | T33: 2008-2012 | X33: 2013-2017
A34: Australia | B34: Freshwater withdrawal as % of total actual renewable water resources (%) | G34: 1996 | H34: 4504 | I34: K | K34: 2000 | L34: 4583 | M34: K
A35: Australia | B35: Agricultural water withdrawal as % of total actual renewable water resources (%) | G35: 1996 | H35: 3.15 | I35: K | K35: 2000 | L35: 3386 | M35: K | S35: 2010 | T35: 1496
D37: 1988-1992 | H37: 1993-1997 | L37: 1998-2002 | P37: 2003-2007 | T37: 2008-2012 | X37: 2013-2017
A38: Austria | B38: Freshwater withdrawal as % of total actual renewable water resources (%) | C38: 1990 | D38: 4897 | E38: K | G38: 1997 | H38: 4687 | I38: K | K38: 2002 | L38: 4704 | M38: K
A39: Austria | B39: Agricultural water withdrawal as % of total actual renewable water resources (%) | C39: 1990 | D39: 0.1287 | E39: K | G39: 1997 | H39: 0.1287 | I39: K | K39: 2002 | L39: 0.1287 | M39: K
D41: 1988-1992 | H41: 1993-1997 | L41: 1998-2002 | P41: 2003-2007 | T41: 2008-2012 | X41: 2013-2017
A42: Azerbaijan | B42: Freshwater withdrawal as % of total actual renewable water resources (%) | G42: 1997 | H42: 36.07 | I42: I | K42: 2002 | L42: 29.04 | M42: I | O42: 2005 | P42: 35.21 | Q42: I | S42: 2012 | T42: 34.52 | U42: I
A43: Azerbaijan | B43: Agricultural water withdrawal as % of total actual renewable water resources (%) | G43: 1997 | H43: 29.3 | I43: I | K43: 2002 | L43: 21.9 | M43: I | O43: 2005 | P43: 26.9 | Q43: I | S43: 2010 | T43: 29.12 | U43: I
D45: 1988-1992 | H45: 1993-1997 | L45: 1998-2002 | P45: 2003-2007 | T45: 2008-2012 | X45: 2013-2017
A46: Bahamas | B46: Freshwater withdrawal as % of total actual renewable water resources (%)
A47: Bahamas | B47: Agricultural water withdrawal as % of total actual renewable water resources (%)
D49: 1988-1992 | H49: 1993-1997 | L49: 1998-2002 | P49: 2003-2007 | T49: 2008-2012 | X49: 2013-2017
A50: Bahrain | B50: Freshwater withdrawal as % of total actual renewable water resources (%) | C50: 1990 | D50: 161.1 | O50: 2003 | P50: 205.8
A51: Bahrain | B51: Agricultural water withdrawal as % of total actual renewable water resources (%) | C51: 1990 | D51: 116.4 | K51: 2000 | L51: 146.6 | M51: I | O51: 2003 | P51: 137.2
D53: 1988-1992 | H53: 1993-1997 | L53: 1998-2002 | P53: 2003-2007 | T53: 2008-2012 | X53: 2013-2017
A54: Bangladesh | B54: Freshwater withdrawal as % of total actual renewable water resources (%) | S54: 2008 | T54: 2923 | U54: I
A55: Bangladesh | B55: Agricultural water withdrawal as % of total actual renewable water resources (%) | S55: 2008 | T55: 2567 | U55: I
D57: 1988-1992 | H57: 1993-1997 | L57: 1998-2002 | P57: 2003-2007 | T57: 2008-2012 | X57: 2013-2017
A58: Barbados | B58: Freshwater withdrawal as % of total actual renewable water resources (%) | G58: 1996 | H58: 58.25 | K58: 2000 | L58: 119.6 | M58: I | O58: 2005 | P58: 108.0 | Q58: I
A59: Barbados | B59: Agricultural water withdrawal as % of total actual renewable water resources (%) | C59: 1989 | D59: 68.5 | E59: I | K59: 2000 | L59: 68.5 | M59: I | O59: 2005 | P59: 68.5 | Q59: I
D61: 1988-1992 | H61: 1993-1997 | L61: 1998-2002 | P61: 2003-2007 | T61: 2008-2012 | X61: 2013-2017
A62: Belarus | B62: Freshwater withdrawal as % of total actual renewable water resources (%) | K62: 2000 | L62: 7479 | M62: I
A63: Belarus | B63: Agricultural water withdrawal as % of total actual renewable water resources (%) | K63: 2000 | L63: 1448 | M63: I | S63: 2009 | T63: 0.1966 | U63: I
D65: 1988-1992 | H65: 1993-1997 | L65: 1998-2002 | P65: 2003-2007 | T65: 2008-2012 | X65: 2013-2017
A66: Belgium | B66: Freshwater withdrawal as % of total actual renewable water resources (%) | G66: 1997 | H66: 41.62 | I66: K | K66: 2002 | L66: 41.2 | M66: K | O66: 2007 | P66: 33.97 | Q66: K
A67: Belgium | B67: Agricultural water withdrawal as % of total actual renewable water resources (%) | G67: 1997 | H67: 0.0984 | I67: K | K67: 2002 | L67: 0.2077 | M67: K | O67: 2007 | P67: 0.2022 | Q67: K
D69: 1988-1992 | H69: 1993-1997 | L69: 1998-2002 | P69: 2003-2007 | T69: 2008-2012 | X69: 2013-2017
A70: Belize | B70: Freshwater withdrawal as % of total actual renewable water resources (%) | G70: 1997 | H70: 1064 | I70: K | K70: 2000 | L70: 1198 | M70: K
A71: Belize | B71: Agricultural water withdrawal as % of total actual renewable water resources (%) | C71: 1990 | D71: 0.1024 | E71: K | G71: 1997 | H71: 0.5515 | I71: K | K71: 2000 | L71: 0.5515 | M71: K
D73: 1988-1992 | H73: 1993-1997 | L73: 1998-2002 | P73: 2003-2007 | T73: 2008-2012 | X73: 2013-2017
A74: Benin | B74: Freshwater withdrawal as % of total actual renewable water resources (%) | K74: 2001 | L74: 0.4926 | M74: I
A75: Benin | B75: Agricultural water withdrawal as % of total actual renewable water resources (%) | C75: 1990 | D75: 0.3119 | E75: I | G75: 1994 | H75: 0.3676 | I75: I | K75: 2001 | L75: 0.2236 | M75: I
D77: 1988-1992 | H77: 1993-1997 | L77: 1998-2002 | P77: 2003-2007 | T77: 2008-2012 | X77: 2013-2017
A78: Bhutan | B78: Freshwater withdrawal as % of total actual renewable water resources (%) | S78: 2008 | T78: 0.4332 | U78: I
A79: Bhutan | B79: Agricultural water withdrawal as % of total actual renewable water resources (%) | S79: 2008 | T79: 0.4077 | U79: I
D81: 1988-1992 | H81: 1993-1997 | L81: 1998-2002 | P81: 2003-2007 | T81: 2008-2012 | X81: 2013-2017
A82: Bolivia | B82: Freshwater withdrawal as % of total actual renewable water resources (%) | K82: 2000 | L82: 0.4247 | M82: I
A83: Bolivia | B83: Agricultural water withdrawal as % of total actual renewable water resources (%) | K83: 1999 | L83: 0.2855 | M83: I
D85: 1988-1992 | H85: 1993-1997 | L85: 1998-2002 | P85: 2003-2007 | T85: 2008-2012 | X85: 2013-2017
A86: Bosnia and Herzegovina | B86: Freshwater withdrawal as % of total actual renewable water resources (%) | O86: 2005 | P86: 0.8907 | Q86: K | S86: 2012 | T86: 0.8773 | U86: K
A87: Bosnia and Herzegovina | B87: Agricultural water withdrawal as % of total actual renewable water resources (%)
D89: 1988-1992 | H89: 1993-1997 | L89: 1998-2002 | P89: 2003-2007 | T89: 2008-2012 | X89: 2013-2017
A90: Botswana | B90: Freshwater withdrawal as % of total actual renewable water resources (%) | C90: 1992 | D90: 0.9232 | E90: I | G90: 1995 | H90: 1172 | I90: I | K90: 2000 | L90: 1585 | M90: I
A91: Botswana | B91: Agricultural water withdrawal as % of total actual renewable water resources (%) | C91: 1992 | D91: 0.4412 | E91: I | G91: 1995 | H91: 0.5212 | I91: I | K91: 2000 | L91: 0.6536 | M91: I
D93: 1988-1992 | H93: 1993-1997 | L93: 1998-2002 | P93: 2003-2007 | T93: 2008-2012 | X93: 2013-2017
A94: Brazil | B94: Freshwater withdrawal as % of total actual renewable water resources (%) | G94: 1996 | H94: 0.67 | K94: 2000 | L94: 0.7203 | M94: I | O94: 2006 | P94: 0.7053 | Q94: I
A95: Brazil | B95: Agricultural water withdrawal as % of total actual renewable water resources (%) | G95: 1996 | H95: 0.406 | I95: I | K95: 2000 | L95: 0.4449 | M95: I | O95: 2006 | P95: 0.385 | Q95: I
D97: 1988-1992 | H97: 1993-1997 | L97: 1998-2002 | P97: 2003-2007 | T97: 2008-2012 | X97: 2013-2017
A98: Brunei Darussalam | B98: Freshwater withdrawal as % of total actual renewable water resources (%) | C98: 1991 | D98: 0.8941 | G98: 1994 | H98: 1082
A99: Brunei Darussalam | B99: Agricultural water withdrawal as % of total actual renewable water resources (%) | G99: 1995 | H99: 0.0624 | I99: I
D101: 1988-1992 | H101: 1993-1997 | L101: 1998-2002 | P101: 2003-2007 | T101: 2008-2012 | X101: 2013-2017
A102: Bulgaria | B102: Freshwater withdrawal as % of total actual renewable water resources (%) | C102: 1990 | D102: 35.18 | E102: K | K102: 2002 | L102: 26.71 | M102: K | O102: 2007 | P102: 29.11 | Q102: K | S102: 2009 | T102: 28.73 | U102: K
A103: Bulgaria | B103: Agricultural water withdrawal as % of total actual renewable water resources (%) | C103: 1990 | D103: 10.45 | E103: I | G103: 1997 | H103: 0.662 | I103: I | K103: 2002 | L103: 3488 | M103: K | O103: 2007 | P103: 4765 | Q103: K | S103: 2009 | T103: 4676 | U103: K
D105: 1988-1992 | H105: 1993-1997 | L105: 1998-2002 | P105: 2003-2007 | T105: 2008-2012 | X105: 2013-2017
A106: Burkina Faso | B106: Freshwater withdrawal as % of total actual renewable water resources (%) | C106: 1992 | D106: 3008 | E106: I | K106: 2001 | L106: 5726 | M106: I
A107: Burkina Faso | B107: Agricultural water withdrawal as % of total actual renewable water resources (%) | C107: 1992 | D107: 2424 | E107: I | K107: 2001 | L107: 3366 | M107: I
D109: 1988-1992 | H109: 1993-1997 | L109: 1998-2002 | P109: 2003-2007 | T109: 2008-2012 | X109: 2013-2017
A110: Burundi | B110: Freshwater withdrawal as % of total actual renewable water resources (%) | K110: 2000 | L110: 2297 | M110: I
A111: Burundi | B111: Agricultural water withdrawal as % of total actual renewable water resources (%) | K111: 2000 | L111: 1.77 | M111: I
D113: 1988-1992 | H113: 1993-1997 | L113: 1998-2002 | P113: 2003-2007 | T113: 2008-2012 | X113: 2013-2017
A114: Cambodia | B114: Freshwater withdrawal as % of total actual renewable water resources (%) | O114: 2006 | P114: 0.4587 | Q114: I
A115: Cambodia | B115: Agricultural water withdrawal as % of total actual renewable water resources (%) | O115: 2006 | P115: 0.4312 | Q115: I
D117: 1988-1992 | H117: 1993-1997 | L117: 1998-2002 | P117: 2003-2007 | T117: 2008-2012 | X117: 2013-2017
A118: Cameroon | B118: Freshwater withdrawal as % of total actual renewable water resources (%) | C118: 1992 | D118: 0.1401 | E118: I | K118: 2000 | L118: 0.3385 | M118: I
A119: Cameroon | B119: Agricultural water withdrawal as % of total actual renewable water resources (%) | C119: 1992 | D119: 0.049 | E119: I | K119: 2000 | L119: 0.2581 | M119: I
D121: 1988-1992 | H121: 1993-1997 | L121: 1998-2002 | P121: 2003-2007 | T121: 2008-2012 | X121: 2013-2017
A122: Canada | B122: Freshwater withdrawal as % of total actual renewable water resources (%)
A123: Canada | B123: Agricultural water withdrawal as % of total actual renewable water resources (%) | C123: 1991 | D123: 0.1375 | E123: K | G123: 1996 | H123: 0.1414 | I123: K | O123: 2007 | P123: 0.0778 | Q123: K | S123: 2010 | T123: 0.1636 | U123: I
D125: 1988-1992 | H125: 1993-1997 | L125: 1998-2002 | P125: 2003-2007 | T125: 2008-2012 | X125: 2013-2017
A126: Cape Verde | B126: Freshwater withdrawal as % of total actual renewable water resources (%) | K126: 2001 | L126: 6767 | M126: I
A127: Cape Verde | B127: Agricultural water withdrawal as % of total actual renewable water resources (%) | C127: 1990 | D127: 7333 | K127: 2000 | L127: 6667 | M127: I | O127: 2004 | P127: 8333 | Q127: I
D129: 1988-1992 | H129: 1993-1997 | L129: 1998-2002 | P129: 2003-2007 | T129: 2008-2012 | X129: 2013-2017
A130: Central African Republic | B130: Freshwater withdrawal as % of total actual renewable water resources (%) | K130: 2000 | L130: 0.0458 | M130: I | O130: 2005 | P130: 0.0502 | Q130: I
A131: Central African Republic | B131: Agricultural water withdrawal as % of total actual renewable water resources (%) | K131: 2000 | L131: 3.0E-4 | M131: I | O131: 2005 | P131: 3.0E-4 | Q131: I
D133: 1988-1992 | H133: 1993-1997 | L133: 1998-2002 | P133: 2003-2007 | T133: 2008-2012 | X133: 2013-2017
A134: Chad | B134: Freshwater withdrawal as % of total actual renewable water resources (%) | K134: 2002 | L134: 1975 | M134: I | O134: 2005 | P134: 2046 | Q134: I
A135: Chad | B135: Agricultural water withdrawal as % of total actual renewable water resources (%) | K135: 2002 | L135: 1563 | M135: I | O135: 2005 | P135: 1563 | Q135: I
D137: 1988-1992 | H137: 1993-1997 | L137: 1998-2002 | P137: 2003-2007 | T137: 2008-2012 | X137: 2013-2017
A138: Chile | B138: Freshwater withdrawal as % of total actual renewable water resources (%) | C138: 1992 | D138: 2201 | E138: I | K138: 2002 | L138: 2675 | M138: K | O138: 2007 | P138: 2893 | Q138: K
A139: Chile | B139: Agricultural water withdrawal as % of total actual renewable water resources (%) | C139: 1992 | D139: 1.84 | K139: 2002 | L139: 2309 | M139: K | O139: 2007 | P139: 2483 | Q139: K
D141: 1988-1992 | H141: 1993-1997 | L141: 1998-2002 | P141: 2003-2007 | T141: 2008-2012 | X141: 2013-2017
A142: China | B142: Freshwater withdrawal as % of total actual renewable water resources (%) | C142: 1990 | D142: 17.61 | E142: I | G142: 1993 | H142: 18.5 | I142: I | O142: 2005 | P142: 19.51 | Q142: I
A143: China | B143: Agricultural water withdrawal as % of total actual renewable water resources (%) | C143: 1990 | D143: 14.61 | E143: I | G143: 1993 | H143: 14.36 | I143: I | O143: 2005 | P143: 12.61 | Q143: I
D145: 1988-1992 | H145: 1993-1997 | L145: 1998-2002 | P145: 2003-2007 | T145: 2008-2012 | X145: 2013-2017
A146: Colombia | B146: Freshwater withdrawal as % of total actual renewable water resources (%) | G146: 1996 | H146: 0.42 | K146: 2000 | L146: 0.5933 | M146: I
A147: Colombia | B147: Agricultural water withdrawal as % of total actual renewable water resources (%) | G147: 1996 | H147: 0.15 | K147: 2000 | L147: 0.2308 | M147: I | S147: 2010 | T147: 0.2752 | U147: I
D149: 1988-1992 | H149: 1993-1997 | L149: 1998-2002 | P149: 2003-2007 | T149: 2008-2012 | X149: 2013-2017
A150: Comoros | B150: Freshwater withdrawal as % of total actual renewable water resources (%) | K150: 1999 | L150: 0.8333
A151: Comoros | B151: Agricultural water withdrawal as % of total actual renewable water resources (%) | K151: 1999 | L151: 0.3917
D153: 1988-1992 | H153: 1993-1997 | L153: 1998-2002 | P153: 2003-2007 | T153: 2008-2012 | X153: 2013-2017
A154: Congo | B154: Freshwater withdrawal as % of total actual renewable water resources (%) | K154: 2002 | L154: 0.0055 | M154: I
A155: Congo | B155: Agricultural water withdrawal as % of total actual renewable water resources (%) | K155: 2002 | L155: 5.0E-4 | M155: I
D157: 1988-1992 | H157: 1993-1997 | L157: 1998-2002 | P157: 2003-2007 | T157: 2008-2012 | X157: 2013-2017
A158: Cook Islands | B158: Freshwater withdrawal as % of total actual renewable water resources (%)
A159: Cook Islands | B159: Agricultural water withdrawal as % of total actual renewable water resources (%)
D161: 1988-1992 | H161: 1993-1997 | L161: 1998-2002 | P161: 2003-2007 | T161: 2008-2012 | X161: 2013-2017
A162: Costa Rica | B162: Freshwater withdrawal as % of total actual renewable water resources (%) | G162: 1997 | H162: 5135 | I162: I
A163: Costa Rica | B163: Agricultural water withdrawal as % of total actual renewable water resources (%) | G163: 1997 | H163: 4.1 | O163: 2006 | P163: 3624 | Q163: I
D165: 1988-1992 | H165: 1993-1997 | L165: 1998-2002 | P165: 2003-2007 | T165: 2008-2012 | X165: 2013-2017
A166: Cote d'Ivoire | B166: Freshwater withdrawal as % of total actual renewable water resources (%) | C166: 1990 | D166: 1356 | E166: I | G166: 1994 | H166: 1518 | I166: I | K166: 2000 | L166: 1737 | M166: I | O166: 2005 | P166: 1909 | Q166: I
A167: Cote d'Ivoire | B167: Agricultural water withdrawal as % of total actual renewable water resources (%) | G167: 1994 | H167: 0.986 | I167: I | K167: 2000 | L167: 0.7395 | M167: I | O167: 2005 | P167: 0.7337 | Q167: I | S167: 2008 | T167: 0.7337 | U167: I
D169: 1988-1992 | H169: 1993-1997 | L169: 1998-2002 | P169: 2003-2007 | T169: 2008-2012 | X169: 2013-2017
A170: Croatia | B170: Freshwater withdrawal as % of total actual renewable water resources (%) | S170: 2010 | T170: 0.5958 | U170: K
A171: Croatia | B171: Agricultural water withdrawal as % of total actual renewable water resources (%) | K171: 2002 | L171: 0.0056 | M171: I | O171: 2007 | P171: 0.0028 | Q171: K | S171: 2010 | T171: 0.0082 | U171: I
D173: 1988-1992 | H173: 1993-1997 | L173: 1998-2002 | P173: 2003-2007 | T173: 2008-2012 | X173: 2013-2017
A174: Cuba | B174: Freshwater withdrawal as % of total actual renewable water resources (%) | G174: 1995 | H174: 13.65 | I174: I | O174: 2007 | P174: 11.61 | Q174: I
A175: Cuba | B175: Agricultural water withdrawal as % of total actual renewable water resources (%) | G175: 1995 | H175: 6994 | I175: I | O175: 2007 | P175: 6495 | Q175: I | S175: 2010 | T175: 9363 | U175: I
D177: 1988-1992 | H177: 1993-1997 | L177: 1998-2002 | P177: 2003-2007 | T177: 2008-2012 | X177: 2013-2017
A178: Cyprus | B178: Freshwater withdrawal as % of total actual renewable water resources (%) | C178: 1990 | D178: 28.59 | E178: I | G178: 1995 | H178: 23.44 | K178: 2002 | L178: 21.92 | M178: K | O178: 2007 | P178: -6346 | Q178: K | S178: 2009 | T178: 19.29 | U178: K
A179: Cyprus | B179: Agricultural water withdrawal as % of total actual renewable water resources (%) | C179: 1990 | D179: 21.28 | E179: I | G179: 1993 | H179: 20.0 | I179: I | K179: 2002 | L179: 20.64 | M179: K | O179: 2007 | P179: 19.1 | Q179: K | S179: 2009 | T179: 20.38 | U179: K
D181: 1988-1992 | H181: 1993-1997 | L181: 1998-2002 | P181: 2003-2007 | T181: 2008-2012 | X181: 2013-2017
A182: Czech Republic | B182: Freshwater withdrawal as % of total actual renewable water resources (%) | G182: 1997 | H182: 18.96 | I182: K | K182: 2002 | L182: 13.32 | M182: K | O182: 2007 | P182: 12.92 | Q182: K
A183: Czech Republic | B183: Agricultural water withdrawal as % of total actual renewable water resources (%) | G183: 1997 | H183: 0.1521 | I183: K | K183: 2002 | L183: 0.1445 | M183: K | O183: 2007 | P183: 0.2281 | Q183: K | S183: 2009 | T183: 0.3042 | U183: K
D185: 1988-1992 | H185: 1993-1997 | L185: 1998-2002 | P185: 2003-2007 | T185: 2008-2012 | X185: 2013-2017
A186: Korea Democratic People's Republic of | B186: Freshwater withdrawal as % of total actual renewable water resources (%) | O186: 2005 | P186: 11.22 | Q186: I
A187: Korea Democratic People's Republic of | B187: Agricultural water withdrawal as % of total actual renewable water resources (%) | G187: 1995 | H187: 8568 | I187: I | O187: 2005 | P187: 8568 | Q187: I
D189: 1988-1992 | H189: 1993-1997 | L189: 1998-2002 | P189: 2003-2007 | T189: 2008-2012 | X189: 2013-2017
A190: Congo Democratic Republic of the | B190: Freshwater withdrawal as % of total actual renewable water resources (%) | K190: 2000 | L190: 0.0455 | M190: I | O190: 2005 | P190: 0.0533 | Q190: I
A191: Congo Democratic Republic of the | B191: Agricultural water withdrawal as % of total actual renewable water resources (%) | G191: 1995 | H191: 0.0065 | I191: I | K191: 2000 | L191: 0.0056 | M191: I | O191: 2005 | P191: 0.0056 | Q191: I
D193: 1988-1992 | H193: 1993-1997 | L193: 1998-2002 | P193: 2003-2007 | T193: 2008-2012 | X193: 2013-2017
A194: Denmark | B194: Freshwater withdrawal as % of total actual renewable water resources (%) | C194: 1990 | D194: 18.62 | E194: K | K194: 2002 | L194: 11.15 | M194: K | O194: 2007 | P194: 9.25 | Q194: K | S194: 2009 | T194: 10.75 | U194: K
A195: Denmark | B195: Agricultural water withdrawal as % of total actual renewable water resources (%) | C195: 1990 | D195: 7.75 | E195: K | G195: 1997 | H195: 6.19 | I195: K | K195: 2002 | L195: 2753 | M195: K | O195: 2007 | P195: 1.95 | Q195: K | S195: 2009 | T195: 3967 | U195: K
D197: 1988-1992 | H197: 1993-1997 | L197: 1998-2002 | P197: 2003-2007 | T197: 2008-2012 | X197: 2013-2017
A198: Djibouti | B198: Freshwater withdrawal as % of total actual renewable water resources (%) | K198: 2000 | L198: 6267 | M198: I
A199: Djibouti | B199: Agricultural water withdrawal as % of total actual renewable water resources (%) | K199: 2000 | L199: 1.0 | M199: I
D201: 1988-1992 | H201: 1993-1997 | L201: 1998-2002 | P201: 2003-2007 | T201: 2008-2012 | X201: 2013-2017
A202: Dominica | B202: Freshwater withdrawal as % of total actual renewable water resources (%)
A203: Dominica | B203: Agricultural water withdrawal as % of total actual renewable water resources (%)
D205: 1988-1992 | H205: 1993-1997 | L205: 1998-2002 | P205: 2003-2007 | T205: 2008-2012 | X205: 2013-2017
A206: Dominican Republic | B206: Freshwater withdrawal as % of total actual renewable water resources (%) | G206: 1994 | H206: 39.71 | K206: 2000 | L206: 16.5 | M206: I | O206: 2005 | P206: 26.06 | Q206: I
A207: Dominican Republic | B207: Agricultural water withdrawal as % of total actual renewable water resources (%) | G207: 1994 | H207: 35.0 | K207: 2000 | L207: 10.67 | M207: I | O207: 2004 | P207: 18.8 | Q207: I
D209: 1988-1992 | H209: 1993-1997 | L209: 1998-2002 | P209: 2003-2007 | T209: 2008-2012 | X209: 2013-2017
A210: Ecuador | B210: Freshwater withdrawal as % of total actual renewable water resources (%) | G210: 1997 | H210: 4003 | I210: I | K210: 2000 | L210: 2207 | M210: I | O210: 2005 | P210: 2337 | Q210: I
A211: Ecuador | B211: Agricultural water withdrawal as % of total actual renewable water resources (%) | G211: 1997 | H211: 3282 | K211: 2000 | L211: 1903 | M211: I | O211: 2005 | P211: 1903 | Q211: I
D213: 1988-1992 | H213: 1993-1997 | L213: 1998-2002 | P213: 2003-2007 | T213: 2008-2012 | X213: 2013-2017
A214: Egypt | B214: Freshwater withdrawal as % of total actual renewable water resources (%) | G214: 1995 | H214: 102.3 | I214: I | K214: 2000 | L214: 96.56 | M214: I
A215: Egypt | B215: Agricultural water withdrawal as % of total actual renewable water resources (%) | G215: 1995 | H215: 88.5 | I215: I | K215: 2000 | L215: 103.0
D217: 1988-1992 | H217: 1993-1997 | L217: 1998-2002 | P217: 2003-2007 | T217: 2008-2012 | X217: 2013-2017
A218: El Salvador | B218: Freshwater withdrawal as % of total actual renewable water resources (%) | C218: 1992 | D218: 2889 | E218: I | K218: 2000 | L218: 5454 | M218: I | O218: 2007 | P218: 7301 | Q218: I
A219: El Salvador | B219: Agricultural water withdrawal as % of total actual renewable water resources (%) | C219: 1992 | D219: 1332 | E219: I | K219: 2000 | L219: 3012 | M219: I | O219: 2007 | P219: 4661 | Q219: I
D221: 1988-1992 | H221: 1993-1997 | L221: 1998-2002 | P221: 2003-2007 | T221: 2008-2012 | X221: 2013-2017
A222: Equatorial Guinea | B222: Freshwater withdrawal as % of total actual renewable water resources (%) | K222: 2000 | L222: 0.0669 | M222: I
A223: Equatorial Guinea | B223: Agricultural water withdrawal as % of total actual renewable water resources (%) | K223: 2000 | L223: 0.0038 | M223: I
D225: 1988-1992 | H225: 1993-1997 | L225: 1998-2002 | P225: 2003-2007 | T225: 2008-2012 | X225: 2013-2017
A226: Eritrea | B226: Freshwater withdrawal as % of total actual renewable water resources (%) | K226: 2000 | L226: 6562 | M226: I | O226: 2004 | P226: 9238 | Q226: I
A227: Eritrea | B227: Agricultural water withdrawal as % of total actual renewable water resources (%) | K227: 2000 | L227: 4603 | M227: I | O227: 2004 | P227: 8.73 | Q227: I
D229: 1988-1992 | H229: 1993-1997 | L229: 1998-2002 | P229: 2003-2007 | T229: 2008-2012 | X229: 2013-2017
A230: Estonia | B230: Freshwater withdrawal as % of total actual renewable water resources (%) | G230: 1995 | H230: 1234 | K230: 2002 | L230: 11.37 | M230: K | O230: 2007 | P230: 14.02 | Q230: K
A231: Estonia | B231: Agricultural water withdrawal as % of total actual renewable water resources (%) | G231: 1995 | H231: 0.0625 | I231: I | K231: 2002 | L231: 0.2342 | M231: K | O231: 2007 | P231: 0.0625 | Q231: K | S231: 2009 | T231: 0.0312 | U231: K
D233: 1988-1992 | H233: 1993-1997 | L233: 1998-2002 | P233: 2003-2007 | T233: 2008-2012 | X233: 2013-2017
A234: Ethiopia | B234: Freshwater withdrawal as % of total actual renewable water resources (%) | K234: 2002 | L234: 4556 | M234: I
A235: Ethiopia | B235: Agricultural water withdrawal as % of total actual renewable water resources (%) | K235: 2002 | L235: 4266 | M235: I
D237: 1988-1992 | H237: 1993-1997 | L237: 1998-2002 | P237: 2003-2007 | T237: 2008-2012 | X237: 2013-2017
A238: Faroe Islands | B238: Freshwater withdrawal as % of total actual renewable water resources (%)
A239: Faroe Islands | B239: Agricultural water withdrawal as % of total actual renewable water resources (%)
D241: 1988-1992 | H241: 1993-1997 | L241: 1998-2002 | P241: 2003-2007 | T241: 2008-2012 | X241: 2013-2017
A242: Fiji | B242: Freshwater withdrawal as % of total actual renewable water resources (%) | K242: 2000 | L242: 0.2862 | M242: K
A243: Fiji | B243: Agricultural water withdrawal as % of total actual renewable water resources (%) | K243: 2000 | L243: 0.1751 | M243: K
D245: 1988-1992 | H245: 1993-1997 | L245: 1998-2002 | P245: 2003-2007 | T245: 2008-2012 | X245: 2013-2017
A246: Finland | B246: Freshwater withdrawal as % of total actual renewable water resources (%) | C246: 1990 | D246: 2134 | E246: K | G246: 1995 | H246: 2351 | I246: K | K246: 2002 | L246: 2064 | M246: K | O246: 2005 | P246: 1485 | Q246: K
A247: Finland | B247: Agricultural water withdrawal as % of total actual renewable water resources (%) | C247: 1990 | D247: 0.0182 | E247: K | G247: 1995 | H247: 0.0455 | I247: K | K247: 2002 | L247: 0.0455 | M247: K | O247: 2005 | P247: 0.0455 | Q247: K
D249: 1988-1992 | H249: 1993-1997 | L249: 1998-2002 | P249: 2003-2007 | T249: 2008-2012 | X249: 2013-2017
A250: France | B250: Freshwater withdrawal as % of total actual renewable water resources (%) | C250: 1990 | D250: 17.86 | E250: K | G250: 1997 | H250: 14.38 | I250: K | K250: 2002 | L250: 15.34 | M250: K | O250: 2007 | P250: 14.98 | Q250: K
A251: France | B251: Agricultural water withdrawal as % of total actual renewable water resources (%) | C251: 1990 | D251: 2315 | E251: K | G251: 1997 | H251: 1588 | I251: K | K251: 2002 | L251: 2.15 | M251: K | O251: 2007 | P251: 1859 | Q251: K | S251: 2009 | T251: 1.49 | U251: I
D253: 1988-1992 | H253: 1993-1997 | L253: 1998-2002 | P253: 2003-2007 | T253: 2008-2012 | X253: 2013-2017
A254: Gabon | B254: Freshwater withdrawal as % of total actual renewable water resources (%) | K254: 2000 | L254: 0.0734 | M254: I | O254: 2005 | P254: 0.0848 | Q254: I
A255: Gabon | B255: Agricultural water withdrawal as % of total actual renewable water resources (%) | K255: 2000 | L255: 0.0246 | M255: I | O255: 2005 | P255: 0.0246 | Q255: I
D257: 1988-1992 | H257: 1993-1997 | L257: 1998-2002 | P257: 2003-2007 | T257: 2008-2012 | X257: 2013-2017
A258: Gambia | B258: Freshwater withdrawal as % of total actual renewable water resources (%) | K258: 2000 | L258: 1131 | M258: I
A259: Gambia | B259: Agricultural water withdrawal as % of total actual renewable water resources (%) | K259: 1999 | L259: 0.49 | M259: I
D261: 1988-1992 | H261: 1993-1997 | L261: 1998-2002 | P261: 2003-2007 | T261: 2008-2012 | X261: 2013-2017
A262: Georgia | B262: Freshwater withdrawal as % of total actual renewable water resources (%) | O262: 2005 | P262: 2863 | Q262: I | S262: 2008 | T262: 2879 | U262: I
A263: Georgia | B263: Agricultural water withdrawal as % of total actual renewable water resources (%) | O263: 2005 | P263: 1666 | Q263: I
D265: 1988-1992 | H265: 1993-1997 | L265: 1998-2002 | P265: 2003-2007 | T265: 2008-2012 | X265: 2013-2017
A266: Germany | B266: Freshwater withdrawal as % of total actual renewable water resources (%) | G266: 1995 | H266: 29.35 | I266: I | K266: 2001 | L266: 25.4 | M266: K | O266: 2007 | P266: 20.97 | Q266: K
... 404 more rows

Sheet DATA-WHO-Sanitation (hidden)
E1: Population | H1: Sanitation
E2: Urban | F2: Rural | G2: National | H2: Urban | M2: Rural | R2: National
H3: Improved | I3: Unimproved | M3: Improved | N3: Unimproved | R3: Improved | S3: Unimproved
A4: Country | B4: region WHO | C4: region UNICEF | D4: Year | E4: x1000 | F4: x1000 | G4: x1000 | H4: Total Improved (x1000) | I4: Total Unimproved (x1000) | J4: Shared (x1000) | K4: Other Unimproved (x1000) | L4: Open Defecation (x1000) | M4: Total Improved (x1000) | N4: Total Unimproved (x1000) | O4: Shared (x1000) | P4: Other Unimproved (x1000) | Q4: Open Defecation (x1000) | R4: Total Improved (x1000) | S4: Total Unimproved (x1000) | T4: Shared (x1000) | U4: Other Unimproved (x1000) | V4: Open Defecation (x1000)
A5: Afghanistan | B5: Eastern Mediterranean | C5: South Asia | D5: 2011 | E5: 7612.58 | F5: 24745.68 | G5: 32358.26 | H5: 3468.481 | I5: 4144.099 | J5: 1551.578 | K5: 2592.521 | L5: 0 | M5: 5747.928 | N5: 18997.752 | O5: 1923.243 | P5: 11805.418 | Q5: 5269.09 | R5: 9216.41 | S5: 23141.85 | T5: 3474.821 | U5: 14397.939 | V5: 5269.09
A6: Albania | B6: Europe | C6: CEE/CIS | D6: 2011 | E6: 1718.076 | F6: 1497.912 | G6: 3215.988 | H6: 1626.643 | I6: 91.433 | J6: 72.305 | K6: 19.128 | L6: 0 | M6: 1393.4 | N6: 104.512 | O6: 102.853 | P6: 1.66 | Q6: 0 | R6: 3020.043 | S6: 195.945 | T6: 175.158 | U6: 20.787 | V6: 0
A7: Algeria | B7: Africa | C7: Middle East and North Africa | D7: 2011 | E7: 26250.423 | F7: 9729.77 | G7: 35980.193 | H7: 25630.407 | I7: 620.016 | K7: 361.262 | L7: 258.754 | M7: 8600.31 | N7: 1129.46 | P7: 163.433 | Q7: 966.027 | R7: 34230.717 | S7: 1749.476 | U7: 524.695 | V7: 1224.781
A8: American Samoa | B8: Western Pacific | D8: 2011 | E8: 64.844 | F8: 4.699 | G8: 69.543 | H8: 62.834 | I8: 2.01 | K8: 2.01 | M8: 4.553 | N8: 0.146 | P8: 0.146 | R8: 67.387 | S8: 2.156 | U8: 2.156
A9: Andorra | B9: Europe | C9: Industrialized countries | D9: 2011 | E9: 75.187 | F9: 10.978 | G9: 86.165 | H9: 75.187 | I9: 0 | J9: 0 | K9: 0 | L9: 0 | M9: 10.978 | N9: 0 | O9: 0 | P9: 0 | Q9: 0 | R9: 86.165 | S9: 0 | T9: 0 | U9: 0 | V9: 0
A10: Angola | B10: Africa | C10: Eastern and Southern Africa | D10: 2011 | E10: 11612.62 | F10: 8005.812 | G10: 19618.432 | H10: 9961.429 | I10: 1651.191 | K10: 1322.827 | L10: 328.364 | M10: 1552.514 | N10: 6453.298 | P10: 1735.554 | Q10: 4717.744 | R10: 11513.943 | S10: 8104.489 | U10: 3058.381 | V10: 5046.108
A11: Anguilla | B11: The Americas | D11: 2011 | E11: 15.645 | F11: 0 | G11: 15.645 | H11: 15.311 | I11: 0.334 | K11: 0.006 | L11: 0.329 | R11: 15.311 | S11: 0.334 | U11: 0.006 | V11: 0.329
A12: Antigua and Barbuda | B12: The Americas | C12: Latin America and Caribbean | D12: 2011 | E12: 26.72 | F12: 62.892 | G12: 89.612 | H12: 24.43 | I12: 2.29 | K12: 2.284 | L12: 0.007 | M12: 57.501 | N12: 5.391 | P12: 5.375 | Q12: 0.016 | R12: 81.93 | S12: 7.682 | U12: 7.659 | V12: 0.023
A13: Argentina | B13: The Americas | C13: Latin America and Caribbean | D13: 2011 | E13: 37712.06 | F13: 3052.501 | G13: 40764.561 | H13: 36257.154 | I13: 1454.906 | J13: 901.189 | K13: 386.095 | L13: 167.622 | M13: 2993.391 | N13: 59.11 | O13: 50.904 | P13: 8.206 | Q13: 0 | R13: 39250.546 | S13: 1514.015 | T13: 952.093 | U13: 394.301 | V13: 167.622
A14: Armenia | B14: Europe | C14: CEE/CIS | D14: 2011 | E14: 1986.691 | F14: 1113.545 | G14: 3100.236 | H14: 1904.751 | I14: 81.94 | J14: 58.977 | K14: 22.963 | L14: 0 | M14: 896.924 | N14: 216.621 | O14: 35.471 | P14: 181.15 | Q14: 0 | R14: 2801.675 | S14: 298.561 | T14: 94.448 | U14: 204.113 | V14: 0
A15: Aruba | B15: The Americas | D15: 2011 | E15: 50.662 | F15: 57.479 | G15: 108.141 | H15: 49.498 | I15: 1.164 | K15: 0.444 | L15: 0.72 | M15: 56.158 | N15: 1.321 | P15: 0.504 | Q15: 0.817 | R15: 105.655 | S15: 2.486 | U15: 0.948 | V15: 1.537
A16: Australia | B16: Western Pacific | C16: Industrialized countries | D16: 2011 | E16: 20164.834 | F16: 2440.898 | G16: 22605.732 | H16: 20164.834 | I16: 0 | J16: 0 | K16: 0 | L16: 0 | M16: 2440.898 | N16: 0 | O16: 0 | P16: 0 | Q16: 0 | R16: 22605.732 | S16: 0 | T16: 0 | U16: 0 | V16: 0
A17: Austria | B17: Europe | C17: Industrialized countries | D17: 2011 | E17: 5692.147 | F17: 2721.282 | G17: 8413.429 | H17: 5692.147 | I17: 0 | J17: 0 | K17: 0 | L17: 0 | M17: 2721.282 | N17: 0 | O17: 0 | P17: 0 | Q17: 0 | R17: 8413.429 | S17: 0 | T17: 0 | U17: 0 | V17: 0
A18: Azerbaijan | B18: Europe | C18: CEE/CIS | D18: 2011 | E18: 4990.173 | F18: 4315.85 | G18: 9306.023 | H18: 4288.025 | I18: 702.148 | J18: 535.282 | K18: 161.893 | L18: 4.973 | M18: 3344.997 | N18: 970.853 | O18: 116.27 | P18: 827.146 | Q18: 27.438 | R18: 7633.022 | S18: 1673.001 | T18: 651.551 | U18: 989.039 | V18: 32.411
A19: Bahamas | B19: The Americas | D19: 2011 | E19: 292.527 | F19: 54.649 | G19: 347.176
A20: Bahrain | B20: Eastern Mediterranean | C20: Middle East and North Africa | D20: 2011 | E20: 1173.653 | F20: 149.882 | G20: 1323.535 | H20: 1164.236 | I20: 9.417 | K20: 9.417 | L20: 0 | M20: 148.679 | N20: 1.203 | P20: 1.203 | Q20: 0 | R20: 1312.915 | S20: 10.62 | U20: 10.62 | V20: 0
A21: Bangladesh | B21: South-East Asia | C21: South Asia | D21: 2011 | E21: 42698.296 | F21: 107795.362 | G21: 150493.658 | H21: 23614.217 | I21: 19084.079 | J21: 12728.15 | K21: 5709.947 | L21: 645.981 | M21: 58751.405 | N21: 49043.957 | O21: 28241.282 | P21: 15637.009 | Q21: 5165.665 | R21: 82365.622 | S21: 68128.036 | T21: 40969.433 | U21: 21346.957 | V21: 5811.646
A22: Barbados | B22: The Americas | C22: Latin America and Caribbean | D22: 2011 | E22: 121.657 | F22: 152.268 | G22: 273.925
A23: Belarus | B23: Europe | C23: CEE/CIS | D23: 2011 | E23: 7173.85 | F23: 2385.591 | G23: 9559.441 | H23: 6569.753 | I23: 604.097 | J23: 597.253 | K23: 6.844 | L23: 0 | M23: 2319.662 | N23: 65.929 | O23: 57.69 | P23: 8.239 | Q23: 0 | R23: 8889.415 | S23: 670.026 | T23: 654.943 | U23: 15.083 | V23: 0
A24: Belgium | B24: Europe | C24: Industrialized countries | D24: 2011 | E24: 10483.798 | F24: 270.258 | G24: 10754.056 | H24: 10483.798 | I24: 0 | J24: 0 | K24: 0 | L24: 0 | M24: 270.258 | N24: 0 | O24: 0 | P24: 0 | Q24: 0 | R24: 10754.056 | S24: 0 | T24: 0 | U24: 0 | V24: 0
A25: Belize | B25: The Americas | C25: Latin America and Caribbean | D25: 2011 | E25: 142.183 | F25: 175.745 | G25: 317.928 | H25: 132.372 | I25: 9.811 | J25: 9.811 | K25: 0 | L25: 0 | M25: 153.301 | N25: 22.444 | O25: 11.894 | P25: 6.021 | Q25: 4.53 | R25: 285.673 | S25: 32.255 | T25: 21.705 | U25: 6.021 | V25: 4.53
A26: Benin | B26: Africa | C26: West and Central Africa | D26: 2011 | E26: 4087.327 | F26: 5012.595 | G26: 9099.922 | H26: 1034.012 | I26: 3053.315 | J26: 1508.025 | K26: 438.458 | L26: 1106.831 | M26: 255.735 | N26: 4756.86 | O26: 604.764 | P26: 318.421 | Q26: 3833.674 | R26: 1289.748 | S26: 7810.174 | T26: 2112.789 | U26: 756.88 | V26: 4940.505
A27: Bermuda | B27: The Americas | D27: 2011 | E27: 65.077 | F27: 0 | G27: 65.077
A28: Bhutan | B28: South-East Asia | C28: South Asia | D28: 2011 | E28: 262.714 | F28: 475.553 | G28: 738.267 | H28: 194.063 | I28: 68.651 | J28: 55.055 | K28: 12.389 | L28: 1.207 | M28: 139.515 | N28: 336.038 | O28: 134.044 | P28: 180.025 | Q28: 21.969 | R28: 333.578 | S28: 404.689 | T28: 189.099 | U28: 192.414 | V28: 23.176
A29: Bolivia | B29: The Americas | C29: Latin America and Caribbean | D29: 2011 | E29: 6741.184 | F29: 3346.924 | G29: 10088.108 | H29: 3875.324 | I29: 2865.86 | J29: 1887.721 | K29: 667.308 | L29: 310.831 | M29: 794.426 | N29: 2552.498 | O29: 177.52 | P29: 735.836 | Q29: 1639.141 | R29: 4669.75 | S29: 5418.358 | T29: 2065.241 | U29: 1403.144 | V29: 1949.973
A30: Bosnia and Herzegovina | B30: Europe | C30: CEE/CIS | D30: 2011 | E30: 1810.654 | F30: 1941.574 | G30: 3752.228 | H30: 1805.459 | I30: 5.195 | J30: 0 | K30: 5.195 | L30: 0 | M30: 1788.959 | N30: 152.615 | O30: 13.961 | P30: 138.654 | Q30: 0 | R30: 3594.418 | S30: 157.81 | T30: 13.961 | U30: 143.85 | V30: 0
A31: Botswana | B31: Africa | C31: Eastern and Southern Africa | D31: 2011 | E31: 1251.99 | F31: 778.748 | G31: 2030.738 | H31: 974.76 | I31: 277.23 | J31: 80.472 | K31: 194.948 | L31: 1.81 | M31: 325.629 | N31: 453.119 | O31: 84.441 | P31: 98.975 | Q31: 269.704 | R31: 1300.389 | S31: 730.349 | T31: 164.912 | U31: 293.923 | V31: 271.514
A32: Brazil | B32: The Americas | C32: Latin America and Caribbean | D32: 2011 | E32: 166414.446 | F32: 30240.568 | G32: 196655.014 | H32: 144269.033 | I32: 22145.413 | J32: 2182.274 | K32: 18492.236 | L32: 1470.903 | M32: 14628.425 | N32: 15612.143 | O32: 260.187 | P32: 9902.476 | Q32: 5449.48 | R32: 158897.458 | S32: 37757.556 | T32: 2442.461 | U32: 28394.712 | V32: 6920.383
A33: British Virgin Islands | B33: The Americas | C33: Latin America and Caribbean | D33: 2011 | E33: 9.54 | F33: 13.938 | G33: 23.478 | H33: 9.302 | I33: 0.239 | K33: 0.153 | L33: 0.086 | M33: 13.59 | N33: 0.348 | P33: 0.223 | Q33: 0.125 | R33: 22.891 | S33: 0.587 | U33: 0.376 | V33: 0.211
A34: Brunei Darussalam | B34: Western Pacific | D34: 2011 | E34: 308.433 | F34: 97.505 | G34: 405.938
A35: Bulgaria | B35: Europe | C35: CEE/CIS | D35: 2011 | E35: 5444.76 | F35: 2001.375 | G35: 7446.135 | H35: 5444.76 | I35: 0 | J35: 0 | K35: 0 | L35: 0 | M35: 2001.375 | N35: 0 | O35: 0 | P35: 0 | Q35: 0 | R35: 7446.135 | S35: 0 | T35: 0 | U35: 0 | V35: 0
A36: Burkina Faso | B36: Africa | C36: West and Central Africa | D36: 2011 | E36: 4497.868 | F36: 12469.977 | G36: 16967.845 | H36: 2252.018 | I36: 2245.85 | J36: 1613.263 | K36: 217.092 | L36: 415.495 | M36: 805.589 | N36: 11664.388 | O36: 1175.433 | P36: 1088.385 | Q36: 9400.57 | R36: 3057.608 | S36: 13910.237 | T36: 2788.695 | U36: 1305.477 | V36: 9816.065
A37: Burundi | B37: Africa | C37: Eastern and Southern Africa | D37: 2011 | E37: 935.872 | F37: 7639.3 | G37: 8575.172 | H37: 419.918 | I37: 515.954 | J37: 336.018 | K37: 163.106 | L37: 16.83 | M37: 3871.992 | N37: 3767.308 | O37: 437.338 | P37: 3126.135 | Q37: 203.835 | R37: 4291.91 | S37: 4283.262 | T37: 773.356 | U37: 3289.241 | V37: 220.665
A38: Cambodia | B38: Western Pacific | C38: East Asia and the Pacific | D38: 2011 | E38: 2857.392 | F38: 11447.791 | G38: 14305.183 | H38: 2184.202 | I38: 673.19 | J38: 293.912 | K38: 18.424 | L38: 360.855 | M38: 2548.307 | N38: 8899.484 | O38: 619.646 | P38: 375.753 | Q38: 7904.085 | R38: 4732.509 | S38: 9572.674 | T38: 913.557 | U38: 394.177 | V38: 8264.94
A39: Cameroon | B39: Africa | C39: West and Central Africa | D39: 2011 | E39: 10434.718 | F39: 9595.644 | G39: 20030.362 | H39: 6084.858 | I39: 4349.86 | J39: 1885.172 | K39: 2403.917 | L39: 60.77 | M39: 3490.616 | N39: 6105.028 | O39: 798.048 | P39: 4122.493 | Q39: 1184.488 | R39: 9575.474 | S39: 10454.888 | T39: 2683.22 | U39: 6526.41 | V39: 1245.258
A40: Canada | B40: The Americas | C40: Industrialized countries | D40: 2011 | E40: 27704.117 | F40: 6645.444 | G40: 34349.561 | H40: 27704.117 | I40: 0 | J40: 0 | K40: 0 | L40: 0 | M40: 6578.99 | N40: 66.454 | P40: 66.454 | R40: 34283.107 | S40: 66.454 | U40: 66.454
A41: Cape Verde | B41: Africa | C41: West and Central Africa | D41: 2011 | E41: 313.5 | F41: 187.085 | G41: 500.585 | H41: 232.024 | I41: 81.476 | K41: 24.246 | L41: 57.23 | M41: 84.798 | N41: 102.287 | P41: 24.406 | Q41: 77.882 | R41: 316.821 | S41: 183.764 | U41: 48.652 | V41: 135.111
A42: Cayman Islands | B42: The Americas | D42: 2011 | E42: 56.729 | F42: 0 | G42: 56.729 | H42: 54.602 | I42: 2.127 | K42: 2.127 | R42: 54.602 | S42: 2.127 | U42: 2.127
A43: Central African Republic | B43: Africa | C43: West and Central Africa | D43: 2011 | E43: 1752.658 | F43: 2734.179 | G43: 4486.837 | H43: 755.458 | I43: 997.2 | J43: 427.076 | K43: 523.315 | L43: 46.808 | M43: 760.609 | N43: 1973.57 | O43: 381.629 | P43: 745.263 | Q43: 846.678 | R43: 1516.067 | S43: 2970.77 | T43: 808.705 | U43: 1268.579 | V43: 893.486
A44: Chad | B44: Africa | C44: West and Central Africa | D44: 2011 | E44: 2511.742 | F44: 9013.754 | G44: 11525.496 | H44: 777.025 | I44: 1734.717 | J44: 448.809 | K44: 924.791 | L44: 361.117 | M44: 575.106 | N44: 8438.648 | O44: 82.624 | P44: 1174.683 | Q44: 7181.342 | R44: 1352.13 | S44: 10173.366 | T44: 531.433 | U44: 2099.474 | V44: 7542.459
A45: Channel Islands | B45: Europe | D45: 2011 | E45: 48.008 | F45: 105.868 | G45: 153.876
A46: Chile | B46: The Americas | C46: Latin America and Caribbean | D46: 2011 | E46: 15398.823 | F46: 1870.702 | G46: 17269.525 | H46: 15375.409 | I46: 23.414 | K46: 23.414 | L46: 0 | M46: 1672.753 | N46: 197.949 | P46: 167.49 | Q46: 30.459 | R46: 17048.162 | S46: 221.363 | U46: 190.904 | V46: 30.459
A47: China | B47: Western Pacific | C47: East Asia and the Pacific | D47: 2011 | E47: 681507.52 | F47: 666057.804 | G47: 1347565.324 | H47: 504879.002 | I47: 176628.518 | J47: 163016.469 | K47: 13612.049 | L47: 0 | M47: 371979.307 | N47: 294078.497 | O47: 93459.769 | P47: 190515.515 | Q47: 10103.213 | R47: 876858.309 | S47: 470707.015 | T47: 256476.238 | U47: 204127.565 | V47: 10103.213
A48: China, Hong Kong SAR | C48: Industrialized countries | D48: 2011 | E48: 7122.187 | F48: 0 | G48: 7122.187
A49: China, Macao SAR | D49: 2011 | E49: 555.731 | F49: 0 | G49: 555.731
A50: Colombia | B50: The Americas | C50: Latin America and Caribbean | D50: 2011 | E50: 35335.611 | F50: 11591.514 | G50: 46927.125 | H50: 29085.528 | I50: 6250.083 | J50: 5224.392 | K50: 480.334 | L50: 545.357 | M50: 7580.923 | N50: 4010.591 | O50: 732.243 | P50: 1191.367 | Q50: 2086.981 | R50: 36666.451 | S50: 10260.674 | T50: 5956.635 | U50: 1671.701 | V50: 2632.338
A51: Comoros | B51: Africa | C51: Eastern and Southern Africa | D51: 2011 | E51: 211.381 | F51: 542.562 | G51: 753.943
A52: Congo | B52: Africa | C52: West and Central Africa | D52: 2011 | E52: 2635.264 | F52: 1504.484 | G52: 4139.748 | H52: 512.783 | I52: 2122.481 | J52: 1030.719 | K52: 1006.338 | L52: 85.424 | M52: 223.094 | N52: 1281.39 | O52: 371.628 | P52: 652.035 | Q52: 257.726 | R52: 735.877 | S52: 3403.871 | T52: 1402.347 | U52: 1658.373 | V52: 343.15
A53: Cook Islands | B53: Western Pacific | C53: East Asia and the Pacific | D53: 2011 | E53: 15.007 | F53: 5.407 | G53: 20.414 | H53: 14.196 | I53: 0.811 | K53: 0.643 | L53: 0.168 | M53: 5.115 | N53: 0.292 | P53: 0.232 | Q53: 0.061 | R53: 19.311 | S53: 1.103 | U53: 0.874 | V53: 0.229
A54: Costa Rica | B54: The Americas | C54: Latin America and Caribbean | D54: 2011 | E54: 3056.159 | F54: 1670.416 | G54: 4726.575 | H54: 2898.466 | I54: 157.693 | J54: 120.409 | K54: 29.237 | L54: 8.047 | M54: 1530.73 | N54: 139.686 | O54: 70.775 | P54: 68.911 | Q54: 0 | R54: 4429.196 | S54: 297.379 | T54: 191.183 | U54: 98.149 | V54: 8.047
A55: Cote d'Ivoire | B55: Africa | C55: West and Central Africa | D55: 2011 | E55: 10338.93 | F55: 9813.964 | G55: 20152.894 | H55: 3698.472 | I55: 6640.458 | J55: 2388.596 | K55: 3673.757 | L55: 578.105 | M55: 1123.346 | N55: 8690.618 | O55: 1187.537 | P55: 2622.564 | Q55: 4880.516 | R55: 4821.818 | S55: 15331.076 | T55: 3576.133 | U55: 6296.322 | V55: 5458.621
A56: Croatia | B56: Europe | C56: CEE/CIS | D56: 2011 | E56: 2540.642 | F56: 1854.918 | G56: 4395.56 | H56: 2505.989 | I56: 34.653 | J56: 16.106 | K56: 10.417 | L56: 8.13 | M56: 1810.545 | N56: 44.373 | O56: 12.098 | P56: 21.332 | Q56: 10.944 | R56: 4316.534 | S56: 79.026 | T56: 28.204 | U56: 31.748 | V56: 19.074
A57: Cuba | B57: The Americas | C57: Latin America and Caribbean | D57: 2011 | E57: 8458.912 | F57: 2794.753 | G57: 11253.665 | H57: 7923.308 | I57: 535.604 | J57: 395.126 | K57: 103.761 | L57: 36.717 | M57: 2439.008 | N57: 355.745 | O57: 181.426 | P57: 115.936 | Q57: 58.383 | R57: 10362.316 | S57: 891.349 | T57: 576.551 | U57: 219.697 | V57: 95.1
A58: Cyprus | B58: Europe | D58: 2011 | E58: 787.15 | F58: 329.414 | G58: 1116.564 | H58: 787.15 | I58: 0 | J58: 0 | K58: 0 | L58: 0 | M58: 329.414 | N58: 0 | O58: 0 | P58: 0 | Q58: 0 | R58: 1116.564 | S58: 0 | T58: 0 | U58: 0 | V58: 0
A59: Czech Republic | B59: Europe | C59: Industrialized countries | D59: 2011 | E59: 7733.913 | F59: 2800.38 | G59: 10534.293 | H59: 7733.522 | I59: 0.391 | J59: 0 | K59: 0.391 | L59: 0 | M59: 2800.168 | N59: 0.212 | O59: 0 | P59: 0.212 | Q59: 0 | R59: 10533.69 | S59: 0.603 | T59: 0 | U59: 0.603 | V59: 0
A60: Korea Democratic People's Republic of | B60: South-East Asia | C60: East Asia and the Pacific | D60: 2011 | E60: 14747.909 | F60: 9703.376 | G60: 24451.285 | H60: 12969.041 | I60: 1778.869 | J60: 898.328 | K60: 880.541 | M60: 7038.801 | N60: 2664.575 | O60: 258.797 | P60: 2405.778 | R60: 20007.842 | S60: 4443.443 | T60: 1157.125 | U60: 3286.319
A61: Congo Democratic Republic of the | B61: Africa | C61: West and Central Africa | D61: 2011 | E61: 23221.022 | F61: 44536.555 | G61: 67757.577 | H61: 6785.01 | I61: 16436.012 | J61: 5778.367 | K61: 10320.948 | L61: 336.697 | M61: 14027.045 | N61: 30509.51 | O61: 5588.12 | P61: 19189.64 | Q61: 5731.75 | R61: 20812.055 | S61: 46945.522 | T61: 11366.487 | U61: 29510.588 | V61: 6068.447
A62: Denmark | B62: Europe | C62: Industrialized countries | D62: 2011 | E62: 4844.502 | F62: 728.092 | G62: 5572.594 | H62: 4844.502 | I62: 0 | J62: 0 | K62: 0 | L62: 0 | M62: 728.092 | N62: 0 | O62: 0 | P62: 0 | Q62: 0 | R62: 5572.594 | S62: 0 | T62: 0 | U62: 0 | V62: 0
A63: Djibouti | B63: Eastern Mediterranean | C63: Middle East and North Africa | D63: 2011 | E63: 697.847 | F63: 207.717 | G63: 905.564 | H63: 510.376 | I63: 187.471 | J63: 38.713 | K63: 136.696 | L63: 12.062 | M63: 44.964 | N63: 162.753 | O63: 5.587 | P63: 45.5 | Q63: 111.665 | R63: 555.34 | S63: 350.224 | T63: 44.3 | U63: 182.196 | V63: 123.727
A64: Dominica | B64: The Americas | C64: Latin America and Caribbean | D64: 2011 | E64: 45.44 | F64: 22.235 | G64: 67.675
A65: Dominican Republic | B65: The Americas | C65: Latin America and Caribbean | D65: 2011 | E65: 7007.433 | F65: 3048.748 | G65: 10056.181 | H65: 6008.466 | I65: 998.967 | J65: 760.263 | K65: 101.192 | L65: 137.512 | M65: 2270.082 | N65: 778.666 | O65: 426.024 | P65: 154.061 | Q65: 198.581 | R65: 8278.547 | S65: 1777.634 | T65: 1186.287 | U65: 255.254 | V65: 336.093
A66: Ecuador | B66: The Americas | C66: Latin America and Caribbean | D66: 2011 | E66: 9893.53 | F66: 4772.525 | G66: 14666.055 | H66: 9520.616 | I66: 372.914 | J66: 262.063 | K66: 0 | L66: 110.852 | M66: 4111.258 | N66: 661.267 | O66: 177.15 | P66: 0 | Q66: 484.117 | R66: 13631.873 | S66: 1034.182 | T66: 439.213 | U66: 0 | V66: 594.969
A67: Egypt | B67: Eastern Mediterranean | C67: Middle East and North Africa | D67: 2011 | E67: 35902.911 | F67: 46633.859 | G67: 82536.77 | H67: 34782.748 | I67: 1120.163 | J67: 1120.163 | K67: 0 | L67: 0 | M67: 43586.083 | N67: 3047.776 | O67: 3047.776 | P67: 0 | Q67: 0 | R67: 78368.832 | S67: 4167.938 | T67: 4167.938 | U67: 0 | V67: 0
A68: El Salvador | B68: The Americas | C68: Latin America and Caribbean | D68: 2011 | E68: 4034.208 | F68: 2193.283 | G68: 6227.491 | H68: 3203.722 | I68: 830.486 | J68: 363.774 | K68: 399.11 | L68: 67.601 | M68: 1153.427 | N68: 1039.856 | O68: 115.527 | P68: 716.198 | Q68: 208.132 | R68: 4357.149 | S68: 1870.342 | T68: 479.301 | U68: 1115.308 | V68: 275.733
A69: Equatorial Guinea | B69: Africa | C69: West and Central Africa | D69: 2011 | E69: 284.332 | F69: 435.881 | G69: 720.213
A70: Eritrea | B70: Africa | C70: Eastern and Southern Africa | D70: 2011 | E70: 1154.82 | F70: 4260.46 | G70: 5415.28 | M70: 149.42 | N70: 4111.04 | P70: 35.605 | Q70: 4075.434
A71: Estonia | B71: Europe | C71: Industrialized countries | D71: 2011 | E71: 931.562 | F71: 408.975 | G71: 1340.537 | H71: 929.23 | I71: 2.332 | K71: 2.332 | L71: 0 | M71: 383.3 | N71: 25.675 | O71: 22.932 | P71: 2.742 | Q71: 0 | R71: 1312.53 | S71: 28.007 | U71: 5.075 | V71: 0
A72: Ethiopia | B72: Africa | C72: Eastern and Southern Africa | D72: 2011 | E72: 14402.23 | F72: 70332.032 | G72: 84734.262 | H72: 3928.84 | I72: 10473.39 | J72: 6042.427 | K72: 3237.031 | L72: 1193.932 | M72: 13617.936 | N72: 56714.096 | O72: 4350.495 | P72: 15424.429 | Q72: 36939.172 | R72: 17546.776 | S72: 67187.486 | T72: 10392.922 | U72: 18661.46 | V72: 38133.104
A73: Faeroe Islands | B73: Europe | D73: 2011 | E73: 20.093 | F73: 28.77 | G73: 48.863
A74: Falkland Islands (Malvinas) | B74: The Americas | D74: 2011 | E74: 2.244 | F74: 0.783 | G74: 3.027
A75: Fiji | B75: Western Pacific | C75: East Asia and the Pacific | D75: 2011 | E75: 453.584 | F75: 414.822 | G75: 868.406 | H75: 417.772 | I75: 35.812 | J75: 19.929 | K75: 15.557 | L75: 0.326 | M75: 338.736 | N75: 76.086 | O75: 16.632 | P75: 59.454 | Q75: 0 | R75: 756.508 | S75: 111.898 | T75: 36.56 | U75: 75.012 | V75: 0.326
A76: Finland | B76: Europe | C76: Industrialized countries | D76: 2011 | E76: 4506.345 | F76: 878.425 | G76: 5384.77 | H76: 4506.345 | I76: 0 | J76: 0 | K76: 0 | L76: 0 | M76: 878.425 | N76: 0 | O76: 0 | P76: 0 | Q76: 0 | R76: 5384.77 | S76: 0 | T76: 0 | U76: 0 | V76: 0
A77: France | B77: Europe | C77: Industrialized countries | D77: 2011 | E77: 54174.92 | F77: 8950.974 | G77: 63125.894 | H77: 54174.92 | I77: 0 | J77: 0 | K77: 0 | L77: 0 | M77: 8950.974 | N77: 0 | O77: 0 | P77: 0 | Q77: 0 | R77: 63125.894 | S77: 0 | T77: 0 | U77: 0 | V77: 0
A78: French Guiana | B78: The Americas | D78: 2011 | E78: 181.086 | F78: 55.994 | G78: 237.08 | H78: 171.851 | I78: 9.235 | K78: 9.235 | M78: 42.466 | N78: 13.528 | P78: 13.528 | R78: 214.316 | S78: 22.764 | U78: 22.764
A79: French Polynesia | B79: Western Pacific | D79: 2011 | E79: 140.708 | F79: 133.069 | G79: 273.777 | H79: 136.661 | I79: 4.047 | K79: 1.937 | L79: 2.111 | M79: 129.242 | N79: 3.827 | P79: 1.831 | Q79: 1.996 | R79: 265.902 | S79: 7.875 | U79: 3.768 | V79: 4.107
A80: Gabon | B80: Africa | C80: West and Central Africa | D80: 2011 | E80: 1322.61 | F80: 211.652 | G80: 1534.262 | H80: 440.228 | I80: 882.382 | J80: 475.283 | K80: 392.815 | L80: 14.284 | M80: 64.444 | N80: 147.208 | O80: 52.578 | P80: 90.185 | Q80: 4.445 | R80: 504.672 | S80: 1029.59 | T80: 527.861 | U80: 483 | V80: 18.729
A81: Gambia | B81: Africa | C81: West and Central Africa | D81: 2011 | E81: 1017.172 | F81: 758.931 | G81: 1776.103 | H81: 710.255 | I81: 306.917 | J81: 253.468 | K81: 51.123 | L81: 2.325 | M81: 491.849 | N81: 267.082 | O81: 117.128 | P81: 112.035 | Q81: 37.919 | R81: 1202.104 | S81: 573.999 | T81: 370.596 | U81: 163.159 | V81: 40.244
A82: Georgia | B82: Europe | C82: CEE/CIS | D82: 2011 | E82: 2286.873 | F82: 2042.153 | G82: 4329.026 | H82: 2186.553 | I82: 100.32 | J82: 61.495 | K82: 38.825 | L82: 0 | M82: 1858.141 | N82: 184.012 | O82: 19.714 | P82: 117.942 | Q82: 46.357 | R82: 4044.694 | S82: 284.332 | T82: 81.209 | U82: 156.767 | V82: 46.357
A83: Germany | B83: Europe | C83: Industrialized countries | D83: 2011 | E83: 60742.201 | F83: 21420.311 | G83: 82162.512 | H83: 60742.201 | I83: 0 | J83: 0 | K83: 0 | L83: 0 | M83: 21420.311 | N83: 0 | O83: 0 | P83: 0 | Q83: 0 | R83: 82162.512 | S83: 0 | T83: 0 | U83: 0 | V83: 0
A84: Ghana | B84: Africa | C84: West and Central Africa | D84: 2011 | E84: 12954.767 | F84: 12011.049 | G84: 24965.816 | H84: 2437.802 | I84: 10516.965 | J84: 9364.351 | K84: 344.881 | L84: 807.733 | M84: 922.807 | N84: 11088.242 | O84: 5325.447 | P84: 1964.389 | Q84: 3798.406 | R84: 3360.609 | S84: 21605.207 | T84: 14689.798 | U84: 2309.271 | V84: 4606.139
A85: Greece | B85: Europe | C85: Industrialized countries | D85: 2011 | E85: 6997.821 | F85: 4392.21 | G85: 11390.031 | H85: 6952.807 | I85: 45.014 | K85: 19.503 | L85: 25.511 | M85: 4281.583 | N85: 110.627 | P85: 8.893 | Q85: 101.735 | R85: 11234.39 | S85: 155.641 | U85: 28.395 | V85: 127.246
A86: Greenland | B86: Europe | D86: 2011 | E86: 48.515 | F86: 8.781 | G86: 57.296 | H86: 48.515 | I86: 0 | J86: 0 | K86: 0 | L86: 0 | M86: 8.781 | N86: 0 | O86: 0 | P86: 0 | Q86: 0 | R86: 57.296 | S86: 0 | T86: 0 | U86: 0 | V86: 0
A87: Grenada | B87: The Americas | C87: Latin America and Caribbean | D87: 2011 | E87: 41.054 | F87: 63.836 | G87: 104.89
A88: Guadeloupe | B88: The Americas | D88: 2011 | E88: 455.723 | F88: 7.346 | G88: 463.069 | H88: 442.167 | I88: 13.556 | K88: 13.556 | M88: 6.575 | N88: 0.771 | P88: 0.771 | R88: 448.742 | S88: 14.327 | U88: 14.327
A89: Guam | B89: Western Pacific | D89: 2011 | E89: 169.726 | F89: 12.385 | G89: 182.111 | H89: 165.302 | I89: 4.424 | K89: 4.424 | L89: 0 | M89: 12.062 | N89: 0.323 | P89: 0.323 | Q89: 0 | R89: 177.364 | S89: 4.747 | U89: 4.747 | V89: 0
A90: Guatemala | B90: The Americas | C90: Latin America and Caribbean | D90: 2011 | E90: 7345.225 | F90: 7412.091 | G90: 14757.316 | H90: 6492.733 | I90: 852.492 | J90: 723.812 | K90: 0.696 | L90: 127.984 | M90: 5347.809 | N90: 2064.282 | O90: 447.386 | P90: 902.982 | Q90: 713.914 | R90: 11840.542 | S90: 2916.774 | T90: 1171.198 | U90: 903.678 | V90: 841.898
A91: Guinea | B91: Africa | C91: West and Central Africa | D91: 2011 | E91: 3621.627 | F91: 6600.181 | G91: 10221.808 | H91: 1166.307 | I91: 2455.32 | J91: 1439.966 | K91: 985.853 | L91: 29.501 | M91: 722.549 | N91: 5877.632 | O91: 415.719 | P91: 3479.782 | Q91: 1982.131 | R91: 1888.856 | S91: 8332.952 | T91: 1855.685 | U91: 4465.635 | V91: 2011.632
A92: Guinea-Bissau | B92: Africa | C92: West and Central Africa | D92: 2011 | E92: 679.501 | F92: 867.56 | G92: 1547.061 | H92: 224.128 | I92: 455.373 | J92: 187.141 | K92: 257.912 | L92: 10.32 | M92: 70.499 | N92: 797.061 | O92: 37.25 | P92: 384.319 | Q92: 375.492 | R92: 294.627 | S92: 1252.434 | T92: 224.391 | U92: 642.231 | V92: 385.812
A93: Guyana | B93: The Americas | C93: Latin America and Caribbean | D93: 2011 | E93: 214.449 | F93: 541.591 | G93: 756.04 | H93: 188.076 | I93: 26.373 | J93: 17.375 | K93: 8.998 | L93: 0 | M93: 446.01 | N93: 95.581 | O93: 47.58 | P93: 40.499 | Q93: 7.502 | R93: 634.086 | S93: 121.954 | T93: 64.955 | U93: 49.497 | V93: 7.502
A94: Haiti | B94: The Americas | C94: Latin America and Caribbean | D94: 2011 | E94: 5408.542 | F94: 4715.245 | G94: 10123.787 | H94: 1820.336 | I94: 3588.206 | J94: 1923.91 | K94: 1242.915 | L94: 421.381 | M94: 821.593 | N94: 3893.652 | O94: 542.71 | P94: 1400.409 | Q94: 1950.533 | R94: 2641.928 | S94: 7481.859 | T94: 2466.621 | U94: 2643.323 | V94: 2371.914
A95: Honduras | B95: The Americas | C95: Latin America and Caribbean | D95: 2011 | E95: 4044.852 | F95: 3709.835 | G95: 7754.687 | H95: 3492.182 | I95: 552.67 | J95: 304.83 | K95: 216.124 | L95: 31.717 | M95: 2758.27 | N95: 951.565 | O95: 89.856 | P95: 320.683 | Q95: 541.026 | R95: 6250.452 | S95: 1504.235 | T95: 394.685 | U95: 536.807 | V95: 572.743
A96: Hungary | B96: Europe | C96: Industrialized countries | D96: 2011 | E96: 6922.372 | F96: 3043.744 | G96: 9966.116 | H96: 6922.315 | I96: 0.057 | J96: 0 | K96: 0.057 | L96: 0 | M96: 3043.744 | N96: 0 | O96: 0 | P96: 0 | Q96: 0 | R96: 9966.059 | S96: 0.057 | T96: 0 | U96: 0.057 | V96: 0
A97: Iceland | B97: Europe | C97: Industrialized countries | D97: 2011 | E97: 304.044 | F97: 20.322 | G97: 324.366 | H97: 304.044 | I97: 0 | J97: 0 | K97: 0 | L97: 0 | M97: 20.322 | N97: 0 | O97: 0 | P97: 0 | Q97: 0 | R97: 324.366 | S97: 0 | T97: 0 | U97: 0 | V97: 0
A98: India | B98: South-East Asia | C98: South Asia | D98: 2011 | E98: 388285.725 | F98: 853206.235 | G98: 1241491.96 | H98: 231934.989 | I98: 156350.736 | J98: 76430.33 | K98: 29065.078 | L98: 50855.328 | M98: 203760.601 | N98: 649445.634 | O98: 37081.303 | P98: 47822.369 | Q98: 564541.962 | R98: 435695.59 | S98: 805796.37 | T98: 113511.634 | U98: 76887.447 | V98: 615397.289
A99: Indonesia | B99: South-East Asia | C99: East Asia and the Pacific | D99: 2011 | E99: 122885.106 | F99: 119440.532 | G99: 242325.638 | H99: 90235.952 | I99: 32649.154 | J99: 11917.956 | K99: 3591.378 | L99: 17139.82 | M99: 51972.837 | N99: 67467.695 | O99: 12750.497 | P99: 13022.791 | Q99: 41694.408 | R99: 142208.789 | S99: 100116.85 | T99: 24668.453 | U99: 16614.169 | V99: 58834.228
A100: Iran, Islamic Republic of | B100: Eastern Mediterranean | C100: Middle East and North Africa | D100: 2011 | E100: 51661.241 | F100: 23137.358 | G100: 74798.599 | H100: 51661.241 | I100: 0 | K100: 0 | L100: 0 | M100: 22827.009 | N100: 310.349 | P100: 0 | Q100: 310.349 | R100: 74488.25 | S100: 310.349 | U100: 0 | V100: 310.349
A101: Iraq | B101: Eastern Mediterranean | C101: Middle East and North Africa | D101: 2011 | E101: 21711.503 | F101: 10953.439 | G101: 32664.942 | H101: 18662.504 | I101: 3048.999 | J101: 2385.211 | K101: 653.529 | L101: 10.259 | M101: 8738.739 | N101: 2214.7 | O101: 900.588 | P101: 1118.515 | Q101: 195.597 | R101: 27401.242 | S101: 5263.7 | T101: 3285.799 | U101: 1772.045 | V101: 205.856
A102: Ireland | B102: Europe | C102: Industrialized countries | D102: 2011 | E102: 2814.894 | F102: 1710.908 | G102: 4525.802 | H102: 2803.919 | I102: 10.975 | J102: 0 | K102: 10.975 | L102: 0 | M102: 1675.599 | N102: 35.309 | P102: 35.309 | R102: 4479.518 | S102: 46.284 | U102: 46.284
A103: Isle of Man | B103: Europe | D103: 2011 | E103: 42.097 | F103: 41.23 | G103: 83.327
A104: Israel | B104: Europe | C104: Industrialized countries | D104: 2011 | E104: 6948.443 | F104: 613.751 | G104: 7562.194 | H104: 6948.443 | I104: 0 | J104: 0 | K104: 0 | L104: 0 | M104: 613.751 | N104: 0 | O104: 0 | P104: 0 | Q104: 0 | R104: 7562.194 | S104: 0 | T104: 0 | U104: 0 | V104: 0
A105: Italy | B105: Europe | C105: Industrialized countries | D105: 2011 | E105: 41566.441 | F105: 19222.253 | G105: 60788.694
A106: Jamaica | B106: The Americas | C106: Latin America and Caribbean | D106: 2011 | E106: 1431.598 | F106: 1319.675 | G106: 2751.273 | H106: 1121.955 | I106: 309.643 | J106: 288.077 | K106: 12.415 | L106: 9.152 | M106: 1084.391 | N106: 235.284 | O106: 183.347 | P106: 34.549 | Q106: 17.389 | R106: 2206.346 | S106: 544.927 | T106: 471.423 | U106: 46.964 | V106: 26.54
A107: Japan | B107: Western Pacific | C107: Industrialized countries | D107: 2011 | E107: 115452.941 | F107: 11044.3 | G107: 126497.241 | H107: 115452.941 | I107: 0 | J107: 0 | K107: 0 | L107: 0 | M107: 11044.3 | N107: 0 | O107: 0 | P107: 0 | Q107: 0 | R107: 126497.241 | S107: 0 | T107: 0 | U107: 0 | V107: 0
A108: Jordan | B108: Eastern Mediterranean | C108: Middle East and North Africa | D108: 2011 | E108: 5236.572 | F108: 1093.597 | G108: 6330.169 | H108: 5136.361 | I108: 100.211 | J108: 84.735 | K108: 15.476 | L108: 0 | M108: 1071.759 | N108: 21.838 | O108: 15.081 | P108: 6.757 | Q108: 0 | R108: 6208.12 | S108: 122.049 | T108: 99.816 | U108: 22.233 | V108: 0
A109: Kazakhstan | B109: Europe | C109: CEE/CIS | D109: 2011 | E109: 8684.054 | F109: 7522.696 | G109: 16206.75 | H109: 8401.887 | I109: 282.167 | J109: 259.852 | K109: 22.315 | L109: 0 | M109: 7365.189 | N109: 157.507 | O109: 74.396 | P109: 83.111 | Q109: 0 | R109: 15767.076 | S109: 439.674 | T109: 334.248 | U109: 105.426 | V109: 0
A110: Kenya | B110: Africa | C110: Eastern and Southern Africa | D110: 2011 | E110: 9972.779 | F110: 31636.949 | G110: 41609.728 | H110: 3100.022 | I110: 6872.757 | J110: 4719.224 | K110: 1864.848 | L110: 288.684 | M110: 9122.854 | N110: 22514.095 | O110: 5940.687 | P110: 11169.64 | Q110: 5403.768 | R110: 12222.877 | S110: 29386.851 | T110: 10659.911 | U110: 13034.488 | V110: 5692.453
A111: Kiribati | B111: Western Pacific | C111: East Asia and the Pacific | D111: 2011 | E111: 44.385 | F111: 56.708 | G111: 101.093 | H111: 22.569 | I111: 21.816 | J111: 4.776 | K111: 7.808 | L111: 9.232 | M111: 17.091 | N111: 39.617 | O111: 1.789 | P111: 9.76 | Q111: 28.068 | R111: 39.659 | S111: 61.434 | T111: 6.566 | U111: 17.568 | V111: 37.301
A112: Kuwait | B112: Eastern Mediterranean | C112: Middle East and North Africa | D112: 2011 | E112: 2768.865 | F112: 49.177 | G112: 2818.042 | H112: 2768.865 | I112: 0 | K112: 0 | L112: 0 | M112: 49.177 | N112: 0 | P112: 0 | Q112: 0 | R112: 2818.042 | S112: 0 | U112: 0 | V112: 0
A113: Kyrgyzstan | B113: Europe | C113: CEE/CIS | D113: 2011 | E113: 1906.058 | F113: 3486.522 | G113: 5392.58 | H113: 1784.33 | I113: 121.728 | J113: 99.024 | K113: 20.729 | L113: 1.975 | M113: 3247.678 | N113: 238.844 | O113: 55.874 | P113: 181.144 | Q113: 1.826 | R113: 5032.008 | S113: 360.572 | T113: 154.898 | U113: 201.873 | V113: 3.801
A114: Lao People's Democratic Republic | B114: Western Pacific | C114: East Asia and the Pacific | D114: 2011 | E114: 2153.66 | F114: 4134.377 | G114: 6288.037 | H114: 1883.473 | I114: 270.187 | J114: 104.637 | K114: 43.651 | L114: 121.899 | M114: 1984.627 | N114: 2149.75 | O114: 43.825 | P114: 245.991 | Q114: 1859.934 | R114: 3868.1 | S114: 2419.937 | T114: 148.462 | U114: 289.642 | V114: 1981.833
A115: Latvia | B115: Europe | C115: Industrialized countries | D115: 2011 | E115: 1518.198 | F115: 724.944 | G115: 2243.142
A116: Lebanon | B116: Eastern Mediterranean | C116: Middle East and North Africa | D116: 2011 | E116: 3716.256 | F116: 543.149 | G116: 4259.405 | H116: 3716.256 | I116: 0 | K116: 0 | L116: 0
A117: Lesotho | B117: Africa | C117: Eastern and Southern Africa | D117: 2011 | E117: 604.874 | F117: 1588.969 | G117: 2193.843 | H117: 193.298 | I117: 411.576 | J117: 175.974 | K117: 204.699 | L117: 30.903 | M117: 383.802 | N117: 1205.167 | O117: 61.104 | P117: 367.995 | Q117: 776.068 | R117: 577.1 | S117: 1616.743 | T117: 237.079 | U117: 572.694 | V117: 806.971
A118: Liberia | B118: Africa | C118: West and Central Africa | D118: 2011 | E118: 1988.655 | F118: 2139.917 | G118: 4128.572 | H118: 598.136 | I118: 1390.519 | J118: 605.807 | K118: 281.081 | L118: 503.631 | M118: 153.082 | N118: 1986.835 | O118: 482.093 | P118: 178.432 | Q118: 1326.31 | R118: 751.218 | S118: 3377.354 | T118: 1087.9 | U118: 459.513 | V118: 1829.941
A119: Libyan Arab Jamahiriya | B119: Eastern Mediterranean | C119: Middle East and North Africa | D119: 2011 | E119: 4991.932 | F119: 1430.84 | G119: 6422.772 | H119: 4832.19 | I119: 159.742 | K119: 159.742 | M119: 1369.314 | N119: 61.526 | P119: 61.526 | R119: 6201.504 | S119: 221.268 | U119: 221.268
A120: Liechtenstein | B120: Europe | D120: 2011 | E120: 5.225 | F120: 31.079 | G120: 36.304
A121: Lithuania | B121: Europe | C121: Industrialized countries | D121: 2011 | E121: 2219.098 | F121: 1088.383 | G121: 3307.481 | H121: 2116.518 | I121: 102.58 | K121: 102.58
A122: Luxembourg | B122: Europe | C122: Industrialized countries | D122: 2011 | E122: 440.737 | F122: 75.204 | G122: 515.941 | H122: 440.737 | I122: 0 | J122: 0 | K122: 0 | L122: 0 | M122: 75.204 | N122: 0 | O122: 0 | P122: 0 | Q122: 0 | R122: 515.941 | S122: 0 | T122: 0 | U122: 0 | V122: 0
A123: Madagascar | B123: Africa | C123: Eastern and Southern Africa | D123: 2011 | E123: 6941.125 | F123: 14374.01 | G123: 21315.135 | H123: 1318.165 | I123: 5622.96 | J123: 2047.922 | K123: 2226.085 | L123: 1348.953 | M123: 1592.275 | N123: 12781.735 | O123: 2244.171 | P123: 3491.247 | Q123: 7046.317 | R123: 2910.439 | S123: 18404.696 | T123: 4292.093 | U123: 5717.332 | V123: 8395.271
A124: Malawi | B124: Africa | C124: Eastern and Southern Africa | D124: 2011 | E124: 2410.234 | F124: 12970.654 | G124: 15380.888 | H124: 1195.207 | I124: 1215.027 | J124: 1073.987 | K124: 100.87 | L124: 40.17 | M124: 6936.219 | N124: 6034.435 | O124: 4050.843 | P124: 1024.592 | Q124: 958.999 | R124: 8131.427 | S124: 7249.461 | T124: 5124.83 | U124: 1125.462 | V124: 999.17
A125: Malaysia | B125: Western Pacific | C125: East Asia and the Pacific | D125: 2011 | E125: 20998.682 | F125: 7860.472 | G125: 28859.154 | H125: 20170.625 | I125: 828.057 | J125: 828.057 | K125: 0 | L125: 0 | M125: 7436.607 | N125: 423.865 | O125: 319.511 | P125: 10.321 | Q125: 94.033 | R125: 27607.232 | S125: 1251.922 | T125: 1147.568 | U125: 10.321 | V125: 94.033
A126: Maldives | B126: South-East Asia | C126: South Asia | D126: 2011 | E126: 131.794 | F126: 188.287 | G126: 320.081 | H126: 128.495 | I126: 3.299 | J126: 3.031 | K126: 0.268 | L126: 0 | M126: 185.113 | N126: 3.174 | O126: 3.174 | P126: 0 | Q126: 0 | R126: 313.608 | S126: 6.473 | T126: 6.206 | U126: 0.268 | V126: 0
A127: Mali | B127: Africa | C127: West and Central Africa | D127: 2011 | E127: 5531.773 | F127: 10307.765 | G127: 15839.538 | H127: 1945.437 | I127: 3586.336 | J127: 2113.842 | K127: 1260.641 | L127: 211.852 | M127: 1477.527 | N127: 8830.238 | O127: 894.197 | P127: 6009.31 | Q127: 1926.731 | R127: 3422.964 | S127: 12416.574 | T127: 3008.04 | U127: 7269.951 | V127: 2138.583
A128: Malta | B128: Europe | D128: 2011 | E128: 396.302 | F128: 21.553 | G128: 417.855 | H128: 396.302 | I128: 0 | J128: 0 | K128: 0 | L128: 0 | M128: 21.553 | N128: 0 | O128: 0 | P128: 0 | Q128: 0 | R128: 417.855 | S128: 0 | T128: 0 | U128: 0 | V128: 0
A129: Marshall Islands | B129: Western Pacific | C129: East Asia and the Pacific | D129: 2011 | E129: 39.381 | F129: 15.435 | G129: 54.816 | H129: 33.026 | I129: 6.355 | J129: 4.729 | K129: 0.878 | L129: 0.748 | M129: 8.467 | N129: 6.968 | O129: 1.9 | P129: 1.865 | Q129: 3.203 | R129: 41.493 | S129: 13.323 | T129: 6.629 | U129: 2.743 | V129: 3.951
A130: Martinique | B130: The Americas | D130: 2011 | E130: 362.396 | F130: 44.725 | G130: 407.121 | H130: 340.756 | I130: 21.64 | K130: 21.64 | M130: 32.515 | N130: 12.21 | P130: 12.21 | R130: 373.271 | S130: 33.85 | U130: 33.85
A131: Mauritania | B131: Africa | C131: West and Central Africa | D131: 2011 | E131: 1468.592 | F131: 2072.948 | G131: 3541.54 | H131: 750.304 | I131: 718.288 | J131: 265.405 | K131: 231.068 | L131: 221.815 | M131: 191.064 | N131: 1881.884 | O131: 76.908 | P131: 224.527 | Q131: 1580.449 | R131: 941.369 | S131: 2600.171 | T131: 342.313 | U131: 455.595 | V131: 1802.264
A132: Mauritius | B132: Africa | D132: 2011 | E132: 545.582 | F132: 761.011 | G132: 1306.593 | H132: 499.912 | I132: 45.67 | J132: 44.654 | K132: 1.015 | L132: 0 | M132: 684.32 | N132: 76.691 | O132: 66.855 | P132: 8.292 | Q132: 1.545 | R132: 1184.233 | S132: 122.36 | T132: 111.509 | U132: 9.307 | V132: 1.545
A133: Mayotte | B133: Africa | C133: Eastern and Southern Africa | D133: 2011 | E133: 105.399 | F133: 105.153 | G133: 210.552
A134: Mexico | B134: The Americas | C134: Latin America and Caribbean | D134: 2011 | E134: 89673.298 | F134: 25120.043 | G134: 114793.341 | H134: 77780.46 | I134: 11892.838 | J134: 9860.316 | K134: 1993.387 | L134: 39.135 | M134: 19451.282 | N134: 5668.761 | O134: 2517.355 | P134: 1860.847 | Q134: 1290.559 | R134: 97231.743 | S134: 17561.598 | T134: 12377.671 | U134: 3854.234 | V134: 1329.694
A135: Micronesia (Fed. States of) | B135: Western Pacific | C135: East Asia and the Pacific | D135: 2011 | E135: 25.195 | F135: 86.347 | G135: 111.542 | H135: 20.998 | I135: 4.197 | K135: 2.861 | L135: 1.335 | M135: 40.558 | N135: 45.789 | P135: 36.464 | Q135: 9.325 | R135: 61.556 | S135: 49.986 | U135: 39.325 | V135: 10.661
A136: Monaco | B136: Europe | D136: 2011 | E136: 35.427 | F136: 0 | G136: 35.427 | H136: 35.427 | I136: 0 | J136: 0 | K136: 0 | L136: 0 | R136: 35.427 | S136: 0 | T136: 0 | U136: 0 | V136: 0
A137: Mongolia | B137: Western Pacific | C137: East Asia and the Pacific | D137: 2011 | E137: 1919.146 | F137: 880.968 | G137: 2800.114 | H137: 1227.81 | I137: 691.336 | J137: 593.855 | K137: 49.503 | L137: 47.979 | M137: 256.304 | N137: 624.664 | O137: 193.708 | P137: 203.666 | Q137: 227.29 | R137: 1484.114 | S137: 1316 | T137: 787.563 | U137: 253.169 | V137: 275.268
A138: Montenegro | B138: Europe | C138: CEE/CIS | D138: 2011 | E138: 400.059 | F138: 232.202 | G138: 632.261 | H138: 367.719 | I138: 32.34 | J138: 11.88 | K138: 20.018 | L138: 0.441 | M138: 201.471 | N138: 30.731 | O138: 6.774 | P138: 23.26 | Q138: 0.697 | R138: 569.19 | S138: 63.071 | T138: 18.655 | U138: 43.278 | V138: 1.138
A139: Montserrat | B139: The Americas | C139: Latin America and Caribbean | D139: 2011 | E139: 0.852 | F139: 5.138 | G139: 5.99
A140: Morocco | B140: Eastern Mediterranean | C140: Middle East and North Africa | D140: 2011 | E140: 18405.802 | F140: 13867.172 | G140: 32272.974 | H140: 15304.305 | I140: 3101.497 | J140: 2628.411 | K140: 414.849 | L140: 58.237 | M140: 7210.929 | N140: 6656.243 | O140: 845.897 | P140: 499.218 | Q140: 5311.127 | R140: 22515.235 | S140: 9757.739 | T140: 3474.309 | U140: 914.067 | V140: 5369.364
A141: Mozambique | B141: Africa | C141: Eastern and Southern Africa | D141: 2011 | E141: 7462.635 | F141: 16467.073 | G141: 23929.708 | H141: 3052.916 | I141: 4409.719 | J141: 574.977 | K141: 2843.745 | L141: 990.997 | M141: 1507.691 | N141: 14959.382 | O141: 351.327 | P141: 5587.285 | Q141: 9020.77 | R141: 4560.607 | S141: 19369.101 | T141: 926.304 | U141: 8431.03 | V141: 10011.767
A142: Myanmar | B142: South-East Asia | C142: East Asia and the Pacific | D142: 2011 | E142: 15778.346 | F142: 32558.417 | G142: 48336.763 | H142: 13233.552 | I142: 2544.794 | J142: 1964.104 | K142: 463.183 | L142: 117.507 | M142: 24133.607 | N142: 8424.81 | O142: 4442.858 | P142: 1311.019 | Q142: 2670.933 | R142: 37367.159 | S142: 10969.604 | T142: 6406.962 | U142: 1774.202 | V142: 2788.44
A143: Namibia | B143: Africa | C143: Eastern and Southern Africa | D143: 2011 | E143: 892.04 | F143: 1431.964 | G143: 2324.004 | H143: 509.267 | I143: 382.773 | J143: 176.425 | K143: 40.16 | L143: 166.189 | M143: 242.079 | N143: 1189.885 | O143: 52.606 | P143: 105.102 | Q143: 1032.177 | R143: 751.346 | S143: 1572.658 | T143: 229.031 | U143: 145.262 | V143: 1198.366
A144: Nauru | B144: Western Pacific | C144: East Asia and the Pacific | D144: 2011 | E144: 10.308 | F144: 0 | G144: 10.308 | H144: 6.763 | I144: 3.545 | J144: 3.168 | K144: 0.137 | L144: 0.24 | R144: 6.763 | S144: 3.545 | T144: 3.168 | U144: 0.137 | V144: 0.24
A145: Nepal | B145: South-East Asia | C145: South Asia | D145: 2011 | E145: 5176.387 | F145: 25309.411 | G145: 30485.798 | H145: 2593.373 | I145: 2583.014 | J145: 1900.51 | K145: 105.633 | L145: 576.871 | M145: 8205.802 | N145: 17103.609 | O145: 3078.384 | P145: 1349.704 | Q145: 12675.521 | R145: 10799.175 | S145: 19686.623 | T145: 4978.893 | U145: 1455.337 | V145: 13252.393
A146: Netherlands | B146: Europe | C146: Industrialized countries | D146: 2011 | E146: 13861.694 | F146: 2803.052 | G146: 16664.746 | H146: 13861.694 | I146: 0 | J146: 0 | K146: 0 | L146: 0 | M146: 2803.052 | N146: 0 | O146: 0 | P146: 0 | Q146: 0 | R146: 16664.746 | S146: 0 | T146: 0 | U146: 0 | V146: 0
A147: Netherlands Antilles | B147: The Americas | D147: 2011 | E147: 189.456 | F147: 13.391 | G147: 202.847
A148: New Caledonia | B148: Western Pacific | D148: 2011 | E148: 157.23 | F148: 97.586 | G148: 254.816 | H148: 157.23 | I148: 0 | K148: 0 | L148: 0 | M148: 97.586 | N148: 0 | P148: 0 | Q148: 0 | R148: 254.816 | S148: 0 | U148: 0 | V148: 0
A149: New Zealand | B149: Western Pacific | C149: Industrialized countries | D149: 2011 | E149: 3806.721 | F149: 607.788 | G149: 4414.509
A150: Nicaragua | B150: The Americas | C150: Latin America and Caribbean | D150: 2011 | E150: 3377.543 | F150: 2492.316 | G150: 5869.859 | H150: 2134.09 | I150: 1243.453 | J150: 292.771 | K150: 829.219 | L150: 121.462 | M150: 921.803 | N150: 1570.513 | O150: 144.296 | P150: 935.514 | Q150: 490.703 | R150: 3055.893 | S150: 2813.966 | T150: 437.067 | U150: 1764.733 | V150: 612.166
A151: Niger | B151: Africa | C151: West and Central Africa | D151: 2011 | E151: 2866.228 | F151: 13202.766 | G151: 16068.994 | H151: 973.193 | I151: 1893.035 | J151: 717.188 | K151: 600.986 | L151: 574.861 | M151: 566.152 | N151: 12636.614 | O151: 201.941 | P151: 453.656 | Q151: 11981.017 | R151: 1539.346 | S151: 14529.648 | T151: 919.129 | U151: 1054.642 | V151: 12555.878
A152: Nigeria | B152: Africa | C152: West and Central Africa | D152: 2011 | E152: 80634.604 | F152: 81836.133 | G152: 162470.737 | H152: 26773.495 | I152: 53861.109 | J152: 29009.561 | K152: 12977.95 | L152: 11873.597 | M152: 22960.634 | N152: 58875.499 | O152: 10367.187 | P152: 23523.972 | Q152: 24984.341 | R152: 49734.129 | S152: 112736.608 | T152: 39376.748 | U152: 36501.922 | V152: 36857.938
A153: Niue | B153: Western Pacific | C153: East Asia and the Pacific | D153: 2011 | E153: 0.541 | F153: 0.885 | G153: 1.426 | H153: 0.541 | I153: 0 | K153: 0 | L153: 0 | M153: 0.885 | N153: 0 | P153: 0 | Q153: 0 | R153: 1.426 | S153: 0 | U153: 0 | V153: 0
A154: Northern Mariana Islands | B154: Western Pacific | D154: 2011 | E154: 55.95 | F154: 5.224 | G154: 61.174 | H154: 54.789 | I154: 1.161 | K154: 1.03 | L154: 0.131 | M154: 5.116 | N154: 0.108 | P154: 0.096 | Q154: 0.012 | R154: 59.905 | S154: 1.269 | U154: 1.126 | V154: 0.144
A155: Norway | B155: Europe | C155: Industrialized countries | D155: 2011 | E155: 3909.604 | F155: 1015.244 | G155: 4924.848 | H155: 3909.604 | I155: 0 | J155: 0 | K155: 0 | L155: 0 | M155: 1015.244 | N155: 0 | O155: 0 | P155: 0 | Q155: 0 | R155: 4924.848 | S155: 0 | T155: 0 | U155: 0 | V155: 0
A156: Occupied Palestinian Territory | B156: Eastern Mediterranean | C156: Middle East and North Africa | D156: 2011 | E156: 3087.275 | F156: 1065.094 | G156: 4152.369 | H156: 2926.737 | I156: 160.538 | J156: 160.538 | K156: 0 | L156: 0 | M156: 988.407 | N156: 76.687 | O156: 76.687 | P156: 0 | Q156: 0 | R156: 3915.144 | S156: 237.225 | T156: 237.225 | U156: 0 | V156: 0
A157: Oman | B157: Eastern Mediterranean | C157: Middle East and North Africa | D157: 2011 | E157: 2090.251 | F157: 755.894 | G157: 2846.145 | H157: 2034.606 | I157: 55.645 | K157: 0 | L157: 55.645 | M157: 715.68 | N157: 40.214 | P157: 0 | Q157: 40.214 | R157: 2750.285 | S157: 95.86 | U157: 0 | V157: 95.86
A158: Pakistan | B158: Eastern Mediterranean | C158: South Asia | D158: 2011 | E158: 63967.215 | F158: 112778.149 | G158: 176745.364 | H158: 45951.697 | I158: 18015.518 | J158: 3993.626 | K158: 11772.49 | L158: 2249.403 | M158: 37909.068 | N158: 74869.081 | O158: 6610.506 | P158: 29577.975 | Q158: 38680.601 | R158: 83860.765 | S158: 92884.599 | T158: 10604.132 | U158: 41350.465 | V158: 40930.003
A159: Palau | B159: Western Pacific | C159: East Asia and the Pacific | D159: 2011 | E159: 17.363 | F159: 3.246 | G159: 20.609 | H159: 17.363 | I159: 0 | K159: 0 | L159: 0 | M159: 3.246 | N159: 0 | P159: 0 | Q159: 0 | R159: 20.609 | S159: 0 | U159: 0 | V159: 0
A160: Panama | B160: The Americas | C160: Latin America and Caribbean | D160: 2011 | E160: 2687.928 | F160: 883.257 | G160: 3571.185 | H160: 2065.931 | I160: 621.997 | J160: 313.626 | K160: 259.225 | L160: 49.146 | M160: 478.154 | N160: 405.103 | O160: 42.729 | P160: 271.35 | Q160: 91.025 | R160: 2544.085 | S160: 1027.1 | T160: 356.355 | U160: 530.574 | V160: 140.17
A161: Papua New Guinea | B161: Western Pacific | C161: East Asia and the Pacific | D161: 2011 | E161: 874.093 | F161: 6139.736 | G161: 7013.829 | H161: 495.406 | I161: 378.687 | J161: 77.248 | K161: 268.751 | L161: 32.689 | M161: 816.467 | N161: 5323.269 | O161: 163.362 | P161: 4366.382 | Q161: 793.526 | R161: 1311.872 | S161: 5701.957 | T161: 240.61 | U161: 4635.132 | V161: 826.215
A162: Paraguay | B162: The Americas | C162: Latin America and Caribbean | D162: 2011 | E162: 4067.415 | F162: 2500.875 | G162: 6568.29
A163: Peru | B163: The Americas | C163: Latin America and Caribbean | D163: 2011 | E163: 22714.718 | F163: 6685.099 | G163: 29399.817 | H163: 18471.869 | I163: 4242.849 | J163: 2015.384 | K163: 2179.912 | L163: 47.553 | M163: 2565.071 | N163: 4120.028 | O163: 234.425 | P163: 2174.288 | Q163: 1711.315 | R163: 21036.94 | S163: 8362.877 | T163: 2249.809 | U163: 4354.2 | V163: 1758.868
A164: Philippines | B164: Western Pacific | C164: East Asia and the Pacific | D164: 2011 | E164: 46325.733 | F164: 48526.297 | G164: 94852.03 | H164: 36684.93 | I164: 9640.803 | J164: 7808.523 | K164: 224.856 | L164: 1607.425 | M164: 33650.868 | N164: 14875.429 | O164: 7698.428 | P164: 1441.963 | Q164: 5735.038 | R164: 70335.798 | S164: 24516.232 | T164: 15506.95 | U164: 1666.819 | V164: 7342.463
A165: Poland | B165: Europe | C165: Industrialized countries | D165: 2011 | E165: 23306.848 | F165: 14992.101 | G165: 38298.949 | H165: 22258.04 | I165: 1048.808 | K165: 1048.808
A166: Portugal | B166: Europe | C166: Industrialized countries | D166: 2011 | E166: 6527.293 | F166: 4162.37 | G166: 10689.663 | H166: 6527.293 | I166: 0 | J166: 0 | K166: 0 | L166: 0 | M166: 4162.37 | N166: 0 | O166: 0 | P166: 0 | Q166: 0 | R166: 10689.663 | S166: 0 | T166: 0 | U166: 0 | V166: 0
A167: Puerto Rico | B167: The Americas | D167: 2011 | E167: 3704.353 | F167: 41.173 | G167: 3745.526 | H167: 3677.694 | I167: 26.659 | K167: 26.659 | M167: 40.877 | N167: 0.296 | P167: 0.296 | R167: 3718.571 | S167: 26.955 | U167: 26.955
A168: Qatar | B168: Eastern Mediterranean | C168: Middle East and North Africa | D168: 2011 | E168: 1847.819 | F168: 22.222 | G168: 1870.041 | H168: 1847.819 | I168: 0 | K168: 0 | L168: 0 | M168: 22.222 | N168: 0 | P168: 0 | Q168: 0 | R168: 1870.041 | S168: 0 | U168: 0 | V168: 0
A169: Korea Republic of | B169: Western Pacific | C169: Industrialized countries | D169: 2011 | E169: 40271.227 | F169: 8120.116 | G169: 48391.343 | H169: 40271.227 | I169: 0 | K169: 0 | L169: 0 | M169: 8120.116 | N169: 0 | P169: 0 | Q169: 0 | R169: 48391.343 | S169: 0 | U169: 0 | V169: 0
A170: Republic of Moldova | B170: Europe | C170: CEE/CIS | D170: 2011 | E170: 1689.957 | F170: 1854.907 | G170: 3544.864 | H170: 1504.169 | I170: 185.788 | J170: 122.103 | K170: 63.685 | L170: 0 | M170: 1546.312 | N170: 308.595 | O170: 95.846 | P170: 212.749 | Q170: 0 | R170: 3050.481 | S170: 494.383 | T170: 217.949 | U170: 276.434 | V170: 0
A171: Réunion | B171: Africa | D171: 2011 | E171: 806.769 | F171: 49.08 | G171: 855.849 | H171: 793.861 | I171: 12.908 | K171: 12.908 | M171: 46.749 | N171: 2.331 | P171: 2.331 | R171: 840.609 | S171: 15.24 | U171: 15.24
A172: Romania | B172: Europe | C172: CEE/CIS | D172: 2011 | E172: 11318.079 | F172: 10118.416 | G172: 21436.495
A173: Russian Federation | B173: Europe | C173: CEE/CIS | D173: 2011 | E173: 105438.095 | F173: 37397.46 | G173: 142835.555 | H173: 78413.023 | I173: 27025.072 | J173: 15602.643 | K173: 10368.047 | L173: 1054.381 | M173: 22189.411 | N173: 15208.049 | O173: 4283.45 | P173: 10588.022 | Q173: 336.577 | R173: 100602.435 | S173: 42233.12 | T173: 19886.093 | U173: 20956.069 | V173: 1390.958
A174: Rwanda | B174: Africa | C174: Eastern and Southern Africa | D174: 2011 | E174: 2089.698 | F174: 8853.252 | G174: 10942.95 | H174: 1280.901 | I174: 808.797 | J174: 454.431 | K174: 330.067 | L174: 24.299 | M174: 5424.849 | N174: 3428.403 | O174: 604.516 | P174: 2605.304 | Q174: 218.583 | R174: 6705.751 | S174: 4237.199 | T174: 1058.947 | U174: 2935.371 | V174: 242.882
A175: Saint Kitts and Nevis | B175: The Americas | C175: Latin America and Caribbean | D175: 2011 | E175: 16.966 | F175: 36.085 | G175: 53.051
A176: Saint Lucia | B176: The Americas | C176: Latin America and Caribbean | D176: 2011 | E176: 30.833 | F176: 145.211 | G176: 176.044 | H176: 21.713 | I176: 9.12 | J176: 1.014 | K176: 5.221 | L176: 2.885 | M176: 93.095 | N176: 52.116 | O176: 6.117 | P176: 33.922 | Q176: 12.077 | R176: 114.808 | S176: 61.236 | T176: 7.131 | U176: 39.143 | V176: 14.962
A177: Saint Vincent and the Grenadines | B177: The Americas | C177: Latin America and Caribbean | D177: 2011 | E177: 53.921 | F177: 55.444 | G177: 109.365
A178: Samoa | B178: Western Pacific | C178: East Asia and the Pacific | D178: 2011 | E178: 36.513 | F178: 147.361 | G178: 183.874 | H178: 34.092 | I178: 2.421 | J178: 1.966 | K178: 0.455 | L178: 0 | M178: 134.354 | N178: 13.007 | O178: 8.82 | P178: 4.039 | Q178: 0.147 | R178: 168.446 | S178: 15.428 | T178: 10.787 | U178: 4.494 | V178: 0.147
A179: San Marino | B179: Europe | C179: Industrialized countries | D179: 2011 | E179: 29.866 | F179: 1.869 | G179: 31.735
A180: Sao Tome and Principe | B180: Africa | C180: West and Central Africa | D180: 2011 | E180: 105.668 | F180: 62.858 | G180: 168.526 | H180: 43.148 | I180: 62.52 | J180: 5.87 | K180: 6.407 | L180: 50.243 | M180: 14.635 | N180: 48.223 | O180: 4.193 | P180: 2.373 | Q180: 41.657 | R180: 57.783 | S180: 110.743 | T180: 10.064 | U180: 8.78 | V180: 91.9
A181: Saudi Arabia | B181: Eastern Mediterranean | C181: Middle East and North Africa | D181: 2011 | E181: 23111.136 | F181: 4971.405 | G181: 28082.541 | H181: 23111.136 | I181: 0 | K181: 0 | L181: 0 | M181: 4971.405 | N181: 0 | P181: 0 | Q181: 0 | R181: 28082.541 | S181: 0 | U181: 0 | V181: 0
A182: Senegal | B182: Africa | C182: West and Central Africa | D182: 2011 | E182: 5429.592 | F182: 7337.964 | G182: 12767.556 | H182: 3689.047 | I182: 1740.545 | J182: 1215.903 | K182: 443.669 | L182: 80.973 | M182: 2869.651 | N182: 4468.313 | O182: 802.788 | P182: 1607.745 | Q182: 2057.78 | R182: 6558.698 | S182: 6208.858 | T182: 2018.69 | U182: 2051.415 | V182: 2138.753
A183: Serbia | B183: Europe | C183: CEE/CIS, Industrialized countries | D183: 2011 | E183: 5554.552 | F183: 4299.417 | G183: 9853.969 | H183: 5470.555 | I183: 83.997 | J183: 83.997 | K183: 0 | L183: 0 | M183: 4109.91 | N183: 189.507 | O183: 68.579 | P183: 118.778 | Q183: 2.15 | R183: 9580.465 | S183: 273.504 | T183: 152.576 | U183: 118.778 | V183: 2.15
A184: Seychelles | B184: Africa | C184: Eastern and Southern Africa | D184: 2011 | E184: 46.576 | F184: 40.303 | G184: 86.879 | H184: 45.226 | I184: 1.35 | K184: 0.931 | L184: 0.419 | M184: 39.135 | N184: 1.168 | P184: 0.806 | Q184: 0.363 | R184: 84.36 | S184: 2.519 | U184: 1.737 | V184: 0.782
A185: Sierra Leone | B185: Africa | C185: West and Central Africa | D185: 2011 | E185: 2352.962 | F185: 3644.524 | G185: 5997.486 | H185: 529.191 | I185: 1823.771 | J185: 990.984 | K185: 614.37 | L185: 218.416 | M185: 243.752 | N185: 3400.772 | O185: 673.32 | P185: 1320.166 | Q185: 1407.286 | R185: 772.944 | S185: 5224.542 | T185: 1664.304 | U185: 1934.536 | V185: 1625.703
A186: Singapore | B186: Western Pacific | D186: 2011 | E186: 5187.933 | F186: 0 | G186: 5187.933 | H186: 5187.933 | I186: 0 | K186: 0 | L186: 0 | R186: 5187.933 | S186: 0 | U186: 0 | V186: 0
A187: Slovakia | B187: Europe | C187: Industrialized countries | D187: 2011 | E187: 2994.66 | F187: 2476.842 | G187: 5471.502 | H187: 2990.291 | I187: 4.369 | J187: 3.34 | K187: 1.029 | L187: 0 | M187: 2467.082 | N187: 9.76 | O187: 6.965 | P187: 2.795 | Q187: 0 | R187: 5457.373 | S187: 14.129 | T187: 10.305 | U187: 3.825 | V187: 0
A188: Slovenia | B188: Europe | C188: Industrialized countries | D188: 2011 | E188: 1015.098 | F188: 1019.914 | G188: 2035.012 | H188: 1015.098 | I188: 0 | J188: 0 | K188: 0 | L188: 0 | M188: 1019.914 | N188: 0 | O188: 0 | P188: 0 | Q188: 0 | R188: 2035.012 | S188: 0 | T188: 0 | U188: 0 | V188: 0
A189: Solomon Islands | B189: Western Pacific | C189: East Asia and the Pacific | D189: 2011 | E189: 112.994 | F189: 439.273 | G189: 552.267 | H189: 91.938 | I189: 21.056 | K189: 16.918 | L189: 4.138 | M189: 65.707 | N189: 373.566 | P189: 276.522 | Q189: 97.044 | R189: 157.645 | S189: 394.622 | U189: 293.44 | V189: 101.182
A190: Somalia | B190: Eastern Mediterranean | C190: Eastern and Southern Africa | D190: 2011 | E190: 3606.99 | F190: 5949.883 | G190: 9556.873 | H190: 1876.653 | I190: 1730.337 | J190: 1075.643 | K190: 557.907 | L190: 96.788 | M190: 374.756 | N190: 5575.127 | O190: 345.928 | P190: 308.646 | Q190: 4920.553 | R190: 2251.409 | S190: 7305.464 | T190: 1421.571 | U190: 866.553 | V190: 5017.341
A191: South Africa | B191: Africa | C191: Eastern and Southern Africa | D191: 2011 | E191: 31282.145 | F191: 19177.833 | G191: 50459.978 | H191: 26373.079 | I191: 4909.066 | J191: 2675.917 | K191: 1564.362 | L191: 668.786 | M191: 10947.942 | N191: 8229.891 | O191: 1216.907 | P191: 4153.391 | Q191: 2859.593 | R191: 37321.021 | S191: 13138.957 | T191: 3892.825 | U191: 5717.753 | V191: 3528.379
A192: South Sudan | B192: Eastern Mediterranean | C192: Middle East and North Africa | D192: 2011 | E192: 1859.502 | F192: 8454.518 | G192: 10314.02 | H192: 292.872 | I192: 1566.63 | J192: 108.781 | K192: 386.776 | L192: 1071.073 | M192: 621.407 | N192: 7833.111 | O192: 169.09 | P192: 790.497 | Q192: 6873.523 | R192: 914.279 | S192: 9399.741 | T192: 277.871 | U192: 1177.274 | V192: 7944.596
A193: Spain | B193: Europe | C193: Industrialized countries | D193: 2011 | E193: 35964.058 | F193: 10490.837 | G193: 46454.895 | H193: 35959.624 | I193: 4.434 | J193: 0 | K193: 4.434 | L193: 0 | M193: 10490.19 | N193: 0.647 | O193: 0 | P193: 0.647 | Q193: 0 | R193: 46449.814 | S193: 5.081 | T193: 0 | U193: 5.081 | V193: 0
A194: Sri Lanka | B194: South-East Asia | C194: South Asia | D194: 2011 | E194: 3174.762 | F194: 17870.632 | G194: 21045.394 | H194: 2624.788 | I194: 549.974 | J194: 447.232 | K194: 66.46 | L194: 36.282 | M194: 16553.537 | N194: 1317.095 | O194: 1081.571 | P194: 143.765 | Q194: 91.759 | R194: 19178.325 | S194: 1867.069 | T194: 1528.803 | U194: 210.225 | V194: 128.041
A195: Sudan | B195: Eastern Mediterranean | C195: Middle East and North Africa | D195: 2011 | E195: 11392.052 | F195: 22926.338 | G195: 34318.39 | H195: 5002.416 | I195: 6389.636 | J195: 1184.526 | K195: 2885.581 | L195: 2319.529 | M195: 3066.967 | N195: 19859.371 | O195: 887.565 | P195: 5399.935 | Q195: 13571.871 | R195: 8069.383 | S195: 26249.007 | T195: 2072.091 | U195: 8285.515 | V195: 15891.401
A196: Suriname | B196: The Americas | C196: Latin America and Caribbean | D196: 2011 | E196: 369.202 | F196: 160.217 | G196: 529.419 | H196: 333.207 | I196: 35.995 | J196: 33.733 | K196: 1.278 | L196: 0.985 | M196: 106.067 | N196: 54.15 | O196: 18.263 | P196: 3.363 | Q196: 32.524 | R196: 439.274 | S196: 90.145 | T196: 51.996 | U196: 4.64 | V196: 33.509
A197: Swaziland | B197: Africa | C197: Eastern and Southern Africa | D197: 2011 | E197: 255.656 | F197: 947.674 | G197: 1203.33 | H197: 161.142 | I197: 94.514 | J197: 74.73 | K197: 16.024 | L197: 3.761 | M197: 524.461 | N197: 423.213 | O197: 172.711 | P197: 77.569 | Q197: 172.932 | R197: 685.603 | S197: 517.727 | T197: 247.441 | U197: 93.593 | V197: 176.693
A198: Sweden | B198: Europe | C198: Industrialized countries | D198: 2011 | E198: 8044.437 | F198: 1396.31 | G198: 9440.747 | H198: 8044.437 | I198: 0 | J198: 0 | K198: 0 | L198: 0 | M198: 1396.31 | N198: 0 | O198: 0 | P198: 0 | Q198: 0 | R198: 9440.747 | S198: 0 | T198: 0 | U198: 0 | V198: 0
A199: Switzerland | B199: Europe | C199: Industrialized countries | D199: 2011 | E199: 5675.442 | F199: 2026.248 | G199: 7701.69 | H199: 5675.442 | I199: 0 | J199: 0 | K199: 0 | L199: 0 | M199: 2026.248 | N199: 0 | O199: 0 | P199: 0 | Q199: 0 | R199: 7701.69 | S199: 0 | T199: 0 | U199: 0 | V199: 0
A200: Syrian Arab Republic | B200: Eastern Mediterranean | C200: Middle East and North Africa | D200: 2011 | E200: 11641.832 | F200: 9124.205 | G200: 20766.037 | H200: 11186.31 | I200: 455.522 | J200: 419.05 | K200: 36.471 | L200: 0 | M200: 8573.242 | N200: 550.963 | O200: 480.563 | P200: 70.4 | Q200: 0 | R200: 19759.553 | S200: 1006.484 | T200: 899.613 | U200: 106.871 | V200: 0
... 30 more rows

Sheet DATA-WHO-Water (hidden)
E1: Population | H1: Water
E2: Urban | F2: Rural | G2: National | H2: Urban | N2: Rural | T2: National
H3: Improved | K3: Unimproved | N3: Improved | Q3: Unimproved | T3: Improved | W3: Unimproved
